Workbook

Sheet RESUMO MODULO TOTAL
B1: CONTRATAÇÃO DE SERVIÇOS DE PAVIMENTAÇÃO ASFÁLTICA COM CONCRETO BETUMINOSO USINADO A QUENTE (CBUQ) EM VIAS URBANAS E RURAIS INSERIDAS NA ÁREA DE ATUAÇÃO DA CODEVASF, NO ESTADO DO RIO GRANDE DO NORTE (REGIÃO 1)
M2: SICRO: | N2: ='SINTÉTICO SICRO'!B2 -> Rio Grande do Norte - Abril/2024
M3: SINAPI: | N3: =RIGHT('INSUMOS SINAPI'!A3,7) -> 06/2024
M4: Data Base do Orçamento | N4: 2024-08-01
B5: =B1 -> CONTRATAÇÃO DE SERVIÇOS DE PAVIMENTAÇÃO ASFÁLTICA COM CONCRETO BETUMINOSO USINADO A QUENTE (CBUQ) EM VIAS URBANAS E RURAIS INSERIDAS NA ÁREA DE ATUAÇÃO DA CODEVASF, NO ESTADO DO RIO GRANDE DO NORTE (REGIÃO 1)
B6: ITEM | C6: ORIGEM COMPOSIÇÃO | D6: CÓDIGO COMPOSIÇÃO | E6: DISCRIMINAÇÃO DOS SERVIÇOS | I6: BDI % = | J6: =BDI!C17 -> 0.2339 | K6: BDI DIFERENCIADO% = | L6: =BDI!C68 -> 0.15 | M6: R$/m² | N6: =N61/I8 -> 250.0279881
I7: Total de m² | J7: Encargos Sociais: | K7: Horista | L7: Mensalista | M7: PREÇO UNITÁRIO COM BDI | N7: PREÇO TOTAL COM BDI
I8: ='MC MODULO'!G1*'MC MODULO'!C1*'MC MODULO'!C2 -> 84000 | K8: ='ENC. SOCIAIS'!$E$51 -> 116.21 | L8: ='ENC. SOCIAIS'!$F$51 -> 71.48
I9: UND | J9: QTDE. | K9: BDI | L9: PREÇO UNITÁRIO
E10: MOBILIZAÇÃO/DESMOBILIZAÇÃO
B11: 1 | C11: Codevasf | D11: Mob | E11: Mobilização | I11: kmxfrente | J11: =Mob!B65*Mob!H6 -> 648 | K11: =(M11/L11-1) -> 0.2339 | L11: =Mob!B62 -> 87.89232667 | M11: =Mob!B64 -> 108.4503419 | N11: =M11*J11 -> 70275.82153 | O11: =N11/$N$61 -> 0.003346093089 | P11: INCC | R11: N1 | S11: TERRAPLENAGEM | T11: =(SUMIF(P:P,"TERRAPLENAGEM",N:N)/$N$61) -> 0.01701357624 | U11: =(SUMIF(P:P,"TERRAPLENAGEM",N:N)) -> 357325.1
B12: 2 | C12: Codevasf | D12: Mob | E12: Desmobilização | I12: kmxfrente | J12: =Mob!B65*Mob!H6 -> 648 | K12: =(M12/L12-1) -> 0.2339 | L12: =Mob!B62 -> 87.89232667 | M12: =Mob!B64 -> 108.4503419 | N12: =M12*J12 -> 70275.82153 | O12: =N12/$N$61 -> 0.003346093089 | P12: INCC | R12: N2 | S12: PAVIMENTAÇÃO | T12: =SUMIF(P:P,"PAVIMENTAÇÃO",N:N)/$N$61 -> 0.8371647341 | U12: =(SUMIF(P:P,"PAVIMENTAÇÃO",N:N)) -> 17582427.59
E13: INSTALAÇÃO DE CANTEIRO | R13: N3 | S13: CONSULTORIA | T13: =SUMIF(P:P,"CONSULTORIA",N:N)/$N$61 -> 0 | U13: =(SUMIF(P:P,"CONSULTORIA",N:N)) -> 0
B14: 3 | C14: Codevasf | D14: Canteiro | E14: Canteiro de Obras e Almoxarifado | I14: frente | J14: ='MC MODULO'!G1 -> 6 | K14: =(M14/L14-1) -> 0.2339 | L14: =' Canteiro'!F11 -> 19147.44 | M14: =' Canteiro'!F13 -> 23626.02622 | N14: =ROUND(ROUND(J14,2)*ROUND(M14,6),2) -> 141756.16 | O14: =N14/N61 -> 0.006749537707 | P14: INCC | R14: N4 | S14: DRENAGEM | T14: =SUMIF(P:P,"DRENAGEM",N:N)/$N$61 -> 0.04194790383 | U14: =(SUMIF(P:P,"DRENAGEM",N:N)) -> 881004.6
B15: 4 | C15: SICRO | D15: 903808 | E15: =VLOOKUP(D15,'SINTÉTICO SICRO'!A:D,2,FALSE) -> Instalação da usina misturadora de solos com capacidade de 300 t/h | I15: frente | J15: ='MC MODULO'!G1/2 -> 3 | K15: 0.2339 | L15: =VLOOKUP(D15,'SINTÉTICO SICRO'!A:D,4,FALSE) -> 108635.66 | M15: =L15*(1+K15) -> 134045.5409 | N15: =ROUND(ROUND(J15,2)*ROUND(M15,6),2) -> 402136.62
B16: 5 | C16: SINAPI | D16: 103689 | E16: Fornecimento e instalação de placa de obra com chapa galvanizada e estrutura de madeira. af_03/2022_ps | I16: m² | J16: ='MC MODULO'!H25 -> 96 | K16: =(M16/L16-1) -> 0.2339 | L16: =VLOOKUP(D16,'COMP Sint. Sinapi'!G7:K1048576,5,0) -> 319.64 | M16: =L16*(1+$J$6) -> 394.403796 | N16: =ROUND(ROUND(J16,2)*ROUND(M16,6),2) -> 37862.76 | P16: INCC | R16: N5 | S16: ADMINISTRAÇÃO LOCAL | T16: =SUMIF(P:P,"ADMINISTRAÇÃO LOCAL",N:N)/$N$61 -> 0 | U16: =(SUMIF(P:P,"ADMINISTRAÇÃO LOCAL",N:N)) -> 0
E17: ADMINISTRAÇÃO LOCAL DA OBRA | R17: N6 | S17: SINALIZAÇÃO VERTICAL | T17: =SUMIF(P:P,"SINALIZAÇÃO VERTICAL",N:N)/$N$61 -> 0 | U17: =(SUMIF(P:P,"SINALIZAÇÃO VERTICAL",N:N)) -> 0
B18: 6 | C18: Codevasf | D18: Adm Local | E18: Administração Local da Obra | I18: und | J18: 1 | K18: =(M18/L18-1) -> 0.2339 | L18: ='Adm Local'!J249 -> 882766.109 | M18: ='Adm Local'!I251 -> 1089245.102 | N18: =ROUND(ROUND(J18,2)*ROUND(M18,6),2) -> 1089245.1 | O18: =N18/N61 -> 0.0518630081 | P18: INCC | R18: N7 | S18: SINALIZAÇÃO HORIZONTAL | T18: =SUMIF(P:P,"SINALIZAÇÃO HORIZONTAL",N:N)/$N$61 -> 0 | U18: =(SUMIF(P:P,"SINALIZAÇÃO HORIZONTAL",N:N)) -> 0
E19: TERRAPLANAGEM | R19: N8 | S19: CAP | T19: =(SUMIF(P:P,"CAP",N:N))/$N$61 -> 0 | U19: =(SUMIF(P:P,"CAP",N:N)) -> 0
B20: 7 | C20: SICRO | D20: 5502114 | E20: =VLOOKUP(D20,'SINTÉTICO SICRO'!$A$4:$D$1048576,2,0) -> Escavação, carga e transporte de material de 1ª categoria - DMT de 1.000 a 1.200 m - caminho de serviço em leito natural - com escavadeira e caminhão basculante de 14 m³ | I20: m³ | J20: ='MC MODULO'!H37 -> 29400 | K20: =M20/L20-1 -> 0.2339 | L20: =ROUND(IF(C20="CODEVASF",VLOOKUP(D20,'CPU CODEVASF'!E:I,5,FALSE),VLOOKUP(D20,'SINTÉTICO SICRO'!A:D,4,FALSE)),6) -> 7.88 | M20: =ROUND(IF(C20="CODEVASF",VLOOKUP(D20,'CPU CODEVASF'!E:H,4,FALSE),VLOOKUP(D20,'SINTÉTICO SICRO'!A:D,4,FALSE)*(1+$J$6)),6) -> 9.723132 | N20: =ROUND(ROUND(J20,2)*ROUND(M20,6),2) -> 285860.08 | P20: TERRAPLENAGEM | R20: N9 | S20: IMPRIMAÇÃO | T20: =(SUMIF(P:P,"IMPRIMAÇÃO",N:N))/$N$61 -> 0 | U20: =(SUMIF(P:P,"IMPRIMAÇÃO",N:N)) -> 0
B21: 8 | C21: SICRO | D21: 4413942 | E21: =VLOOKUP(D21,'SINTÉTICO SICRO'!$A$4:$D$1048576,2,0) -> Espalhamento de material em bota-fora | I21: m³ | J21: ='MC MODULO'!H44 -> 29400 | K21: 0.2339 | L21: =ROUND(IF(C21="CODEVASF",VLOOKUP(D21,'CPU CODEVASF'!E:I,5,FALSE),VLOOKUP(D21,'SINTÉTICO SICRO'!A:D,4,FALSE)),6) -> 1.97 | M21: =ROUND(IF(C21="CODEVASF",VLOOKUP(D21,'CPU CODEVASF'!E:H,4,FALSE),VLOOKUP(D21,'SINTÉTICO SICRO'!A:D,4,FALSE)*(1+$J$6)),6) -> 2.430783 | N21: 71465.02 | P21: TERRAPLENAGEM | R21: N10 | S21: EMULSÃO ASFÁLTICA | T21: =(SUMIF(P:P,"EMULSÃO ASFÁLTICA",N:N))/$N$61 -> 0 | U21: =(SUMIF(P:P,"EMULSÃO ASFÁLTICA",N:N)) -> 0 | AJ21: 1
E22: PAVIMENTAÇÃO | R22: N11 | S22: OBRAS COMPLEMENTARES | T22: =(SUMIF(P:P,"OBRAS COMPLEMENTARES",N:N))/$N$61 -> 0 | U22: =(SUMIF(P:P,"OBRAS COMPLEMENTARES",N:N)) -> 0
B23: 9 | C23: SICRO | D23: 4011463 | E23: =VLOOKUP(D23,'SINTÉTICO SICRO'!$A$4:$D$1048576,2,0) -> Concreto asfáltico - faixa C - areia e brita comerciais | I23: t | J23: ='MC MODULO'!H51 -> 10080 | K23: =M23/L23-1 -> 0.2339 | L23: =ROUND(IF(C23="CODEVASF",VLOOKUP(D23,'CPU CODEVASF'!E:I,5,FALSE),VLOOKUP(D23,'SINTÉTICO SICRO'!A:D,4,FALSE)),6) -> 201.86 | M23: =ROUND(IF(C23="CODEVASF",VLOOKUP(D23,'CPU CODEVASF'!E:H,4,FALSE),VLOOKUP(D23,'SINTÉTICO SICRO'!A:D,4,FALSE)*(1+$J$6)),6) -> 249.075054 | N23: =ROUND(ROUND(J23,2)*ROUND(M23,6),2) -> 2510676.54 | P23: PAVIMENTAÇÃO | R23: N12 | S23: MOBILIZAÇÃO | T23: =(SUMIF(P:P,"MOBILIZAÇÃO",N:N))/$N$61 -> 0 | U23: =(SUMIF(P:P,"MOBILIZAÇÃO",N:N)) -> 0
B24: 10 | C24: SICRO | D24: 4011352 | E24: =VLOOKUP(D24,'SINTÉTICO SICRO'!$A$4:$D$1048576,2,0) -> Imprimação com emulsão asfáltica | I24: m² | J24: ='MC MODULO'!H57 -> 84000 | K24: 0.2339 | L24: =ROUND(IF(C24="CODEVASF",VLOOKUP(D24,'CPU CODEVASF'!E:I,5,FALSE),VLOOKUP(D24,'SINTÉTICO SICRO'!A:D,4,FALSE)),6) -> 0.41 | M24: =ROUND(IF(C24="CODEVASF",VLOOKUP(D24,'CPU CODEVASF'!E:H,4,FALSE),VLOOKUP(D24,'SINTÉTICO SICRO'!A:D,4,FALSE)*(1+$J$6)),6) -> 0.505899 | N24: 42495.52 | P24: PAVIMENTAÇÃO | R24: N13 | S24: INCC | T24: =(SUMIF(P:P,"INCC",N:N))/$N$61 -> 0.08472660242 | U24: =(SUMIF(P:P,"INCC",N:N)) -> 1779457.843
B25: 11 | C25: SICRO | D25: 4011353 | E25: =VLOOKUP(D25,'SINTÉTICO SICRO'!$A$4:$D$1048576,2,0) -> Pintura de ligação | I25: m² | J25: ='MC MODULO'!H63 -> 84000 | K25: 0.2339 | L25: =ROUND(IF(C25="CODEVASF",VLOOKUP(D25,'CPU CODEVASF'!E:I,5,FALSE),VLOOKUP(D25,'SINTÉTICO SICRO'!A:D,4,FALSE)),6) -> 0.28 | M25: =ROUND(IF(C25="CODEVASF",VLOOKUP(D25,'CPU CODEVASF'!E:H,4,FALSE),VLOOKUP(D25,'SINTÉTICO SICRO'!A:D,4,FALSE)*(1+$J$6)),6) -> 0.345492 | N25: 29021.33 | P25: PAVIMENTAÇÃO
B26: 12 | C26: SICRO | D26: 4011268 | E26: =VLOOKUP(D26,'SINTÉTICO SICRO'!$A$4:$D$1048576,2,0) -> Base estabilizada granulometricamente com mistura solo brita (70% - 30%) em usina com material de jazida e brita comercial | I26: m³ | J26: ='MC MODULO'!H68 -> 12600 | K26: 0.2339 | L26: =ROUND(IF(C26="CODEVASF",VLOOKUP(D26,'CPU CODEVASF'!E:I,5,FALSE),VLOOKUP(D26,'SINTÉTICO SICRO'!A:D,4,FALSE)),6) -> 82.27 | M26: =ROUND(IF(C26="CODEVASF",VLOOKUP(D26,'CPU CODEVASF'!E:H,4,FALSE),VLOOKUP(D26,'SINTÉTICO SICRO'!A:D,4,FALSE)*(1+$J$6)),6) -> 101.512953 | N26: 1279063.21 | P26: PAVIMENTAÇÃO
B27: 13 | C27: SICRO | D27: 4011235 | E27: =VLOOKUP(D27,'SINTÉTICO SICRO'!$A$4:$D$1048576,2,0) -> Sub-base estabilizada granulometricamente com mistura solo brita (70% - 30%) em usina com material de jazida e brita comercial | I27: m³ | J27: ='MC MODULO'!H74 -> 12600 | K27: 0.2339 | L27: =ROUND(IF(C27="CODEVASF",VLOOKUP(D27,'CPU CODEVASF'!E:I,5,FALSE),VLOOKUP(D27,'SINTÉTICO SICRO'!A:D,4,FALSE)),6) -> 81.9 | M27: =ROUND(IF(C27="CODEVASF",VLOOKUP(D27,'CPU CODEVASF'!E:H,4,FALSE),VLOOKUP(D27,'SINTÉTICO SICRO'!A:D,4,FALSE)*(1+$J$6)),6) -> 101.05641 | N27: 1273310.77 | P27: PAVIMENTAÇÃO
B28: 14 | C28: SICRO | D28: 4011209 | E28: =VLOOKUP(D28,'SINTÉTICO SICRO'!$A$4:$D$1048576,2,0) -> Regularização do subleito | I28: m² | J28: ='MC MODULO'!H80 -> 84000 | K28: 0.2339 | L28: =ROUND(IF(C28="CODEVASF",VLOOKUP(D28,'CPU CODEVASF'!E:I,5,FALSE),VLOOKUP(D28,'SINTÉTICO SICRO'!A:D,4,FALSE)),6) -> 1.16 | M28: =ROUND(IF(C28="CODEVASF",VLOOKUP(D28,'CPU CODEVASF'!E:H,4,FALSE),VLOOKUP(D28,'SINTÉTICO SICRO'!A:D,4,FALSE)*(1+$J$6)),6) -> 1.431324 | N28: 120231.22 | P28: PAVIMENTAÇÃO
E29: AQUISIÇÃO E TRANSPORTE DO MATERIAL BETUMINOSO
B30: 15 | C30: CODEVASF | D30: CPU-13 | E30: AQUISIÇÃO DE CIMENTO ASFALTICO CAP 50/70 | I30: t | J30: =' CONSUMO DE MAT. B TOTAL'!P13 -> 650.06 | K30: =M30/L30-1 -> 0.1500000001 | L30: =ROUND(IF(C30="CODEVASF",VLOOKUP(D30,'CPU CODEVASF'!E:I,5,FALSE),VLOOKUP(D30,'SINTÉTICO SICRO'!A:D,4,FALSE)),6) -> 4164.957257 | M30: =ROUND(IF(C30="CODEVASF",VLOOKUP(D30,'CPU CODEVASF'!E:H,4,FALSE),VLOOKUP(D30,'SINTÉTICO SICRO'!A:D,4,FALSE)*(1+$J$6)),6) -> 4789.700846 | N30: =ROUND(ROUND(J30,2)*ROUND(M30,6),2) -> 3113592.93 | P30: PAVIMENTAÇÃO
B31: 16 | C31: CODEVASF | D31: CPU-17 | E31: TRANSPORTE CAP 50/70 | I31: t | J31: =' CONSUMO DE MAT. B TOTAL'!P13 -> 650.06 | K31: 0.15 | L31: =ROUND(IF(C31="CODEVASF",VLOOKUP(D31,'CPU CODEVASF'!E:I,5,FALSE),VLOOKUP(D31,'SINTÉTICO SICRO'!A:D,4,FALSE)),6) -> 412.97 | M31: =ROUND(IF(C31="CODEVASF",VLOOKUP(D31,'CPU CODEVASF'!E:H,4,FALSE),VLOOKUP(D31,'SINTÉTICO SICRO'!A:D,4,FALSE)*(1+$J$6)),6) -> 474.9155 | N31: 308723.57 | P31: PAVIMENTAÇÃO
B32: 17 | C32: CODEVASF | D32: CPU-14 | E32: AQUISIÇÃO DE EAI | I32: t | J32: =' CONSUMO DE MAT. B TOTAL'!P8 -> 109.2 | K32: 0.1499999997 | L32: =ROUND(IF(C32="CODEVASF",VLOOKUP(D32,'CPU CODEVASF'!E:I,5,FALSE),VLOOKUP(D32,'SINTÉTICO SICRO'!A:D,4,FALSE)),6) -> 2852.762226 | M32: =ROUND(IF(C32="CODEVASF",VLOOKUP(D32,'CPU CODEVASF'!E:H,4,FALSE),VLOOKUP(D32,'SINTÉTICO SICRO'!A:D,4,FALSE)*(1+$J$6)),6) -> 3280.676559 | N32: 358249.88 | P32: PAVIMENTAÇÃO
B33: 18 | C33: CODEVASF | D33: CPU-18 | E33: TRANSPORTE DE EAI | I33: t | J33: =' CONSUMO DE MAT. B TOTAL'!P8 -> 109.2 | K33: 0.1499999999 | L33: =ROUND(IF(C33="CODEVASF",VLOOKUP(D33,'CPU CODEVASF'!E:I,5,FALSE),VLOOKUP(D33,'SINTÉTICO SICRO'!A:D,4,FALSE)),6) -> 1679.336614 | M33: =ROUND(IF(C33="CODEVASF",VLOOKUP(D33,'CPU CODEVASF'!E:H,4,FALSE),VLOOKUP(D33,'SINTÉTICO SICRO'!A:D,4,FALSE)*(1+$J$6)),6) -> 1931.237106 | N33: 210891.09 | P33: PAVIMENTAÇÃO
B34: 19 | C34: CODEVASF | D34: CPU-15 | E34: AQUISIÇÃO DE EMULSÃO ASFÁLTICA RR-1C | I34: t | J34: =' CONSUMO DE MAT. B TOTAL'!P11 -> 37.8 | K34: 0.1500001703 | L34: =ROUND(IF(C34="CODEVASF",VLOOKUP(D34,'CPU CODEVASF'!E:I,5,FALSE),VLOOKUP(D34,'SINTÉTICO SICRO'!A:D,4,FALSE)),6) -> 2951.646649 | M34: =ROUND(IF(C34="CODEVASF",VLOOKUP(D34,'CPU CODEVASF'!E:H,4,FALSE),VLOOKUP(D34,'SINTÉTICO SICRO'!A:D,4,FALSE)*(1+$J$6)),6) -> 3394.394149 | N34: 128308.1 | P34: PAVIMENTAÇÃO
B35: 20 | C35: CODEVASF | D35: CPU-19 | E35: TRANSPORTE RR-1C | I35: t | J35: =' CONSUMO DE MAT. B TOTAL'!P11 -> 37.8 | K35: 0.1499999999 | L35: =ROUND(IF(C35="CODEVASF",VLOOKUP(D35,'CPU CODEVASF'!E:I,5,FALSE),VLOOKUP(D35,'SINTÉTICO SICRO'!A:D,4,FALSE)),6) -> 1679.336614 | M35: =ROUND(IF(C35="CODEVASF",VLOOKUP(D35,'CPU CODEVASF'!E:H,4,FALSE),VLOOKUP(D35,'SINTÉTICO SICRO'!A:D,4,FALSE)*(1+$J$6)),6) -> 1931.237106 | N35: 73000.76 | P35: PAVIMENTAÇÃO
E36: SINALIZAÇÃO
B37: 21 | C37: SICRO | D37: 5213440 | E37: =VLOOKUP(D37,'SINTÉTICO SICRO'!$A$4:$D$1048576,2,0) -> Placa de regulamentação em aço D = 0,60 m - película retrorrefletiva tipo I + SI - fornecimento e implantação | I37: und | J37: ='MC MODULO'!H87 -> 36 | K37: =M37/L37-1 -> 0.2339 | L37: =ROUND(IF(C37="CODEVASF",VLOOKUP(D37,'CPU CODEVASF'!E:I,5,FALSE),VLOOKUP(D37,'SINTÉTICO SICRO'!A:D,4,FALSE)),6) -> 260.02 | M37: =ROUND(IF(C37="CODEVASF",VLOOKUP(D37,'CPU CODEVASF'!E:H,4,FALSE),VLOOKUP(D37,'SINTÉTICO SICRO'!A:D,4,FALSE)*(1+$J$6)),6) -> 320.838678 | N37: =ROUND(ROUND(J37,2)*ROUND(M37,6),2) -> 11550.19 | P37: INCC
B38: 22 | C38: SICRO | D38: 5213464 | E38: =VLOOKUP(D38,'SINTÉTICO SICRO'!$A$4:$D$1048576,2,0) -> Placa de advertência em aço, lado de 0,60 m - película retrorrefletiva tipo I + SI - fornecimento e implantação | I38: und | J38: ='MC MODULO'!H92 -> 36 | K38: =M38/L38-1 -> 0.2339 | L38: =ROUND(IF(C38="CODEVASF",VLOOKUP(D38,'CPU CODEVASF'!E:I,5,FALSE),VLOOKUP(D38,'SINTÉTICO SICRO'!A:D,4,FALSE)),6) -> 260.05 | M38: =ROUND(IF(C38="CODEVASF",VLOOKUP(D38,'CPU CODEVASF'!E:H,4,FALSE),VLOOKUP(D38,'SINTÉTICO SICRO'!A:D,4,FALSE)*(1+$J$6)),6) -> 320.875695 | N38: =ROUND(ROUND(J38,2)*ROUND(M38,6),2) -> 11551.53 | P38: INCC
B39: 23 | C39: SICRO | D39: 5213863 | E39: =VLOOKUP(D39,'SINTÉTICO SICRO'!$A$4:$D$1048576,2,0) -> Suporte metálico galvanizado para placa de advertência ou regulamentação - lado ou diâmetro de 0,60 m - fornecimento e implantação | I39: und | J39: ='MC MODULO'!H98 -> 72 | K39: 0.2339 | L39: =ROUND(IF(C39="CODEVASF",VLOOKUP(D39,'CPU CODEVASF'!E:I,5,FALSE),VLOOKUP(D39,'SINTÉTICO SICRO'!A:D,4,FALSE)),6) -> 454.56 | M39: =ROUND(IF(C39="CODEVASF",VLOOKUP(D39,'CPU CODEVASF'!E:H,4,FALSE),VLOOKUP(D39,'SINTÉTICO SICRO'!A:D,4,FALSE)*(1+$J$6)),6) -> 560.881584 | N39: 40383.47 | P39: INCC
B40: 24 | C40: SICRO | D40: 5213400 | E40: =VLOOKUP(D40,'SINTÉTICO SICRO'!$A$4:$D$1048576,2,0) -> Pintura de faixa com tinta acrílica - espessura de 0,4 mm | I40: m² | J40: ='MC MODULO'!H103+'MC MODULO'!H108 -> 3360 | K40: 0.2339 | L40: =ROUND(IF(C40="CODEVASF",VLOOKUP(D40,'CPU CODEVASF'!E:I,5,FALSE),VLOOKUP(D40,'SINTÉTICO SICRO'!A:D,4,FALSE)),6) -> 24.82 | M40: =ROUND(IF(C40="CODEVASF",VLOOKUP(D40,'CPU CODEVASF'!E:H,4,FALSE),VLOOKUP(D40,'SINTÉTICO SICRO'!A:D,4,FALSE)*(1+$J$6)),6) -> 30.625398 | N40: 102901.34 | P40: INCC
E41: DRENAGEM
B42: 25 | C42: SICRO | D42: 2003943 | E42: =VLOOKUP(D42,'SINTÉTICO SICRO'!$A$4:$D$1048576,2,0) -> Meio-fio de concreto - MFC 03 moldado no local com extrusora e concreto usinado - areia e brita comerciais | I42: m | J42: ='MC MODULO'!H115 -> 24000 | K42: =M42/L42-1 -> 0.2339 | L42: =ROUND(IF(C42="CODEVASF",VLOOKUP(D42,'CPU CODEVASF'!E:I,5,FALSE),VLOOKUP(D42,'SINTÉTICO SICRO'!A:D,4,FALSE)),6) -> 29.75 | M42: =ROUND(IF(C42="CODEVASF",VLOOKUP(D42,'CPU CODEVASF'!E:H,4,FALSE),VLOOKUP(D42,'SINTÉTICO SICRO'!A:D,4,FALSE)*(1+$J$6)),6) -> 36.708525 | N42: =ROUND(ROUND(J42,2)*ROUND(M42,6),2) -> 881004.6 | P42: DRENAGEM
B43: 26 | C43: SICRO | D43: 4915724 | E43: =VLOOKUP(D43,'SINTÉTICO SICRO'!$A$4:$D$1048576,2,0) -> Caiação mecanizada com fixador de cal | I43: m² | J43: ='MC MODULO'!H120 -> 2880 | K43: =(M43/L43-1) -> 0.2339 | L43: =ROUND(IF(C43="CODEVASF",VLOOKUP(D43,'CPU CODEVASF'!E:I,5,FALSE),VLOOKUP(D43,'SINTÉTICO SICRO'!A:D,4,FALSE)),6) -> 1.94 | M43: =ROUND(IF(C43="CODEVASF",VLOOKUP(D43,'CPU CODEVASF'!E:H,4,FALSE),VLOOKUP(D43,'SINTÉTICO SICRO'!A:D,4,FALSE)*(1+$J$6)),6) -> 2.393766 | N43: =ROUND(ROUND(J43,2)*ROUND(M43,6),2) -> 6894.05 | P43: INCC | AE43: 4514640
E44: SERVIÇOS COMPLEMENTARES
B45: 27 | C45: Codevasf | D45: CPU-12 | E45: Conserto de quebra no ramal na rua sem pavimento com fornecimento de material hidráulico | I45: m | J45: ='MC MODULO'!H127 -> 1200 | K45: =M45/L45-1 -> 0.2339000318 | L45: =ROUND(IF(C45="CODEVASF",VLOOKUP(D45,'CPU CODEVASF'!E:I,5,FALSE),VLOOKUP(D45,'SINTÉTICO SICRO'!A:D,4,FALSE)),6) -> 15.06739 | M45: =ROUND(IF(C45="CODEVASF",VLOOKUP(D45,'CPU CODEVASF'!E:H,4,FALSE),VLOOKUP(D45,'SINTÉTICO SICRO'!A:D,4,FALSE)*(1+$J$6)),6) -> 18.591653 | N45: =ROUND(ROUND(J45,2)*ROUND(M45,6),2) -> 22309.98 | P45: INCC
E46: PROJETO EXECUTIVO
B47: 28 | C47: Codevasf | D47: Composição Própria | E47: Projeto Executivo | I47: m² | J47: ='MC MODULO'!H134 -> 84000 | K47: =M47/L47-1 -> 0.2338997209 | L47: =ROUND(('Projeto Executivo'!G27)/(1+$J$6),6) -> 1.683123 | M47: =ROUND(('Projeto Executivo'!G27),6) -> 2.076805 | N47: =ROUND(ROUND(J47,2)*ROUND(M47,6),2) -> 174451.62 | P47: INCC
E48: MOMENTO DE TRANSPORTE
B49: 29 | C49: SICRO | D49: 5914359 | E49: =VLOOKUP(D49,'SINTÉTICO SICRO'!$A$4:$D$1048576,2,0) -> Transporte com caminhão basculante de 10 m³ - rodovia em leito natural | I49: tkm | J49: =ROUND(SUMIF('MOMENTO DE TRANSPORTE - PRINC'!A:A,'RESUMO MODULO TOTAL'!D49,'MOMENTO DE TRANSPORTE - PRINC'!K:K)+SUMIF('MOMENTO DE TRANSPORTE - AUX'!A:A,'RESUMO MODULO TOTAL'!D49,'MOMENTO DE TRANSPORTE - AUX'!K:K),2) -> 0 | K49: =M49/L49-1 -> 0.2339 | L49: =ROUND(IF(C49="CODEVASF",VLOOKUP(D49,'CPU CODEVASF'!E:I,5,FALSE),VLOOKUP(D49,'SINTÉTICO SICRO'!A:D,4,FALSE)),6) -> 1.23 | M49: =ROUND(IF(C49="CODEVASF",VLOOKUP(D49,'CPU CODEVASF'!E:H,4,FALSE),VLOOKUP(D49,'SINTÉTICO SICRO'!A:D,4,FALSE)*(1+$J$6)),6) -> 1.517697 | N49: =ROUND(ROUND(J49,2)*ROUND(M49,6),2) -> 0 | P49: PAVIMENTAÇÃO
B50: 30 | C50: SICRO | D50: 5914374 | E50: =VLOOKUP(D50,'SINTÉTICO SICRO'!$A$4:$D$1048576,2,0) -> Transporte com caminhão basculante de 10 m³ - rodovia em revestimento primário | I50: tkm | J50: =ROUND(SUMIF('MOMENTO DE TRANSPORTE - PRINC'!A:A,'RESUMO MODULO TOTAL'!D50,'MOMENTO DE TRANSPORTE - PRINC'!K:K)+SUMIF('MOMENTO DE TRANSPORTE - AUX'!A:A,'RESUMO MODULO TOTAL'!D50,'MOMENTO DE TRANSPORTE - AUX'!K:K),2) -> 778772.23 | K50: 0.2339 | L50: =ROUND(IF(C50="CODEVASF",VLOOKUP(D50,'CPU CODEVASF'!E:I,5,FALSE),VLOOKUP(D50,'SINTÉTICO SICRO'!A:D,4,FALSE)),6) -> 0.99 | M50: =ROUND(IF(C50="CODEVASF",VLOOKUP(D50,'CPU CODEVASF'!E:H,4,FALSE),VLOOKUP(D50,'SINTÉTICO SICRO'!A:D,4,FALSE)*(1+$J$6)),6) -> 1.221561 | N50: 951317.78 | P50: PAVIMENTAÇÃO
B51: 31 | C51: SICRO | D51: 5914389 | E51: =VLOOKUP(D51,'SINTÉTICO SICRO'!$A$4:$D$1048576,2,0) -> Transporte com caminhão basculante de 10 m³ - rodovia pavimentada | I51: tkm | J51: =ROUND(SUMIF('MOMENTO DE TRANSPORTE - PRINC'!A:A,'RESUMO MODULO TOTAL'!D51,'MOMENTO DE TRANSPORTE - PRINC'!K:K)+SUMIF('MOMENTO DE TRANSPORTE - AUX'!A:A,'RESUMO MODULO TOTAL'!D51,'MOMENTO DE TRANSPORTE - AUX'!K:K),2) -> 7008950.09 | K51: 0.2339 | L51: =ROUND(IF(C51="CODEVASF",VLOOKUP(D51,'CPU CODEVASF'!E:I,5,FALSE),VLOOKUP(D51,'SINTÉTICO SICRO'!A:D,4,FALSE)),6) -> 0.81 | M51: =ROUND(IF(C51="CODEVASF",VLOOKUP(D51,'CPU CODEVASF'!E:H,4,FALSE),VLOOKUP(D51,'SINTÉTICO SICRO'!A:D,4,FALSE)*(1+$J$6)),6) -> 0.999459 | N51: 7005158.25 | P51: PAVIMENTAÇÃO
B52: 32 | C52: SICRO | D52: 5914449 | E52: =VLOOKUP(D52,'SINTÉTICO SICRO'!$A$4:$D$1048576,2,0) -> Transporte com caminhão carroceria de 15 t - rodovia em leito natural | I52: tkm | J52: =ROUND(SUMIF('MOMENTO DE TRANSPORTE - PRINC'!A:A,'RESUMO MODULO TOTAL'!D52,'MOMENTO DE TRANSPORTE - PRINC'!K:K)+SUMIF('MOMENTO DE TRANSPORTE - AUX'!A:A,'RESUMO MODULO TOTAL'!D52,'MOMENTO DE TRANSPORTE - AUX'!K:K),2) -> 0 | K52: 0.2339 | L52: =ROUND(IF(C52="CODEVASF",VLOOKUP(D52,'CPU CODEVASF'!E:I,5,FALSE),VLOOKUP(D52,'SINTÉTICO SICRO'!A:D,4,FALSE)),6) -> 1.1 | M52: =ROUND(IF(C52="CODEVASF",VLOOKUP(D52,'CPU CODEVASF'!E:H,4,FALSE),VLOOKUP(D52,'SINTÉTICO SICRO'!A:D,4,FALSE)*(1+$J$6)),6) -> 1.35729 | N52: 0 | P52: PAVIMENTAÇÃO
B53: 33 | C53: SICRO | D53: 5914464 | E53: =VLOOKUP(D53,'SINTÉTICO SICRO'!$A$4:$D$1048576,2,0) -> Transporte com caminhão carroceria de 15 t - rodovia em revestimento primário | I53: tkm | J53: =ROUND(SUMIF('MOMENTO DE TRANSPORTE - PRINC'!A:A,'RESUMO MODULO TOTAL'!D53,'MOMENTO DE TRANSPORTE - PRINC'!K:K)+SUMIF('MOMENTO DE TRANSPORTE - AUX'!A:A,'RESUMO MODULO TOTAL'!D53,'MOMENTO DE TRANSPORTE - AUX'!K:K),2) -> 0 | K53: 0.2339 | L53: =ROUND(IF(C53="CODEVASF",VLOOKUP(D53,'CPU CODEVASF'!E:I,5,FALSE),VLOOKUP(D53,'SINTÉTICO SICRO'!A:D,4,FALSE)),6) -> 0.88 | M53: =ROUND(IF(C53="CODEVASF",VLOOKUP(D53,'CPU CODEVASF'!E:H,4,FALSE),VLOOKUP(D53,'SINTÉTICO SICRO'!A:D,4,FALSE)*(1+$J$6)),6) -> 1.085832 | N53: 0 | P53: PAVIMENTAÇÃO
B54: 34 | C54: SICRO | D54: 5914479 | E54: =VLOOKUP(D54,'SINTÉTICO SICRO'!$A$4:$D$1048576,2,0) -> Transporte com caminhão carroceria de 15 t - rodovia pavimentada | I54: tkm | J54: =ROUND(SUMIF('MOMENTO DE TRANSPORTE - PRINC'!A:A,'RESUMO MODULO TOTAL'!D54,'MOMENTO DE TRANSPORTE - PRINC'!K:K)+SUMIF('MOMENTO DE TRANSPORTE - AUX'!A:A,'RESUMO MODULO TOTAL'!D54,'MOMENTO DE TRANSPORTE - AUX'!K:K),2) -> 0 | K54: 0.2339 | L54: =ROUND(IF(C54="CODEVASF",VLOOKUP(D54,'CPU CODEVASF'!E:I,5,FALSE),VLOOKUP(D54,'SINTÉTICO SICRO'!A:D,4,FALSE)),6) -> 0.73 | M54: =ROUND(IF(C54="CODEVASF",VLOOKUP(D54,'CPU CODEVASF'!E:H,4,FALSE),VLOOKUP(D54,'SINTÉTICO SICRO'!A:D,4,FALSE)*(1+$J$6)),6) -> 0.900747 | N54: 0 | P54: PAVIMENTAÇÃO
B55: 35 | C55: SICRO | D55: 5914364 | E55: =VLOOKUP(D55,'SINTÉTICO SICRO'!$A$4:$D$1048576,2,0) -> Transporte de cimento ou cal hidratada a granel com caminhão silo de 30 m³ - rodovia em leito natural | I55: tkm | J55: =ROUND(SUMIF('MOMENTO DE TRANSPORTE - PRINC'!A:A,'RESUMO MODULO TOTAL'!D55,'MOMENTO DE TRANSPORTE - PRINC'!K:K)+SUMIF('MOMENTO DE TRANSPORTE - AUX'!A:A,'RESUMO MODULO TOTAL'!D55,'MOMENTO DE TRANSPORTE - AUX'!K:K),2) -> 0 | K55: =M55/L55-1 -> 0.2339 | L55: =ROUND(IF(C55="CODEVASF",VLOOKUP(D55,'CPU CODEVASF'!E:I,5,FALSE),VLOOKUP(D55,'SINTÉTICO SICRO'!A:D,4,FALSE)),6) -> 0.9 | M55: =ROUND(IF(C55="CODEVASF",VLOOKUP(D55,'CPU CODEVASF'!E:H,4,FALSE),VLOOKUP(D55,'SINTÉTICO SICRO'!A:D,4,FALSE)*(1+$J$6)),6) -> 1.11051 | N55: =ROUND(ROUND(J55,2)*ROUND(M55,6),2) -> 0 | P55: PAVIMENTAÇÃO
B56: 36 | C56: SICRO | D56: 5914365 | E56: =VLOOKUP(D56,'SINTÉTICO SICRO'!$A$4:$D$1048576,2,0) -> Transporte de cimento ou cal hidratada a granel com caminhão silo de 30 m³ - rodovia em revestimento primário | I56: tkm | J56: =ROUND(SUMIF('MOMENTO DE TRANSPORTE - PRINC'!A:A,'RESUMO MODULO TOTAL'!D56,'MOMENTO DE TRANSPORTE - PRINC'!K:K)+SUMIF('MOMENTO DE TRANSPORTE - AUX'!A:A,'RESUMO MODULO TOTAL'!D56,'MOMENTO DE TRANSPORTE - AUX'!K:K),2) -> 0 | K56: 0.2339 | L56: =ROUND(IF(C56="CODEVASF",VLOOKUP(D56,'CPU CODEVASF'!E:I,5,FALSE),VLOOKUP(D56,'SINTÉTICO SICRO'!A:D,4,FALSE)),6) -> 0.72 | M56: =ROUND(IF(C56="CODEVASF",VLOOKUP(D56,'CPU CODEVASF'!E:H,4,FALSE),VLOOKUP(D56,'SINTÉTICO SICRO'!A:D,4,FALSE)*(1+$J$6)),6) -> 0.888408 | N56: 0 | P56: PAVIMENTAÇÃO
B57: 37 | C57: SICRO | D57: 5914366 | E57: =VLOOKUP(D57,'SINTÉTICO SICRO'!$A$4:$D$1048576,2,0) -> Transporte de cimento ou cal hidratada a granel com caminhão silo de 30 m³ - rodovia pavimentada | I57: tkm | J57: =ROUND(SUMIF('MOMENTO DE TRANSPORTE - PRINC'!A:A,'RESUMO MODULO TOTAL'!D57,'MOMENTO DE TRANSPORTE - PRINC'!K:K)+SUMIF('MOMENTO DE TRANSPORTE - AUX'!A:A,'RESUMO MODULO TOTAL'!D57,'MOMENTO DE TRANSPORTE - AUX'!K:K),2) -> 0 | K57: =M57/L57-1 -> 0.2339 | L57: =ROUND(IF(C57="CODEVASF",VLOOKUP(D57,'CPU CODEVASF'!E:I,5,FALSE),VLOOKUP(D57,'SINTÉTICO SICRO'!A:D,4,FALSE)),6) -> 0.59 | M57: =ROUND(IF(C57="CODEVASF",VLOOKUP(D57,'CPU CODEVASF'!E:H,4,FALSE),VLOOKUP(D57,'SINTÉTICO SICRO'!A:D,4,FALSE)*(1+$J$6)),6) -> 0.728001 | N57: =ROUND(ROUND(J57,2)*ROUND(M57,6),2) -> 0 | P57: PAVIMENTAÇÃO
B58: 38 | C58: SICRO | D58: 5914539 | E58: =VLOOKUP(D58,'SINTÉTICO SICRO'!$A$4:$D$1048576,2,0) -> Transporte com caminhão betoneira - rodovia em leito natural | I58: tkm | J58: =ROUND(SUMIF('MOMENTO DE TRANSPORTE - PRINC'!A:A,'RESUMO MODULO TOTAL'!D58,'MOMENTO DE TRANSPORTE - PRINC'!K:K)+SUMIF('MOMENTO DE TRANSPORTE - AUX'!A:A,'RESUMO MODULO TOTAL'!D58,'MOMENTO DE TRANSPORTE - AUX'!K:K),2) -> 0 | K58: 0.2339 | L58: =ROUND(IF(C58="CODEVASF",VLOOKUP(D58,'CPU CODEVASF'!E:I,5,FALSE),VLOOKUP(D58,'SINTÉTICO SICRO'!A:D,4,FALSE)),6) -> 0.98 | M58: =ROUND(IF(C58="CODEVASF",VLOOKUP(D58,'CPU CODEVASF'!E:H,4,FALSE),VLOOKUP(D58,'SINTÉTICO SICRO'!A:D,4,FALSE)*(1+$J$6)),6) -> 1.209222 | N58: 0 | P58: PAVIMENTAÇÃO
B59: 39 | C59: SICRO | D59: 5914554 | E59: =VLOOKUP(D59,'SINTÉTICO SICRO'!$A$4:$D$1048576,2,0) -> Transporte com caminhão betoneira - rodovia em revestimento primário | I59: tkm | J59: =ROUND(SUMIF('MOMENTO DE TRANSPORTE - PRINC'!A:A,'RESUMO MODULO TOTAL'!D59,'MOMENTO DE TRANSPORTE - PRINC'!K:K)+SUMIF('MOMENTO DE TRANSPORTE - AUX'!A:A,'RESUMO MODULO TOTAL'!D59,'MOMENTO DE TRANSPORTE - AUX'!K:K),2) -> 21772.8 | K59: 0.2339 | L59: =ROUND(IF(C59="CODEVASF",VLOOKUP(D59,'CPU CODEVASF'!E:I,5,FALSE),VLOOKUP(D59,'SINTÉTICO SICRO'!A:D,4,FALSE)),6) -> 0.79 | M59: =ROUND(IF(C59="CODEVASF",VLOOKUP(D59,'CPU CODEVASF'!E:H,4,FALSE),VLOOKUP(D59,'SINTÉTICO SICRO'!A:D,4,FALSE)*(1+$J$6)),6) -> 0.974781 | N59: 21223.71 | P59: PAVIMENTAÇÃO
B60: 40 | C60: SICRO | D60: 5914569 | E60: =VLOOKUP(D60,'SINTÉTICO SICRO'!$A$4:$D$1048576,2,0) -> Transporte com caminhão betoneira - rodovia pavimentada | I60: tkm | J60: =ROUND(SUMIF('MOMENTO DE TRANSPORTE - PRINC'!A:A,'RESUMO MODULO TOTAL'!D60,'MOMENTO DE TRANSPORTE - PRINC'!K:K)+SUMIF('MOMENTO DE TRANSPORTE - AUX'!A:A,'RESUMO MODULO TOTAL'!D60,'MOMENTO DE TRANSPORTE - AUX'!K:K),2) -> 195955.2 | K60: =M60/L60-1 -> 0.2339 | L60: =ROUND(IF(C60="CODEVASF",VLOOKUP(D60,'CPU CODEVASF'!E:I,5,FALSE),VLOOKUP(D60,'SINTÉTICO SICRO'!A:D,4,FALSE)),6) -> 0.65 | M60: =ROUND(IF(C60="CODEVASF",VLOOKUP(D60,'CPU CODEVASF'!E:H,4,FALSE),VLOOKUP(D60,'SINTÉTICO SICRO'!A:D,4,FALSE)*(1+$J$6)),6) -> 0.802035 | N60: =ROUND(ROUND(J60,2)*ROUND(M60,6),2) -> 157162.93 | P60: PAVIMENTAÇÃO
B61: VALOR TOTAL DO SRP | N61: =INT(SUM(N11:N60)) -> 21002351
B62: Obs.: Os valores estão apresentados com apenas 2 casas decimais, mas os valores da presente planilha foram calculados utilizando a precisão de 6 casas decimais.
N63: =247.43*I8 -> 20784120

Sheet CRONOGRAMA TOTAL
A2: ='RESUMO MODULO TOTAL'!B1 -> CONTRATAÇÃO DE SERVIÇOS DE PAVIMENTAÇÃO ASFÁLTICA COM CONCRETO BETUMINOSO USINADO A QUENTE (CBUQ) EM VIAS URBANAS E RURAIS INSERIDAS NA ÁREA DE ATUAÇÃO DA CODEVASF, NO ESTADO DO RIO GRANDE DO NORTE (REGIÃO 1)
A3: Cronograma Físico e Financeiro
A4: Item | B4: Descrição | C4: Total Por Etapa | D4: 30 DIAS | E4: 60 DIAS | F4: 90 DIAS | G4: 120 DIAS | H4: 150 DIAS | I4: 180 DIAS | J4: 210 DIAS | K4: 240 DIAS | L4: 270 DIAS | M4: 300 DIAS | N4: 330 DIAS | O4: 360 DIAS
B5: ='RESUMO MODULO TOTAL'!E10 -> MOBILIZAÇÃO/DESMOBILIZAÇÃO | C5: =SUM(D5:O5) -> 1 | D5: 0.5 | O5: 0.5
C6: =SUM('RESUMO MODULO TOTAL'!N11:N12) -> 140551.6431 | D6: =$C$6*D5 -> 70275.82153 | O6: =$C$6*O5 -> 70275.82153 | P6: =SUM(D6:O6) -> 140551.6431 | Q6: =IF(P6=C6,"OK","") -> OK
B7: ='RESUMO MODULO TOTAL'!E13 -> INSTALAÇÃO DE CANTEIRO | C7: =SUM(D7:O7) -> 1 | D7: 0.1 | E7: 0.5 | F7: 0.4
C8: =SUM('RESUMO MODULO TOTAL'!N14:N16) -> 581755.54 | D8: =$C$8*D7 -> 58175.554 | E8: =$C$8*E7 -> 290877.77 | F8: 232702.216 | G8: 0 | H8: 0 | I8: 0 | J8: 0 | K8: 0 | L8: 0 | M8: 0 | N8: 0 | O8: 0 | P8: =SUM(D8:O8) -> 581755.54 | Q8: =IF(P8=C8,"OK","") -> OK
B9: ='RESUMO MODULO TOTAL'!E17 -> ADMINISTRAÇÃO LOCAL DA OBRA | C9: =SUM(D9:O9) -> 1.000000038 | D9: =(D6+D8+D12+D14+D16+D18+D20+D22+D24+D26)/($O$33-$C$10) -> 0.01521123812 | E9: 0.01460735314 | F9: 0.05702373922 | G9: 0.04533785671 | H9: 0.04589804004 | I9: 0.1453971989 | J9: 0.11992506 | K9: 0.11992506 | L9: 0.11992506 | M9: 0.11992506 | N9: 0.1422193886 | O9: =(O6+O8+O12+O14+O16+O18+O20+O22+O24+O26)/($O$33-$C$10) -> 0.05460498304
C10: =SUM('RESUMO MODULO TOTAL'!N18) -> 1089245.1 | D10: =$C$10*D9 -> 16568.76659 | E10: =$C$10*E9 -> 15910.98783 | F10: =$C$10*F9 -> 62112.82853 | G10: 49384.03827 | H10: 49994.21522 | I10: 158373.1864 | J10: 130627.784 | K10: 130627.784 | L10: 130627.784 | M10: 130627.784 | N10: 154911.7721 | O10: 59478.21022 | P10: =SUM(D10:O10) -> 1089245.141 | Q10: =IF(P10=C10,"OK","") -> 
B11: ='RESUMO MODULO TOTAL'!E19 -> TERRAPLANAGEM | C11: =SUM(D11:O11) -> 1 | F11: =1/4 -> 0.25 | G11: =1/4 -> 0.25 | H11: =1/4 -> 0.25 | I11: =1/4 -> 0.25
C12: =SUM('RESUMO MODULO TOTAL'!N20:N21) -> 357325.1 | D12: =$C$14*D11 -> 0 | E12: =$C$12*E11 -> 0 | F12: 89331.275 | G12: 89331.275 | H12: 89331.275 | I12: 89331.275 | J12: 0 | K12: 0 | L12: 0 | M12: 0 | N12: 0 | O12: 0 | P12: =SUM(D12:O12) -> 357325.1 | Q12: =IF(P12=C12,"OK","") -> OK
B13: ='RESUMO MODULO TOTAL'!E22 -> PAVIMENTAÇÃO | C13: =SUM(D13:O13) -> 1 | I13: =1/6 -> 0.1666666667 | J13: =1/6 -> 0.1666666667 | K13: 0.1666666667 | L13: 0.1666666667 | M13: 0.1666666667 | N13: 0.1666666667
C14: =SUM('RESUMO MODULO TOTAL'!N23:N28) -> 5254798.59 | D14: =$C$14*D13 -> 0 | E14: =$C$14*E13 -> 0 | F14: 0 | G14: 0 | H14: 0 | I14: 875799.765 | J14: 875799.765 | K14: 875799.765 | L14: 875799.765 | M14: 875799.765 | N14: 875799.765 | O14: 0 | P14: =SUM(D14:O14) -> 5254798.59 | Q14: =IF(P14=C14,"OK","") -> OK
B15: AQUISIÇÃO E TRANSPORTE DE MATERIAL BETUMINOSO | C15: =SUM(D15:O15) -> 1 | I15: =1/6 -> 0.1666666667 | J15: 0.1666666667 | K15: 0.1666666667 | L15: 0.1666666667 | M15: 0.1666666667 | N15: 0.1666666667
C16: =SUM('RESUMO MODULO TOTAL'!N30:N35) -> 4192766.33 | D16: =$C$16*D15 -> 0 | E16: =$C$16*E15 -> 0 | F16: 0 | G16: 0 | H16: 0 | I16: 698794.3883 | J16: 698794.3883 | K16: 698794.3883 | L16: 698794.3883 | M16: 698794.3883 | N16: 698794.3883 | O16: 0 | P16: =SUM(D16:O16) -> 4192766.33 | Q16: =IF(P16=C16,"OK","") -> OK
B17: ='RESUMO MODULO TOTAL'!E36 -> SINALIZAÇÃO | C17: =SUM(D17:O17) -> 1 | O17: 1
C18: =SUM('RESUMO MODULO TOTAL'!N37:N40) -> 166386.53 | D18: =$C$18*D17 -> 0 | E18: =$C$18*E17 -> 0 | F18: 0 | G18: 0 | H18: 0 | I18: 0 | J18: 0 | K18: 0 | L18: 0 | M18: 0 | N18: 0 | O18: 166386.53 | P18: =SUM(D18:O18) -> 166386.53 | Q18: =IF(P18=C18,"OK","") -> OK
B19: ='RESUMO MODULO TOTAL'!E41 -> DRENAGEM | C19: =SUM(D19:O19) -> 1 | N19: 0.5 | O19: 0.5
C20: =SUM('RESUMO MODULO TOTAL'!N42:N43) -> 887898.65 | D20: =$C$20*D19 -> 0 | E20: =$C$20*E19 -> 0 | F20: 0 | G20: 0 | H20: 0 | I20: 0 | J20: 0 | K20: 0 | L20: 0 | M20: 0 | N20: 443949.325 | O20: 443949.325 | P20: =SUM(D20:O20) -> 887898.65 | Q20: =IF(P20=C20,"OK","") -> OK
B21: ='RESUMO MODULO TOTAL'!E44 -> SERVIÇOS COMPLEMENTARES | C21: =SUM(D21:O21) -> 1 | H21: 0.5 | I21: 0.5
C22: =SUM('RESUMO MODULO TOTAL'!N45) -> 22309.98 | D22: =$C$22*D21 -> 0 | E22: =$C$22*E21 -> 0 | F22: 0 | G22: 0 | H22: 11154.99 | I22: 11154.99 | J22: 0 | K22: 0 | L22: 0 | M22: 0 | N22: 0 | O22: 0 | P22: =SUM(D22:O22) -> 22309.98 | Q22: =IF(P22=C22,"OK","") -> OK
B23: ='RESUMO MODULO TOTAL'!E46 -> PROJETO EXECUTIVO | C23: =SUM(D23:O23) -> 1 | D23: 1
C24: ='RESUMO MODULO TOTAL'!N47 -> 174451.62 | D24: =$C$24*D23 -> 174451.62 | E24: =$C$24*E23 -> 0 | F24: 0 | G24: 0 | H24: 0 | I24: 0 | J24: 0 | K24: 0 | L24: 0 | M24: 0 | N24: 0 | O24: 0 | P24: =SUM(D24:O24) -> 174451.62 | Q24: =IF(P24=C24,"OK","") -> OK
B25: ='RESUMO MODULO TOTAL'!E48 -> MOMENTO DE TRANSPORTE | C25: =SUM(D25:O25) -> 1 | F25: 0.1 | G25: 0.1 | H25: 0.1 | I25: 0.15 | J25: 0.1 | K25: 0.1 | L25: 0.1 | M25: 0.1 | N25: 0.1 | O25: 0.05
C26: =SUM('RESUMO MODULO TOTAL'!N49:N60) -> 8134862.67 | D26: =$C$26*D25 -> 0 | E26: =$C$26*E25 -> 0 | F26: 813486.267 | G26: 813486.267 | H26: 813486.267 | I26: 1220229.4 | J26: 813486.267 | K26: 813486.267 | L26: 813486.267 | M26: 813486.267 | N26: 813486.267 | O26: 406743.1335 | P26: =SUM(D26:O26) -> 8134862.67 | Q26: =IF(P26=C26,"OK","") -> OK
A28: Porcentagem | D28: =SUM(D6+D8+D10+D12+D14+D16+D18+D20+D22+D24+D26)/$O$33 -> 0.01521123812 | E28: =SUM(E6+E8+E10+E12+E14+E16+E18+E20+E22+E24+E26)/$O$33 -> 0.01460735314 | F28: 0.05702373922 | G28: 0.04533785671 | H28: 0.04589804004 | I28: 0.1453971989 | J28: 0.11992506 | K28: 0.11992506 | L28: 0.11992506 | M28: 0.11992506 | N28: 0.1422193886 | O28: =SUM(O6+O8+O10+O12+O14+O16+O18+O20+O22+O24+O26)/$O$33 -> 0.05460498304
A29: Custo | D29: =$O$33*D28 -> 319471.7621 | E29: =$O$33*E28 -> 306788.7578 | F29: =$O$33*F28 -> 1197632.587 | G29: 952201.5803 | H29: 963966.7472 | I29: 3053683.005 | J29: 2518708.204 | K29: 2518708.204 | L29: 2518708.204 | M29: 2518708.204 | N29: 2986941.517 | O29: 1146833.02
A30: Porcentagem Acumulado | D30: =D28 -> 0.01521123812 | E30: =D30+E28 -> 0.02981859126 | F30: =E30+F28 -> 0.08684233048 | G30: 0.1321801872 | H30: 0.1780782272 | I30: 0.3234754261 | J30: 0.4434004861 | K30: 0.5633255462 | L30: 0.6832506062 | M30: 0.8031756662 | N30: 0.9453950548 | O30: =N30+O28 -> 1.000000038
A31: Custo Acumulado | D31: =D29 -> 319471.7621 | E31: =D31+E29 -> 626260.52 | F31: 1823893.106 | G31: 2776094.687 | H31: 3740061.434 | I31: 6793744.439 | J31: 9312452.644 | K31: 11831160.85 | L31: 14349869.05 | M31: 16868577.26 | N31: 19855518.77 | O31: =INT(N31+O29) -> 21002351
D33: Total Geral | N33: R$ | O33: =INT(C6+C8+C10+C12+C14+C16+C18+C20+C22+C24+C26) -> 21002351
O36: =O31-O33 -> 0

Sheet CONSUMO DE MAT. B TOTAL
B3: CONSUMO DO MATERIAL BETUMINOSO TOTAL
B5: TRECHO | D5: QUANTIDADES | M5: MAT. BETUMINOSO
B6: Inicio (km) | C6: Fim (km) | D6: Extensão (m) | E6: Largura (m) | F6: Espess. (m) | G6: Área (m2) | H6: Volume (m3) | I6: Densidade (t/m3) | J6: Massa (t) | K6: Unid | L6: Quant. | M6: Tipo | N6: Consumo Taxa de Aplicação | O6: Unid. | P6: Quant.
B7: IMPRIMAÇÃO
F8: 1 | G8: ='MC MODULO'!H57 -> 84000 | M8: EAI | N8: 1,3 l/m2 | O8: t | P8: =ROUND((G8*1.3)/1000,2) -> 109.2
F9: 1 | H9: =G9*F9 -> 0 | M9: CM-30 | N9: 1,2 l/m2 | O9: t | P9: =ROUND((G9*1.2)/1000,2) -> 0
B10: PINTURA DE LIGAÇÃO
F11: 1 | G11: ='MC MODULO'!H63 -> 84000 | H11: =G11*F11 -> 84000 | M11: RR-1C | N11: 0,45 l/m2 | O11: t | P11: =ROUND((G11*0.45)/1000,2) -> 37.8
B12: CBUQ FAIXA "C"
H13: =G13*F13 -> 0 | J13: ='MC MODULO'!H51 -> 10080 | M13: CAP-50/70 | N13: 64,49 t/m3 | O13: t | P13: =ROUND((J13*64.49)/1000,2) -> 650.06
B14: CBUQ FAIXA "B"
H15: =G15*F15 -> 0 | M15: CAP-50/70 | N15: 56,60 t/m3 | O15: t | P15: =ROUND((J15*56.6)/1000,2) -> 0
H17: =G17*F17 -> 0

Sheet Mob
A4: ='RESUMO MODULO TOTAL'!B1 -> CONTRATAÇÃO DE SERVIÇOS DE PAVIMENTAÇÃO ASFÁLTICA COM CONCRETO BETUMINOSO USINADO A QUENTE (CBUQ) EM VIAS URBANAS E RURAIS INSERIDAS NA ÁREA DE ATUAÇÃO DA CODEVASF, NO ESTADO DO RIO GRANDE DO NORTE (REGIÃO 1)
A5: MOBILIZAÇÃO/DESMOBILIZAÇÃO (MOB) | F5: Frentes de serviços | H5: ='MC MODULO'!G1 -> 6
F6: Distância da Capital ao Canteiro: | H6: 108 | I6: Fica a cargo de cada SR colocar a distancia adequada de acordo com o historico de mobilização
F8: Velocidade média de transporte (pavim.): | H8: 60
A10: Transporte dos equipamentos
A11: CODIGO | B11: EQUIPAMENTO | C11: VEÍCULO TRANSPORTADOR | D11: QTDE | E11: K | F11: FU | G11: CUSTO DO TRANSPORTE
G12: (R$/h) | H12: (R$)/km
A13: E9524 | B13: =VLOOKUP(A13,Equipamentos!$A:$K,2,FALSE) -> Motoniveladora - 93 kW | C13: =IFERROR(INDEX('Tabelas 2 e 3 mob'!A:K,MATCH(A13,'Tabelas 2 e 3 mob'!A:A,0),9),"ERRO") -> E9665 | D13: 1 | E13: 2 | F13: 1 | G13: =IF(C13="Veículo(s) da própria frota.",0,INDEX(Equipamentos!B:K,MATCH(C13,Equipamentos!A:A,0),10)) -> 128.1995 | H13: =((D13*E13*F13)/$H$8)*G13 -> 4.273316667
A14: E9526 | B14: =VLOOKUP(A14,Equipamentos!$A:$K,2,FALSE) -> Retroescavadeira de pneus - capacidade da caçamba da pá-carregadeira de 0,76 m³ e da retroescavadeira de 0,29 m³ - 58 kW | C14: =IFERROR(INDEX('Tabelas 2 e 3 mob'!A:K,MATCH(A14,'Tabelas 2 e 3 mob'!A:A,0),9),"ERRO") -> E9665 | D14: 1 | E14: 2 | F14: 1 | G14: =IF(C14="Veículo(s) da própria frota.",0,INDEX(Equipamentos!B:K,MATCH(C14,Equipamentos!A:A,0),10)) -> 128.1995 | H14: =((D14*E14*F14)/$H$8)*G14 -> 4.273316667
A15: E9577 | B15: =VLOOKUP(A15,Equipamentos!$A:$K,2,FALSE) -> Trator agrícola sobre pneus - 77 kW | C15: =IFERROR(INDEX('Tabelas 2 e 3 mob'!A:K,MATCH(A15,'Tabelas 2 e 3 mob'!A:A,0),9),"ERRO") -> E9665 | D15: 1 | E15: 2 | F15: 0.5 | G15: =IF(C15="Veículo(s) da própria frota.",0,INDEX(Equipamentos!B:K,MATCH(C15,Equipamentos!A:A,0),10)) -> 128.1995 | H15: 2.136658333
A16: E9518 | B16: =VLOOKUP(A16,Equipamentos!$A:$K,2,FALSE) -> Grade de 24 discos rebocável de D = 60 cm (24") | C16: =IFERROR(INDEX('Tabelas 2 e 3 mob'!A:K,MATCH(A16,'Tabelas 2 e 3 mob'!A:A,0),9),"ERRO") -> Veículo(s) da própria frota. | D16: 1 | E16: 2 | F16: 0 | G16: =IF(C16="Veículo(s) da própria frota.",0,INDEX(Equipamentos!B:K,MATCH(C16,Equipamentos!A:A,0),10)) -> 0 | H16: 0
A17: E9615 | B17: =VLOOKUP(A17,Equipamentos!$A:$K,2,FALSE) -> Usina misturadora de solos com capacidade de 300 t/h - 44 kW | C17: =IFERROR(INDEX('Tabelas 2 e 3 mob'!A:K,MATCH(A17,'Tabelas 2 e 3 mob'!A:A,0),9),"ERRO") -> E9018 | D17: 1 | E17: 2 | F17: 2 | G17: =IF(C17="Veículo(s) da própria frota.",0,INDEX(Equipamentos!B:K,MATCH(C17,Equipamentos!A:A,0),10)) -> 167.9804 | H17: 11.19869333
A18: E9530 | B18: =VLOOKUP(A18,Equipamentos!$A:$K,2,FALSE) -> Rolo compactador liso vibratório autopropelido por pneus de 11 t - 97 kW | C18: =IFERROR(INDEX('Tabelas 2 e 3 mob'!A:K,MATCH(A18,'Tabelas 2 e 3 mob'!A:A,0),9),"ERRO") -> E9666 | D18: 1 | E18: 2 | F18: 0.5 | G18: =IF(C18="Veículo(s) da própria frota.",0,INDEX(Equipamentos!B:K,MATCH(C18,Equipamentos!A:A,0),10)) -> 133.3255 | H18: 2.222091667
A19: E9558 | B19: =VLOOKUP(A19,Equipamentos!$A:$K,2,FALSE) -> Tanque de estocagem de asfalto com capacidade de 30.000 l | C19: =IFERROR(INDEX('Tabelas 2 e 3 mob'!A:K,MATCH(A19,'Tabelas 2 e 3 mob'!A:A,0),9),"ERRO") -> E9665 | D19: 1 | E19: 2 | F19: 1 | G19: =IF(C19="Veículo(s) da própria frota.",0,INDEX(Equipamentos!B:K,MATCH(C19,Equipamentos!A:A,0),10)) -> 128.1995 | H19: 4.273316667
A20: E9758 | B20: =VLOOKUP(A20,Equipamentos!$A:$K,2,FALSE) -> Vibroacabadora de asfalto sobre pneus - 82 kW | C20: =IFERROR(INDEX('Tabelas 2 e 3 mob'!A:K,MATCH(A20,'Tabelas 2 e 3 mob'!A:A,0),9),"ERRO") -> E9018 | D20: 1 | E20: 2 | F20: 0.5 | G20: =IF(C20="Veículo(s) da própria frota.",0,INDEX(Equipamentos!B:K,MATCH(C20,Equipamentos!A:A,0),10)) -> 167.9804 | H20: 2.799673333
A21: E9685 | B21: =VLOOKUP(A21,Equipamentos!$A:$K,2,FALSE) -> Rolo compactador pé de carneiro vibratório autopropelido por pneus de 11,6 t - 82 kW | C21: =IFERROR(INDEX('Tabelas 2 e 3 mob'!A:K,MATCH(A21,'Tabelas 2 e 3 mob'!A:A,0),9),"ERRO") -> E9666 | D21: 1 | E21: 2 | F21: 0.5 | G21: =IF(C21="Veículo(s) da própria frota.",0,INDEX(Equipamentos!B:K,MATCH(C21,Equipamentos!A:A,0),10)) -> 133.3255 | H21: 2.222091667
A22: E9605 | B22: =VLOOKUP(A22,Equipamentos!$A:$K,2,FALSE) -> Caminhão tanque com capacidade de 6.000 l - 136 kW | C22: =IFERROR(INDEX('Tabelas 2 e 3 mob'!A:K,MATCH(A22,'Tabelas 2 e 3 mob'!A:A,0),9),"ERRO") -> E9605 | D22: 1 | E22: 1 | F22: 1 | G22: =IF(C22="Veículo(s) da própria frota.",0,INDEX(Equipamentos!B:K,MATCH(C22,Equipamentos!A:A,0),10)) -> 74.5082 | H22: 1.241803333
A23: E9579 | B23: =VLOOKUP(A23,Equipamentos!$A:$K,2,FALSE) -> Caminhão basculante com capacidade de 10 m³ - 210 kW | C23: =IFERROR(INDEX('Tabelas 2 e 3 mob'!A:K,MATCH(A23,'Tabelas 2 e 3 mob'!A:A,0),9),"ERRO") -> E9579 | D23: 5 | E23: 1 | F23: 1 | G23: =IF(C23="Veículo(s) da própria frota.",0,INDEX(Equipamentos!B:K,MATCH(C23,Equipamentos!A:A,0),10)) -> 90.2153 | H23: 7.517941667
A24: E9509 | B24: =VLOOKUP(A24,Equipamentos!$A:$K,2,FALSE) -> Caminhão tanque distribuidor de asfalto com capacidade de 6.000 l - 7 kW/136 kW | C24: =IFERROR(INDEX('Tabelas 2 e 3 mob'!A:K,MATCH(A24,'Tabelas 2 e 3 mob'!A:A,0),9),"ERRO") -> E9509 | D24: 1 | E24: 1 | F24: 1 | G24: =IF(C24="Veículo(s) da própria frota.",0,INDEX(Equipamentos!B:K,MATCH(C24,Equipamentos!A:A,0),10)) -> 76.9186 | H24: 1.281976667
A25: E9762 | B25: =VLOOKUP(A25,Equipamentos!$A:$K,2,FALSE) -> Rolo compactador de pneus autopropelido de 27 t - 85 kW | C25: =IFERROR(INDEX('Tabelas 2 e 3 mob'!A:K,MATCH(A25,'Tabelas 2 e 3 mob'!A:A,0),9),"ERRO") -> E9666 | D25: 1 | E25: 2 | F25: 0.5 | G25: =IF(C25="Veículo(s) da própria frota.",0,INDEX(Equipamentos!B:K,MATCH(C25,Equipamentos!A:A,0),10)) -> 133.3255 | H25: 2.222091667
A26: E9681 | B26: =VLOOKUP(A26,Equipamentos!$A:$K,2,FALSE) -> Rolo compactador liso tandem vibratório autopropelido de 10,4 t - 82 kW | C26: =IFERROR(INDEX('Tabelas 2 e 3 mob'!A:K,MATCH(A26,'Tabelas 2 e 3 mob'!A:A,0),9),"ERRO") -> E9666 | D26: 1 | E26: 2 | F26: 0.5 | G26: =IF(C26="Veículo(s) da própria frota.",0,INDEX(Equipamentos!B:K,MATCH(C26,Equipamentos!A:A,0),10)) -> 133.3255 | H26: 2.222091667
A27: E9545 | B27: =VLOOKUP(A27,Equipamentos!$A:$K,2,FALSE) -> Vibroacabadora de asfalto sobre esteiras - 82 kW | C27: =IFERROR(INDEX('Tabelas 2 e 3 mob'!A:K,MATCH(A27,'Tabelas 2 e 3 mob'!A:A,0),9),"ERRO") -> E9018 | D27: 1 | E27: 2 | F27: 0.5 | G27: =IF(C27="Veículo(s) da própria frota.",0,INDEX(Equipamentos!B:K,MATCH(C27,Equipamentos!A:A,0),10)) -> 167.9804 | H27: 2.799673333
A28: E9571 | B28: =VLOOKUP(A28,Equipamentos!$A:$K,2,FALSE) -> Caminhão tanque com capacidade de 10.000 l - 188 kW | C28: =IFERROR(INDEX('Tabelas 2 e 3 mob'!A:K,MATCH(A28,'Tabelas 2 e 3 mob'!A:A,0),9),"ERRO") -> E9571 | D28: 1 | E28: 1 | F28: 1 | G28: =IF(C28="Veículo(s) da própria frota.",0,INDEX(Equipamentos!B:K,MATCH(C28,Equipamentos!A:A,0),10)) -> 87.2592 | H28: 1.45432
A29: E9514 | B29: =VLOOKUP(A29,Equipamentos!$A:$K,2,FALSE) -> Distribuidor de agregados sobre pneus autopropelido - 130 kW | C29: =IFERROR(INDEX('Tabelas 2 e 3 mob'!A:K,MATCH(A29,'Tabelas 2 e 3 mob'!A:A,0),9),"ERRO") -> E9665 | D29: 1 | E29: 2 | F29: 0.5 | G29: =IF(C29="Veículo(s) da própria frota.",0,INDEX(Equipamentos!B:K,MATCH(C29,Equipamentos!A:A,0),10)) -> 128.1995 | H29: 2.136658333
A30: E9511 | B30: =VLOOKUP(A30,Equipamentos!$A:$K,2,FALSE) -> Carregadeira de pneus com capacidade de 3,40 m³ - 195 kW | C30: =IFERROR(INDEX('Tabelas 2 e 3 mob'!A:K,MATCH(A30,'Tabelas 2 e 3 mob'!A:A,0),9),"ERRO") -> E9665 | D30: 1 | E30: 2 | F30: 1 | G30: =IF(C30="Veículo(s) da própria frota.",0,INDEX(Equipamentos!B:K,MATCH(C30,Equipamentos!A:A,0),10)) -> 128.1995 | H30: 4.273316667
A31: E9779 | B31: =VLOOKUP(A31,Equipamentos!$A:$K,2,FALSE) -> Grupo gerador - 113 kVA | C31: =IFERROR(INDEX('Tabelas 2 e 3 mob'!A:K,MATCH(A31,'Tabelas 2 e 3 mob'!A:A,0),9),"ERRO") -> Veículo(s) da própria frota. | D31: 1 | E31: 2 | F31: 0 | G31: =IF(C31="Veículo(s) da própria frota.",0,INDEX(Equipamentos!B:K,MATCH(C31,Equipamentos!A:A,0),10)) -> 0 | H31: 0
A32: E9559 | B32: =VLOOKUP(A32,Equipamentos!$A:$K,2,FALSE) -> Aquecedor de fluido térmico - 12 kW | C32: =IFERROR(INDEX('Tabelas 2 e 3 mob'!A:K,MATCH(A32,'Tabelas 2 e 3 mob'!A:A,0),9),"ERRO") -> Veículo(s) da própria frota. | D32: 1 | E32: 2 | F32: 0 | G32: =IF(C32="Veículo(s) da própria frota.",0,INDEX(Equipamentos!B:K,MATCH(C32,Equipamentos!A:A,0),10)) -> 0 | H32: 0
A33: E9584 | B33: =VLOOKUP(A33,Equipamentos!$A:$K,2,FALSE) -> Carregadeira de pneus com capacidade de 1,72 m³ - 113 kW | C33: =IFERROR(INDEX('Tabelas 2 e 3 mob'!A:K,MATCH(A33,'Tabelas 2 e 3 mob'!A:A,0),9),"ERRO") -> E9665 | D33: 1 | E33: 2 | F33: 1 | G33: =IF(C33="Veículo(s) da própria frota.",0,INDEX(Equipamentos!B:K,MATCH(C33,Equipamentos!A:A,0),10)) -> 128.1995 | H33: 4.273316667
A34: E9021 | B34: =VLOOKUP(A34,Equipamentos!$A:$K,2,FALSE) -> Grupo gerador - 456 kVA | C34: =IFERROR(INDEX('Tabelas 2 e 3 mob'!A:K,MATCH(A34,'Tabelas 2 e 3 mob'!A:A,0),9),"ERRO") -> E9508 | D34: 1 | E34: 2 | F34: 1 | G34: =IF(C34="Veículo(s) da própria frota.",0,INDEX(Equipamentos!B:K,MATCH(C34,Equipamentos!A:A,0),10)) -> 74.1716 | H34: 2.472386667
A35: E9687 | B35: =VLOOKUP(A35,Equipamentos!$A:$K,2,FALSE) -> Caminhão carroceria com capacidade de 5 t - 115 kW | C35: =IFERROR(INDEX('Tabelas 2 e 3 mob'!A:K,MATCH(A35,'Tabelas 2 e 3 mob'!A:A,0),9),"ERRO") -> E9687 | D35: 1 | E35: 1 | F35: 1 | G35: =IF(C35="Veículo(s) da própria frota.",0,INDEX(Equipamentos!B:K,MATCH(C35,Equipamentos!A:A,0),10)) -> 62.9872 | H35: 1.049786667
A36: E9667 | B36: =VLOOKUP(A36,Equipamentos!$A:$K,2,FALSE) -> Caminhão basculante com capacidade de 14 m³ - 210 kW | C36: =IFERROR(INDEX('Tabelas 2 e 3 mob'!A:K,MATCH(A36,'Tabelas 2 e 3 mob'!A:A,0),9),"ERRO") -> E9667 | D36: 1 | E36: 1 | F36: 1 | G36: =IF(C36="Veículo(s) da própria frota.",0,INDEX(Equipamentos!B:K,MATCH(C36,Equipamentos!A:A,0),10)) -> 90.7798 | H36: 1.512996667
A37: E9644 | B37: =VLOOKUP(A37,Equipamentos!$A:$K,2,FALSE) -> Caminhão demarcador de faixas com sistema de pintura a frio - 28 kW/115 kW | C37: =IFERROR(INDEX('Tabelas 2 e 3 mob'!A:K,MATCH(A37,'Tabelas 2 e 3 mob'!A:A,0),9),"ERRO") -> E9644 | D37: 1 | E37: 1 | F37: 1 | G37: =IF(C37="Veículo(s) da própria frota.",0,INDEX(Equipamentos!B:K,MATCH(C37,Equipamentos!A:A,0),10)) -> 159.1031 | H37: 2.651718333
A38: E9592 | B38: =VLOOKUP(A38,Equipamentos!$A:$K,2,FALSE) -> Caminhão carroceria com capacidade de 15 t - 188 kW | C38: =IFERROR(INDEX('Tabelas 2 e 3 mob'!A:K,MATCH(A38,'Tabelas 2 e 3 mob'!A:A,0),9),"ERRO") -> E9592 | D38: 1 | E38: 1 | F38: 1 | G38: =IF(C38="Veículo(s) da própria frota.",0,INDEX(Equipamentos!B:K,MATCH(C38,Equipamentos!A:A,0),10)) -> 81.8378 | H38: 1.363963333
A39: E9540 | B39: =VLOOKUP(A39,Equipamentos!$A:$K,2,FALSE) -> Trator sobre esteiras com lâmina - 127 kW | C39: =IFERROR(INDEX('Tabelas 2 e 3 mob'!A:K,MATCH(A39,'Tabelas 2 e 3 mob'!A:A,0),9),"ERRO") -> E9018 | D39: 1 | E39: 2 | F39: 0.5 | G39: =IF(C39="Veículo(s) da própria frota.",0,INDEX(Equipamentos!B:K,MATCH(C39,Equipamentos!A:A,0),10)) -> 167.9804 | H39: 2.799673333
A40: E9515 | B40: =VLOOKUP(A40,Equipamentos!$A:$K,2,FALSE) -> Escavadeira hidráulica sobre esteiras com caçamba com capacidade de 1,56 m³ - 118 kW | C40: =IFERROR(INDEX('Tabelas 2 e 3 mob'!A:K,MATCH(A40,'Tabelas 2 e 3 mob'!A:A,0),9),"ERRO") -> E9666 | D40: 1 | E40: 2 | F40: 1 | G40: =IF(C40="Veículo(s) da própria frota.",0,INDEX(Equipamentos!B:K,MATCH(C40,Equipamentos!A:A,0),10)) -> 133.3255 | H40: 4.444183333
A41: E9506 | B41: =VLOOKUP(A41,Equipamentos!$A:$K,2,FALSE) -> Caminhão basculante com capacidade de 6 m³ - 136 kW | C41: =IFERROR(INDEX('Tabelas 2 e 3 mob'!A:K,MATCH(A41,'Tabelas 2 e 3 mob'!A:A,0),9),"ERRO") -> E9506 | D41: 1 | E41: 1 | F41: 1 | G41: =IF(C41="Veículo(s) da própria frota.",0,INDEX(Equipamentos!B:K,MATCH(C41,Equipamentos!A:A,0),10)) -> 74.3782 | H41: 1.239636667
A42: E9256 | B42: =VLOOKUP(A42,Equipamentos!$A:$K,2,FALSE) -> Equipamento para pintura com cal rebocável com dois bicos aplicadores e capacidade de 2.200 l | C42: =IFERROR(INDEX('Tabelas 2 e 3 mob'!A:K,MATCH(A42,'Tabelas 2 e 3 mob'!A:A,0),9),"ERRO") -> Veículo(s) da própria frota. | D42: 1 | E42: 2 | F42: 0 | G42: =IF(C42="Veículo(s) da própria frota.",0,INDEX(Equipamentos!B:K,MATCH(C42,Equipamentos!A:A,0),10)) -> 0 | H42: 0
A43: E9156 | B43: =VLOOKUP(A43,Equipamentos!$A:$K,2,FALSE) -> Soprador de ar costal - 2,6 kW | C43: =IFERROR(INDEX('Tabelas 2 e 3 mob'!A:K,MATCH(A43,'Tabelas 2 e 3 mob'!A:A,0),9),"ERRO") -> Veículo(s) da própria frota. | D43: 1 | E43: 2 | F43: 0 | G43: =IF(C43="Veículo(s) da própria frota.",0,INDEX(Equipamentos!B:K,MATCH(C43,Equipamentos!A:A,0),10)) -> 0 | H43: 0
A44: E9146 | B44: =VLOOKUP(A44,Equipamentos!$A:$K,2,FALSE) -> Caminhão silo com capacidade de 30 m³ - 265 kW | C44: =IFERROR(INDEX('Tabelas 2 e 3 mob'!A:K,MATCH(A44,'Tabelas 2 e 3 mob'!A:A,0),9),"ERRO") -> E9146 | D44: 1 | E44: 1 | F44: 1 | G44: =IF(C44="Veículo(s) da própria frota.",0,INDEX(Equipamentos!B:K,MATCH(C44,Equipamentos!A:A,0),10)) -> 116.1772 | H44: 1.936286667
A45: E9599 | B45: =VLOOKUP(A45,Equipamentos!$A:$K,2,FALSE) -> Central de concreto com capacidade de 30 m³/h - dosadora RS | C45: =IFERROR(INDEX('Tabelas 2 e 3 mob'!A:K,MATCH(A45,'Tabelas 2 e 3 mob'!A:A,0),9),"ERRO") -> E9018 | D45: 1 | E45: 2 | F45: 1 | G45: =IF(C45="Veículo(s) da própria frota.",0,INDEX(Equipamentos!B:K,MATCH(C45,Equipamentos!A:A,0),10)) -> 167.9804 | H45: 5.599346667
A46: E9103 | B46: =VLOOKUP(A46,Equipamentos!$A:$K,2,FALSE) -> Extrusora para meio-fio de concreto - 10,44 kW | C46: =IFERROR(INDEX('Tabelas 2 e 3 mob'!A:K,MATCH(A46,'Tabelas 2 e 3 mob'!A:A,0),9),"ERRO") -> Veículo(s) da própria frota. | D46: 1 | E46: 2 | F46: 0 | G46: =IF(C46="Veículo(s) da própria frota.",0,INDEX(Equipamentos!B:K,MATCH(C46,Equipamentos!A:A,0),10)) -> 0 | H46: 0
A47: E9071 | B47: =VLOOKUP(A47,Equipamentos!$A:$K,2,FALSE) -> Transportador manual carrinho de mão com capacidade de 80 l | C47: =IFERROR(INDEX('Tabelas 2 e 3 mob'!A:K,MATCH(A47,'Tabelas 2 e 3 mob'!A:A,0),9),"ERRO") -> Veículo(s) da própria frota. | D47: 0 | E47: 2 | F47: 0 | G47: =IF(C47="Veículo(s) da própria frota.",0,INDEX(Equipamentos!B:K,MATCH(C47,Equipamentos!A:A,0),10)) -> 0 | H47: 0
A48: E9064 | B48: =VLOOKUP(A48,Equipamentos!$A:$K,2,FALSE) -> Transportador manual gerica com capacidade de 180 l | C48: =IFERROR(INDEX('Tabelas 2 e 3 mob'!A:K,MATCH(A48,'Tabelas 2 e 3 mob'!A:A,0),9),"ERRO") -> Veículo(s) da própria frota. | D48: 0 | E48: 2 | F48: 0 | G48: =IF(C48="Veículo(s) da própria frota.",0,INDEX(Equipamentos!B:K,MATCH(C48,Equipamentos!A:A,0),10)) -> 0 | H48: 0
A49: E9066 | B49: =VLOOKUP(A49,Equipamentos!$A:$K,2,FALSE) -> Grupo gerador - 14 kVA | C49: =IFERROR(INDEX('Tabelas 2 e 3 mob'!A:K,MATCH(A49,'Tabelas 2 e 3 mob'!A:A,0),9),"ERRO") -> Veículo(s) da própria frota. | D49: 0 | E49: 2 | F49: 0 | G49: =IF(C49="Veículo(s) da própria frota.",0,INDEX(Equipamentos!B:K,MATCH(C49,Equipamentos!A:A,0),10)) -> 0 | H49: 0
A50: E9535 | B50: =VLOOKUP(A50,Equipamentos!$A:$K,2,FALSE) -> Serra circular com bancada - D = 30 cm - 4 kW | C50: =IFERROR(INDEX('Tabelas 2 e 3 mob'!A:K,MATCH(A50,'Tabelas 2 e 3 mob'!A:A,0),9),"ERRO") -> Veículo(s) da própria frota. | D50: 0 | E50: 2 | F50: 0 | G50: =IF(C50="Veículo(s) da própria frota.",0,INDEX(Equipamentos!B:K,MATCH(C50,Equipamentos!A:A,0),10)) -> 0 | H50: 0
A51: E9507 | B51: =VLOOKUP(A51,Equipamentos!$A:$K,2,FALSE) -> Plotadora de recorte com computador e programa computacional | C51: =IFERROR(INDEX('Tabelas 2 e 3 mob'!A:K,MATCH(A51,'Tabelas 2 e 3 mob'!A:A,0),9),"ERRO") -> Veículo(s) da própria frota. | D51: 0 | E51: 2 | F51: 0 | G51: =IF(C51="Veículo(s) da própria frota.",0,INDEX(Equipamentos!B:K,MATCH(C51,Equipamentos!A:A,0),10)) -> 0 | H51: 0
A52: E9568 | B52: =VLOOKUP(A52,Equipamentos!$A:$K,2,FALSE) -> Furadeira de impacto de 12,5 mm - 0,80 kW | C52: =IFERROR(INDEX('Tabelas 2 e 3 mob'!A:K,MATCH(A52,'Tabelas 2 e 3 mob'!A:A,0),9),"ERRO") -> Veículo(s) da própria frota. | D52: 0 | E52: 2 | F52: 0 | G52: =IF(C52="Veículo(s) da própria frota.",0,INDEX(Equipamentos!B:K,MATCH(C52,Equipamentos!A:A,0),10)) -> 0 | H52: 0
A53: E9753 | B53: =VLOOKUP(A53,Equipamentos!$A:$K,2,FALSE) -> Grupo gerador - 23 kVA | C53: =IFERROR(INDEX('Tabelas 2 e 3 mob'!A:K,MATCH(A53,'Tabelas 2 e 3 mob'!A:A,0),9),"ERRO") -> Veículo(s) da própria frota. | D53: 0 | E53: 2 | F53: 0 | G53: =IF(C53="Veículo(s) da própria frota.",0,INDEX(Equipamentos!B:K,MATCH(C53,Equipamentos!A:A,0),10)) -> 0 | H53: 0
A54: E9623 | B54: =VLOOKUP(A54,Equipamentos!$A:$K,2,FALSE) -> Máquina de bancada guilhotina - 4,00 kW | C54: =IFERROR(INDEX('Tabelas 2 e 3 mob'!A:K,MATCH(A54,'Tabelas 2 e 3 mob'!A:A,0),9),"ERRO") -> Veículo(s) da própria frota. | D54: 0 | E54: 2 | F54: 0 | G54: =IF(C54="Veículo(s) da própria frota.",0,INDEX(Equipamentos!B:K,MATCH(C54,Equipamentos!A:A,0),10)) -> 0 | H54: 0
A55: E9622 | B55: =VLOOKUP(A55,Equipamentos!$A:$K,2,FALSE) -> Máquina de bancada universal para corte de chapa - 1,50 kW | C55: =IFERROR(INDEX('Tabelas 2 e 3 mob'!A:K,MATCH(A55,'Tabelas 2 e 3 mob'!A:A,0),9),"ERRO") -> Veículo(s) da própria frota. | D55: 0 | E55: 2 | F55: 0 | G55: =IF(C55="Veículo(s) da própria frota.",0,INDEX(Equipamentos!B:K,MATCH(C55,Equipamentos!A:A,0),10)) -> 0 | H55: 0
A56: E9678 | B56: =VLOOKUP(A56,Equipamentos!$A:$K,2,FALSE) -> Fresadora a frio - 455 kW | C56: =IFERROR(INDEX('Tabelas 2 e 3 mob'!A:K,MATCH(A56,'Tabelas 2 e 3 mob'!A:A,0),9),"ERRO") -> E9666 | D56: 0 | E56: 2 | F56: 1 | G56: =IF(C56="Veículo(s) da própria frota.",0,INDEX(Equipamentos!B:K,MATCH(C56,Equipamentos!A:A,0),10)) -> 133.3255 | H56: 0
G57: TOTAL | H57: =SUM(H13:H56) -> 87.89232667
A60: CUSTO TOTAL MOBILIZAÇÃO E DESMOBILIZAÇÃO
A61: DESCRIÇÃO | B61: VALOR
A62: Custo Mobilização (km) | B62: =H57 -> 87.89232667
A63: BDI (%) | B63: =BDI!C17 -> 0.2339
A64: Custo Mobilização (R$/km) com BDI | B64: =B62+(B62*B63) -> 108.4503419
A65: Total de Frentes | B65: ='MC MODULO'!G1 -> 6
A66: Custo Mobilização (frentes x distancia) | B66: =B64*H6*B65 -> 70275.82153

Sheet Canteiro
A4: CANTEIRO DE OBRAS PARA CONSTRUÇAO RODOVIÁRIA
A5: Descrição dos serviços | B5: Tipo de container | C5: Unidade | D5: Quantidade | E5: Preço unitário (R$) | F5: Total (R$)
A6: Escritório e seção técnica
A7: =VLOOKUP(B7,'INSUMOS SINAPI'!A:E,2,0) -> LOCACAO DE CONTAINER 2,30 X 6,00 M, ALT. 2,50 M, PARA ESCRITORIO, SEM DIVISORIAS INTERNAS E SEM SANITARIO (NAO INCLUI MOBILIZACAO/DESMOBILIZACAO) | B7: 10776 | C7: und | D7: 1 | E7: =VLOOKUP(B7,'INSUMOS SINAPI'!A:E,5,0) -> 650.39 | F7: =TRUNC(D7*E7,2) -> 650.39
A8: Banheiro e vestiário
A9: =VLOOKUP(B9,'INSUMOS SINAPI'!A:E,2,0) -> LOCACAO DE CONTAINER 2,30 X 4,30 M, ALT. 2,50 M, PARA SANITARIO, COM 3 BACIAS, 4 CHUVEIROS, 1 LAVATORIO E 1 MICTORIO (NAO INCLUI MOBILIZACAO/DESMOBILIZACAO) | B9: 10777 | C9: und | D9: 1 | E9: =VLOOKUP(B9,'INSUMOS SINAPI'!A:E,5,0) -> 945.23 | F9: =TRUNC(D9*E9,2) -> 945.23
D10: TOTAL DO CANTEIRO | F10: =SUM(F7:F9) -> 1595.62
D11: DURAÇÃO (MESES) | E11: 12 | F11: =F10*E11 -> 19147.44
D12: BDI | F12: =BDI!C17 -> 0.2339
D13: TOTAL DO CANTEIRO (com BDI) | F13: =F11+(F11*F12) -> 23626.02622

Sheet CPU CODEVASF
A4: ='RESUMO MODULO TOTAL'!B1 -> CONTRATAÇÃO DE SERVIÇOS DE PAVIMENTAÇÃO ASFÁLTICA COM CONCRETO BETUMINOSO USINADO A QUENTE (CBUQ) EM VIAS URBANAS E RURAIS INSERIDAS NA ÁREA DE ATUAÇÃO DA CODEVASF, NO ESTADO DO RIO GRANDE DO NORTE (REGIÃO 1)
F5: BDI %: | G5: =BDI!$C$17 -> 0.2339
E6: Encargos Sociais: | G6: Horista | H6: Mensalista
G7: ='ENC. SOCIAIS'!E51/100 -> 1.1621 | H7: ='ENC. SOCIAIS'!F51/100 -> 0.7148
A8: COMPOSIÇÕES DE CUSTO UNITARIO
A9: CPU-12 | B9: CODEVASF | D9: Correção de vazamentos no ramal na rua sem pavimento com fornecimento do material hidráulico | E9: M | F9: COEF. | G9: PRECO UNITÁRIO (R$) | H9: TOTAL (R$)
A11: SICRO | B11: SICRO | C11: P9824 | D11: =VLOOKUP(C11,'Pessoal Sicro'!$A$5:$G$1048576,2,0) -> Servente | E11: H | F11: 0.2 | G11: =VLOOKUP(C11,'Pessoal Sicro'!$A$5:$G$1048576,6,0) -> 21.7533 | H11: =F11*G11 -> 4.35066
A12: SICRO | B12: SICRO | C12: P9807 | D12: =VLOOKUP(C12,'Pessoal Sicro'!$A$5:$G$1048576,2,0) -> Bombeiro hidráulico | E12: H | F12: 0.1 | G12: =VLOOKUP(C12,'Pessoal Sicro'!$A$5:$G$1048576,6,0) -> 31.3673 | H12: 3.13673
A13: INS. SINAPI | B13: SINAPI | C13: 9867 | D13: TUBO PVC, SOLDAVEL, DN 20 MM, AGUA FRIA (NBR-5648) | E13: m | F13: 1 | G13: =IFERROR(VLOOKUP(C13,'INSUMOS SINAPI'!A:E,5,FALSE),VLOOKUP(C13,'COMP Sint. Sinapi'!G:K,5,FALSE)) -> 3.25 | H13: 3.25
A14: INSUMO | B14: ORSE | C14: 10585 | D14: Arco de serra | E14: un | F14: 0.1 | G14: 19.9 | H14: 1.99
A15: INS. SINAPI | B15: SINAPI | C15: 3859 | D15: LUVA SOLDAVEL COM ROSCA, PVC, 20 MM X 1/2", PARA AGUA FRIA PREDIAL | E15: un | F15: 2 | G15: =IFERROR(VLOOKUP(C15,'INSUMOS SINAPI'!A:E,5,FALSE),VLOOKUP(C15,'COMP Sint. Sinapi'!G:K,5,FALSE)) -> 1.17 | H15: 2.34
E16: Sub total: | H16: =SUM(H11:H15) -> 15.06739
F17: BDI | G17: =BDI!$C$17 -> 0.2339 | H17: =H16*G17 -> 3.524262521
G18: Total Serviços: | H18: =H16+H17 -> 18.59165252
E19: =A9 -> CPU-12 | F19: PREÇO UNITÁRIO TOTAL: | H19: =H18 -> 18.59165252 | I19: =H16 -> 15.06739
A21: CPU-13 | B21: CODEVASF | D21: AQUISIÇÃO DE CIMENTO ASFALTICO CAP 50/70 | E21: t | F21: COEF. | G21: PRECO UNITÁRIO (R$) | H21: TOTAL (R$)
D23: CIMENTO ASFALTICO 50/70 | E23: t | F23: 1 | G23: =RESUMO_Transp!$V$17 -> 4164.957257 | H23: =F23*G23 -> 4164.957257
E24: Sub total: | H24: =SUM(H23) -> 4164.957257
F25: BDI | G25: 0.15 | H25: =H24*G25 -> 624.7435885
G26: Total Serviços: | H26: =H24+H25 -> 4789.700846
E27: =A21 -> CPU-13 | F27: PREÇO UNITÁRIO TOTAL: | H27: =H26 -> 4789.700846 | I27: =H24 -> 4164.957257
A29: CPU-14 | B29: CODEVASF | D29: AQUISIÇÃO DE EAI | E29: t | F29: COEF. | G29: PRECO UNITÁRIO (R$) | H29: TOTAL (R$)
D31: EAI | E31: t | F31: 1 | G31: =RESUMO_Transp!$V$35 -> 2852.762226 | H31: =F31*G31 -> 2852.762226
E32: Sub total: | H32: =SUM(H31) -> 2852.762226
F33: BDI | G33: 0.15 | H33: =H32*G33 -> 427.9143338
G34: Total Serviços: | H34: =H32+H33 -> 3280.676559
E35: =A29 -> CPU-14 | F35: PREÇO UNITÁRIO TOTAL: | H35: =H34 -> 3280.676559 | I35: =H32 -> 2852.762226
A37: CPU-15 | B37: CODEVASF | D37: AQUISIÇÃO DE EMULSÃO ASFÁLTICA RR-1C | E37: t | F37: COEF. | G37: PRECO UNITÁRIO (R$) | H37: TOTAL (R$)
D39: EMULSÃO ASFÁLTICA RR-1C | E39: t | F39: 1 | G39: =RESUMO_Transp!$V$42 -> 2951.646649 | H39: =F39*G39 -> 2951.646649
E40: Sub total: | H40: =SUM(H39) -> 2951.646649
F41: BDI | G41: 0.15 | H41: =ROUND(H40,2)*ROUND(G41,4) -> 442.7475
G42: Total Serviços: | H42: =H40+H41 -> 3394.394149
E43: =A37 -> CPU-15 | F43: PREÇO UNITÁRIO TOTAL: | H43: =H42 -> 3394.394149 | I43: =H40 -> 2951.646649
A45: CPU-17 | B45: CODEVASF | D45: TRANSPORTE DE CIMENTO ASFALTICO CAP 50/70 | E45: t | F45: COEF. | G45: PRECO UNITÁRIO (R$) | H45: TOTAL (R$)
D47: TRANSPORTE DE CIMENTO ASFALTICO 50/70 | E47: t | F47: 1 | G47: =RESUMO_Transp!$U$17 -> 412.97 | H47: =F47*G47 -> 412.97
E48: Sub total: | H48: =SUM(H47) -> 412.97
F49: BDI | G49: 0.15 | H49: =H48*G49 -> 61.9455
G50: Total Serviços: | H50: =H48+H49 -> 474.9155
E51: =A45 -> CPU-17 | F51: PREÇO UNITÁRIO TOTAL: | H51: =H50 -> 474.9155 | I51: =H48 -> 412.97
A53: CPU-18 | B53: CODEVASF | D53: TRANSPORTE DE EAI | E53: t | F53: COEF. | G53: PRECO UNITÁRIO (R$) | H53: TOTAL (R$)
D55: TRANSPORTE DE EAI | E55: t | F55: 1 | G55: =RESUMO_Transp!$U$35 -> 1679.336614 | H55: =F55*G55 -> 1679.336614
E56: Sub total: | H56: =SUM(H55) -> 1679.336614
F57: BDI | G57: 0.15 | H57: =H56*G57 -> 251.9004921
G58: Total Serviços: | H58: =H56+H57 -> 1931.237106
E59: =A53 -> CPU-18 | F59: PREÇO UNITÁRIO TOTAL: | H59: =H58 -> 1931.237106 | I59: =H56 -> 1679.336614
A61: CPU-19 | B61: CODEVASF | D61: TRANSPORTE DE EMULSÃO ASFÁLTICA RR-1C | E61: t | F61: COEF. | G61: PRECO UNITÁRIO (R$) | H61: TOTAL (R$)
D63: TRANSPORTE DE EMULSÃO ASFÁLTICA RR-1C | E63: t | F63: 1 | G63: =RESUMO_Transp!$U$42 -> 1679.336614 | H63: =F63*G63 -> 1679.336614
E64: Sub total: | H64: =SUM(H63) -> 1679.336614
F65: BDI | G65: 0.15 | H65: =H64*G65 -> 251.9004921
G66: Total Serviços: | H66: =H64+H65 -> 1931.237106
E67: =A61 -> CPU-19 | F67: PREÇO UNITÁRIO TOTAL: | H67: =H66 -> 1931.237106 | I67: =H64 -> 1679.336614

Sheet Adm Local
A2: parcela fixa da administração local (mão de obra)
A3: Código | B3: Discriminação | C3: Unidade | D3: Quantidade | F3: Custo Unitário (R$) | H3: Custo Total (R$)
B4: Mão de Obra
B5: Gerência Técnica
B6: Geral
A7: P9955 | B7: Engenheiro chefe | C7: mês | D7: 0.5 | F7: =VLOOKUP(A7,'Pessoal Sicro'!$A$6:$G$118,6,0) -> 30481.4614 | H7: =F7*D7 -> 15240.7307
A8: P9840 | B8: Encarregado geral | C8: mês | D8: 0.5 | F8: =VLOOKUP(A8,'Pessoal Sicro'!$A$6:$G$118,6,0) -> 11487.6434 | H8: =F8*D8 -> 5743.8217
A9: P9897 | B9: Técnico de meio ambiente | C9: mês | D9: 0 | F9: =VLOOKUP(A9,'Pessoal Sicro'!$A$6:$G$118,6,0) -> 7697.2018 | H9: =F9*D9 -> 0
A10: P9948 | B10: Motorista | C10: mês | D10: 0 | F10: =VLOOKUP(A10,'Pessoal Sicro'!$A$6:$G$118,6,0) -> 5495.4724 | H10: =F10*D10 -> 0
A11: P9878 | B11: Secretária | C11: mês | D11: 0 | F11: =VLOOKUP(A11,'Pessoal Sicro'!$A$6:$G$118,6,0) -> 6273.3494 | H11: =F11*D11 -> 0
F12: Subtotal do Item 1.1 | H12: =SUM(H7:I11) -> 20984.5524
B13: Auxiliar
A14: P9946 | B14: Engenheiro auxiliar | C14: mês | D14: 1 | F14: =VLOOKUP(A14,'Pessoal Sicro'!$A$6:$G$118,6,0) -> 22410.7945 | H14: =D14*F14 -> 22410.7945
A15: P9903 | B15: Auxiliar técnico | C15: mês | D15: 0 | F15: =VLOOKUP(A15,'Pessoal Sicro'!$A$6:$G$118,6,0) -> 4458.696 | H15: =D15*F15 -> 0
F16: Subtotal do Item 1.2 | H16: =SUM(H14:I15) -> 22410.7945
B17: Gerência Administrativa
B18: Geral
A19: P9883 | B19: Chefe do setor administrativo | C19: mês | D19: 1 | F19: =VLOOKUP(A19,'Pessoal Sicro'!$A$6:$G$118,6,0) -> 7821.9597 | H19: =F19*D19 -> 7821.9597
A20: P9809 | B20: Encarregado administrativo | C20: mês | D20: 0 | F20: =VLOOKUP(A20,'Pessoal Sicro'!$A$6:$G$118,6,0) -> 7821.3231 | H20: =F20*D20 -> 0
A21: P9896 | B21: Porteiro | C21: mês | D21: 0 | F21: =VLOOKUP(A21,'Pessoal Sicro'!$A$6:$G$118,6,0) -> 3895.4164 | H21: =F21*D21 -> 0
A22: P9827 | B22: Vigia | C22: mês | D22: 0 | F22: =VLOOKUP(A22,'Pessoal Sicro'!$A$6:$G$118,6,0) -> 5133.8264 | H22: =F22*D22 -> 0
A23: P9948 | B23: Motorista | C23: mês | D23: 0 | F23: =VLOOKUP(A23,'Pessoal Sicro'!$A$6:$G$118,6,0) -> 5495.4724 | H23: =F23*D23 -> 0
F24: Subtotal do Item 1.3 | H24: =SUM(H19:I23) -> 7821.9597
B25: Auxiliar
A26: P9806 | B26: Auxiliar administrativo | C26: mês | D26: 1 | F26: =VLOOKUP(A26,'Pessoal Sicro'!$A$6:$G$118,6,0) -> 4395.3606 | H26: =F26*D26 -> 4395.3606
A27: P9842 | B27: Faxineiro | C27: mês | D27: 0 | F27: =VLOOKUP(A27,'Pessoal Sicro'!$A$6:$G$118,6,0) -> 3895.4469 | H27: =F27*D27 -> 0
F28: Subtotal do Item 1.4 | H28: =SUM(H26:I27) -> 4395.3606
H29: Total da Mão de Obra da Parcela Fixa | I29: =H28+H24+H16+H12 -> 55612.6672
A31: parcela fixa da administração local (veículos)
A32: Código | B32: Discriminação | C32: Unidade | D32: Quantidade | E32: Utilização Produtiva | F32: Utilização Improdutiva | G32: Custo Horário Produtivo (R$) | H32: Custo Horário Improdutivo (R$) | I32: Custo Total (R$)
A33: 2 | B33: Veículos
B34: Gerência Técnica
A35: 2.1 | B35: Geral
A36: E9093 | B36: Veículo Leve 53 kw | C36: mês | D36: 1 | E36: 44 | F36: 176 | G36: =VLOOKUP(A36,Equipamentos!$A$4:$K$541,10,0) -> 34.8989 | H36: =VLOOKUP(A36,Equipamentos!$A$4:$K$541,11,0) -> 6.1542 | I36: =((E36*G36)+(F36*H36))*D36 -> 2618.6908
A37: E9560 | B37: Ônibus coletivo - 175 kw | C37: mês | D37: 0 | E37: 44 | F37: 176 | G37: =VLOOKUP(A37,Equipamentos!$A$4:$K$541,10,0) -> 357.462 | H37: =VLOOKUP(A37,Equipamentos!$A$4:$K$541,11,0) -> 106.6233 | I37: =((E37*G37)+(F37*H37))*D37 -> 0
H38: Subtotal do Item 2 | I38: =SUM(I36:I37) -> 2618.6908
A39: 2.2 | B39: Auxiliar
A40: E9093 | B40: Veículo Leve 53 kw | C40: mês | D40: 0 | E40: 44 | F40: 176 | G40: =G36 -> 34.8989 | H40: =H36 -> 6.1542 | I40: =((E40*G40)+(F40*H40))*D40 -> 0
H41: Subtotal do Item 2 | I41: =SUM(I40) -> 0
A42: 2.3 | B42: Gerência Administrativa
A43: E9093 | B43: Veículo Leve 53 kw | C43: mês | D43: 0 | E43: 44 | F43: 176 | G43: =G36 -> 34.8989 | H43: =H36 -> 6.1542 | I43: =((E43*G43)+(F43*H43))*D43 -> 0
H44: Subtotal do Item 2 | I44: =I43 -> 0
H45: Total dos Veículos da Parcela Fixa | I45: =I44+I41+I38 -> 2618.6908
A47: Composição de custo da equipe de produção de terraplenagem
A48: Código | B48: Discriminação | C48: Unidade | D48: Quantidade | F48: Custo Unitário (R$) | H48: Custo Total (R$)
B49: Equipe de Produção de Terraplenagem
A50: 3.1 | B50: Mão de Obra
A51: P9884 | B51: Encarregado de produção | C51: mês | D51: 1 | F51: =VLOOKUP(A51,'Pessoal Sicro'!$A$6:$G$118,6,0) -> 7826.5052 | H51: =F51*D51 -> 7826.5052
F52: Subtotal do Item 3.1 | H52: =SUM(H51:H51) -> 7826.5052
A53: Código | B53: Discriminação | C53: Unidade | D53: Quantidade | E53: Utilização Produtiva | F53: Utilização Improdutiva | G53: Custo Horário Produtivo (R$) | H53: Custo Horário Improdutivo (R$) | I53: Custo Total (R$)
A54: 3.2 | B54: Veículos
B55: Veículo Leve 53 kw | C55: mês | D55: 1 | E55: 44 | F55: 176 | G55: =G36 -> 34.8989 | H55: =H36 -> 6.1542 | I55: =((E55*G55)+(F55*H55))*D55 -> 2618.6908
H56: Subtotal do Item 3.2 | I56: =SUM(I55:I55) -> 2618.6908
H57: Total da Equipe de Produção de Terraplenagem | I57: =I56+H52 -> 10445.196
A59: Composição de custo da equipe de produção de pavimentação
A60: Código | B60: Discriminação | C60: Unidade | D60: Quantidade | F60: Custo Unitário (R$) | H60: Custo Total (R$)
B61: Equipe de Produção de Pavimentação
A62: 3.1 | B62: Mão de Obra
A63: P9893 | B63: Encarregado de produção | C63: mês | D63: 1 | F63: =VLOOKUP(A63,'Pessoal Sicro'!$A$6:$G$118,6,0) -> 7826.5052 | H63: =F63*D63 -> 7826.5052
F64: Subtotal do Item 3.1 | H64: =SUM(H63:H63) -> 7826.5052
A65: Código | B65: Discriminação | C65: Unidade | D65: Quantidade | E65: Utilização Produtiva | F65: Utilização Improdutiva | G65: Custo Horário Produtivo (R$) | H65: Custo Horário Improdutivo (R$) | I65: Custo Total (R$)
A66: 3.2 | B66: Veículos
B67: Veículo Leve 53 kw | C67: mês | D67: 1 | E67: 44 | F67: 176 | G67: =$G$36 -> 34.8989 | H67: =$H$36 -> 6.1542 | I67: =((E67*G67)+(F67*H67))*D67 -> 2618.6908
H68: Subtotal do Item 3.2 | I68: =SUM(I67:I67) -> 2618.6908
H69: Total da Equipe de Produção de Pavimentação | I69: =I68+H64 -> 10445.196
A71: Composição de custo da equipe de produção de drenagem
A72: Código | B72: Discriminação | C72: Unidade | D72: Quantidade | F72: Custo Unitário (R$) | H72: Custo Total (R$)
B73: Equipe de Produção de Pavimentação
A74: 3.1 | B74: Mão de Obra
A75: P9893 | B75: Encarregado de produção | C75: mês | D75: 1 | F75: =VLOOKUP(A75,'Pessoal Sicro'!$A$6:$G$118,6,0) -> 7826.5052 | H75: =F75*D75 -> 7826.5052
F76: Subtotal do Item 3.1 | H76: =SUM(H75:H75) -> 7826.5052
A77: Código | B77: Discriminação | C77: Unidade | D77: Quantidade | E77: Utilização Produtiva | F77: Utilização Improdutiva | G77: Custo Horário Produtivo (R$) | H77: Custo Horário Improdutivo (R$) | I77: Custo Total (R$)
A78: 3.2 | B78: Veículos
B79: Veículo Leve 53 kw | C79: mês | D79: 1 | E79: 44 | F79: 176 | G79: =$G$36 -> 34.8989 | H79: =$H$36 -> 6.1542 | I79: =((E79*G79)+(F79*H79))*D79 -> 2618.6908
H80: Subtotal do Item 3.2 | I80: =SUM(I79:I79) -> 2618.6908
H81: Total da Equipe de Produção de Pavimentação | I81: =I80+H76 -> 10445.196
A83: Composição de custo da equipe de produção de sinalização
A84: Código | B84: Discriminação | C84: Unidade | D84: Quantidade | F84: Custo Unitário (R$) | H84: Custo Total (R$)
B85: Equipe de Produção de Pavimentação
A86: 3.1 | B86: Mão de Obra
A87: P9893 | B87: Encarregado de produção | C87: mês | D87: 1 | F87: =VLOOKUP(A87,'Pessoal Sicro'!$A$6:$G$118,6,0) -> 7826.5052 | H87: =F87*D87 -> 7826.5052
F88: Subtotal do Item 3.1 | H88: =SUM(H87:H87) -> 7826.5052
A89: Código | B89: Discriminação | C89: Unidade | D89: Quantidade | E89: Utilização Produtiva | F89: Utilização Improdutiva | G89: Custo Horário Produtivo (R$) | H89: Custo Horário Improdutivo (R$) | I89: Custo Total (R$)
A90: 3.2 | B90: Veículos
B91: Veículo Leve 53 kw | C91: mês | D91: 1 | E91: 44 | F91: 176 | G91: =$G$36 -> 34.8989 | H91: =$H$36 -> 6.1542 | I91: =((E91*G91)+(F91*H91))*D91 -> 2618.6908
H92: Subtotal do Item 3.2 | I92: =SUM(I91:I91) -> 2618.6908
H93: Total da Equipe de Produção de Pavimentação | I93: =I92+H88 -> 10445.196
A95: Composição de custo da equipe topografia
A96: Código | B96: Discriminação | C96: Unidade | D96: Quantidade | F96: Custo Unitário (R$) | H96: Custo Total (R$)
B97: Equipe de Topografia
A98: 3.1 | B98: Mão de Obra
A99: P9949 | B99: Topográfo | C99: mês | D99: 1 | F99: =VLOOKUP(A99,'Pessoal Sicro'!$A$6:$G$118,6,0) -> 8508.0663 | H99: =F99*D99 -> 8508.0663
A100: P9950 | B100: Auxiliar de topografia | C100: mês | D100: 1 | F100: =VLOOKUP(A100,'Pessoal Sicro'!$A$6:$G$118,6,0) -> 5561.4546 | H100: =F100*D100 -> 5561.4546
F101: Subtotal do Item 3.1 | H101: =SUM(H99:I100) -> 14069.5209
A102: Código | B102: Discriminação | C102: Unidade | D102: Quantidade | E102: Utilização Produtiva | F102: Utilização Improdutiva | G102: Custo Horário Produtivo (R$) | H102: Custo Horário Improdutivo (R$) | I102: Custo Total (R$)
A103: 3.2 | B103: Veículos
B104: Veículo Leve 53 kw | C104: mês | D104: 1 | E104: 44 | F104: 176 | G104: =G36 -> 34.8989 | H104: =H36 -> 6.1542 | I104: =((E104*G104)+(F104*H104))*D104 -> 2618.6908
H105: Subtotal do Item 3.2 | I105: =SUM(I104:I104) -> 2618.6908
H106: Total da Equipe de Produção de Topografia | I106: =I105+H101 -> 16688.2117
A108: Composição de custo do setor de medicina e segurança do trabalho
A109: Código | B109: Discriminação | C109: Unidade | D109: Quantidade | F109: Custo Unitário (R$) | H109: Custo Total (R$)
A110: 4 | B110: Setor de Medicina e Segurança do Trabalho
A111: P9876 | B111: Técnico de segurança do trabalho | C111: mês | D111: 1 | F111: =VLOOKUP(A111,'Pessoal Sicro'!$A$6:$G$118,6,0) -> 7081.3754 | H111: =F111*D111 -> 7081.3754
A112: P9864 | B112: Engenheiro de segurança do trabalho | C112: mês | D112: 0 | F112: =VLOOKUP(A112,'Pessoal Sicro'!$A$6:$G$118,6,0) -> 22933.1739 | H112: =F112*D112 -> 0
A113: P9851 | B113: Médico do trabalho | C113: mês | D113: 0 | F113: =VLOOKUP(A113,'Pessoal Sicro'!$A$6:$G$118,6,0) -> 18352.249 | H113: =F113*D113 -> 0
A114: P9951 | B114: Médico de câmara hiperbárica | C114: mês | D114: 0 | F114: =VLOOKUP(A114,'Pessoal Sicro'!$A$6:$G$118,6,0) -> 20300.9664 | H114: =F114*D114 -> 0
F115: Subtotal do Item 4 | H115: =SUM(H111:I114) -> 7081.3754
A117: Parcela Variável - Composição de custo da equipe de frente de serviço
A118: Código | B118: Discriminação | C118: Unidade | D118: Quantidade | F118: Custo Unitário (R$) | H118: Custo Total (R$)
A119: 5 | B119: Equipe de Frente de Serviço | C119: equipexmês
A120: P9875 | B120: Encarregado de Turma | C120: mês | D120: 1 | F120: =VLOOKUP(A120,'Pessoal Sicro'!$A$6:$G$118,6,0) -> 5227.0497 | H120: =F120*D120 -> 5227.0497
A121: P9804 | B121: Apontador | C121: mês | D121: 0.5 | F121: =VLOOKUP(A121,'Pessoal Sicro'!$A$6:$G$118,6,0) -> 4710.754 | H121: =F121*D121 -> 2355.377
F122: Subtotal do Item 5 | H122: =SUM(H120:I121) -> 7582.4267
A124: Parcela Variável - Composição de custo da equipe de frente de serviço (Terraplenagem) - Somente Compactação
A125: Código | B125: Discriminação | C125: Unidade | D125: Quantidade | F125: Produção Horária (und/h) | H125: Efs
A126: 5.1 | B126: Equipe de Frente de Serviço | C126: equipexmês
C127: mês | H127: =(D127)/(F127*182.49) -> 
C128: mês | H128: =(D128)/(F128*182.49) -> 
C129: mês | H129: =(D129)/(F129*182.49) -> 
F130: Total de Equipes para Terraplenagem | H130: =SUM(H129:I129) -> 
A132: Parcela Variável - Composição de custo da acompanhamento das frentes de serviço de pavimentação
A133: Código | B133: Discriminação | C133: Unidade | D133: Quantidade | F133: Produção Horária (und/h) | H133: Efs
A134: 5.2 | B134: Equipe de Frente de Serviço | C134: equipe x mês
A135: 4011463 | B135: =VLOOKUP(A135,'SINTÉTICO SICRO'!$A$4:$D$6373,2,0) -> Concreto asfáltico - faixa C - areia e brita comerciais | C135: m² | D135: ='RESUMO MODULO TOTAL'!J23 -> 10080 | F135: 99.6 | H135: =(D135)/(F135*182.49) -> 0.5545773427
A136: 4011351 | B136: =VLOOKUP(A136,'SINTÉTICO SICRO'!$A$4:$D$6373,2,0) -> Imprimação com asfalto diluído | C136: m² | D136: ='RESUMO MODULO TOTAL'!J24 -> 84000 | F136: 1125 | H136: 0.4091548395
A137: 4011353 | B137: =VLOOKUP(A137,'SINTÉTICO SICRO'!$A$4:$D$6373,2,0) -> Pintura de ligação | C137: m² | D137: ='RESUMO MODULO TOTAL'!J25 -> 84000 | F137: 1500 | H137: 0.3068661297
A138: 4011268 | B138: =VLOOKUP(A138,'SINTÉTICO SICRO'!$A$4:$D$6373,2,0) -> Base estabilizada granulometricamente com mistura solo brita (70% - 30%) em usina com material de jazida e brita comercial | C138: m³ | D138: ='RESUMO MODULO TOTAL'!J26 -> 12600 | F138: 120.7 | H138: 0.57203711
A139: 4011235 | B139: =VLOOKUP(A139,'SINTÉTICO SICRO'!$A$4:$D$6373,2,0) -> Sub-base estabilizada granulometricamente com mistura solo brita (70% - 30%) em usina com material de jazida e brita comercial | C139: m³ | D139: ='RESUMO MODULO TOTAL'!J27 -> 12600 | F139: 120.7 | H139: 0.57203711
A140: 4011209 | B140: =VLOOKUP(A140,'SINTÉTICO SICRO'!$A$4:$D$6373,2,0) -> Regularização do subleito | C140: m² | D140: ='RESUMO MODULO TOTAL'!J28 -> 84000 | F140: 1121.33 | H140: 0.4104939621
F141: Total de Equipes para Pavimentação | H141: =SUM(H135:I140) -> 2.825166494
A143: Parcela Variável - Composição de custo da acompanhamento das frentes de serviço de drenagem
A144: Código | B144: Discriminação | C144: Unidade | D144: Quantidade | F144: Efsdu | H144: Efs
A145: 5.3 | B145: Frentes de Serviço para Drenagem | C145: equipe x mês
A146: 2003943 | B146: =VLOOKUP(A146,'SINTÉTICO SICRO'!$A$4:$D$6373,2,0) -> Meio-fio de concreto - MFC 03 moldado no local com extrusora e concreto usinado - areia e brita comerciais | C146: m | D146: =VLOOKUP(A146,'RESUMO MODULO TOTAL'!D:J,7,FALSE) -> 24000 | F146: 0.00021 | H146: =D146*F146 -> 5.04
F147: Total de Equipes para Drenagem | H147: =H146 -> 5.04
A149: Parcela Variável - Composição de custo da acompanhamento das frentes de serviço de sinalização
A150: Código | B150: Discriminação | C150: Unidade | D150: Quantidade | F150: Produção Horária (und/h) | H150: Efs
A151: 5.4 | B151: Frentes de Serviço para Sinalização | C151: equipe x mês
A152: 5213440 | B152: =VLOOKUP(A152,'SINTÉTICO SICRO'!$A$4:$D$6373,2,0) -> Placa de regulamentação em aço D = 0,60 m - película retrorrefletiva tipo I + SI - fornecimento e implantação | C152: Unidade | D152: =VLOOKUP(A152,'RESUMO MODULO TOTAL'!D:J,7,FALSE) -> 36 | F152: 3 | H152: =0.2*((D152)/(F152*182.49)) -> 0.01315140556
A153: 5213464 | B153: =VLOOKUP(A153,'SINTÉTICO SICRO'!$A$4:$D$6373,2,0) -> Placa de advertência em aço, lado de 0,60 m - película retrorrefletiva tipo I + SI - fornecimento e implantação | C153: Unidade | D153: =VLOOKUP(A153,'RESUMO MODULO TOTAL'!D:J,7,FALSE) -> 36 | F153: 3 | H153: =0.2*((D153)/(F153*182.49)) -> 0.01315140556
A154: 5213863 | B154: =VLOOKUP(A154,'SINTÉTICO SICRO'!$A$4:$D$6373,2,0) -> Suporte metálico galvanizado para placa de advertência ou regulamentação - lado ou diâmetro de 0,60 m - fornecimento e implantação | C154: Unidade | D154: =VLOOKUP(A154,'RESUMO MODULO TOTAL'!D:J,7,FALSE) -> 72 | F154: 4.1 | H154: =0.2*((D154)/(F154*182.49)) -> 0.01924595935
A155: 5213400 | B155: =VLOOKUP(A155,'SINTÉTICO SICRO'!$A$4:$D$6373,2,0) -> Pintura de faixa com tinta acrílica - espessura de 0,4 mm | C155: m² | D155: =VLOOKUP(A155,'RESUMO MODULO TOTAL'!D:J,7,FALSE) -> 3360 | F155: 177.07 | H155: 0.02079625886
F156: Total de Equipes para Sinalização | H156: =SUM(H152:I155) -> 0.06634502932 | J156: =H156+H147 -> 5.106345029
A158: 3. PARCELA VARIÁVEL - EQUIPE DE CONTROLE TECNOLÓGICO
A159: LABORATÓRIO DE SOLOS
A160: Item | B160: Discriminação | F160: Unidade | G160: Quantidade | H160: Custo Unitário (R$) | I160: Custo Total (R$)
B161: Laboratório de Solos (equipe x mês)
B162: Mão de Obra
A163: P9858 | B163: Laboratorista | F163: func./mês | G163: 1 | H163: =VLOOKUP(A163,'Pessoal Sicro'!$A$6:$G$118,6,0) -> 7199.4012 | I163: =TRUNC(G163*H163,2) -> 7199.4
A164: P9833 | B164: Auxiliar de laboratório | F164: func./mês | G164: 1 | H164: =VLOOKUP(A164,'Pessoal Sicro'!$A$6:$G$118,6,0) -> 5528.7453 | I164: =TRUNC(G164*H164,2) -> 5528.74
H165: Subtotal do Item | I165: =SUM(I163:I164) -> 12728.14
A166: Item | B166: Discriminação | C166: Und | D166: Quant | E166: Utilização Produtiva | F166: Utilização Improdutiva | G166: Horário Produtivo (R$) | H166: Horário Improdutivo (R$) | I166: Total (R$)
B167: Equipe de Controle Tecnológico
B168: Veículos
A169: E9125 | B169: Van furgão a diesel - 93 kW | C169: veic./mês | D169: 0.5 | E169: 44 | F169: 176 | G169: =VLOOKUP(A169,Equipamentos!$A$4:$K$533,10,0) -> 84.3517 | H169: =VLOOKUP(A169,Equipamentos!$A$4:$K$533,11,0) -> 47.4188 | I169: =D169*((E169*G169)+(F169*H169)) -> 6028.5918
H170: Subtotal do Item | I170: =SUM(I169:I169) -> 6028.5918
H171: Total da Equipe do Laboratório de Solos | I171: =I165+I170 -> 18756.7318
A173: 3. PARCELA VARIÁVEL - EQUIPE DE CONTROLE TECNOLÓGICO
A174: LABORATÓRIO DE ASFALTOS
A175: Item | B175: Discriminação | F175: Unidade | G175: Quantidade | H175: Custo Unitário (R$) | I175: Custo Total (R$)
B176: Laboratório de Solos (equipe x mês)
B177: Mão de Obra
A178: P9858 | B178: Laboratorista | F178: func./mês | G178: 1 | H178: =VLOOKUP(A178,'Pessoal Sicro'!$A$6:$G$118,6,0) -> 7199.4012 | I178: =TRUNC(G178*H178,2) -> 7199.4
A179: P9833 | B179: Auxiliar de laboratório | F179: func./mês | G179: 1 | H179: =VLOOKUP(A179,'Pessoal Sicro'!$A$6:$G$118,6,0) -> 5528.7453 | I179: =TRUNC(G179*H179,2) -> 5528.74
H180: Subtotal do Item | I180: =SUM(I178:I179) -> 12728.14
A181: Item | B181: Discriminação | C181: Und | D181: Quant | E181: Utilização Produtiva | F181: Utilização Improdutiva | G181: Horário Produtivo (R$) | H181: Horário Improdutivo (R$) | I181: Total (R$)
B182: Equipe de Controle Tecnológico
B183: Veículos
A184: E9125 | B184: Van furgão a diesel - 93 kW | C184: veic./mês | D184: 0.5 | E184: 44 | F184: 176 | G184: =VLOOKUP(A184,Equipamentos!$A$4:$K$533,10,0) -> 84.3517 | H184: =VLOOKUP(A184,Equipamentos!$A$4:$K$533,11,0) -> 47.4188 | I184: =D184*((E184*G184)+(F184*H184)) -> 6028.5918
H185: Subtotal do Item | I185: =SUM(I184:I184) -> 6028.5918
H186: Total da Equipe do Laboratório de Asfaltos | I186: =I180+I185 -> 18756.7318
A188: Equipes de laboratório de solos para pavimentação
A189: Item | B189: Discriminação | F189: Und | G189: Quant | H189: QE | I189: Els
A190: 4011268 | B190: =VLOOKUP(A190,'SINTÉTICO SICRO'!A:D,2,0) -> Base estabilizada granulometricamente com mistura solo brita (70% - 30%) em usina com material de jazida e brita comercial | F190: =VLOOKUP(A190,'[204]SINTÉTICO SICRO'!A:D,3,0) -> m³ | G190: =VLOOKUP(A190,'RESUMO MODULO TOTAL'!D:J,7,FALSE) -> 12600 | H190: 21900 | I190: =G190/H190 -> 0.5753424658
A191: 4011235 | B191: =VLOOKUP(A191,'SINTÉTICO SICRO'!A:D,2,0) -> Sub-base estabilizada granulometricamente com mistura solo brita (70% - 30%) em usina com material de jazida e brita comercial | F191: =VLOOKUP(A191,'[204]SINTÉTICO SICRO'!A:D,3,0) -> m³ | G191: =VLOOKUP(A191,'RESUMO MODULO TOTAL'!D:J,7,FALSE) -> 12600 | H191: 21900 | I191: =G191/H191 -> 0.5753424658
A192: 4011209 | B192: =VLOOKUP(A192,'SINTÉTICO SICRO'!A:D,2,0) -> Regularização do subleito | F192: =VLOOKUP(A192,'[204]SINTÉTICO SICRO'!A:D,3,0) -> m² | G192: =VLOOKUP(A192,'RESUMO MODULO TOTAL'!D:J,7,FALSE) -> 84000 | H192: 21900 | I192: =G192/H192 -> 3.835616438
H193: Total de equipes de Laboratório de Solos para Pavimentação | I193: =SUM(I190:I192) -> 4.98630137
A195: Equipes de laboratório de Asfalto
A196: Item | B196: Discriminação | F196: Und | G196: Quant | H196: QE | I196: Ela
A197: 4011463 | B197: =VLOOKUP(A197,'SINTÉTICO SICRO'!A:D,2,0) -> Concreto asfáltico - faixa C - areia e brita comerciais | F197: =VLOOKUP(A197,'[204]SINTÉTICO SICRO'!A:D,3,0) -> t | G197: =VLOOKUP(A197,'RESUMO MODULO TOTAL'!D:J,7,FALSE) -> 10080 | H197: 9000 | I197: =G197/H197 -> 1.12
A198: 4011352 | B198: =VLOOKUP(A198,'SINTÉTICO SICRO'!A:D,2,0) -> Imprimação com emulsão asfáltica | F198: =VLOOKUP(A198,'[204]SINTÉTICO SICRO'!A:D,3,0) -> m² | G198: =VLOOKUP(A198,'RESUMO MODULO TOTAL'!D:J,7,FALSE) -> 84000 | H198: 1610000 | I198: =G198/H198 -> 0.05217391304
A199: 4011353 | B199: =VLOOKUP(A199,'SINTÉTICO SICRO'!A:D,2,0) -> Pintura de ligação | F199: =VLOOKUP(A199,'[204]SINTÉTICO SICRO'!A:D,3,0) -> m² | G199: =VLOOKUP(A199,'RESUMO MODULO TOTAL'!D:J,7,FALSE) -> 84000 | H199: 3610000 | I199: =G199/H199 -> 0.02326869806
H200: Total de equipes de Laboratório de Asfaltos | I200: =SUM(I197:I199) -> 1.195442611
A202: manutenção do canteiro de obras e acampamentos
A203: Código | B203: Discriminação | C203: Unidade | D203: Quantidade | F203: Custo Unitário (R$) | H203: Custo Total (R$)
B204: Manutenção do Canteiro de Obras e Acampamentos
A205: 6.1 | B205: Mão de Obra
A206: P9952 | B206: Pedreiro | C206: mês | D206: 0 | F206: =VLOOKUP(A206,'Pessoal Sicro'!$A$6:$G$118,6,0) -> 4768.7493 | H206: =F206*D206 -> 0
A207: P9954 | B207: Servente | C207: mês | D207: 0 | F207: =VLOOKUP(A207,'Pessoal Sicro'!$A$6:$G$118,6,0) -> 4030.0175 | H207: =F207*D207 -> 0
A208: P9953 | B208: Eletricista | C208: mês | D208: 0 | F208: =VLOOKUP(A208,'Pessoal Sicro'!$A$6:$G$118,6,0) -> 5651.8909 | H208: =F208*D208 -> 0
F209: Subtotal do Item 6.1 | H209: =SUM(H206:I208) -> 0
A211: Código | B211: Discriminação | C211: Unidade | D211: Quantidade | F211: Custo Produtivo (R$) | H211: Custo Total (R$)
A212: 6.2 | B212: Equipamentos
B213: Caminhão guindauto de 6 toneladas | C213: h/mês | D213: 0 | H213: =F213*D213 -> 0
B214: Caminhão tanque de 8.000 litros | C214: h/mês | D214: 0 | H214: =F214*D214 -> 0
A215: E9524 | B215: Motoniveladora | C215: h/mês | D215: 0 | F215: =VLOOKUP(A215,Equipamentos!$A$4:$K$541,10,0) -> 290.0451 | H215: =F215*D215 -> 0
F216: Subtotal do Item 6.2 | H216: =SUM(H213:I215) -> 0
G217: Total da Manutenção do Canteiro de Obras e Acampamentos | H217: =H216+H209 -> 0
A221: Resumo das parcelas de administração local
A222: Código | B222: Discriminação | C222: Unidade | D222: Quantidade | F222: Custo Unitário (R$) | H222: Custo Total (R$)
... 29 more rows

Sheet Projeto Executivo
A2: COMPOSIÇAO PREÇO PROJETO EXECUTIVO
A4: DISCRIMINAÇAO | F4: Pr. Unit. | G4: Pr. Total
A6: A· EOUIPE TECNICA | G6: =G7+G10 -> 14744.49704
B7: A. 1 - Pessoal de Nível Superior | C7: Unidade | D7: Quantitativo | E7: SICRO e Rel.Custos Gerais | G7: =G8+G9 -> 11819.96722
B8: Engenheiro | C8: mês | D8: 0.4 | E8: P9812 | F8: =VLOOKUP(E8,'Pessoal Sicro'!A:G,6,0) -> 24232.3766 | G8: =F8*D8 -> 9692.95064
B9: Topógrafo | C9: mês | D9: 0.25 | E9: P9949 | F9: =VLOOKUP(E9,'Pessoal Sicro'!A:G,6,0) -> 8508.0663 | G9: =F9*D9 -> 2127.016575
B10: A.2 - Pessoal de Nível Técnico e Aux. | G10: =G11+G12 -> 2924.529825
B11: Auxiliar de topógrafo | C11: mês | D11: 0.125 | E11: P9950 | F11: =VLOOKUP(E11,'Pessoal Sicro'!A:G,6,0) -> 5561.4546 | G11: =F11*D11 -> 695.181825
B12: Auxiliar Técnico/Assistente de Engenharia | C12: mês | D12: 0.5 | E12: P9903 | F12: =VLOOKUP(E12,'Pessoal Sicro'!A:G,6,0) -> 4458.696 | G12: =F12*D12 -> 2229.348
A13: B - ENCARGOS SOCIAIS | G13: =G14 -> 0
B14: =CONCATENATE("Taxas ",'ENC. SOCIAIS'!E51,"%") -> Taxas 116,21% | C14: JÁ INCLUSAS EM "A"
A15: C - DESPESAS GERAIS | G15: =G16+G18+G17 -> 5168.440581
B16: C.1 - MATERIAIS DE CONSUMO | C16: Estimativa % como referência de equipe técnica com encargos sociais | D16: 0.03 | F16: =G6+G14 -> 14744.49704 | G16: =F16*D16 -> 442.3349112
B17: C.2 - VEÍCULOS (Veículo leve picape 4 x 4 com capacidade de 1,10 t - 147 kW) | C17: h | D17: 40 | E17: E9684 | F17: =VLOOKUP(E17,Equipamentos!A:K,10,0) -> 109.2041 | G17: =F17*D17 -> 4368.164
B18: C.3 - Estação total eletrônica com alcance máximo de 3.000 m | C18: h | D18: 70.54984029 | E18: E9553 | F18: =VLOOKUP(E18,Equipamentos!A:K,10,0) -> 5.0736 | G18: =F18*D18 -> 357.9416697
A19: D - ENSAIOS | G19: =SUM(G20:G23) -> 3650.784712
B20: Laboratorista | C20: mês | D20: =1/4 -> 0.25 | E20: P9858 | F20: =VLOOKUP(E20,'Pessoal Sicro'!A:G,6,0) -> 7199.4012 | G20: =F20*D20 -> 1799.8503
B21: Auxiliar de Laboratório | C21: mês | D21: =1/8 -> 0.125 | E21: P9833 | F21: =VLOOKUP(E21,'Pessoal Sicro'!A:G,6,0) -> 5528.7453 | G21: =F21*D21 -> 691.0931625
B22: Laboratório de solos | C22: mês | D22: =1/8 -> 0.125 | E22: B8957 | F22: =VLOOKUP(E22,'Tabelas 1 e 2'!C14:G23,5,0) -> 4073.25 | G22: =F22*D22 -> 509.15625
B23: Laboratório de asfalto | C23: mês | D23: 0.125 | E23: B8955 | F23: =VLOOKUP(E23,'Tabelas 1 e 2'!C15:G24,5,0) -> 5205.48 | G23: =F23*D23 -> 650.685
A24: I - SOMA (A+B+C+D) | G24: =G6+G13+G15+G19 -> 23563.72233
A25: II - CUSTOS ADMINISTRATIVOS | D25: =BDI!C17 -> 0.2339 | G25: =D25*G24 -> 5511.554654
A26: TOTAL | G26: =G24+G25 -> 29075.27699
F27: Por m²: | G27: =G26/('MC MODULO'!C1*'MC MODULO'!C2) -> 2.076805499

Sheet BDI
A2: OBRA:
A3: LOCAL:
A4: DATA BASE:
A5: DETALHAMENTO DO BDI - SEM DESONERAÇÃO
A6: ='RESUMO MODULO TOTAL'!B1 -> CONTRATAÇÃO DE SERVIÇOS DE PAVIMENTAÇÃO ASFÁLTICA COM CONCRETO BETUMINOSO USINADO A QUENTE (CBUQ) EM VIAS URBANAS E RURAIS INSERIDAS NA ÁREA DE ATUAÇÃO DA CODEVASF, NO ESTADO DO RIO GRANDE DO NORTE (REGIÃO 1)
A7: DESCRIÇÃO DOS SERVIÇOS | B7: PREÇO DE VENDA (%) | C7: CUSTO DIRETO (%)
A8: ADMINISTRAÇÃO CENTRAL | C8: 0.06
A9: DESPESA FINANCEIRAS | B9: 0.0102
A10: SEGUROS E GARANTIAS CONTRATUAIS | B10: 0.0025
A11: RISCOS | B11: 0.005
A12: LUCRO OPERACIONAL | C12: 0.07
A13: PIS | B13: 0.0065
A14: COFINS | B14: 0.03
A15: ISSQN | B15: 0.03
A16: Contribuição Previdenciaria | B16: 0
B17: BDI | C17: =ROUND((1+(C8+C12))/(1-(B9+B10+B11+B13+B14+B15+B16))-1,4) -> 0.2339
A18: Observação: O percentual de ISSQN aqui utilizado consiste apenas em um referencial médio.
B19: O valor real do ISSQN a ser adotado deve ser aquele proveniente das alíquotas dos municípios situados na área de
B20: influência das obras.
A55: DETALHAMENTO DO BDI DIFERENCIADO - SEM DESONERAÇÃO
A56: ='RESUMO MODULO TOTAL'!B1 -> CONTRATAÇÃO DE SERVIÇOS DE PAVIMENTAÇÃO ASFÁLTICA COM CONCRETO BETUMINOSO USINADO A QUENTE (CBUQ) EM VIAS URBANAS E RURAIS INSERIDAS NA ÁREA DE ATUAÇÃO DA CODEVASF, NO ESTADO DO RIO GRANDE DO NORTE (REGIÃO 1)
A58: DESCRIÇÃO DOS SERVIÇOS | B58: PREÇO DE VENDA (%) | C58: CUSTO DIRETO (%)
A59: ADMINISTRAÇÃO CENTRAL | C59: 0.0377
A60: DESPESA FINANCEIRAS | B60: 0.0102
A61: SEGUROS E GARANTIAS CONTRATUAIS | B61: 0.0025
A62: RISCOS | B62: 0.005
A63: LUCRO OPERACIONAL | C63: 0.05
A64: PIS | B64: 0.0065
A65: COFINS | B65: 0.03
A66: ISSQN | B66: 0
A67: Contribuição Previdenciaria | B67: 0
B68: BDI | C68: =ROUND((1+(C59+C63))/(1-(B60+B61+B62+B64+B65+B66+B67))-1,4) -> 0.15
A69: Fonte da composição, valores de referência e fórmula do BDI: Instrução Normativa N° 62/DNIT SEDE

Sheet ENC. SOCIAIS
A6: NOME DA CONCORRENTE:
A7: EDITAL:
A8: FOLHA:
A9: ='RESUMO MODULO TOTAL'!B1 -> CONTRATAÇÃO DE SERVIÇOS DE PAVIMENTAÇÃO ASFÁLTICA COM CONCRETO BETUMINOSO USINADO A QUENTE (CBUQ) EM VIAS URBANAS E RURAIS INSERIDAS NA ÁREA DE ATUAÇÃO DA CODEVASF, NO ESTADO DO RIO GRANDE DO NORTE (REGIÃO 1)
A11: DETALHAMENTO DOS ENCARGOS SOCIAIS (%)
A12: VIGÊNCIA A PARTIR DE 12/2023 | C12: COM DESONERAÇÃO | E12: SEM DESONERAÇÃO
C14: HORISTA | D14: MENSALISTA | E14: HORISTA | F14: MENSALISTA
A16: GRUPO A
A17: A1 | B17: INSS | C17: 0 | D17: 0 | E17: 20 | F17: 20
A18: A2 | B18: SESI | C18: 1.5 | D18: 1.5 | E18: 1.5 | F18: 1.5
A19: A3 | B19: SENAI | C19: 1 | D19: 1 | E19: 1 | F19: 1
A20: A4 | B20: INCRA | C20: 0.2 | D20: 0.2 | E20: 0.2 | F20: 0.2
A21: A5 | B21: SEBRAE | C21: 0.6 | D21: 0.6 | E21: 0.6 | F21: 0.6
A22: A6 | B22: Salário Educação | C22: 2.5 | D22: 2.5 | E22: 2.5 | F22: 2.5
A23: A7 | B23: Seguro Contra Acidentes de Trabalho | C23: 3 | D23: 3 | E23: 3 | F23: 3
A24: A8 | B24: FGTS | C24: 8 | D24: 8 | E24: 8 | F24: 8
A25: A9 | B25: SECONCI | C25: 1 | D25: 1 | E25: 0
A26: A | B26: Total | C26: =SUM(C17:C25) -> 17.8 | D26: =SUM(D17:D25) -> 17.8 | E26: =SUM(E17:E25) -> 36.8 | F26: =SUM(F17:F25) -> 36.8
A27: GRUPO B
A28: B1 | B28: Repouso Semanal Remunerado | C28: 17.88 | D28: - | E28: 17.97 | F28: -
A29: B2 | B29: Feriados | C29: 3.94 | D29: - | E29: 4.28 | F29: -
A30: B3 | B30: Auxílio-enfermidade | C30: 0.91 | D30: 0.69 | E30: 0.86 | F30: 0.64
A31: B4 | B31: 13° salário | C31: 10.98 | D31: 8.33 | E31: 11.2 | F31: 8.33
A32: B5 | B32: Licença-paternidade | C32: 0.07 | D32: 0.06 | E32: 0.06 | F32: 0.04
A33: B6 | B33: Faltas Justificadas | C33: 0.73 | D33: 0.56 | E33: 0.75 | F33: 0.56
A34: B7 | B34: Dias de chuva | C34: 1.45 | D34: - | E34: 1.75 | F34: -
A35: B8 | B35: Auxílio Acidente de Trabalho | C35: 0.11 | D35: 0.09 | E35: 0.1 | F35: 0.08
A36: B9 | B36: Férias Gozadas | C36: 11.35 | D36: 8.62 | E36: 14.03 | F36: 10.44
A37: B10 | B37: Salário Maternidade | C37: 0.03 | D37: 0.03 | E37: 0.04 | F37: 0.03
A38: B | B38: Total | C38: =SUM(C28:C37) -> 47.45 | D38: =SUM(D28:D37) -> 18.38 | E38: =SUM(E28:E37) -> 51.04 | F38: =SUM(F28:F37) -> 20.12
A39: GRUPO C
A40: C1 | B40: Aviso Prévio Indenizado | C40: 6.76 | D40: 5.14 | E40: 5.25 | F40: 3.91
A41: C2 | B41: Aviso Prévio Trabalhado | C41: 0.16 | D41: 0.12 | E41: 0.12 | F41: 0.09
A42: C3 | B42: Férias Indenizadas | C42: 2.28 | D42: 1.73 | E42: 0.88 | F42: 0.66
A43: C4 | B43: Depósito Rescisão Sem Justa Causa | C43: 3.81 | D43: 2.89 | E43: 2.44 | F43: 1.82
A44: C5 | B44: Indenização Adicional | C44: 0.57 | D44: 0.43 | E44: 0.44 | F44: 0.33
A45: C | B45: Total | C45: =SUM(C40:C44) -> 13.58 | D45: =SUM(D40:D44) -> 10.31 | E45: =SUM(E40:E44) -> 9.13 | F45: =SUM(F40:F44) -> 6.81
A46: GRUPO D
A47: D1 | B47: Reincidência de A sobre B | C47: 8.45 | D47: 3.27 | E47: 18.78 | F47: 7.4
A48: D2 | B48: Reincidência de Grupo A sobre Aviso Prévio Trabalhado e Reincidência do FGTS sobre Aviso Prévio Indenizado | C48: 0.57 | D48: 0.43 | E48: 0.46 | F48: 0.35
A49: D | B49: Total | C49: =SUM(C47:C48) -> 9.02 | D49: =SUM(D47:D48) -> 3.7 | E49: =SUM(E47:E48) -> 19.24 | F49: =SUM(F47:F48) -> 7.75 | H49: Fonte: Sinapi Cálculos e Parâmetros 5ª Edição - Atualizada em Agosto 2023
A51: T O T A L (%) | C51: =C26+C38+C45+C49 -> 87.85 | D51: =D26+D38+D45+D49 -> 50.19 | E51: =E26+E38+E45+E49 -> 116.21 | F51: =F26+F38+F45+F49 -> 71.48

Sheet Transporte Cap 50-70
C2: MEMÓRIA DE CÁLCULO
C7: REAJUSTE | F7: TIPOLOGIA DO MATERIAL | I7: CIMENTOS ASFÁLTICOS CAP-50-70 | M7: IMPOSTOS | N7: COFINS | O7: 0.0065 | P7: 0.0065
G8: ÍNDICE DE PAVIMENTAÇÃO DNIT | H8: 2014-07-01 | I8: ÍNDICE INICIAL | J8: 270.237 | N8: PIS | O8: 0.03 | P8: 0.03 | T8: LEGENDA | AC8: As empresas tributadas pelo Lucro Presumido pagam 0,65% de PIS e 3% de COFINS
H9: 2024-06-01 | I9: ÍNDICE FINAL | J9: 572.847 | N9: ICMS | O9: 0.18 | P9: 0.18 | Q9: =1-(O9/1) -> 0.82 | R9: =1-(P9/1) -> 0.82 | S9: =1-(Q9/1) -> 0.18 | T9: ENTRADA DE DADOS | AC9: As empresas tributadas pelo Lucro Real pagam 1,65% de PIS e 7,60% de COFINS
G10: Data ANP | H10: ='[205]ANP ESTADO'!A98879 -> 2024-06-01
C11: DATA-BASE | D11: PRODUTOS | E11: LOCALIDADES | J11: CUSTO ANP (R$/Kg) | L11: CUSTO ANP | M11: IMPOSTOS DO PRODUTO | N11: CUSTO DO PRODUTO COM IMPOSTOS | O11: DMT's | P11: DMT's FLUVIAL | Q11: CUSTO DO TRANSPORTE RODOVIA PAVIMENTADA | R11: CUSTO DO TRANSPORTE FLUVIAL | S11: CUSTO DO TRANSPORTE TOTAL | T11: ICMS | U11: ATUALIZAÇÃO DO CUSTO DE TRANSPORTE | V11: CUSTO DO TRANSPORTE RODOVIA PAVIMENTADA COM IMPOSTOS E ATUALIZAÇÃO MONETÁRIA | W11: PEDÁGIO | Y11: TOTAL TRANSPORTE | Z11: AQUISIÇÃO DO PRODUTO | AA11: TOTAL GERAL ( TRANSP + AQUISIÇÃO) | AC11: 1 | AD11: 2 | AE11: 3
C12: =H9 -> 2024-06-01 | E12: REFINARIAS | F12: ENDEREÇO | G12: ESTADO | H12: CIDADE | I12: DESTINO | J12: ESTADO | K12: REGIÃO | L12: R$/t | M12: R$/t | N12: R$/t | O12: KM | P12: KM | Q12: R$/t | R12: R$/t | S12: R$/t | T12: R$/t | U12: R$/t | V12: R$/t | W12: CUSTO | X12: R$/t | Y12: R$/t | Z12: R$/t | AA12: R$/t | AC12: TOTAL GERAL ( TRANSP + AQUISIÇÃO) | AD12: TOTAL TRANSPORTE | AE12: AQUISIÇÃO DO PRODUTO
B13: =AA13 -> 4775.777817 | C13: 1 | D13: =I7 -> CIMENTOS ASFÁLTICOS CAP-50-70 | E13: Refinaria Abreu e Lima | F13: Rodovia PE 60, Km 10 - Ipojuca - PE CEP:55590-000 | G13: Pernambuco | H13: IPOJUCA - PE | I13: Natal - RN | J13: =VLOOKUP('Transporte Cap 50-70'!G13,OFFSET('ANP ESTADO'!$A$1,MATCH('Transporte Cap 50-70'!$I$7,'ANP ESTADO'!B:B,0)+MATCH('Transporte Cap 50-70'!$H$10,OFFSET('ANP ESTADO'!$A$1,MATCH('Transporte Cap 50-70'!$I$7,'ANP ESTADO'!B:B,0),0,100000,1),0),2,100000,2),2,FALSE) -> - | K13: =VLOOKUP($H$10,OFFSET('ANP REGIÃO'!$A$9,MATCH('Transporte Cap 50-70'!$I$7,'ANP REGIÃO'!A:A,0),1,10000,10000),MATCH('Transporte Cap 50-70'!AH13,'ANP REGIÃO'!$B$8:$G$8,0),FALSE) -> 3.510867331 | L13: =IF(AND(J13="-",K13="-"),"",IF(AND(J13<>0,K13="-"),J13*1000,IF(AND(J13="-",K13<>0),K13*1000,IF(AND(J13<>0,K13<>0),J13*1000,"")))) -> 3510.867331 | M13: =ROUND(((L13/(1-$O$7-$O$8-$O$9))-L13),2) -> 970.14 | N13: =L13+M13 -> 4481.007331 | O13: 337 | P13: 0 | Q13: =ROUND((26.939+0.253*O13),2) -> 112.2 | S13: =Q13+R13 -> 112.2 | T13: =TRUNC(S13*($O$9/(1-$O$9)),2) -> 24.62 | U13: =TRUNC(IF($J$8="","",(($J$9-$J$8)/$J$8)*(S13+T13)),2) -> 153.21 | V13: =S13+T13+U13 -> 290.03 | W13: 64.2 | X13: =EVEN(' CONSUMO DE MAT. B TOTAL'!$P$13*2/28)*W13/' CONSUMO DE MAT. B TOTAL'!$P$13 -> 4.740485494 | Y13: =IF(AND(Q13="",T13=""),"",V13+X13) -> 294.7704855 | Z13: =IF(OR(L13="",M13=""),"",L13+M13) -> 4481.007331 | AA13: =IF(OR(Y13="",Z13=""),"",Y13+Z13) -> 4775.777817 | AC13: =AA13 -> 4775.777817 | AD13: =Y13 -> 294.7704855 | AE13: =Z13 -> 4481.007331 | AH13: =IF(OR(G13=$D$51,G13=$D$52,G13=$D$54,G13=$D$60,G13=$D$44,G13=$D$40,G13=$D$36,G13=$D$49,G13=$D$39),"NORDESTE",IF(OR(G13=$D$35,G13=$D$37,G13=$D$38,G13=$D$48,G13=$D$56,G13=$D$57,G13=$D$61),"NORTE",IF(OR(G13=$D$41,G13=$D$43,G13=$D$45,G13=$D$46),"CENTRO-OESTE",IF(OR(G13=$D$59,G13=$D$53,G13=$D$47,G13=$D$42),"SUDESTE",IF(OR(G13=$D$58,G13=$D$50,G13=$D$55),"SUL",""))))) -> NORDESTE
B14: =AA14 -> 4665.747331 | C14: 3 | E14: Refinaria Potiguar Clara Camarão | F14: Rodovia RN 221, KM 25 - Guamaré - RN CEP:59598-000 | G14: Rio Grande do Norte | H14: GUAMARÉ - RN | I14: Natal - RN | J14: =VLOOKUP('Transporte Cap 50-70'!G14,OFFSET('ANP ESTADO'!$A$1,MATCH('Transporte Cap 50-70'!$I$7,'ANP ESTADO'!B:B,0)+MATCH('Transporte Cap 50-70'!$H$10,OFFSET('ANP ESTADO'!$A$1,MATCH('Transporte Cap 50-70'!$I$7,'ANP ESTADO'!B:B,0),0,100000,1),0),2,100000,2),2,FALSE) -> - | K14: =VLOOKUP($H$10,OFFSET('ANP REGIÃO'!$A$9,MATCH('Transporte Cap 50-70'!$I$7,'ANP REGIÃO'!A:A,0),1,10000,10000),MATCH('Transporte Cap 50-70'!AH14,'ANP REGIÃO'!$B$8:$G$8,0),FALSE) -> 3.510867331 | L14: =IF(AND(J14="-",K14=""),"",IF(AND(J14<>0,K14=""),J14*1000,IF(AND(J14="-",K14<>0),K14*1000,IF(AND(J14<>0,K14<>0),J14*1000,"")))) -> 3510.867331 | M14: =ROUND(((L14/(1-$O$7-$O$8-$O$9))-L14),2) -> 970.14 | N14: =L14+M14 -> 4481.007331 | O14: 176 | P14: 0 | Q14: =ROUND((26.939+0.253*O14),2) -> 71.47 | S14: =Q14+R14 -> 71.47 | T14: =TRUNC(S14*($O$9/(1-$O$9)),2) -> 15.68 | U14: =TRUNC(IF($J$8="","",(($J$9-$J$8)/$J$8)*(S14+T14)),2) -> 97.59 | V14: =S14+T14+U14 -> 184.74 | W14: 0 | X14: =EVEN(' CONSUMO DE MAT. B TOTAL'!$P$13*2/28)*W14/' CONSUMO DE MAT. B TOTAL'!$P$13 -> 0 | Y14: 184.74 | Z14: 4481.007331 | AA14: =IF(OR(Y14="",Z14=""),"",Y14+Z14) -> 4665.747331 | AC14: =AA14 -> 4665.747331 | AD14: =Y14 -> 184.74 | AE14: =Z14 -> 4481.007331 | AH14: =IF(OR(G14=$D$51,G14=$D$52,G14=$D$54,G14=$D$60,G14=$D$44,G14=$D$40,G14=$D$36,G14=$D$49,G14=$D$39),"NORDESTE",IF(OR(G14=$D$35,G14=$D$37,G14=$D$38,G14=$D$48,G14=$D$56,G14=$D$57,G14=$D$61),"NORTE",IF(OR(G14=$D$41,G14=$D$43,G14=$D$45,G14=$D$46),"CENTRO-OESTE",IF(OR(G14=$D$59,G14=$D$53,G14=$D$47,G14=$D$42),"SUDESTE",IF(OR(G14=$D$58,G14=$D$50,G14=$D$55),"SUL",""))))) -> NORDESTE
B15: 5496.734612 | C15: 4 | E15: Refinaria Landulpho Alves (RLAM) | F15: Rodovia BA 523, KM 4 – Mataripe São Francisco do Conde - BA CEP:43900-000 | G15: Bahia | H15: SÃO FRANCISCO DO CONDE - BA | I15: Natal - RN | J15: =VLOOKUP('Transporte Cap 50-70'!G15,OFFSET('ANP ESTADO'!$A$1,MATCH('Transporte Cap 50-70'!$I$7,'ANP ESTADO'!B:B,0)+MATCH('Transporte Cap 50-70'!$H$10,OFFSET('ANP ESTADO'!$A$1,MATCH('Transporte Cap 50-70'!$I$7,'ANP ESTADO'!B:B,0),0,100000,1),0),2,100000,2),2,FALSE) -> 3.695114612 | K15: =VLOOKUP($H$10,OFFSET('ANP REGIÃO'!$A$9,MATCH('Transporte Cap 50-70'!$I$7,'ANP REGIÃO'!A:A,0),1,10000,10000),MATCH('Transporte Cap 50-70'!AH15,'ANP REGIÃO'!$B$8:$G$8,0),FALSE) -> 3.510867331 | L15: 3695.114612 | M15: =ROUND(((L15/(1-$O$7-$O$8-$O$9))-L15),2) -> 1021.05 | N15: 4716.164612 | O15: 1087 | P15: 0 | Q15: =ROUND((26.939+0.253*O15),2) -> 301.95 | S15: 301.95 | T15: 66.28 | U15: 412.34 | V15: 780.57 | W15: 0 | X15: =EVEN(' CONSUMO DE MAT. B TOTAL'!$P$13*2/28)*W15/' CONSUMO DE MAT. B TOTAL'!$P$13 -> 0 | Y15: 780.57 | Z15: 4716.164612 | AA15: 5496.734612 | AC15: 5496.734612 | AD15: 780.57 | AE15: 4716.164612 | AH15: NORDESTE
A16: 2403 | B16: 4577.927257 | C16: 5 | E16: Refinaria Lubrificantes e Derivados do Nordeste (Lubnor) | F16: Av. Leite Barbosa, s/nº - Mucuripe Fortaleza - Ceará CEP:60180-420 | G16: Ceará | H16: FORTALEZA - CE | I16: Natal - RN | J16: =VLOOKUP('Transporte Cap 50-70'!G16,OFFSET('ANP ESTADO'!$A$1,MATCH('Transporte Cap 50-70'!$I$7,'ANP ESTADO'!B:B,0)+MATCH('Transporte Cap 50-70'!$H$10,OFFSET('ANP ESTADO'!$A$1,MATCH('Transporte Cap 50-70'!$I$7,'ANP ESTADO'!B:B,0),0,100000,1),0),2,100000,2),2,FALSE) -> 3.263247257 | K16: =VLOOKUP($H$10,OFFSET('ANP REGIÃO'!$A$9,MATCH('Transporte Cap 50-70'!$I$7,'ANP REGIÃO'!A:A,0),1,10000,10000),MATCH('Transporte Cap 50-70'!AH16,'ANP REGIÃO'!$B$8:$G$8,0),FALSE) -> 3.510867331 | L16: =IF(AND(J16="-",K16=""),"",IF(AND(J16<>0,K16=""),J16*1000,IF(AND(J16="-",K16<>0),K16*1000,IF(AND(J16<>0,K16<>0),J16*1000,"")))) -> 3263.247257 | M16: =ROUND(((L16/(1-$O$7-$O$8-$O$9))-L16),2) -> 901.71 | N16: 4164.957257 | O16: 525 | P16: 0 | Q16: 159.76 | S16: 159.76 | T16: 35.06 | U16: 218.15 | V16: 412.97 | W16: 0 | X16: =EVEN(' CONSUMO DE MAT. B TOTAL'!$P$13*2/28)*W16/' CONSUMO DE MAT. B TOTAL'!$P$13 -> 0 | Y16: 412.97 | Z16: 4164.957257 | AA16: 4577.927257 | AC16: 4577.927257 | AD16: 412.97 | AE16: 4164.957257 | AH16: NORDESTE
B17: 6136.895799 | C17: 6 | E17: Refinaria Capuava (Recap) | F17: Av. Alberto Soares Sampaio, 2122-A Capuava – Mauá - SP | G17: São Paulo | H17: MAUÁ - SP | I17: Natal - RN | J17: =VLOOKUP('Transporte Cap 50-70'!G17,OFFSET('ANP ESTADO'!$A$1,MATCH('Transporte Cap 50-70'!$I$7,'ANP ESTADO'!B:B,0)+MATCH('Transporte Cap 50-70'!$H$10,OFFSET('ANP ESTADO'!$A$1,MATCH('Transporte Cap 50-70'!$I$7,'ANP ESTADO'!B:B,0),0,100000,1),0),2,100000,2),2,FALSE) -> 3.228494765 | K17: =VLOOKUP($H$10,OFFSET('ANP REGIÃO'!$A$9,MATCH('Transporte Cap 50-70'!$I$7,'ANP REGIÃO'!A:A,0),1,10000,10000),MATCH('Transporte Cap 50-70'!AH17,'ANP REGIÃO'!$B$8:$G$8,0),FALSE) -> 3.217674888 | L17: 3228.494765 | M17: =ROUND(((L17/(1-$O$7-$O$8-$O$9))-L17),2) -> 892.11 | N17: 4120.604765 | O17: 2940 | P17: 0 | Q17: 770.76 | S17: 770.76 | T17: 169.19 | U17: 1052.55 | V17: 1992.5 | W17: 322.2 | X17: =EVEN(' CONSUMO DE MAT. B TOTAL'!$P$13*2/28)*W17/' CONSUMO DE MAT. B TOTAL'!$P$13 -> 23.79103467 | Y17: 2016.291035 | Z17: 4120.604765 | AA17: 6136.895799 | AC17: 6136.895799 | AD17: 2016.291035 | AE17: 4120.604765 | AH17: SUDESTE
B18: 5997.124829 | C18: 7 | E18: Refinaria Duque de Caxias (Reduc) | F18: Rodovia Washington Luiz, km 113,7 Campos Elíseos – Duque de Caxias - RJ CEP:25213-005 | G18: Rio de Janeiro | H18: DUQUE DE CAXIAS - RJ | I18: Natal - RN | J18: =VLOOKUP('Transporte Cap 50-70'!G18,OFFSET('ANP ESTADO'!$A$1,MATCH('Transporte Cap 50-70'!$I$7,'ANP ESTADO'!B:B,0)+MATCH('Transporte Cap 50-70'!$H$10,OFFSET('ANP ESTADO'!$A$1,MATCH('Transporte Cap 50-70'!$I$7,'ANP ESTADO'!B:B,0),0,100000,1),0),2,100000,2),2,FALSE) -> 3.290509442 | K18: =VLOOKUP($H$10,OFFSET('ANP REGIÃO'!$A$9,MATCH('Transporte Cap 50-70'!$I$7,'ANP REGIÃO'!A:A,0),1,10000,10000),MATCH('Transporte Cap 50-70'!AH18,'ANP REGIÃO'!$B$8:$G$8,0),FALSE) -> 3.217674888 | L18: 3290.509442 | M18: 909.25 | N18: 4199.759442 | O18: 2578 | P18: 0 | Q18: 679.17 | S18: 679.17 | T18: 149.08 | U18: 927.47 | V18: 1755.72 | W18: 564 | X18: =EVEN(' CONSUMO DE MAT. B TOTAL'!$P$13*2/28)*W18/' CONSUMO DE MAT. B TOTAL'!$P$13 -> 41.64538658 | Y18: 1797.365387 | Z18: 4199.759442 | AA18: 5997.124829 | AC18: 5997.124829 | AD18: 1797.365387 | AE18: 4199.759442 | AH18: SUDESTE
B19: 7030.274019 | C19: 8 | E19: Refinaria Alberto Pasqualini (Refap) | F19: Avenida Getúlio Vargas, 11001 - Bairro Brigadeira Canoas - RS - Brasil CEP:92420-221 | G19: Rio Grande do Sul | H19: CANOAS - RS | I19: Natal - RN | J19: =VLOOKUP('Transporte Cap 50-70'!G19,OFFSET('ANP ESTADO'!$A$1,MATCH('Transporte Cap 50-70'!$I$7,'ANP ESTADO'!B:B,0)+MATCH('Transporte Cap 50-70'!$H$10,OFFSET('ANP ESTADO'!$A$1,MATCH('Transporte Cap 50-70'!$I$7,'ANP ESTADO'!B:B,0),0,100000,1),0),2,100000,2),2,FALSE) -> 3.312477659 | K19: =VLOOKUP($H$10,OFFSET('ANP REGIÃO'!$A$9,MATCH('Transporte Cap 50-70'!$I$7,'ANP REGIÃO'!A:A,0),1,10000,10000),MATCH('Transporte Cap 50-70'!AH19,'ANP REGIÃO'!$B$8:$G$8,0),FALSE) -> 3.295608297 | L19: 3312.477659 | M19: 915.32 | N19: 4227.797659 | O19: 4057 | P19: 0 | Q19: 1053.36 | S19: 1053.36 | T19: 231.22 | U19: 1438.46 | V19: 2723.04 | W19: 1075.8 | X19: =EVEN(' CONSUMO DE MAT. B TOTAL'!$P$13*2/28)*W19/' CONSUMO DE MAT. B TOTAL'!$P$13 -> 79.43635972 | Y19: 2802.47636 | Z19: 4227.797659 | AA19: 7030.274019 | AC19: 7030.274019 | AD19: 2802.47636 | AE19: 4227.797659 | AH19: SUL
B20: 6581.81892 | C20: 9 | E20: Unidade de Industrialização do Xisto (SIX) | F20: Rodovia do Xisto, BR 476, km 153 São Mateus do Sul – PR CEP 83900-000 | G20: Paraná | H20: SÃO MATEUS DO SUL - PR | I20: Natal - RN | J20: =VLOOKUP('Transporte Cap 50-70'!G20,OFFSET('ANP ESTADO'!$A$1,MATCH('Transporte Cap 50-70'!$I$7,'ANP ESTADO'!B:B,0)+MATCH('Transporte Cap 50-70'!$H$10,OFFSET('ANP ESTADO'!$A$1,MATCH('Transporte Cap 50-70'!$I$7,'ANP ESTADO'!B:B,0),0,100000,1),0),2,100000,2),2,FALSE) -> 3.288054706 | K20: =VLOOKUP($H$10,OFFSET('ANP REGIÃO'!$A$9,MATCH('Transporte Cap 50-70'!$I$7,'ANP REGIÃO'!A:A,0),1,10000,10000),MATCH('Transporte Cap 50-70'!AH20,'ANP REGIÃO'!$B$8:$G$8,0),FALSE) -> 3.295608297 | L20: 3288.054706 | M20: 908.57 | N20: 4196.624706 | O20: 3465 | P20: 0 | Q20: 903.58 | S20: 903.58 | T20: 198.34 | U20: 1233.92 | V20: 2335.84 | W20: 668.4 | X20: =EVEN(' CONSUMO DE MAT. B TOTAL'!$P$13*2/28)*W20/' CONSUMO DE MAT. B TOTAL'!$P$13 -> 49.35421346 | Y20: 2385.194213 | Z20: 4196.624706 | AA20: 6581.81892 | AC20: 6581.81892 | AD20: 2385.194213 | AE20: 4196.624706 | AH20: SUL
B21: 5688.51209 | C21: 10 | E21: Refinaria Gabriel Passos (Regap) | F21: Av. Refinaria Gabriel Passos, 690 Distrito Industrial Paulo Camilo Sul Betim - MG CEP:32669-205 | G21: Minas Gerais | H21: BETIM - MG | I21: Natal - RN | J21: =VLOOKUP('Transporte Cap 50-70'!G21,OFFSET('ANP ESTADO'!$A$1,MATCH('Transporte Cap 50-70'!$I$7,'ANP ESTADO'!B:B,0)+MATCH('Transporte Cap 50-70'!$H$10,OFFSET('ANP ESTADO'!$A$1,MATCH('Transporte Cap 50-70'!$I$7,'ANP ESTADO'!B:B,0),0,100000,1),0),2,100000,2),2,FALSE) -> 3.176829491 | K21: =VLOOKUP($H$10,OFFSET('ANP REGIÃO'!$A$9,MATCH('Transporte Cap 50-70'!$I$7,'ANP REGIÃO'!A:A,0),1,10000,10000),MATCH('Transporte Cap 50-70'!AH21,'ANP REGIÃO'!$B$8:$G$8,0),FALSE) -> 3.217674888 | L21: 3176.829491 | M21: 877.83 | N21: 4054.659491 | O21: 2371 | P21: 0 | Q21: 626.8 | S21: 626.8 | T21: 137.59 | U21: 855.95 | V21: 1620.34 | W21: 183 | X21: =EVEN(' CONSUMO DE MAT. B TOTAL'!$P$13*2/28)*W21/' CONSUMO DE MAT. B TOTAL'!$P$13 -> 13.51259884 | Y21: 1633.852599 | Z21: 4054.659491 | AA21: =IF(OR(Y21="",Z21=""),"",Y21+Z21) -> 5688.51209 | AC21: 5688.51209 | AD21: 1633.852599 | AE21: 4054.659491 | AH21: SUDESTE
B22: 6508.724006 | C22: 11 | E22: Refinaria Presidente Getúlio Vargas (Repar) | F22: Rodovia do Xisto, BR 476, km 16 Araucária - PR CEP:83707-440 | G22: Paraná | H22: ARAUCÁRIA - PR | I22: Natal - RN | J22: =VLOOKUP('Transporte Cap 50-70'!G22,OFFSET('ANP ESTADO'!$A$1,MATCH('Transporte Cap 50-70'!$I$7,'ANP ESTADO'!B:B,0)+MATCH('Transporte Cap 50-70'!$H$10,OFFSET('ANP ESTADO'!$A$1,MATCH('Transporte Cap 50-70'!$I$7,'ANP ESTADO'!B:B,0),0,100000,1),0),2,100000,2),2,FALSE) -> 3.288054706 | K22: =VLOOKUP($H$10,OFFSET('ANP REGIÃO'!$A$9,MATCH('Transporte Cap 50-70'!$I$7,'ANP REGIÃO'!A:A,0),1,10000,10000),MATCH('Transporte Cap 50-70'!AH22,'ANP REGIÃO'!$B$8:$G$8,0),FALSE) -> 3.295608297 | L22: 3288.054706 | M22: 908.57 | N22: 4196.624706 | O22: 3361 | P22: 0 | Q22: 877.27 | S22: 877.27 | T22: 192.57 | U22: 1198 | V22: 2267.84 | W22: 599.4 | X22: =EVEN(' CONSUMO DE MAT. B TOTAL'!$P$13*2/28)*W22/' CONSUMO DE MAT. B TOTAL'!$P$13 -> 44.25929914 | Y22: 2312.099299 | Z22: 4196.624706 | AA22: 6508.724006 | AC22: 6508.724006 | AD22: 2312.099299 | AE22: 4196.624706 | AH22: SUL
B23: 6159.765799 | C23: 12 | E23: Refinaria Presidente Bernardes (RPBC) | F23: Av. 9 de abril, 777 - Jardim das Indústrias Cubatão - SP CEP:11505-000 | G23: São Paulo | H23: CUBATÃO - SP | I23: Natal - RN | J23: =VLOOKUP('Transporte Cap 50-70'!G23,OFFSET('ANP ESTADO'!$A$1,MATCH('Transporte Cap 50-70'!$I$7,'ANP ESTADO'!B:B,0)+MATCH('Transporte Cap 50-70'!$H$10,OFFSET('ANP ESTADO'!$A$1,MATCH('Transporte Cap 50-70'!$I$7,'ANP ESTADO'!B:B,0),0,100000,1),0),2,100000,2),2,FALSE) -> 3.228494765 | K23: =VLOOKUP($H$10,OFFSET('ANP REGIÃO'!$A$9,MATCH('Transporte Cap 50-70'!$I$7,'ANP REGIÃO'!A:A,0),1,10000,10000),MATCH('Transporte Cap 50-70'!AH23,'ANP REGIÃO'!$B$8:$G$8,0),FALSE) -> 3.217674888 | L23: 3228.494765 | M23: 892.11 | N23: 4120.604765 | O23: 2975 | P23: 0 | Q23: 779.61 | S23: 779.61 | T23: 171.13 | U23: 1064.63 | V23: 2015.37 | W23: 322.2 | X23: =EVEN(' CONSUMO DE MAT. B TOTAL'!$P$13*2/28)*W23/' CONSUMO DE MAT. B TOTAL'!$P$13 -> 23.79103467 | Y23: 2039.161035 | Z23: 4120.604765 | AA23: 6159.765799 | AC23: 6159.765799 | AD23: 2039.161035 | AE23: 4120.604765 | AH23: SUDESTE
B24: 6146.740949 | C24: 13 | E24: Refinaria de Paulínia (Replan) | F24: Rodovia SP 332 - Km. 130 Bonfim - Paulínia – SP CEP:13140-000 | G24: São Paulo | H24: PAULÍNIA - SP | I24: Natal - RN | J24: =VLOOKUP('Transporte Cap 50-70'!G24,OFFSET('ANP ESTADO'!$A$1,MATCH('Transporte Cap 50-70'!$I$7,'ANP ESTADO'!B:B,0)+MATCH('Transporte Cap 50-70'!$H$10,OFFSET('ANP ESTADO'!$A$1,MATCH('Transporte Cap 50-70'!$I$7,'ANP ESTADO'!B:B,0),0,100000,1),0),2,100000,2),2,FALSE) -> 3.228494765 | K24: =VLOOKUP($H$10,OFFSET('ANP REGIÃO'!$A$9,MATCH('Transporte Cap 50-70'!$I$7,'ANP REGIÃO'!A:A,0),1,10000,10000),MATCH('Transporte Cap 50-70'!AH24,'ANP REGIÃO'!$B$8:$G$8,0),FALSE) -> 3.217674888 | L24: 3228.494765 | M24: 892.11 | N24: 4120.604765 | O24: 2941 | P24: 0 | Q24: 771.01 | S24: 771.01 | T24: 169.24 | U24: 1052.88 | V24: 1993.13 | W24: 447 | X24: =EVEN(' CONSUMO DE MAT. B TOTAL'!$P$13*2/28)*W24/' CONSUMO DE MAT. B TOTAL'!$P$13 -> 33.00618404 | Y24: 2026.136184 | Z24: 4120.604765 | AA24: 6146.740949 | AC24: 6146.740949 | AD24: 2026.136184 | AE24: 4120.604765 | AH24: SUDESTE
B25: 6164.872656 | C25: 14 | E25: Refinaria Henrique Lage (Revap) | F25: Rodovia Presidente Dutra, KM 143, S/N Bairro Jardim Diamante - São José dos Campos – SP CEP:12223-900 | G25: São Paulo | H25: SÃO JOSÉ DOS CAMPOS - SP | I25: Natal - RN | J25: =VLOOKUP('Transporte Cap 50-70'!G25,OFFSET('ANP ESTADO'!$A$1,MATCH('Transporte Cap 50-70'!$I$7,'ANP ESTADO'!B:B,0)+MATCH('Transporte Cap 50-70'!$H$10,OFFSET('ANP ESTADO'!$A$1,MATCH('Transporte Cap 50-70'!$I$7,'ANP ESTADO'!B:B,0),0,100000,1),0),2,100000,2),2,FALSE) -> 3.228494765 | K25: =VLOOKUP($H$10,OFFSET('ANP REGIÃO'!$A$9,MATCH('Transporte Cap 50-70'!$I$7,'ANP REGIÃO'!A:A,0),1,10000,10000),MATCH('Transporte Cap 50-70'!AH25,'ANP REGIÃO'!$B$8:$G$8,0),FALSE) -> 3.217674888 | L25: 3228.494765 | M25: 892.11 | N25: 4120.604765 | O25: 2946 | P25: 0 | Q25: 772.28 | S25: 772.28 | T25: 169.52 | U25: 1054.62 | V25: 1996.42 | W25: 648 | X25: =EVEN(' CONSUMO DE MAT. B TOTAL'!$P$13*2/28)*W25/' CONSUMO DE MAT. B TOTAL'!$P$13 -> 47.84789096 | Y25: 2044.267891 | Z25: 4120.604765 | AA25: 6164.872656 | AC25: 6164.872656 | AD25: 2044.267891 | AE25: 4120.604765 | AH25: SUDESTE
D35: Acre
D36: Alagoas
D37: Amapá
D38: Amazonas
D39: Bahia
D40: Ceará
D41: Distrito Federal
D42: Espírito Santo
D43: Goiás
D44: Maranhão
D45: Mato Grosso
D46: Mato Grosso do Sul
D47: Minas Gerais
D48: Pará
D49: Paraíba
D50: Paraná
D51: Pernambuco
D52: Piauí
D53: Rio de Janeiro
D54: Rio Grande do Norte
D55: Rio Grande do Sul
D56: Rondônia
D57: Roraima
D58: Santa Catarina
D59: São Paulo
D60: Sergipe
D61: Tocantins
D65: ASFALTOS DILUÍDOS CM-30
D66: ASFALTOS DILUÍDOS CM-70
D67: ASFALTOS DILUÍDOS CR-250
D68: ASFALTOS DILUÍDOS CR-70
D69: CAP MODIFICADO POR BORRACHA DE PNEU AB22
D70: CAP MODIFICADO POR BORRACHA DE PNEU AB8
D71: CAP MODIFICADO POR POLÍMERO 55-75-E
D72: CAP MODIFICADO POR POLÍMERO 60-85-E
D73: CAP MODIFICADO POR POLÍMERO 65-90-E
D74: CIMENTOS ASFÁLTICOS CAP-150-200
D75: CIMENTOS ASFÁLTICOS CAP-30-45
D76: CIMENTOS ASFÁLTICOS CAP-50-70
D77: CIMENTOS ASFÁLTICOS CAP-85-100
D78: EMULSÃO ASFÁLTICA CATIÔNICA DE RUPTURA CONTROLADA PARA SERVIÇO DE LAMA ASFÁLTICA
D79: EMULSÃO ASFÁLTICA DE RUPTURA LENTA CATIÔNICA PARA SERVIÇO DE LAMA ASFÁLTICA
D80: EMULSÃO ASFÁLTICA DE RUPTURA LENTA DE CARGA NEUTRA PARA SERVIÇO DE LAMA ASFÁLTICA
D81: EMULSÃO ASFÁLTICA PARA SERVIÇO DE IMPRIMAÇÃO
D82: EMULSÕES ASF. MOD. POR POLÍMEROS RC1C-E
D83: EMULSÕES ASF. MOD. POR POLÍMEROS RL1C-E
D84: EMULSÕES ASF. MOD. POR POLÍMEROS RM1C-E
D85: EMULSÕES ASF. MOD. POR POLÍMEROS RR1C-E
D86: EMULSÕES ASF. MOD. POR POLÍMEROS RR2C-E
D87: EMULSÕES ASFÁLTICAS RL-1C
D88: EMULSÕES ASFÁLTICAS RM-1C
D89: EMULSÕES ASFÁLTICAS RM-2C
D90: EMULSÕES ASFÁLTICAS RR-1C
D91: EMULSÕES ASFÁLTICAS RR-2C

Sheet Transporte EAI
C2: MEMÓRIA DE CÁLCULO
C7: REAJUSTE | F7: TIPOLOGIA DO MATERIAL | I7: EMULSÃO ASFÁLTICA PARA SERVIÇO DE IMPRIMAÇÃO | M7: IMPOSTOS | N7: COFINS | O7: 0.0065 | P7: 0.0065
G8: ÍNDICE DE PAVIMENTAÇÃO DNIT | H8: 2014-07-01 | I8: ÍNDICE INICIAL | J8: 270.237 | N8: PIS | O8: 0.03 | P8: 0.03 | T8: LEGENDA | AC8: As empresas tributadas pelo Lucro Presumido pagam 0,65% de PIS e 3% de COFINS
H9: ='Transporte Cap 50-70'!H9 -> 2024-06-01 | I9: ÍNDICE FINAL | J9: ='Transporte Cap 50-70'!J9 -> 572.847 | N9: ICMS | O9: 0.18 | P9: 0.18 | Q9: =1-(O9/1) -> 0.82 | R9: =1-(P9/1) -> 0.82 | S9: =1-(Q9/1) -> 0.18 | T9: ENTRADA DE DADOS | AC9: As empresas tributadas pelo Lucro Real pagam 1,65% de PIS e 7,60% de COFINS
G10: Data ANP | H10: ='Transporte Cap 50-70'!H10 -> 2024-06-01
C11: DATA-BASE | D11: PRODUTOS | E11: LOCALIDADES | J11: CUSTO ANP (R$/Kg) | L11: CUSTO ANP | M11: IMPOSTOS DO PRODUTO | N11: CUSTO DO PRODUTO COM IMPOSTOS | O11: DMT's | P11: DMT'S FLUVIAL | Q11: CUSTO DO TRANSPORTE RODOVIA PAVIMENTADA | R11: CUSTO DO TRANSPORTE FLUVIAL | S11: CUSTO DO TRANSPORTE TOTAL | T11: ICMS | U11: ATUALIZAÇÃO DO CUSTO DE TRANSPORTE | V11: CUSTO DO TRANSPORTE RODOVIA PAVIMENTADA COM IMPOSTOS E ATUALIZAÇÃO MONETÁRIA | W11: PEDÁGIO | Y11: TOTAL TRANSPORTE | Z11: AQUISIÇÃO DO PRODUTO | AA11: TOTAL GERAL ( TRANSP + AQUISIÇÃO) | AC11: 1 | AD11: 2 | AE11: 3
C12: =H9 -> 2024-06-01 | E12: REFINARIAS | F12: ENDEREÇO | G12: ESTADO | H12: CIDADE | I12: DESTINO | J12: ESTADO | K12: REGIÃO | L12: R$/t | M12: R$/t | N12: R$/t | O12: KM | P12: KM | Q12: R$/t | R12: R$/t | S12: R$/t | T12: R$/t | U12: R$/t | V12: R$/t | W12: CUSTO | X12: R$/t | Y12: R$/t | Z12: R$/t | AA12: R$/t | AC12: TOTAL GERAL ( TRANSP + AQUISIÇÃO) | AD12: TOTAL TRANSPORTE | AE12: AQUISIÇÃO DO PRODUTO
B13: =AA13 -> 5071.40176 | C13: 1 | D13: =I7 -> EMULSÃO ASFÁLTICA PARA SERVIÇO DE IMPRIMAÇÃO | E13: 'CENTRO OESTE ASFALTOS LTDA. | F13: SETOR DE INFLAMÁVEIS, S/N TRECHO 02 - LOTE 1.100 - GUARÁ - CEP:71225-000 | G13: Distrito Federal | H13: BRASÍLIA - DF | I13: Natal - RN | J13: =VLOOKUP(G13,OFFSET('ANP ESTADO'!$A$1,MATCH($I$7,'ANP ESTADO'!B:B,0)+MATCH($H$10,OFFSET('ANP ESTADO'!$A$1,MATCH($I$7,'ANP ESTADO'!B:B,0),0,100000,1),0),2,100000,2),2,FALSE) -> - | K13: =VLOOKUP($H$10,OFFSET('ANP REGIÃO'!$A$9,MATCH('Transporte EAI'!$I$7,'ANP REGIÃO'!A:A,0),1,10000,10000),MATCH('Transporte EAI'!AH13,'ANP REGIÃO'!$B$8:$G$8,0),FALSE) -> 2.680425729 | L13: =IF(AND(J13="-",K13="-"),"",IF(AND(J13<>0,K13="-"),J13*1000,IF(AND(J13="-",K13<>0),K13*1000,IF(AND(J13<>0,K13<>0),J13*1000,"")))) -> 2680.425729 | M13: =ROUND(((L13/(1-$O$7-$O$8-$O$9))-L13),2) -> 740.67 | N13: =L13+M13 -> 3421.095729 | O13: 2405 | P13: 0 | Q13: =ROUND((26.939+0.253*O13),2) -> 635.4 | S13: =Q13+R13 -> 635.4 | T13: =TRUNC(S13*($O$9/(1-$O$9)),2) -> 139.47 | U13: =TRUNC(IF($J$8="","",(($J$9-$J$8)/$J$8)*(S13+T13)),2) -> 867.69 | V13: =S13+T13+U13 -> 1642.56 | W13: 73.2 | X13: =EVEN(' CONSUMO DE MAT. B TOTAL'!$P$11*2/28)*W13/' CONSUMO DE MAT. B TOTAL'!$P$11 -> 7.746031746 | Y13: =IF(AND(Q13="",T13=""),"",V13+X13) -> 1650.306032 | Z13: =IF(OR(L13="",M13=""),"",L13+M13) -> 3421.095729 | AA13: =IF(OR(Y13="",Z13=""),"",Y13+Z13) -> 5071.40176 | AC13: =AA13 -> 5071.40176 | AD13: =Y13 -> 1650.306032 | AE13: =Z13 -> 3421.095729 | AH13: =IF(OR(G13=$D$58,G13=$D$59,G13=$D$61,G13=$D$67,G13=$D$51,G13=$D$47,G13=$D$43,G13=$D$56,G13=$D$46),"NORDESTE",IF(OR(G13=$D$42,G13=$D$44,G13=$D$45,G13=$D$55,G13=$D$63,G13=$D$64,G13=$D$68),"NORTE",IF(OR(G13=$D$48,G13=$D$50,G13=$D$52,G13=$D$53),"CENTRO-OESTE",IF(OR(G13=$D$66,G13=$D$60,G13=$D$54,G13=$D$49),"SUDESTE",IF(OR(G13=$D$65,G13=$D$57,G13=$D$62),"SUL",""))))) -> CENTRO-OESTE
B14: =AA14 -> 4742.417056 | C14: 2 | E14: STRATURA ASFALTOS S/A | F14: AVENIDA PRESIDENTE WILSON, 08 - JUNDIAÍ - CEP:75115-100 | G14: Goiás | H14: ANÁPOLIS - GO | I14: Natal - RN | J14: =VLOOKUP(G14,OFFSET('ANP ESTADO'!$A$1,MATCH($I$7,'ANP ESTADO'!B:B,0)+MATCH($H$10,OFFSET('ANP ESTADO'!$A$1,MATCH($I$7,'ANP ESTADO'!B:B,0),0,100000,1),0),2,100000,2),2,FALSE) -> 2.342870072 | K14: =VLOOKUP($H$10,OFFSET('ANP REGIÃO'!$A$9,MATCH('Transporte EAI'!$I$7,'ANP REGIÃO'!A:A,0),1,10000,10000),MATCH('Transporte EAI'!AH14,'ANP REGIÃO'!$B$8:$G$8,0),FALSE) -> 2.680425729 | L14: =IF(AND(J14="-",K14="-"),"",IF(AND(J14<>0,K14="-"),J14*1000,IF(AND(J14="-",K14<>0),K14*1000,IF(AND(J14<>0,K14<>0),J14*1000,"")))) -> 2342.870072 | M14: =ROUND(((L14/(1-$O$7-$O$8-$O$9))-L14),2) -> 647.39 | N14: =L14+M14 -> 2990.260072 | O14: 2554 | P14: 0 | Q14: =ROUND((26.939+0.253*O14),2) -> 673.1 | S14: =Q14+R14 -> 673.1 | T14: =TRUNC(S14*($O$9/(1-$O$9)),2) -> 147.75 | U14: =TRUNC(IF($J$8="","",(($J$9-$J$8)/$J$8)*(S14+T14)),2) -> 919.18 | V14: =S14+T14+U14 -> 1740.03 | W14: 114.6 | X14: =EVEN(' CONSUMO DE MAT. B TOTAL'!$P$11*2/28)*W14/' CONSUMO DE MAT. B TOTAL'!$P$11 -> 12.12698413 | Y14: 1752.156984 | Z14: 2990.260072 | AA14: =IF(OR(Y14="",Z14=""),"",Y14+Z14) -> 4742.417056 | AC14: =AA14 -> 4742.417056 | AD14: =Y14 -> 1752.156984 | AE14: 2990.260072 | AH14: =IF(OR(G14=$D$58,G14=$D$59,G14=$D$61,G14=$D$67,G14=$D$51,G14=$D$47,G14=$D$43,G14=$D$56,G14=$D$46),"NORDESTE",IF(OR(G14=$D$42,G14=$D$44,G14=$D$45,G14=$D$55,G14=$D$63,G14=$D$64,G14=$D$68),"NORTE",IF(OR(G14=$D$48,G14=$D$50,G14=$D$52,G14=$D$53),"CENTRO-OESTE",IF(OR(G14=$D$66,G14=$D$60,G14=$D$54,G14=$D$49),"SUDESTE",IF(OR(G14=$D$65,G14=$D$57,G14=$D$62),"SUL",""))))) -> CENTRO-OESTE
B15: 4790.145152 | C15: 3 | E15: DISTRIBUIDORA BRASILEIRA DE ASFALTO SA - DISBRAL | F15: VIA PRIMARIA 8, S/N QD-18, MODS. 24/47 - DAIAG - CEP:74980-970 | G15: Goiás | H15: APARECIDA DE GOIANIA - GO | I15: Natal - RN | J15: =VLOOKUP(G15,OFFSET('ANP ESTADO'!$A$1,MATCH($I$7,'ANP ESTADO'!B:B,0)+MATCH($H$10,OFFSET('ANP ESTADO'!$A$1,MATCH($I$7,'ANP ESTADO'!B:B,0),0,100000,1),0),2,100000,2),2,FALSE) -> 2.342870072 | K15: =VLOOKUP($H$10,OFFSET('ANP REGIÃO'!$A$9,MATCH('Transporte EAI'!$I$7,'ANP REGIÃO'!A:A,0),1,10000,10000),MATCH('Transporte EAI'!AH15,'ANP REGIÃO'!$B$8:$G$8,0),FALSE) -> 2.680425729 | L15: 2342.870072 | M15: 647.39 | N15: 2990.260072 | O15: 2622 | P15: 0 | Q15: 690.31 | S15: 690.31 | T15: 151.53 | U15: 942.68 | V15: 1784.52 | W15: 145.2 | X15: =EVEN(' CONSUMO DE MAT. B TOTAL'!$P$11*2/28)*W15/' CONSUMO DE MAT. B TOTAL'!$P$11 -> 15.36507937 | Y15: 1799.885079 | Z15: 2990.260072 | AA15: 4790.145152 | AC15: 4790.145152 | AD15: 1799.885079 | AE15: 2990.260072 | AH15: CENTRO-OESTE
A16: 2403 | B16: 4790.157056 | C16: 4 | E16: INDÚSTRIA NACIONAL DE ASFALTOS LTDA. | F16: VIA PRIMEIRA E SEGUNDA 3, S/N.º LOTES 01 A 10 - DISTRITO AGROINDUSTRIAL - CEP:75370-000 | G16: Goiás | H16: GOIANIRA - GO | I16: Natal - RN | J16: =VLOOKUP(G16,OFFSET('ANP ESTADO'!$A$1,MATCH($I$7,'ANP ESTADO'!B:B,0)+MATCH($H$10,OFFSET('ANP ESTADO'!$A$1,MATCH($I$7,'ANP ESTADO'!B:B,0),0,100000,1),0),2,100000,2),2,FALSE) -> 2.342870072 | K16: =VLOOKUP($H$10,OFFSET('ANP REGIÃO'!$A$9,MATCH('Transporte EAI'!$I$7,'ANP REGIÃO'!A:A,0),1,10000,10000),MATCH('Transporte EAI'!AH16,'ANP REGIÃO'!$B$8:$G$8,0),FALSE) -> 2.680425729 | L16: 2342.870072 | M16: 647.39 | N16: 2990.260072 | O16: 2627 | P16: 0 | Q16: 691.57 | S16: 691.57 | T16: 151.8 | U16: 944.4 | V16: 1787.77 | W16: 114.6 | X16: =EVEN(' CONSUMO DE MAT. B TOTAL'!$P$11*2/28)*W16/' CONSUMO DE MAT. B TOTAL'!$P$11 -> 12.12698413 | Y16: 1799.896984 | Z16: 2990.260072 | AA16: 4790.157056 | AC16: 4790.157056 | AD16: 1799.896984 | AE16: 2990.260072 | AH16: CENTRO-OESTE
B17: 4640.064289 | C17: 5 | E17: STRATURA ASFALTOS S/A | F17: RUA VICTOR RODRIGUES RESENDE, 333 - DISTRITO IND. DE UBERLÂNDIA - CEP:38405-440 | G17: Minas Gerais | H17: UBERLANDIA - MG | I17: Natal - RN | J17: =VLOOKUP(G17,OFFSET('ANP ESTADO'!$A$1,MATCH($I$7,'ANP ESTADO'!B:B,0)+MATCH($H$10,OFFSET('ANP ESTADO'!$A$1,MATCH($I$7,'ANP ESTADO'!B:B,0),0,100000,1),0),2,100000,2),2,FALSE) -> 2.235142226 | K17: =VLOOKUP($H$10,OFFSET('ANP REGIÃO'!$A$9,MATCH('Transporte EAI'!$I$7,'ANP REGIÃO'!A:A,0),1,10000,10000),MATCH('Transporte EAI'!AH17,'ANP REGIÃO'!$B$8:$G$8,0),FALSE) -> 2.329044365 | L17: 2235.142226 | M17: 617.62 | N17: 2852.762226 | O17: 2572 | P17: 0 | Q17: 677.66 | S17: 677.66 | T17: 148.75 | U17: 925.4 | V17: 1751.81 | W17: 335.4 | X17: =EVEN(' CONSUMO DE MAT. B TOTAL'!$P$11*2/28)*W17/' CONSUMO DE MAT. B TOTAL'!$P$11 -> 35.49206349 | Y17: 1787.302063 | Z17: 2852.762226 | AA17: 4640.064289 | AC17: 4640.064289 | AD17: 1787.302063 | AE17: 2852.762226 | AH17: SUDESTE
B18: 4641.994289 | C18: 6 | E18: BETUNEL INDÚSTRIA E COMÉRCIO LTDA. | F18: RUA VICTOR RODRIGUES DE REZENDE, 185 - DISTRITO INDUSTRIAL - CEP:38402-334 | G18: Minas Gerais | H18: UBERLANDIA - MG | I18: Natal - RN | J18: =VLOOKUP(G18,OFFSET('ANP ESTADO'!$A$1,MATCH($I$7,'ANP ESTADO'!B:B,0)+MATCH($H$10,OFFSET('ANP ESTADO'!$A$1,MATCH($I$7,'ANP ESTADO'!B:B,0),0,100000,1),0),2,100000,2),2,FALSE) -> 2.235142226 | K18: =VLOOKUP($H$10,OFFSET('ANP REGIÃO'!$A$9,MATCH('Transporte EAI'!$I$7,'ANP REGIÃO'!A:A,0),1,10000,10000),MATCH('Transporte EAI'!AH18,'ANP REGIÃO'!$B$8:$G$8,0),FALSE) -> 2.329044365 | L18: 2235.142226 | M18: 617.62 | N18: 2852.762226 | O18: 2575 | P18: 0 | Q18: 678.41 | S18: 678.41 | T18: 148.91 | U18: 926.42 | V18: 1753.74 | W18: 335.4 | X18: =EVEN(' CONSUMO DE MAT. B TOTAL'!$P$11*2/28)*W18/' CONSUMO DE MAT. B TOTAL'!$P$11 -> 35.49206349 | Y18: 1789.232063 | Z18: 2852.762226 | AA18: 4641.994289 | AC18: 4641.994289 | AD18: 1789.232063 | AE18: 2852.762226 | AH18: SUDESTE
B19: 5519.085525 | C19: 7 | E19: ARAPETRO DISTRIBUIDORA DE PETRÓLEO LTDA. | F19: RUA 04, S/N° LOTES 17 A 20. - DISTRITO INDUSTRIAL 1/8 - CEP:78600-000 | G19: Mato Grosso | H19: BARRA DO GARCAS - MT | I19: Natal - RN | J19: =VLOOKUP(G19,OFFSET('ANP ESTADO'!$A$1,MATCH($I$7,'ANP ESTADO'!B:B,0)+MATCH($H$10,OFFSET('ANP ESTADO'!$A$1,MATCH($I$7,'ANP ESTADO'!B:B,0),0,100000,1),0),2,100000,2),2,FALSE) -> 2.735658541 | K19: =VLOOKUP($H$10,OFFSET('ANP REGIÃO'!$A$9,MATCH('Transporte EAI'!$I$7,'ANP REGIÃO'!A:A,0),1,10000,10000),MATCH('Transporte EAI'!AH19,'ANP REGIÃO'!$B$8:$G$8,0),FALSE) -> 2.680425729 | L19: =IF(AND(J19="-",K19="-"),"",IF(AND(J19<>0,K19="-"),J19*1000,IF(AND(J19="-",K19<>0),K19*1000,IF(AND(J19<>0,K19<>0),J19*1000,"")))) -> 2735.658541 | M19: =ROUND(((L19/(1-$O$7-$O$8-$O$9))-L19),2) -> 755.93 | N19: 3491.588541 | O19: 2975 | P19: 0 | Q19: 779.61 | S19: 779.61 | T19: 171.13 | U19: 1064.63 | V19: 2015.37 | W19: 114.6 | X19: =EVEN(' CONSUMO DE MAT. B TOTAL'!$P$11*2/28)*W19/' CONSUMO DE MAT. B TOTAL'!$P$11 -> 12.12698413 | Y19: 2027.496984 | Z19: 3491.588541 | AA19: 5519.085525 | AH19: CENTRO-OESTE
B20: 4532.098839 | C20: 8 | E20: DISTRIBUIDORA BRASILEIRA DE ASFALTO SA - DISBRAL | F20: SÃO JUDAS TADEU, 288 - DISTRITO INDUSTRIAL - CEP:32450-000 | G20: Minas Gerais | H20: SARZEDO - MG | I20: Natal - RN | J20: =VLOOKUP(G20,OFFSET('ANP ESTADO'!$A$1,MATCH($I$7,'ANP ESTADO'!B:B,0)+MATCH($H$10,OFFSET('ANP ESTADO'!$A$1,MATCH($I$7,'ANP ESTADO'!B:B,0),0,100000,1),0),2,100000,2),2,FALSE) -> 2.235142226 | K20: =VLOOKUP($H$10,OFFSET('ANP REGIÃO'!$A$9,MATCH('Transporte EAI'!$I$7,'ANP REGIÃO'!A:A,0),1,10000,10000),MATCH('Transporte EAI'!AH20,'ANP REGIÃO'!$B$8:$G$8,0),FALSE) -> 2.329044365 | L20: 2235.142226 | M20: 617.62 | N20: 2852.762226 | O20: 2379 | P20: 0 | Q20: 628.83 | S20: 628.83 | T20: 138.03 | U20: 858.72 | V20: 1625.58 | W20: 508 | X20: =EVEN(' CONSUMO DE MAT. B TOTAL'!$P$11*2/28)*W20/' CONSUMO DE MAT. B TOTAL'!$P$11 -> 53.75661376 | Y20: 1679.336614 | Z20: 2852.762226 | AA20: 4532.098839 | AH20: SUDESTE
B21: 5018.191265 | C21: 9 | E21: 'INDÚSTRIA NACIONAL DE ASFALTOS LTDA. | F21: INDÚSTRIA NACIONAL DE ASFALTOS LTDA - CEP:77053-080 | G21: Tocantins | H21: PALMAS - TO | I21: Natal - RN | J21: =VLOOKUP(G21,OFFSET('ANP ESTADO'!$A$1,MATCH($I$7,'ANP ESTADO'!B:B,0)+MATCH($H$10,OFFSET('ANP ESTADO'!$A$1,MATCH($I$7,'ANP ESTADO'!B:B,0),0,100000,1),0),2,100000,2),2,FALSE) -> - | K21: =VLOOKUP($H$10,OFFSET('ANP REGIÃO'!$A$9,MATCH('Transporte EAI'!$I$7,'ANP REGIÃO'!A:A,0),1,10000,10000),MATCH('Transporte EAI'!AH21,'ANP REGIÃO'!$B$8:$G$8,0),FALSE) -> 2.827221265 | L21: 2827.221265 | M21: 781.23 | N21: 3608.451265 | O21: 2049 | P21: 0 | Q21: 545.34 | S21: 545.34 | T21: 119.7 | U21: 744.7 | V21: 1409.74 | W21: 0 | X21: =EVEN(' CONSUMO DE MAT. B TOTAL'!$P$11*2/28)*W21/' CONSUMO DE MAT. B TOTAL'!$P$11 -> 0 | Y21: 1409.74 | Z21: 3608.451265 | AA21: 5018.191265 | AH21: NORTE
B22: 5175.526165 | C22: 10 | E22: 'NTA - NOVAS TÉCNICAS DE ASFALTOS S/A | F22: RUA SOFIA ATAURI FADIN, 150 SALA A - B. SANTA TEREZINHA - CEP:13140-000 | G22: São Paulo | H22: PAULINIA - SP | I22: Natal - RN | J22: =VLOOKUP(G22,OFFSET('ANP ESTADO'!$A$1,MATCH($I$7,'ANP ESTADO'!B:B,0)+MATCH($H$10,OFFSET('ANP ESTADO'!$A$1,MATCH($I$7,'ANP ESTADO'!B:B,0),0,100000,1),0),2,100000,2),2,FALSE) -> 2.456344578 | K22: =VLOOKUP($H$10,OFFSET('ANP REGIÃO'!$A$9,MATCH('Transporte EAI'!$I$7,'ANP REGIÃO'!A:A,0),1,10000,10000),MATCH('Transporte EAI'!AH22,'ANP REGIÃO'!$B$8:$G$8,0),FALSE) -> 2.329044365 | L22: 2456.344578 | M22: =ROUND(((L22/(1-$O$7-$O$8-$O$9))-L22),2) -> 678.75 | N22: 3135.094578 | O22: 2941 | P22: 0 | Q22: 771.01 | S22: 771.01 | T22: 169.24 | U22: 1052.88 | V22: 1993.13 | W22: 447 | X22: =EVEN(' CONSUMO DE MAT. B TOTAL'!$P$11*2/28)*W22/' CONSUMO DE MAT. B TOTAL'!$P$11 -> 47.3015873 | Y22: 2040.431587 | Z22: 3135.094578 | AA22: 5175.526165 | AC22: 5175.526165 | AD22: 2040.431587 | AE22: 3135.094578 | AH22: SUDESTE
B23: 5140.218546 | C23: 11 | E23: COMPANHIA BRASILEIRA DE ASFALTOS DA AMAZÔNIA - IMPORTAÇÃO E EXPORTAÇÃO | F23: Avenida Doutor Olindo Dártora 2451, Galpão 02, Morro Grande - CEP:07726-555 | G23: São Paulo | H23: CAIEIRAS - SP | I23: Natal - RN | J23: =VLOOKUP(G23,OFFSET('ANP ESTADO'!$A$1,MATCH($I$7,'ANP ESTADO'!B:B,0)+MATCH($H$10,OFFSET('ANP ESTADO'!$A$1,MATCH($I$7,'ANP ESTADO'!B:B,0),0,100000,1),0),2,100000,2),2,FALSE) -> 2.456344578 | K23: =VLOOKUP($H$10,OFFSET('ANP REGIÃO'!$A$9,MATCH('Transporte EAI'!$I$7,'ANP REGIÃO'!A:A,0),1,10000,10000),MATCH('Transporte EAI'!AH23,'ANP REGIÃO'!$B$8:$G$8,0),FALSE) -> 2.329044365 | L23: 2456.344578 | M23: =ROUND(((L23/(1-$O$7-$O$8-$O$9))-L23),2) -> 678.75 | N23: 3135.094578 | O23: 2910 | P23: 0 | Q23: 763.17 | S23: 763.17 | T23: 167.52 | U23: 1042.18 | V23: 1972.87 | W23: 304.8 | X23: =EVEN(' CONSUMO DE MAT. B TOTAL'!$P$11*2/28)*W23/' CONSUMO DE MAT. B TOTAL'!$P$11 -> 32.25396825 | Y23: 2005.123968 | Z23: 3135.094578 | AA23: 5140.218546 | AH23: SUDESTE
B24: 5804.287049 | C24: 12 | E24: BETUNEL INDÚSTRIA E COMÉRCIO LTDA. | F24: R 16 , 82, Vila Nova Campo Grande - CEP:79.103-834 | G24: Mato Grosso do Sul | H24: CAMPO GRANDE - MS | I24: Natal - RN | J24: =VLOOKUP(G24,OFFSET('ANP ESTADO'!$A$1,MATCH($I$7,'ANP ESTADO'!B:B,0)+MATCH($H$10,OFFSET('ANP ESTADO'!$A$1,MATCH($I$7,'ANP ESTADO'!B:B,0),0,100000,1),0),2,100000,2),2,FALSE) -> 2.699964985 | K24: =VLOOKUP($H$10,OFFSET('ANP REGIÃO'!$A$9,MATCH('Transporte EAI'!$I$7,'ANP REGIÃO'!A:A,0),1,10000,10000),MATCH('Transporte EAI'!AH24,'ANP REGIÃO'!$B$8:$G$8,0),FALSE) -> 2.680425729 | L24: 2699.964985 | M24: =ROUND(((L24/(1-$O$7-$O$8-$O$9))-L24),2) -> 746.07 | N24: 3446.034985 | O24: 3445 | P24: 0 | Q24: 898.52 | S24: 898.52 | T24: 197.23 | U24: 1227.01 | V24: 2322.76 | W24: 335.4 | X24: =EVEN(' CONSUMO DE MAT. B TOTAL'!$P$11*2/28)*W24/' CONSUMO DE MAT. B TOTAL'!$P$11 -> 35.49206349 | Y24: 2358.252063 | Z24: 3446.034985 | AA24: 5804.287049 | AH24: CENTRO-OESTE
B25: 5874.913144 | C25: 13 | E25: CENTRO OESTE ASFALTOS LTDA. | F25: RUA N, S/N.º LOTES 39/43 E LOTES 129/133 - DISTRITO INDUSTRIAL - CEP:78098-400 | G25: Mato Grosso | H25: CUIABA - MT | I25: Natal - RN | J25: =VLOOKUP(G25,OFFSET('ANP ESTADO'!$A$1,MATCH($I$7,'ANP ESTADO'!B:B,0)+MATCH($H$10,OFFSET('ANP ESTADO'!$A$1,MATCH($I$7,'ANP ESTADO'!B:B,0),0,100000,1),0),2,100000,2),2,FALSE) -> 2.735658541 | K25: =VLOOKUP($H$10,OFFSET('ANP REGIÃO'!$A$9,MATCH('Transporte EAI'!$I$7,'ANP REGIÃO'!A:A,0),1,10000,10000),MATCH('Transporte EAI'!AH25,'ANP REGIÃO'!$B$8:$G$8,0),FALSE) -> 2.680425729 | L25: 2735.658541 | M25: 755.93 | N25: 3491.588541 | O25: 3496 | P25: 0 | Q25: 911.43 | S25: 911.43 | T25: 200.07 | U25: 1244.65 | V25: 2356.15 | W25: 256.8 | X25: =EVEN(' CONSUMO DE MAT. B TOTAL'!$P$11*2/28)*W25/' CONSUMO DE MAT. B TOTAL'!$P$11 -> 27.17460317 | Y25: 2383.324603 | Z25: 3491.588541 | AA25: 5874.913144 | AH25: CENTRO-OESTE
B26: 5869.653144 | C26: 14 | E26: BETUNEL INDÚSTRIA E COMÉRCIO LTDA. | F26: RUA N ESQUINA COM RUA X, S/N QD. IND. 7 L 01/08 - DIST. IND. - CEP:78015-285 | G26: Mato Grosso | H26: CUIABA - MT | I26: Natal - RN | J26: =VLOOKUP(G26,OFFSET('ANP ESTADO'!$A$1,MATCH($I$7,'ANP ESTADO'!B:B,0)+MATCH($H$10,OFFSET('ANP ESTADO'!$A$1,MATCH($I$7,'ANP ESTADO'!B:B,0),0,100000,1),0),2,100000,2),2,FALSE) -> 2.735658541 | K26: =VLOOKUP($H$10,OFFSET('ANP REGIÃO'!$A$9,MATCH('Transporte EAI'!$I$7,'ANP REGIÃO'!A:A,0),1,10000,10000),MATCH('Transporte EAI'!AH26,'ANP REGIÃO'!$B$8:$G$8,0),FALSE) -> 2.680425729 | L26: 2735.658541 | M26: 755.93 | N26: 3491.588541 | O26: 3488 | P26: 0 | Q26: 909.4 | S26: 909.4 | T26: 199.62 | U26: 1241.87 | V26: 2350.89 | W26: 256.8 | X26: =EVEN(' CONSUMO DE MAT. B TOTAL'!$P$11*2/28)*W26/' CONSUMO DE MAT. B TOTAL'!$P$11 -> 27.17460317 | Y26: 2378.064603 | Z26: 3491.588541 | AA26: 5869.653144 | AH26: CENTRO-OESTE
B27: 5874.913144 | C27: 15 | E27: EMAM - EMULSÕES E TRANSPORTES LTDA. | F27: RODOVIA DOS IMIGRANTES, S/Nº KM 8,6 - - CEP:60035-351 | G27: Mato Grosso | H27: VARZEA GRANDE - MT | I27: Natal - RN | J27: =VLOOKUP(G27,OFFSET('ANP ESTADO'!$A$1,MATCH($I$7,'ANP ESTADO'!B:B,0)+MATCH($H$10,OFFSET('ANP ESTADO'!$A$1,MATCH($I$7,'ANP ESTADO'!B:B,0),0,100000,1),0),2,100000,2),2,FALSE) -> 2.735658541 | K27: =VLOOKUP($H$10,OFFSET('ANP REGIÃO'!$A$9,MATCH('Transporte EAI'!$I$7,'ANP REGIÃO'!A:A,0),1,10000,10000),MATCH('Transporte EAI'!AH27,'ANP REGIÃO'!$B$8:$G$8,0),FALSE) -> 2.680425729 | L27: 2735.658541 | M27: 755.93 | N27: 3491.588541 | O27: 3496 | P27: 0 | Q27: 911.43 | S27: 911.43 | T27: 200.07 | U27: 1244.65 | V27: 2356.15 | W27: 256.8 | X27: =EVEN(' CONSUMO DE MAT. B TOTAL'!$P$11*2/28)*W27/' CONSUMO DE MAT. B TOTAL'!$P$11 -> 27.17460317 | Y27: 2383.324603 | Z27: 3491.588541 | AA27: 5874.913144 | AC27: 5874.913144 | AD27: 2383.324603 | AE27: 3491.588541 | AH27: CENTRO-OESTE
B28: 5150.376006 | C28: 16 | E28: VIAPOL LTDA. | F28: VITO ARDITO, 6401 KM 118,5 - JARDIM CAMPO GRANDE - CEP:12282-535 | G28: São Paulo | H28: CACAPAVA - SP | I28: Natal - RN | J28: =VLOOKUP(G28,OFFSET('ANP ESTADO'!$A$1,MATCH($I$7,'ANP ESTADO'!B:B,0)+MATCH($H$10,OFFSET('ANP ESTADO'!$A$1,MATCH($I$7,'ANP ESTADO'!B:B,0),0,100000,1),0),2,100000,2),2,FALSE) -> 2.456344578 | K28: =VLOOKUP($H$10,OFFSET('ANP REGIÃO'!$A$9,MATCH('Transporte EAI'!$I$7,'ANP REGIÃO'!A:A,0),1,10000,10000),MATCH('Transporte EAI'!AH28,'ANP REGIÃO'!$B$8:$G$8,0),FALSE) -> 2.329044365 | L28: 2456.344578 | M28: 678.75 | N28: 3135.094578 | O28: 2870 | P28: 0 | Q28: 753.05 | S28: 753.05 | T28: 165.3 | U28: 1028.36 | V28: 1946.71 | W28: 648 | X28: =EVEN(' CONSUMO DE MAT. B TOTAL'!$P$11*2/28)*W28/' CONSUMO DE MAT. B TOTAL'!$P$11 -> 68.57142857 | Y28: 2015.281429 | Z28: 3135.094578 | AA28: 5150.376006 | AC28: 5150.376006 | AD28: 2015.281429 | AE28: 3135.094578 | AH28: SUDESTE
B29: 4788.016905 | C29: 17 | E29: STRATURA ASFALTOS S/A | F29: RUA LUIS DE CAMÕES, 26 - CAMPOS ELÍSEOS - CEP:25225-030 | G29: Rio de Janeiro | H29: DUQUE DE CAXIAS - RJ | I29: Natal - RN | J29: =VLOOKUP(G29,OFFSET('ANP ESTADO'!$A$1,MATCH($I$7,'ANP ESTADO'!B:B,0)+MATCH($H$10,OFFSET('ANP ESTADO'!$A$1,MATCH($I$7,'ANP ESTADO'!B:B,0),0,100000,1),0),2,100000,2),2,FALSE) -> - | K29: =VLOOKUP($H$10,OFFSET('ANP REGIÃO'!$A$9,MATCH('Transporte EAI'!$I$7,'ANP REGIÃO'!A:A,0),1,10000,10000),MATCH('Transporte EAI'!AH29,'ANP REGIÃO'!$B$8:$G$8,0),FALSE) -> 2.329044365 | L29: 2329.044365 | M29: 643.57 | N29: 2972.614365 | O29: 2578 | P29: 0 | Q29: 679.17 | S29: 679.17 | T29: 149.08 | U29: 927.47 | V29: 1755.72 | W29: 564 | X29: =EVEN(' CONSUMO DE MAT. B TOTAL'!$P$11*2/28)*W29/' CONSUMO DE MAT. B TOTAL'!$P$11 -> 59.68253968 | Y29: 1815.40254 | Z29: 2972.614365 | AA29: 4788.016905 | AC29: 4788.016905 | AD29: 1815.40254 | AE29: 2972.614365 | AH29: SUDESTE
B30: 4797.846905 | C30: 18 | E30: PROBITEC - PRODUTOS BETUMINOSOS E TECNOLOGIA DE APLICAÇÃO LTDA. | F30: AVENIDA CANAL DA PAVUNA, 620 - PAVUNA - CEP:21535-630 | G30: Rio de Janeiro | H30: RIO DE JANEIRO - RJ | I30: Natal - RN | J30: =VLOOKUP(G30,OFFSET('ANP ESTADO'!$A$1,MATCH($I$7,'ANP ESTADO'!B:B,0)+MATCH($H$10,OFFSET('ANP ESTADO'!$A$1,MATCH($I$7,'ANP ESTADO'!B:B,0),0,100000,1),0),2,100000,2),2,FALSE) -> - | K30: =VLOOKUP($H$10,OFFSET('ANP REGIÃO'!$A$9,MATCH('Transporte EAI'!$I$7,'ANP REGIÃO'!A:A,0),1,10000,10000),MATCH('Transporte EAI'!AH30,'ANP REGIÃO'!$B$8:$G$8,0),FALSE) -> 2.329044365 | L30: 2329.044365 | M30: 643.57 | N30: 2972.614365 | O30: 2593 | P30: 0 | Q30: 682.97 | S30: 682.97 | T30: 149.92 | U30: 932.66 | V30: 1765.55 | W30: 564 | X30: =EVEN(' CONSUMO DE MAT. B TOTAL'!$P$11*2/28)*W30/' CONSUMO DE MAT. B TOTAL'!$P$11 -> 59.68253968 | Y30: 1825.23254 | Z30: 2972.614365 | AA30: 4797.846905 | AC30: 4797.846905 | AD30: 1825.23254 | AE30: 2972.614365 | AH30: SUDESTE
B31: 5784.604064 | C31: 19 | E31: CASA DO ASFALTO DISTRIBUIDORA, INDÚSTRIA E COMÉRCIO DE ASFALTO LTDA. | F31: BR 376, PARQUE INDUSTRIAL, S/N LOTE 6/7/7-A-3-1 - GL.PATR.MARIALVA - CEP:86990-000 | G31: Paraná | H31: MARIALVA - PR | I31: Natal - RN | J31: =VLOOKUP(G31,OFFSET('ANP ESTADO'!$A$1,MATCH($I$7,'ANP ESTADO'!B:B,0)+MATCH($H$10,OFFSET('ANP ESTADO'!$A$1,MATCH($I$7,'ANP ESTADO'!B:B,0),0,100000,1),0),2,100000,2),2,FALSE) -> 2.711104698 | K31: =VLOOKUP($H$10,OFFSET('ANP REGIÃO'!$A$9,MATCH('Transporte EAI'!$I$7,'ANP REGIÃO'!A:A,0),1,10000,10000),MATCH('Transporte EAI'!AH31,'ANP REGIÃO'!$B$8:$G$8,0),FALSE) -> 2.728540168 | L31: 2711.104698 | M31: 749.14 | N31: 3460.244698 | O31: 3299 | P31: 0 | Q31: 861.59 | S31: 861.59 | T31: 189.12 | U31: 1176.57 | V31: 2227.28 | W31: 917.4 | X31: =EVEN(' CONSUMO DE MAT. B TOTAL'!$P$11*2/28)*W31/' CONSUMO DE MAT. B TOTAL'!$P$11 -> 97.07936508 | Y31: 2324.359365 | Z31: 3460.244698 | AA31: 5784.604064 | AC31: 5784.604064 | AD31: 2324.359365 | AE31: 3460.244698 | AH31: SUL
B32: 5816.06073 | C32: 20 | E32: PETROBRAS DISTRIBUIDORA S.A. | F32: RUA MAQUINISTA ELEODORO JACINTO, 100 - OFICINAS - CEP:84045-170 | G32: Paraná | H32: PONTA GROSSA - PR | I32: Natal - RN | J32: =VLOOKUP(G32,OFFSET('ANP ESTADO'!$A$1,MATCH($I$7,'ANP ESTADO'!B:B,0)+MATCH($H$10,OFFSET('ANP ESTADO'!$A$1,MATCH($I$7,'ANP ESTADO'!B:B,0),0,100000,1),0),2,100000,2),2,FALSE) -> 2.711104698 | K32: =VLOOKUP($H$10,OFFSET('ANP REGIÃO'!$A$9,MATCH('Transporte EAI'!$I$7,'ANP REGIÃO'!A:A,0),1,10000,10000),MATCH('Transporte EAI'!AH32,'ANP REGIÃO'!$B$8:$G$8,0),FALSE) -> 2.728540168 | L32: 2711.104698 | M32: 749.14 | N32: 3460.244698 | O32: 3343 | P32: 0 | Q32: 872.72 | S32: 872.72 | T32: 191.57 | U32: 1191.78 | V32: 2256.07 | W32: 942.6 | X32: =EVEN(' CONSUMO DE MAT. B TOTAL'!$P$11*2/28)*W32/' CONSUMO DE MAT. B TOTAL'!$P$11 -> 99.74603175 | Y32: 2355.816032 | Z32: 3460.244698 | AA32: 5816.06073 | AC32: 5816.06073 | AD32: 2355.816032 | AE32: 3460.244698 | AH32: SUL
D42: Acre
D43: Alagoas
D44: Amapá
D45: Amazonas
D46: Bahia
D47: Ceará
D48: Distrito Federal
D49: Espírito Santo
D50: Goiás
D51: Maranhão
D52: Mato Grosso
D53: Mato Grosso do Sul
D54: Minas Gerais
D55: Pará
D56: Paraíba
D57: Paraná
D58: Pernambuco
D59: Piauí
D60: Rio de Janeiro
D61: Rio Grande do Norte
D62: Rio Grande do Sul
D63: Rondônia
D64: Roraima
D65: Santa Catarina
D66: São Paulo
D67: Sergipe
D68: Tocantins
D72: ASFALTOS DILUÍDOS CM-30
D73: ASFALTOS DILUÍDOS CM-70
D74: ASFALTOS DILUÍDOS CR-250
D75: ASFALTOS DILUÍDOS CR-70
D76: CAP MODIFICADO POR BORRACHA DE PNEU AB22
D77: CAP MODIFICADO POR BORRACHA DE PNEU AB8
D78: CAP MODIFICADO POR POLÍMERO 55-75-E
D79: CAP MODIFICADO POR POLÍMERO 60-85-E
D80: CAP MODIFICADO POR POLÍMERO 65-90-E
D81: CIMENTOS ASFÁLTICOS CAP-150-200
D82: CIMENTOS ASFÁLTICOS CAP-30-45
D83: CIMENTOS ASFÁLTICOS CAP-50-70
D84: CIMENTOS ASFÁLTICOS CAP-85-100
D85: EMULSÃO ASFÁLTICA CATIÔNICA DE RUPTURA CONTROLADA PARA SERVIÇO DE LAMA ASFÁLTICA
D86: EMULSÃO ASFÁLTICA DE RUPTURA LENTA CATIÔNICA PARA SERVIÇO DE LAMA ASFÁLTICA
D87: EMULSÃO ASFÁLTICA DE RUPTURA LENTA DE CARGA NEUTRA PARA SERVIÇO DE LAMA ASFÁLTICA
D88: EMULSÃO ASFÁLTICA PARA SERVIÇO DE IMPRIMAÇÃO
D89: EMULSÕES ASF. MOD. POR POLÍMEROS RC1C-E
D90: EMULSÕES ASF. MOD. POR POLÍMEROS RL1C-E
D91: EMULSÕES ASF. MOD. POR POLÍMEROS RM1C-E
D92: EMULSÕES ASF. MOD. POR POLÍMEROS RR1C-E
D93: EMULSÕES ASF. MOD. POR POLÍMEROS RR2C-E
D94: EMULSÕES ASFÁLTICAS RL-1C
D95: EMULSÕES ASFÁLTICAS RM-1C
D96: EMULSÕES ASFÁLTICAS RM-2C
D97: EMULSÕES ASFÁLTICAS RR-1C
D98: EMULSÕES ASFÁLTICAS RR-2C

Sheet Transporte RR-1C
C2: MEMÓRIA DE CÁLCULO
C7: REAJUSTE | F7: TIPOLOGIA DO MATERIAL | I7: EMULSÕES ASFÁLTICAS RR-1C | M7: IMPOSTOS | N7: COFINS | O7: 0.0065 | P7: 0.0065
G8: ÍNDICE DE PAVIMENTAÇÃO DNIT | H8: 2014-07-01 | I8: ÍNDICE INICIAL | J8: 270.237 | N8: PIS | O8: 0.03 | P8: 0.03 | T8: LEGENDA | AC8: As empresas tributadas pelo Lucro Presumido pagam 0,65% de PIS e 3% de COFINS
H9: ='Transporte Cap 50-70'!H9 -> 2024-06-01 | I9: ÍNDICE FINAL | J9: ='Transporte Cap 50-70'!J9 -> 572.847 | N9: ICMS | O9: 0.18 | P9: 0.18 | Q9: =1-(O9/1) -> 0.82 | R9: =1-(P9/1) -> 0.82 | S9: =1-(Q9/1) -> 0.18 | T9: ENTRADA DE DADOS | AC9: As empresas tributadas pelo Lucro Real pagam 1,65% de PIS e 7,60% de COFINS
G10: Data ANP | H10: ='Transporte Cap 50-70'!H10 -> 2024-06-01
C11: DATA-BASE | D11: PRODUTOS | E11: LOCALIDADES | J11: CUSTO ANP (R$/Kg) | L11: CUSTO ANP | M11: IMPOSTOS DO PRODUTO | N11: CUSTO DO PRODUTO COM IMPOSTOS | O11: DMT's | P11: DMT'S FLUVIAL | Q11: CUSTO DO TRANSPORTE RODOVIA PAVIMENTADA | R11: CUSTO DO TRANSPORTE FLUVIAL | S11: CUSTO DO TRANSPORTE TOTAL | T11: ICMS | U11: ATUALIZAÇÃO DO CUSTO DE TRANSPORTE | V11: CUSTO DO TRANSPORTE RODOVIA PAVIMENTADA COM IMPOSTOS E ATUALIZAÇÃO MONETÁRIA | W11: PEDÁGIO | Y11: TOTAL TRANSPORTE | Z11: AQUISIÇÃO DO PRODUTO | AA11: TOTAL GERAL ( TRANSP + AQUISIÇÃO) | AC11: 1 | AD11: 2 | AE11: 3
C12: =H9 -> 2024-06-01 | E12: REFINARIAS | F12: ENDEREÇO | G12: ESTADO | H12: CIDADE | I12: DESTINO | J12: ESTADO | K12: REGIÃO | L12: R$/t | M12: R$/t | N12: R$/t | O12: KM | P12: KM | Q12: R$/t | R12: R$/t | S12: R$/t | T12: R$/t | U12: R$/t | V12: R$/t | W12: CUSTO | X12: R$/t | Y12: R$/t | Z12: R$/t | AA12: R$/t | AC12: TOTAL GERAL ( TRANSP + AQUISIÇÃO) | AD12: TOTAL TRANSPORTE | AE12: AQUISIÇÃO DO PRODUTO
B13: =AA13 -> 5033.36663 | C13: 1 | D13: =I7 -> EMULSÕES ASFÁLTICAS RR-1C | E13: 'CENTRO OESTE ASFALTOS LTDA. | F13: SETOR DE INFLAMÁVEIS, S/N TRECHO 02 - LOTE 1.100 - GUARÁ - CEP:71225-000 | G13: Distrito Federal | H13: BRASÍLIA - DF | I13: ='Transporte EAI'!I13 -> Natal - RN | J13: =VLOOKUP(G13,OFFSET('ANP ESTADO'!$A$1,MATCH($I$7,'ANP ESTADO'!B:B,0)+MATCH($H$10,OFFSET('ANP ESTADO'!$A$1,MATCH($I$7,'ANP ESTADO'!B:B,0),0,100000,1),0),2,100000,2),2,FALSE) -> - | K13: =VLOOKUP($H$10,OFFSET('ANP REGIÃO'!$A$9,MATCH('Transporte RR-1C'!$I$7,'ANP REGIÃO'!A:A,0),1,10000,10000),MATCH('Transporte RR-1C'!AH13,'ANP REGIÃO'!$B$8:$G$8,0),FALSE) -> 2.650630599 | L13: =IF(AND(J13="-",K13="-"),"",IF(AND(J13<>0,K13="-"),J13*1000,IF(AND(J13="-",K13<>0),K13*1000,IF(AND(J13<>0,K13<>0),J13*1000,"")))) -> 2650.630599 | M13: =ROUND(((L13/(1-$O$7-$O$8-$O$9))-L13),2) -> 732.43 | N13: =L13+M13 -> 3383.060599 | O13: ='Transporte EAI'!O13 -> 2405 | P13: ='Transporte EAI'!P13 -> 0 | Q13: =ROUND((26.939+0.253*O13),2) -> 635.4 | S13: =Q13+R13 -> 635.4 | T13: =TRUNC(S13*($O$9/(1-$O$9)),2) -> 139.47 | U13: =TRUNC(IF($J$8="","",(($J$9-$J$8)/$J$8)*(S13+T13)),2) -> 867.69 | V13: =S13+T13+U13 -> 1642.56 | W13: ='Transporte EAI'!W13 -> 73.2 | X13: =EVEN(' CONSUMO DE MAT. B TOTAL'!$P$11*2/28)*W13/' CONSUMO DE MAT. B TOTAL'!$P$11 -> 7.746031746 | Y13: =IF(AND(Q13="",T13=""),"",V13+X13) -> 1650.306032 | Z13: =IF(OR(L13="",M13=""),"",L13+M13) -> 3383.060599 | AA13: =IF(OR(Y13="",Z13=""),"",Y13+Z13) -> 5033.36663 | AC13: =AA13 -> 5033.36663 | AD13: =Y13 -> 1650.306032 | AE13: =Z13 -> 3383.060599 | AH13: =IF(OR(G13=$D$58,G13=$D$59,G13=$D$61,G13=$D$67,G13=$D$51,G13=$D$47,G13=$D$43,G13=$D$56,G13=$D$46),"NORDESTE",IF(OR(G13=$D$42,G13=$D$44,G13=$D$45,G13=$D$55,G13=$D$63,G13=$D$64,G13=$D$68),"NORTE",IF(OR(G13=$D$48,G13=$D$50,G13=$D$52,G13=$D$53),"CENTRO-OESTE",IF(OR(G13=$D$66,G13=$D$60,G13=$D$54,G13=$D$49),"SUDESTE",IF(OR(G13=$D$65,G13=$D$57,G13=$D$62),"SUL",""))))) -> CENTRO-OESTE
B14: =AA14 -> 4969.90492 | C14: 2 | E14: STRATURA ASFALTOS S/A | F14: AVENIDA PRESIDENTE WILSON, 08 - JUNDIAÍ - CEP:75115-100 | G14: Goiás | H14: ANÁPOLIS - GO | I14: ='Transporte EAI'!I14 -> Natal - RN | J14: =VLOOKUP(G14,OFFSET('ANP ESTADO'!$A$1,MATCH($I$7,'ANP ESTADO'!B:B,0)+MATCH($H$10,OFFSET('ANP ESTADO'!$A$1,MATCH($I$7,'ANP ESTADO'!B:B,0),0,100000,1),0),2,100000,2),2,FALSE) -> 2.521107936 | K14: =VLOOKUP($H$10,OFFSET('ANP REGIÃO'!$A$9,MATCH('Transporte RR-1C'!$I$7,'ANP REGIÃO'!A:A,0),1,10000,10000),MATCH('Transporte RR-1C'!AH14,'ANP REGIÃO'!$B$8:$G$8,0),FALSE) -> 2.650630599 | L14: =IF(AND(J14="-",K14="-"),"",IF(AND(J14<>0,K14="-"),J14*1000,IF(AND(J14="-",K14<>0),K14*1000,IF(AND(J14<>0,K14<>0),J14*1000,"")))) -> 2521.107936 | M14: =ROUND(((L14/(1-$O$7-$O$8-$O$9))-L14),2) -> 696.64 | N14: =L14+M14 -> 3217.747936 | O14: ='Transporte EAI'!O14 -> 2554 | P14: ='Transporte EAI'!P14 -> 0 | Q14: =ROUND((26.939+0.253*O14),2) -> 673.1 | S14: =Q14+R14 -> 673.1 | T14: =TRUNC(S14*($O$9/(1-$O$9)),2) -> 147.75 | U14: =TRUNC(IF($J$8="","",(($J$9-$J$8)/$J$8)*(S14+T14)),2) -> 919.18 | V14: =S14+T14+U14 -> 1740.03 | W14: ='Transporte EAI'!W14 -> 114.6 | X14: =EVEN(' CONSUMO DE MAT. B TOTAL'!$P$11*2/28)*W14/' CONSUMO DE MAT. B TOTAL'!$P$11 -> 12.12698413 | Y14: 1752.156984 | Z14: 3217.747936 | AA14: =IF(OR(Y14="",Z14=""),"",Y14+Z14) -> 4969.90492 | AC14: =AA14 -> 4969.90492 | AD14: =Y14 -> 1752.156984 | AE14: 3217.747936 | AH14: =IF(OR(G14=$D$58,G14=$D$59,G14=$D$61,G14=$D$67,G14=$D$51,G14=$D$47,G14=$D$43,G14=$D$56,G14=$D$46),"NORDESTE",IF(OR(G14=$D$42,G14=$D$44,G14=$D$45,G14=$D$55,G14=$D$63,G14=$D$64,G14=$D$68),"NORTE",IF(OR(G14=$D$48,G14=$D$50,G14=$D$52,G14=$D$53),"CENTRO-OESTE",IF(OR(G14=$D$66,G14=$D$60,G14=$D$54,G14=$D$49),"SUDESTE",IF(OR(G14=$D$65,G14=$D$57,G14=$D$62),"SUL",""))))) -> CENTRO-OESTE
B15: 5017.633015 | C15: 3 | E15: DISTRIBUIDORA BRASILEIRA DE ASFALTO SA - DISBRAL | F15: VIA PRIMARIA 8, S/N QD-18, MODS. 24/47 - DAIAG - CEP:74980-970 | G15: Goiás | H15: APARECIDA DE GOIANIA - GO | I15: ='Transporte EAI'!I15 -> Natal - RN | J15: =VLOOKUP(G15,OFFSET('ANP ESTADO'!$A$1,MATCH($I$7,'ANP ESTADO'!B:B,0)+MATCH($H$10,OFFSET('ANP ESTADO'!$A$1,MATCH($I$7,'ANP ESTADO'!B:B,0),0,100000,1),0),2,100000,2),2,FALSE) -> 2.521107936 | K15: =VLOOKUP($H$10,OFFSET('ANP REGIÃO'!$A$9,MATCH('Transporte RR-1C'!$I$7,'ANP REGIÃO'!A:A,0),1,10000,10000),MATCH('Transporte RR-1C'!AH15,'ANP REGIÃO'!$B$8:$G$8,0),FALSE) -> 2.650630599 | L15: 2521.107936 | M15: 696.64 | N15: 3217.747936 | O15: ='Transporte EAI'!O15 -> 2622 | P15: ='Transporte EAI'!P15 -> 0 | Q15: 690.31 | S15: 690.31 | T15: 151.53 | U15: 942.68 | V15: 1784.52 | W15: ='Transporte EAI'!W15 -> 145.2 | X15: =EVEN(' CONSUMO DE MAT. B TOTAL'!$P$11*2/28)*W15/' CONSUMO DE MAT. B TOTAL'!$P$11 -> 15.36507937 | Y15: 1799.885079 | Z15: 3217.747936 | AA15: 5017.633015 | AC15: 5017.633015 | AD15: 1799.885079 | AE15: 3217.747936 | AH15: CENTRO-OESTE
A16: 2403 | B16: 5017.64492 | C16: 4 | E16: INDÚSTRIA NACIONAL DE ASFALTOS LTDA. | F16: VIA PRIMEIRA E SEGUNDA 3, S/N.º LOTES 01 A 10 - DISTRITO AGROINDUSTRIAL - CEP:75370-000 | G16: Goiás | H16: GOIANIRA - GO | I16: ='Transporte EAI'!I16 -> Natal - RN | J16: =VLOOKUP(G16,OFFSET('ANP ESTADO'!$A$1,MATCH($I$7,'ANP ESTADO'!B:B,0)+MATCH($H$10,OFFSET('ANP ESTADO'!$A$1,MATCH($I$7,'ANP ESTADO'!B:B,0),0,100000,1),0),2,100000,2),2,FALSE) -> 2.521107936 | K16: =VLOOKUP($H$10,OFFSET('ANP REGIÃO'!$A$9,MATCH('Transporte RR-1C'!$I$7,'ANP REGIÃO'!A:A,0),1,10000,10000),MATCH('Transporte RR-1C'!AH16,'ANP REGIÃO'!$B$8:$G$8,0),FALSE) -> 2.650630599 | L16: 2521.107936 | M16: 696.64 | N16: 3217.747936 | O16: ='Transporte EAI'!O16 -> 2627 | P16: ='Transporte EAI'!P16 -> 0 | Q16: 691.57 | S16: 691.57 | T16: 151.8 | U16: 944.4 | V16: 1787.77 | W16: ='Transporte EAI'!W16 -> 114.6 | X16: =EVEN(' CONSUMO DE MAT. B TOTAL'!$P$11*2/28)*W16/' CONSUMO DE MAT. B TOTAL'!$P$11 -> 12.12698413 | Y16: 1799.896984 | Z16: 3217.747936 | AA16: 5017.64492 | AC16: 5017.64492 | AD16: 1799.896984 | AE16: 3217.747936 | AH16: CENTRO-OESTE
B17: 4738.948713 | C17: 5 | E17: STRATURA ASFALTOS S/A | F17: RUA VICTOR RODRIGUES RESENDE, 333 - DISTRITO IND. DE UBERLÂNDIA - CEP:38405-440 | G17: Minas Gerais | H17: UBERLANDIA - MG | I17: ='Transporte EAI'!I17 -> Natal - RN | J17: =VLOOKUP(G17,OFFSET('ANP ESTADO'!$A$1,MATCH($I$7,'ANP ESTADO'!B:B,0)+MATCH($H$10,OFFSET('ANP ESTADO'!$A$1,MATCH($I$7,'ANP ESTADO'!B:B,0),0,100000,1),0),2,100000,2),2,FALSE) -> 2.312616649 | K17: =VLOOKUP($H$10,OFFSET('ANP REGIÃO'!$A$9,MATCH('Transporte RR-1C'!$I$7,'ANP REGIÃO'!A:A,0),1,10000,10000),MATCH('Transporte RR-1C'!AH17,'ANP REGIÃO'!$B$8:$G$8,0),FALSE) -> 2.508906135 | L17: 2312.616649 | M17: 639.03 | N17: 2951.646649 | O17: ='Transporte EAI'!O17 -> 2572 | P17: ='Transporte EAI'!P17 -> 0 | Q17: 677.66 | S17: 677.66 | T17: 148.75 | U17: 925.4 | V17: 1751.81 | W17: ='Transporte EAI'!W17 -> 335.4 | X17: =EVEN(' CONSUMO DE MAT. B TOTAL'!$P$11*2/28)*W17/' CONSUMO DE MAT. B TOTAL'!$P$11 -> 35.49206349 | Y17: 1787.302063 | Z17: 2951.646649 | AA17: 4738.948713 | AC17: 4738.948713 | AD17: 1787.302063 | AE17: 2951.646649 | AH17: SUDESTE
B18: 4740.878713 | C18: 6 | E18: BETUNEL INDÚSTRIA E COMÉRCIO LTDA. | F18: RUA VICTOR RODRIGUES DE REZENDE, 185 - DISTRITO INDUSTRIAL - CEP:38402-334 | G18: Minas Gerais | H18: UBERLANDIA - MG | I18: ='Transporte EAI'!I18 -> Natal - RN | J18: =VLOOKUP(G18,OFFSET('ANP ESTADO'!$A$1,MATCH($I$7,'ANP ESTADO'!B:B,0)+MATCH($H$10,OFFSET('ANP ESTADO'!$A$1,MATCH($I$7,'ANP ESTADO'!B:B,0),0,100000,1),0),2,100000,2),2,FALSE) -> 2.312616649 | K18: =VLOOKUP($H$10,OFFSET('ANP REGIÃO'!$A$9,MATCH('Transporte RR-1C'!$I$7,'ANP REGIÃO'!A:A,0),1,10000,10000),MATCH('Transporte RR-1C'!AH18,'ANP REGIÃO'!$B$8:$G$8,0),FALSE) -> 2.508906135 | L18: 2312.616649 | M18: 639.03 | N18: 2951.646649 | O18: ='Transporte EAI'!O18 -> 2575 | P18: ='Transporte EAI'!P18 -> 0 | Q18: 678.41 | S18: 678.41 | T18: 148.91 | U18: 926.42 | V18: 1753.74 | W18: ='Transporte EAI'!W18 -> 335.4 | X18: =EVEN(' CONSUMO DE MAT. B TOTAL'!$P$11*2/28)*W18/' CONSUMO DE MAT. B TOTAL'!$P$11 -> 35.49206349 | Y18: 1789.232063 | Z18: 2951.646649 | AA18: 4740.878713 | AC18: 4740.878713 | AD18: 1789.232063 | AE18: 2951.646649 | AH18: SUDESTE
B19: 6855.716429 | C19: 7 | E19: ARAPETRO DISTRIBUIDORA DE PETRÓLEO LTDA. | F19: RUA 04, S/N° LOTES 17 A 20. - DISTRITO INDUSTRIAL 1/8 - CEP:78600-000 | G19: Mato Grosso | H19: BARRA DO GARCAS - MT | I19: ='Transporte EAI'!I19 -> Natal - RN | J19: =VLOOKUP(G19,OFFSET('ANP ESTADO'!$A$1,MATCH($I$7,'ANP ESTADO'!B:B,0)+MATCH($H$10,OFFSET('ANP ESTADO'!$A$1,MATCH($I$7,'ANP ESTADO'!B:B,0),0,100000,1),0),2,100000,2),2,FALSE) -> 3.782909445 | K19: =VLOOKUP($H$10,OFFSET('ANP REGIÃO'!$A$9,MATCH('Transporte RR-1C'!$I$7,'ANP REGIÃO'!A:A,0),1,10000,10000),MATCH('Transporte RR-1C'!AH19,'ANP REGIÃO'!$B$8:$G$8,0),FALSE) -> 2.650630599 | L19: =IF(AND(J19="-",K19="-"),"",IF(AND(J19<>0,K19="-"),J19*1000,IF(AND(J19="-",K19<>0),K19*1000,IF(AND(J19<>0,K19<>0),J19*1000,"")))) -> 3782.909445 | M19: =ROUND(((L19/(1-$O$7-$O$8-$O$9))-L19),2) -> 1045.31 | N19: 4828.219445 | O19: ='Transporte EAI'!O19 -> 2975 | P19: ='Transporte EAI'!P19 -> 0 | Q19: 779.61 | S19: 779.61 | T19: 171.13 | U19: 1064.63 | V19: 2015.37 | W19: ='Transporte EAI'!W19 -> 114.6 | X19: =EVEN(' CONSUMO DE MAT. B TOTAL'!$P$11*2/28)*W19/' CONSUMO DE MAT. B TOTAL'!$P$11 -> 12.12698413 | Y19: 2027.496984 | Z19: 4828.219445 | AA19: 6855.716429 | AH19: CENTRO-OESTE
B20: 4630.983263 | C20: 8 | E20: DISTRIBUIDORA BRASILEIRA DE ASFALTO SA - DISBRAL | F20: SÃO JUDAS TADEU, 288 - DISTRITO INDUSTRIAL - CEP:32450-000 | G20: Minas Gerais | H20: SARZEDO - MG | I20: ='Transporte EAI'!I20 -> Natal - RN | J20: =VLOOKUP(G20,OFFSET('ANP ESTADO'!$A$1,MATCH($I$7,'ANP ESTADO'!B:B,0)+MATCH($H$10,OFFSET('ANP ESTADO'!$A$1,MATCH($I$7,'ANP ESTADO'!B:B,0),0,100000,1),0),2,100000,2),2,FALSE) -> 2.312616649 | K20: =VLOOKUP($H$10,OFFSET('ANP REGIÃO'!$A$9,MATCH('Transporte RR-1C'!$I$7,'ANP REGIÃO'!A:A,0),1,10000,10000),MATCH('Transporte RR-1C'!AH20,'ANP REGIÃO'!$B$8:$G$8,0),FALSE) -> 2.508906135 | L20: 2312.616649 | M20: 639.03 | N20: 2951.646649 | O20: ='Transporte EAI'!O20 -> 2379 | P20: ='Transporte EAI'!P20 -> 0 | Q20: 628.83 | S20: 628.83 | T20: 138.03 | U20: 858.72 | V20: 1625.58 | W20: ='Transporte EAI'!W20 -> 508 | X20: =EVEN(' CONSUMO DE MAT. B TOTAL'!$P$11*2/28)*W20/' CONSUMO DE MAT. B TOTAL'!$P$11 -> 53.75661376 | Y20: 1679.336614 | Z20: 2951.646649 | AA20: 4630.983263 | AH20: SUDESTE
B21: 6019.388646 | C21: 9 | E21: 'INDÚSTRIA NACIONAL DE ASFALTOS LTDA. | F21: INDÚSTRIA NACIONAL DE ASFALTOS LTDA - CEP:77053-080 | G21: Tocantins | H21: PALMAS - TO | I21: ='Transporte EAI'!I21 -> Natal - RN | J21: =VLOOKUP(G21,OFFSET('ANP ESTADO'!$A$1,MATCH($I$7,'ANP ESTADO'!B:B,0)+MATCH($H$10,OFFSET('ANP ESTADO'!$A$1,MATCH($I$7,'ANP ESTADO'!B:B,0),0,100000,1),0),2,100000,2),2,FALSE) -> - | K21: =VLOOKUP($H$10,OFFSET('ANP REGIÃO'!$A$9,MATCH('Transporte RR-1C'!$I$7,'ANP REGIÃO'!A:A,0),1,10000,10000),MATCH('Transporte RR-1C'!AH21,'ANP REGIÃO'!$B$8:$G$8,0),FALSE) -> 3.611658646 | L21: 3611.658646 | M21: 997.99 | N21: 4609.648646 | O21: ='Transporte EAI'!O21 -> 2049 | P21: ='Transporte EAI'!P21 -> 0 | Q21: 545.34 | S21: 545.34 | T21: 119.7 | U21: 744.7 | V21: 1409.74 | W21: ='Transporte EAI'!W21 -> 0 | X21: =EVEN(' CONSUMO DE MAT. B TOTAL'!$P$11*2/28)*W21/' CONSUMO DE MAT. B TOTAL'!$P$11 -> 0 | Y21: 1409.74 | Z21: 4609.648646 | AA21: 6019.388646 | AH21: NORTE
B22: 5568.270491 | C22: 10 | E22: 'NTA - NOVAS TÉCNICAS DE ASFALTOS S/A | F22: RUA SOFIA ATAURI FADIN, 150 SALA A - B. SANTA TEREZINHA - CEP:13140-000 | G22: São Paulo | H22: PAULINIA - SP | I22: ='Transporte EAI'!I22 -> Natal - RN | J22: =VLOOKUP(G22,OFFSET('ANP ESTADO'!$A$1,MATCH($I$7,'ANP ESTADO'!B:B,0)+MATCH($H$10,OFFSET('ANP ESTADO'!$A$1,MATCH($I$7,'ANP ESTADO'!B:B,0),0,100000,1),0),2,100000,2),2,FALSE) -> 2.764058904 | K22: =VLOOKUP($H$10,OFFSET('ANP REGIÃO'!$A$9,MATCH('Transporte RR-1C'!$I$7,'ANP REGIÃO'!A:A,0),1,10000,10000),MATCH('Transporte RR-1C'!AH22,'ANP REGIÃO'!$B$8:$G$8,0),FALSE) -> 2.508906135 | L22: 2764.058904 | M22: =ROUND(((L22/(1-$O$7-$O$8-$O$9))-L22),2) -> 763.78 | N22: 3527.838904 | O22: ='Transporte EAI'!O22 -> 2941 | P22: ='Transporte EAI'!P22 -> 0 | Q22: 771.01 | S22: 771.01 | T22: 169.24 | U22: 1052.88 | V22: 1993.13 | W22: ='Transporte EAI'!W22 -> 447 | X22: =EVEN(' CONSUMO DE MAT. B TOTAL'!$P$11*2/28)*W22/' CONSUMO DE MAT. B TOTAL'!$P$11 -> 47.3015873 | Y22: 2040.431587 | Z22: 3527.838904 | AA22: 5568.270491 | AC22: 5568.270491 | AD22: 2040.431587 | AE22: 3527.838904 | AH22: SUDESTE
B23: 5532.962872 | C23: 11 | E23: COMPANHIA BRASILEIRA DE ASFALTOS DA AMAZÔNIA - IMPORTAÇÃO E EXPORTAÇÃO | F23: Avenida Doutor Olindo Dártora 2451, Galpão 02, Morro Grande - CEP:07726-555 | G23: São Paulo | H23: CAIEIRAS - SP | I23: ='Transporte EAI'!I23 -> Natal - RN | J23: =VLOOKUP(G23,OFFSET('ANP ESTADO'!$A$1,MATCH($I$7,'ANP ESTADO'!B:B,0)+MATCH($H$10,OFFSET('ANP ESTADO'!$A$1,MATCH($I$7,'ANP ESTADO'!B:B,0),0,100000,1),0),2,100000,2),2,FALSE) -> 2.764058904 | K23: =VLOOKUP($H$10,OFFSET('ANP REGIÃO'!$A$9,MATCH('Transporte RR-1C'!$I$7,'ANP REGIÃO'!A:A,0),1,10000,10000),MATCH('Transporte RR-1C'!AH23,'ANP REGIÃO'!$B$8:$G$8,0),FALSE) -> 2.508906135 | L23: 2764.058904 | M23: =ROUND(((L23/(1-$O$7-$O$8-$O$9))-L23),2) -> 763.78 | N23: 3527.838904 | O23: ='Transporte EAI'!O23 -> 2910 | P23: ='Transporte EAI'!P23 -> 0 | Q23: 763.17 | S23: 763.17 | T23: 167.52 | U23: 1042.18 | V23: 1972.87 | W23: ='Transporte EAI'!W23 -> 304.8 | X23: =EVEN(' CONSUMO DE MAT. B TOTAL'!$P$11*2/28)*W23/' CONSUMO DE MAT. B TOTAL'!$P$11 -> 32.25396825 | Y23: 2005.123968 | Z23: 3527.838904 | AA23: 5532.962872 | AH23: SUDESTE
B24: 5741.312662 | C24: 12 | E24: BETUNEL INDÚSTRIA E COMÉRCIO LTDA. | F24: R 16 , 82, Vila Nova Campo Grande - CEP:79.103-834 | G24: Mato Grosso do Sul | H24: CAMPO GRANDE - MS | I24: ='Transporte EAI'!I24 -> Natal - RN | J24: =VLOOKUP(G24,OFFSET('ANP ESTADO'!$A$1,MATCH($I$7,'ANP ESTADO'!B:B,0)+MATCH($H$10,OFFSET('ANP ESTADO'!$A$1,MATCH($I$7,'ANP ESTADO'!B:B,0),0,100000,1),0),2,100000,2),2,FALSE) -> - | K24: =VLOOKUP($H$10,OFFSET('ANP REGIÃO'!$A$9,MATCH('Transporte RR-1C'!$I$7,'ANP REGIÃO'!A:A,0),1,10000,10000),MATCH('Transporte RR-1C'!AH24,'ANP REGIÃO'!$B$8:$G$8,0),FALSE) -> 2.650630599 | L24: 2650.630599 | M24: =ROUND(((L24/(1-$O$7-$O$8-$O$9))-L24),2) -> 732.43 | N24: 3383.060599 | O24: ='Transporte EAI'!O24 -> 3445 | P24: ='Transporte EAI'!P24 -> 0 | Q24: 898.52 | S24: 898.52 | T24: 197.23 | U24: 1227.01 | V24: 2322.76 | W24: ='Transporte EAI'!W24 -> 335.4 | X24: =EVEN(' CONSUMO DE MAT. B TOTAL'!$P$11*2/28)*W24/' CONSUMO DE MAT. B TOTAL'!$P$11 -> 35.49206349 | Y24: 2358.252063 | Z24: 3383.060599 | AA24: 5741.312662 | AH24: CENTRO-OESTE
B25: 7211.544048 | C25: 13 | E25: CENTRO OESTE ASFALTOS LTDA. | F25: RUA N, S/N.º LOTES 39/43 E LOTES 129/133 - DISTRITO INDUSTRIAL - CEP:78098-400 | G25: Mato Grosso | H25: CUIABA - MT | I25: ='Transporte EAI'!I25 -> Natal - RN | J25: =VLOOKUP(G25,OFFSET('ANP ESTADO'!$A$1,MATCH($I$7,'ANP ESTADO'!B:B,0)+MATCH($H$10,OFFSET('ANP ESTADO'!$A$1,MATCH($I$7,'ANP ESTADO'!B:B,0),0,100000,1),0),2,100000,2),2,FALSE) -> 3.782909445 | K25: =VLOOKUP($H$10,OFFSET('ANP REGIÃO'!$A$9,MATCH('Transporte RR-1C'!$I$7,'ANP REGIÃO'!A:A,0),1,10000,10000),MATCH('Transporte RR-1C'!AH25,'ANP REGIÃO'!$B$8:$G$8,0),FALSE) -> 2.650630599 | L25: 3782.909445 | M25: 1045.31 | N25: 4828.219445 | O25: ='Transporte EAI'!O25 -> 3496 | P25: ='Transporte EAI'!P25 -> 0 | Q25: 911.43 | S25: 911.43 | T25: 200.07 | U25: 1244.65 | V25: 2356.15 | W25: ='Transporte EAI'!W25 -> 256.8 | X25: =EVEN(' CONSUMO DE MAT. B TOTAL'!$P$11*2/28)*W25/' CONSUMO DE MAT. B TOTAL'!$P$11 -> 27.17460317 | Y25: 2383.324603 | Z25: 4828.219445 | AA25: 7211.544048 | AH25: CENTRO-OESTE
B26: 7206.284048 | C26: 14 | E26: BETUNEL INDÚSTRIA E COMÉRCIO LTDA. | F26: RUA N ESQUINA COM RUA X, S/N QD. IND. 7 L 01/08 - DIST. IND. - CEP:78015-285 | G26: Mato Grosso | H26: CUIABA - MT | I26: ='Transporte EAI'!I26 -> Natal - RN | J26: =VLOOKUP(G26,OFFSET('ANP ESTADO'!$A$1,MATCH($I$7,'ANP ESTADO'!B:B,0)+MATCH($H$10,OFFSET('ANP ESTADO'!$A$1,MATCH($I$7,'ANP ESTADO'!B:B,0),0,100000,1),0),2,100000,2),2,FALSE) -> 3.782909445 | K26: =VLOOKUP($H$10,OFFSET('ANP REGIÃO'!$A$9,MATCH('Transporte RR-1C'!$I$7,'ANP REGIÃO'!A:A,0),1,10000,10000),MATCH('Transporte RR-1C'!AH26,'ANP REGIÃO'!$B$8:$G$8,0),FALSE) -> 2.650630599 | L26: 3782.909445 | M26: 1045.31 | N26: 4828.219445 | O26: ='Transporte EAI'!O26 -> 3488 | P26: ='Transporte EAI'!P26 -> 0 | Q26: 909.4 | S26: 909.4 | T26: 199.62 | U26: 1241.87 | V26: 2350.89 | W26: ='Transporte EAI'!W26 -> 256.8 | X26: =EVEN(' CONSUMO DE MAT. B TOTAL'!$P$11*2/28)*W26/' CONSUMO DE MAT. B TOTAL'!$P$11 -> 27.17460317 | Y26: 2378.064603 | Z26: 4828.219445 | AA26: 7206.284048 | AH26: CENTRO-OESTE
B27: 7211.544048 | C27: 15 | E27: EMAM - EMULSÕES E TRANSPORTES LTDA. | F27: RODOVIA DOS IMIGRANTES, S/Nº KM 8,6 - - CEP:60035-351 | G27: Mato Grosso | H27: VARZEA GRANDE - MT | I27: ='Transporte EAI'!I27 -> Natal - RN | J27: =VLOOKUP(G27,OFFSET('ANP ESTADO'!$A$1,MATCH($I$7,'ANP ESTADO'!B:B,0)+MATCH($H$10,OFFSET('ANP ESTADO'!$A$1,MATCH($I$7,'ANP ESTADO'!B:B,0),0,100000,1),0),2,100000,2),2,FALSE) -> 3.782909445 | K27: =VLOOKUP($H$10,OFFSET('ANP REGIÃO'!$A$9,MATCH('Transporte RR-1C'!$I$7,'ANP REGIÃO'!A:A,0),1,10000,10000),MATCH('Transporte RR-1C'!AH27,'ANP REGIÃO'!$B$8:$G$8,0),FALSE) -> 2.650630599 | L27: 3782.909445 | M27: =ROUND(((L27/(1-$O$7-$O$8-$O$9))-L27),2) -> 1045.31 | N27: 4828.219445 | O27: ='Transporte EAI'!O27 -> 3496 | P27: ='Transporte EAI'!P27 -> 0 | Q27: 911.43 | S27: 911.43 | T27: 200.07 | U27: 1244.65 | V27: 2356.15 | W27: ='Transporte EAI'!W27 -> 256.8 | X27: =EVEN(' CONSUMO DE MAT. B TOTAL'!$P$11*2/28)*W27/' CONSUMO DE MAT. B TOTAL'!$P$11 -> 27.17460317 | Y27: 2383.324603 | Z27: 4828.219445 | AA27: 7211.544048 | AC27: 7211.544048 | AD27: 2383.324603 | AE27: 4828.219445 | AH27: CENTRO-OESTE
B28: 5543.120332 | C28: 16 | E28: VIAPOL LTDA. | F28: VITO ARDITO, 6401 KM 118,5 - JARDIM CAMPO GRANDE - CEP:12282-535 | G28: São Paulo | H28: CACAPAVA - SP | I28: ='Transporte EAI'!I28 -> Natal - RN | J28: =VLOOKUP(G28,OFFSET('ANP ESTADO'!$A$1,MATCH($I$7,'ANP ESTADO'!B:B,0)+MATCH($H$10,OFFSET('ANP ESTADO'!$A$1,MATCH($I$7,'ANP ESTADO'!B:B,0),0,100000,1),0),2,100000,2),2,FALSE) -> 2.764058904 | K28: =VLOOKUP($H$10,OFFSET('ANP REGIÃO'!$A$9,MATCH('Transporte RR-1C'!$I$7,'ANP REGIÃO'!A:A,0),1,10000,10000),MATCH('Transporte RR-1C'!AH28,'ANP REGIÃO'!$B$8:$G$8,0),FALSE) -> 2.508906135 | L28: 2764.058904 | M28: 763.78 | N28: 3527.838904 | O28: ='Transporte EAI'!O28 -> 2870 | P28: ='Transporte EAI'!P28 -> 0 | Q28: 753.05 | S28: 753.05 | T28: 165.3 | U28: 1028.36 | V28: 1946.71 | W28: ='Transporte EAI'!W28 -> 648 | X28: =EVEN(' CONSUMO DE MAT. B TOTAL'!$P$11*2/28)*W28/' CONSUMO DE MAT. B TOTAL'!$P$11 -> 68.57142857 | Y28: 2015.281429 | Z28: 3527.838904 | AA28: 5543.120332 | AC28: 5543.120332 | AD28: 2015.281429 | AE28: 3527.838904 | AH28: SUDESTE
B29: 4923.528318 | C29: 17 | E29: STRATURA ASFALTOS S/A | F29: RUA LUIS DE CAMÕES, 26 - CAMPOS ELÍSEOS - CEP:25225-030 | G29: Rio de Janeiro | H29: DUQUE DE CAXIAS - RJ | I29: ='Transporte EAI'!I29 -> Natal - RN | J29: =VLOOKUP(G29,OFFSET('ANP ESTADO'!$A$1,MATCH($I$7,'ANP ESTADO'!B:B,0)+MATCH($H$10,OFFSET('ANP ESTADO'!$A$1,MATCH($I$7,'ANP ESTADO'!B:B,0),0,100000,1),0),2,100000,2),2,FALSE) -> 2.435215778 | K29: =VLOOKUP($H$10,OFFSET('ANP REGIÃO'!$A$9,MATCH('Transporte RR-1C'!$I$7,'ANP REGIÃO'!A:A,0),1,10000,10000),MATCH('Transporte RR-1C'!AH29,'ANP REGIÃO'!$B$8:$G$8,0),FALSE) -> 2.508906135 | L29: 2435.215778 | M29: 672.91 | N29: 3108.125778 | O29: ='Transporte EAI'!O29 -> 2578 | P29: ='Transporte EAI'!P29 -> 0 | Q29: 679.17 | S29: 679.17 | T29: 149.08 | U29: 927.47 | V29: 1755.72 | W29: ='Transporte EAI'!W29 -> 564 | X29: =EVEN(' CONSUMO DE MAT. B TOTAL'!$P$11*2/28)*W29/' CONSUMO DE MAT. B TOTAL'!$P$11 -> 59.68253968 | Y29: 1815.40254 | Z29: 3108.125778 | AA29: 4923.528318 | AC29: 4923.528318 | AD29: 1815.40254 | AE29: 3108.125778 | AH29: SUDESTE
B30: 4933.358318 | C30: 18 | E30: PROBITEC - PRODUTOS BETUMINOSOS E TECNOLOGIA DE APLICAÇÃO LTDA. | F30: AVENIDA CANAL DA PAVUNA, 620 - PAVUNA - CEP:21535-630 | G30: Rio de Janeiro | H30: RIO DE JANEIRO - RJ | I30: ='Transporte EAI'!I30 -> Natal - RN | J30: =VLOOKUP(G30,OFFSET('ANP ESTADO'!$A$1,MATCH($I$7,'ANP ESTADO'!B:B,0)+MATCH($H$10,OFFSET('ANP ESTADO'!$A$1,MATCH($I$7,'ANP ESTADO'!B:B,0),0,100000,1),0),2,100000,2),2,FALSE) -> 2.435215778 | K30: =VLOOKUP($H$10,OFFSET('ANP REGIÃO'!$A$9,MATCH('Transporte RR-1C'!$I$7,'ANP REGIÃO'!A:A,0),1,10000,10000),MATCH('Transporte RR-1C'!AH30,'ANP REGIÃO'!$B$8:$G$8,0),FALSE) -> 2.508906135 | L30: 2435.215778 | M30: 672.91 | N30: 3108.125778 | O30: ='Transporte EAI'!O30 -> 2593 | P30: ='Transporte EAI'!P30 -> 0 | Q30: 682.97 | S30: 682.97 | T30: 149.92 | U30: 932.66 | V30: 1765.55 | W30: ='Transporte EAI'!W30 -> 564 | X30: =EVEN(' CONSUMO DE MAT. B TOTAL'!$P$11*2/28)*W30/' CONSUMO DE MAT. B TOTAL'!$P$11 -> 59.68253968 | Y30: 1825.23254 | Z30: 3108.125778 | AA30: 4933.358318 | AC30: 4933.358318 | AD30: 1825.23254 | AE30: 3108.125778 | AH30: SUDESTE
B31: 5415.999451 | C31: 19 | E31: CASA DO ASFALTO DISTRIBUIDORA, INDÚSTRIA E COMÉRCIO DE ASFALTO LTDA. | F31: BR 376, PARQUE INDUSTRIAL, S/N LOTE 6/7/7-A-3-1 - GL.PATR.MARIALVA - CEP:86990-000 | G31: Paraná | H31: MARIALVA - PR | I31: ='Transporte EAI'!I31 -> Natal - RN | J31: =VLOOKUP(G31,OFFSET('ANP ESTADO'!$A$1,MATCH($I$7,'ANP ESTADO'!B:B,0)+MATCH($H$10,OFFSET('ANP ESTADO'!$A$1,MATCH($I$7,'ANP ESTADO'!B:B,0),0,100000,1),0),2,100000,2),2,FALSE) -> 2.422300086 | K31: =VLOOKUP($H$10,OFFSET('ANP REGIÃO'!$A$9,MATCH('Transporte RR-1C'!$I$7,'ANP REGIÃO'!A:A,0),1,10000,10000),MATCH('Transporte RR-1C'!AH31,'ANP REGIÃO'!$B$8:$G$8,0),FALSE) -> 2.431388937 | L31: 2422.300086 | M31: 669.34 | N31: 3091.640086 | O31: ='Transporte EAI'!O31 -> 3299 | P31: ='Transporte EAI'!P31 -> 0 | Q31: 861.59 | S31: 861.59 | T31: 189.12 | U31: 1176.57 | V31: 2227.28 | W31: ='Transporte EAI'!W31 -> 917.4 | X31: =EVEN(' CONSUMO DE MAT. B TOTAL'!$P$11*2/28)*W31/' CONSUMO DE MAT. B TOTAL'!$P$11 -> 97.07936508 | Y31: 2324.359365 | Z31: 3091.640086 | AA31: 5415.999451 | AC31: 5415.999451 | AD31: 2324.359365 | AE31: 3091.640086 | AH31: SUL
B32: 5447.456118 | C32: 20 | E32: PETROBRAS DISTRIBUIDORA S.A. | F32: RUA MAQUINISTA ELEODORO JACINTO, 100 - OFICINAS - CEP:84045-170 | G32: Paraná | H32: PONTA GROSSA - PR | I32: ='Transporte EAI'!I32 -> Natal - RN | J32: =VLOOKUP(G32,OFFSET('ANP ESTADO'!$A$1,MATCH($I$7,'ANP ESTADO'!B:B,0)+MATCH($H$10,OFFSET('ANP ESTADO'!$A$1,MATCH($I$7,'ANP ESTADO'!B:B,0),0,100000,1),0),2,100000,2),2,FALSE) -> 2.422300086 | K32: =VLOOKUP($H$10,OFFSET('ANP REGIÃO'!$A$9,MATCH('Transporte RR-1C'!$I$7,'ANP REGIÃO'!A:A,0),1,10000,10000),MATCH('Transporte RR-1C'!AH32,'ANP REGIÃO'!$B$8:$G$8,0),FALSE) -> 2.431388937 | L32: 2422.300086 | M32: 669.34 | N32: 3091.640086 | O32: ='Transporte EAI'!O32 -> 3343 | P32: ='Transporte EAI'!P32 -> 0 | Q32: 872.72 | S32: 872.72 | T32: 191.57 | U32: 1191.78 | V32: 2256.07 | W32: ='Transporte EAI'!W32 -> 942.6 | X32: =EVEN(' CONSUMO DE MAT. B TOTAL'!$P$11*2/28)*W32/' CONSUMO DE MAT. B TOTAL'!$P$11 -> 99.74603175 | Y32: 2355.816032 | Z32: 3091.640086 | AA32: 5447.456118 | AC32: 5447.456118 | AD32: 2355.816032 | AE32: 3091.640086 | AH32: SUL
D42: Acre
D43: Alagoas
D44: Amapá
D45: Amazonas
D46: Bahia
D47: Ceará
D48: Distrito Federal
D49: Espírito Santo
D50: Goiás
D51: Maranhão
D52: Mato Grosso
D53: Mato Grosso do Sul
D54: Minas Gerais
D55: Pará
D56: Paraíba
D57: Paraná
D58: Pernambuco
D59: Piauí
D60: Rio de Janeiro
D61: Rio Grande do Norte
D62: Rio Grande do Sul
D63: Rondônia
D64: Roraima
D65: Santa Catarina
D66: São Paulo
D67: Sergipe
D68: Tocantins
D72: ASFALTOS DILUÍDOS CM-30
D73: ASFALTOS DILUÍDOS CM-70
D74: ASFALTOS DILUÍDOS CR-250
D75: ASFALTOS DILUÍDOS CR-70
D76: CAP MODIFICADO POR BORRACHA DE PNEU AB22
D77: CAP MODIFICADO POR BORRACHA DE PNEU AB8
D78: CAP MODIFICADO POR POLÍMERO 55-75-E
D79: CAP MODIFICADO POR POLÍMERO 60-85-E
D80: CAP MODIFICADO POR POLÍMERO 65-90-E
D81: CIMENTOS ASFÁLTICOS CAP-150-200
D82: CIMENTOS ASFÁLTICOS CAP-30-45
D83: CIMENTOS ASFÁLTICOS CAP-50-70
D84: CIMENTOS ASFÁLTICOS CAP-85-100
D85: EMULSÃO ASFÁLTICA CATIÔNICA DE RUPTURA CONTROLADA PARA SERVIÇO DE LAMA ASFÁLTICA
D86: EMULSÃO ASFÁLTICA DE RUPTURA LENTA CATIÔNICA PARA SERVIÇO DE LAMA ASFÁLTICA
D87: EMULSÃO ASFÁLTICA DE RUPTURA LENTA DE CARGA NEUTRA PARA SERVIÇO DE LAMA ASFÁLTICA
D88: EMULSÃO ASFÁLTICA PARA SERVIÇO DE IMPRIMAÇÃO
D89: EMULSÕES ASF. MOD. POR POLÍMEROS RC1C-E
D90: EMULSÕES ASF. MOD. POR POLÍMEROS RL1C-E
D91: EMULSÕES ASF. MOD. POR POLÍMEROS RM1C-E
D92: EMULSÕES ASF. MOD. POR POLÍMEROS RR1C-E
D93: EMULSÕES ASF. MOD. POR POLÍMEROS RR2C-E
D94: EMULSÕES ASFÁLTICAS RL-1C
D95: EMULSÕES ASFÁLTICAS RM-1C
D96: EMULSÕES ASFÁLTICAS RM-2C
D97: EMULSÕES ASFÁLTICAS RR-1C
D98: EMULSÕES ASFÁLTICAS RR-2C

Sheet RESUMO_Transp
B11: ÍNDICE DE PAVIMENTAÇÃO DNIT | E11: TIPOLOGIA DO MATERIAL | G11: LIGANTE BETUMINOSO | K11: IMPOSTOS | L11: COFINS | M11: ='Transporte Cap 50-70'!O7 -> 0.0065 | N11: ='Transporte Cap 50-70'!P7 -> 0.0065
C12: DATA INICIAL | F12: 2014-07-01 | G12: ÍNDICE INICIAL | H12: ='Transporte Cap 50-70'!J8 -> 270.237 | L12: PIS | M12: ='Transporte Cap 50-70'!O8 -> 0.03 | N12: ='Transporte Cap 50-70'!P8 -> 0.03 | P12: LEGENDA
C13: DATA FINAL | F13: ='Transporte Cap 50-70'!H10 -> 2024-06-01 | G13: ÍNDICE FINAL | H13: ='Transporte Cap 50-70'!J9 -> 572.847 | L13: ICMS | M13: ='Transporte Cap 50-70'!O9 -> 0.18 | N13: ='Transporte Cap 50-70'!P9 -> 0.18 | P13: ENTRADA DE DADOS
B15: DATA-BASE | C15: PRODUTOS | D15: LOCALIDADES | H15: CUSTO ANP (R$/Kg) | J15: CUSTO ANP | K15: IMPOSTOS DO PRODUTO | L15: CUSTO DO PRODUTO COM IMPOSTOS | M15: DMT's | N15: DMT's | O15: CUSTO DO TRANSPORTE TOTAL | P15: ICMS | Q15: ATUALIZAÇÃO DO CUSTO DE TRANSPORTE | R15: CUSTO DO TRANSPORTE RODOVIA PAVIMENTADA COM IMPOSTOS E ATUALIZAÇÃO MONETÁRIA | S15: PEDÁGIO | U15: TOTAL TRANSPORTE | V15: TOTAL PRODUTO | W15: TOTAL GERAL
B16: =F13 -> 2024-06-01 | D16: REFINARIAS | E16: ENDEREÇO | F16: ORIGEM REFINARIAS / DISTRIBUIDORAS | G16: DESTINO | H16: ESTADO | I16: REGIÃO | J16: R$/t | K16: R$/t | L16: R$/t | M16: KM | N16: KM | O16: R$/t | P16: R$/t | Q16: R$/t | R16: R$/t | S16: CUSTO POR EIXO | T16: R$/t | U16: R$/t | V16: R$/t | W16: R$/t
B17: 1 | C17: CAP 50/70 | D17: Refinaria Abreu e Lima | E17: Rodovia PE 60, Km 10 - Ipojuca - PE CEP:55590-000 | F17: =VLOOKUP($W17,'Transporte Cap 50-70'!$B:$AA,7,FALSE) -> FORTALEZA - CE | G17: =VLOOKUP($W17,'Transporte Cap 50-70'!$B:$AA,8,FALSE) -> Natal - RN | H17: =VLOOKUP($W17,'Transporte Cap 50-70'!$B:$AA,9,FALSE) -> 3.263247257 | I17: =VLOOKUP($W17,'Transporte Cap 50-70'!$B:$AA,10,FALSE) -> 3.510867331 | J17: =VLOOKUP($W17,'Transporte Cap 50-70'!$B:$AA,11,FALSE) -> 3263.247257 | K17: =VLOOKUP($W17,'Transporte Cap 50-70'!$B:$AA,12,FALSE) -> 901.71 | L17: =VLOOKUP($W17,'Transporte Cap 50-70'!$B:$AA,13,FALSE) -> 4164.957257 | M17: =VLOOKUP($W17,'Transporte Cap 50-70'!$B$13:$AA$25,14,FALSE) -> 525 | N17: =VLOOKUP($W17,'Transporte Cap 50-70'!$B:$AA,15,FALSE) -> 0 | O17: =VLOOKUP($W17,'Transporte Cap 50-70'!$B:$AA,18,FALSE) -> 159.76 | P17: =VLOOKUP($W17,'Transporte Cap 50-70'!$B:$AA,19,FALSE) -> 35.06 | Q17: =VLOOKUP($W17,'Transporte Cap 50-70'!$B:$AA,20,FALSE) -> 218.15 | R17: =VLOOKUP($W17,'Transporte Cap 50-70'!$B:$AA,21,FALSE) -> 412.97 | S17: =VLOOKUP($W17,'Transporte Cap 50-70'!$B:$AA,22,FALSE) -> 0 | T17: =VLOOKUP($W17,'Transporte Cap 50-70'!$B:$AA,23,FALSE) -> 0 | U17: =VLOOKUP($W17,'Transporte Cap 50-70'!$B:$AA,24,FALSE) -> 412.97 | V17: =VLOOKUP($W17,'Transporte Cap 50-70'!$B:$AA,25,FALSE) -> 4164.957257 | W17: =SMALL('Transporte Cap 50-70'!$AA$13:$AA$25,1) -> 4577.927257
B18: 2 | D18: Refinaria Potiguar Clara Camarão | E18: Rodovia RN 221, KM 25 - Guamaré - RN CEP:59598-000 | F18: =VLOOKUP($W18,'Transporte Cap 50-70'!$B:$AA,7,FALSE) -> GUAMARÉ - RN | G18: =VLOOKUP($W18,'Transporte Cap 50-70'!$B:$AA,8,FALSE) -> Natal - RN | H18: =VLOOKUP($W18,'Transporte Cap 50-70'!$B:$AA,9,FALSE) -> - | I18: =VLOOKUP($W18,'Transporte Cap 50-70'!$B:$AA,10,FALSE) -> 3.510867331 | J18: =VLOOKUP($W18,'Transporte Cap 50-70'!$B:$AA,11,FALSE) -> 3510.867331 | K18: =VLOOKUP($W18,'Transporte Cap 50-70'!$B:$AA,12,FALSE) -> 970.14 | L18: =VLOOKUP($W18,'Transporte Cap 50-70'!$B:$AA,13,FALSE) -> 4481.007331 | M18: =VLOOKUP($W18,'Transporte Cap 50-70'!$B$13:$AA$25,14,FALSE) -> 176 | N18: =VLOOKUP($W18,'Transporte Cap 50-70'!$B:$AA,15,FALSE) -> 0 | O18: =VLOOKUP($W18,'Transporte Cap 50-70'!$B:$AA,18,FALSE) -> 71.47 | P18: =VLOOKUP($W18,'Transporte Cap 50-70'!$B:$AA,19,FALSE) -> 15.68 | Q18: =VLOOKUP($W18,'Transporte Cap 50-70'!$B:$AA,20,FALSE) -> 97.59 | R18: =VLOOKUP($W18,'Transporte Cap 50-70'!$B:$AA,21,FALSE) -> 184.74 | S18: =VLOOKUP($W18,'Transporte Cap 50-70'!$B:$AA,22,FALSE) -> 0 | T18: =VLOOKUP($W18,'Transporte Cap 50-70'!$B:$AA,23,FALSE) -> 0 | U18: =VLOOKUP($W18,'Transporte Cap 50-70'!$B:$AA,24,FALSE) -> 184.74 | V18: =VLOOKUP($W18,'Transporte Cap 50-70'!$B:$AA,25,FALSE) -> 4481.007331 | W18: =SMALL('Transporte Cap 50-70'!$AA$13:$AA$25,2) -> 4665.747331
B19: 3 | D19: Complexo Petroquímico do Rio de Janeiro (Comperj) | E19: Rodovia Estadual RJ-116 - Km 5,2 - Acesso A-1, s/n, Complemento Sambaetiba - Zona Urbana do 4º Distrito de Itaboraí - RJ CEP:24841-203 | F19: =VLOOKUP($W19,'Transporte Cap 50-70'!$B:$AA,7,FALSE) -> IPOJUCA - PE | G19: =VLOOKUP($W19,'Transporte Cap 50-70'!$B:$AA,8,FALSE) -> Natal - RN | H19: =VLOOKUP($W19,'Transporte Cap 50-70'!$B:$AA,9,FALSE) -> - | I19: =VLOOKUP($W19,'Transporte Cap 50-70'!$B:$AA,10,FALSE) -> 3.510867331 | J19: =VLOOKUP($W19,'Transporte Cap 50-70'!$B:$AA,11,FALSE) -> 3510.867331 | K19: =VLOOKUP($W19,'Transporte Cap 50-70'!$B:$AA,12,FALSE) -> 970.14 | L19: =VLOOKUP($W19,'Transporte Cap 50-70'!$B:$AA,13,FALSE) -> 4481.007331 | M19: =VLOOKUP($W19,'Transporte Cap 50-70'!$B$13:$AA$25,14,FALSE) -> 337 | N19: =VLOOKUP($W19,'Transporte Cap 50-70'!$B:$AA,15,FALSE) -> 0 | O19: =VLOOKUP($W19,'Transporte Cap 50-70'!$B:$AA,18,FALSE) -> 112.2 | P19: =VLOOKUP($W19,'Transporte Cap 50-70'!$B:$AA,19,FALSE) -> 24.62 | Q19: =VLOOKUP($W19,'Transporte Cap 50-70'!$B:$AA,20,FALSE) -> 153.21 | R19: =VLOOKUP($W19,'Transporte Cap 50-70'!$B:$AA,21,FALSE) -> 290.03 | S19: =VLOOKUP($W19,'Transporte Cap 50-70'!$B:$AA,22,FALSE) -> 64.2 | T19: =VLOOKUP($W19,'Transporte Cap 50-70'!$B:$AA,23,FALSE) -> 4.740485494 | U19: =VLOOKUP($W19,'Transporte Cap 50-70'!$B:$AA,24,FALSE) -> 294.7704855 | V19: =VLOOKUP($W19,'Transporte Cap 50-70'!$B:$AA,25,FALSE) -> 4481.007331 | W19: =SMALL('Transporte Cap 50-70'!$AA$13:$AA$25,3) -> 4775.777817
B20: 4 | F20: =VLOOKUP($W20,'Transporte Cap 50-70'!$B:$AA,7,FALSE) -> SÃO FRANCISCO DO CONDE - BA | G20: =VLOOKUP($W20,'Transporte Cap 50-70'!$B:$AA,8,FALSE) -> Natal - RN | H20: =VLOOKUP($W20,'Transporte Cap 50-70'!$B:$AA,9,FALSE) -> 3.695114612 | I20: =VLOOKUP($W20,'Transporte Cap 50-70'!$B:$AA,10,FALSE) -> 3.510867331 | J20: =VLOOKUP($W20,'Transporte Cap 50-70'!$B:$AA,11,FALSE) -> 3695.114612 | K20: =VLOOKUP($W20,'Transporte Cap 50-70'!$B:$AA,12,FALSE) -> 1021.05 | L20: =VLOOKUP($W20,'Transporte Cap 50-70'!$B:$AA,13,FALSE) -> 4716.164612 | M20: =VLOOKUP($W20,'Transporte Cap 50-70'!$B$13:$AA$25,14,FALSE) -> 1087 | N20: =VLOOKUP($W20,'Transporte Cap 50-70'!$B:$AA,15,FALSE) -> 0 | O20: =VLOOKUP($W20,'Transporte Cap 50-70'!$B:$AA,18,FALSE) -> 301.95 | P20: =VLOOKUP($W20,'Transporte Cap 50-70'!$B:$AA,19,FALSE) -> 66.28 | Q20: =VLOOKUP($W20,'Transporte Cap 50-70'!$B:$AA,20,FALSE) -> 412.34 | R20: =VLOOKUP($W20,'Transporte Cap 50-70'!$B:$AA,21,FALSE) -> 780.57 | S20: =VLOOKUP($W20,'Transporte Cap 50-70'!$B:$AA,22,FALSE) -> 0 | T20: =VLOOKUP($W20,'Transporte Cap 50-70'!$B:$AA,23,FALSE) -> 0 | U20: =VLOOKUP($W20,'Transporte Cap 50-70'!$B:$AA,24,FALSE) -> 780.57 | V20: =VLOOKUP($W20,'Transporte Cap 50-70'!$B:$AA,25,FALSE) -> 4716.164612 | W20: =SMALL('Transporte Cap 50-70'!$AA$13:$AA$25,4) -> 5496.734612
B21: 5 | F21: =VLOOKUP($W21,'Transporte Cap 50-70'!$B:$AA,7,FALSE) -> BETIM - MG | G21: =VLOOKUP($W21,'Transporte Cap 50-70'!$B:$AA,8,FALSE) -> Natal - RN | H21: =VLOOKUP($W21,'Transporte Cap 50-70'!$B:$AA,9,FALSE) -> 3.176829491 | I21: =VLOOKUP($W21,'Transporte Cap 50-70'!$B:$AA,10,FALSE) -> 3.217674888 | J21: =VLOOKUP($W21,'Transporte Cap 50-70'!$B:$AA,11,FALSE) -> 3176.829491 | K21: =VLOOKUP($W21,'Transporte Cap 50-70'!$B:$AA,12,FALSE) -> 877.83 | L21: =VLOOKUP($W21,'Transporte Cap 50-70'!$B:$AA,13,FALSE) -> 4054.659491 | M21: =VLOOKUP($W21,'Transporte Cap 50-70'!$B$13:$AA$25,14,FALSE) -> 2371 | N21: =VLOOKUP($W21,'Transporte Cap 50-70'!$B:$AA,15,FALSE) -> 0 | O21: =VLOOKUP($W21,'Transporte Cap 50-70'!$B:$AA,18,FALSE) -> 626.8 | P21: =VLOOKUP($W21,'Transporte Cap 50-70'!$B:$AA,19,FALSE) -> 137.59 | Q21: =VLOOKUP($W21,'Transporte Cap 50-70'!$B:$AA,20,FALSE) -> 855.95 | R21: =VLOOKUP($W21,'Transporte Cap 50-70'!$B:$AA,21,FALSE) -> 1620.34 | S21: =VLOOKUP($W21,'Transporte Cap 50-70'!$B:$AA,22,FALSE) -> 183 | T21: =VLOOKUP($W21,'Transporte Cap 50-70'!$B:$AA,23,FALSE) -> 13.51259884 | U21: =VLOOKUP($W21,'Transporte Cap 50-70'!$B:$AA,24,FALSE) -> 1633.852599 | V21: =VLOOKUP($W21,'Transporte Cap 50-70'!$B:$AA,25,FALSE) -> 4054.659491 | W21: =SMALL('Transporte Cap 50-70'!$AA$13:$AA$25,5) -> 5688.51209
B22: 6 | F22: =VLOOKUP($W22,'Transporte Cap 50-70'!$B:$AA,7,FALSE) -> DUQUE DE CAXIAS - RJ | G22: =VLOOKUP($W22,'Transporte Cap 50-70'!$B:$AA,8,FALSE) -> Natal - RN | H22: =VLOOKUP($W22,'Transporte Cap 50-70'!$B:$AA,9,FALSE) -> 3.290509442 | I22: =VLOOKUP($W22,'Transporte Cap 50-70'!$B:$AA,10,FALSE) -> 3.217674888 | J22: =VLOOKUP($W22,'Transporte Cap 50-70'!$B:$AA,11,FALSE) -> 3290.509442 | K22: =VLOOKUP($W22,'Transporte Cap 50-70'!$B:$AA,12,FALSE) -> 909.25 | L22: =VLOOKUP($W22,'Transporte Cap 50-70'!$B:$AA,13,FALSE) -> 4199.759442 | M22: =VLOOKUP($W22,'Transporte Cap 50-70'!$B$13:$AA$25,14,FALSE) -> 2578 | N22: =VLOOKUP($W22,'Transporte Cap 50-70'!$B:$AA,15,FALSE) -> 0 | O22: =VLOOKUP($W22,'Transporte Cap 50-70'!$B:$AA,18,FALSE) -> 679.17 | P22: =VLOOKUP($W22,'Transporte Cap 50-70'!$B:$AA,19,FALSE) -> 149.08 | Q22: =VLOOKUP($W22,'Transporte Cap 50-70'!$B:$AA,20,FALSE) -> 927.47 | R22: =VLOOKUP($W22,'Transporte Cap 50-70'!$B:$AA,21,FALSE) -> 1755.72 | S22: =VLOOKUP($W22,'Transporte Cap 50-70'!$B:$AA,22,FALSE) -> 564 | T22: =VLOOKUP($W22,'Transporte Cap 50-70'!$B:$AA,23,FALSE) -> 41.64538658 | U22: =VLOOKUP($W22,'Transporte Cap 50-70'!$B:$AA,24,FALSE) -> 1797.365387 | V22: =VLOOKUP($W22,'Transporte Cap 50-70'!$B:$AA,25,FALSE) -> 4199.759442 | W22: =SMALL('Transporte Cap 50-70'!$AA$13:$AA$25,6) -> 5997.124829
O23: =VLOOKUP($W23,'Transporte Cap 50-70'!$B:$AA,18,FALSE) ->  | R23: =VLOOKUP($W23,'Transporte Cap 50-70'!$B:$AA,21,FALSE) -> 
O24: =VLOOKUP($W24,'Transporte Cap 50-70'!$B:$AA,18,FALSE) ->  | R24: =VLOOKUP($W24,'Transporte Cap 50-70'!$B:$AA,21,FALSE) -> 
O25: =VLOOKUP($W25,'Transporte Cap 50-70'!$B:$AA,18,FALSE) ->  | R25: =VLOOKUP($W25,'Transporte Cap 50-70'!$B:$AA,21,FALSE) -> 
O26: =VLOOKUP($W26,'Transporte Cap 50-70'!$B:$AA,18,FALSE) ->  | R26: =VLOOKUP($W26,'Transporte Cap 50-70'!$B:$AA,21,FALSE) -> 
O27: =VLOOKUP($W27,'Transporte Cap 50-70'!$B:$AA,18,FALSE) ->  | R27: =VLOOKUP($W27,'Transporte Cap 50-70'!$B:$AA,21,FALSE) -> 
B28: 1 | C28: CAP MODIF. C/ POLÍMERO 60/85 | D28: Refinaria Abreu e Lima | E28: Rodovia PE 60, Km 10 - Ipojuca - PE CEP:55590-000 | F28: Transporte EAI'! | G28: Palmas - TO | H28: 2.261894948 | I28: 2.353413905 | J28: 2261.894948 | K28: 393.19 | L28: 2655.084948 | M28: 1181 | N28: 1181 | O28: =VLOOKUP($W28,'Transporte Cap 50-70'!$B:$AA,18,FALSE) ->  | P28: 44.41 | Q28: 202.55 | R28: =VLOOKUP($W28,'Transporte Cap 50-70'!$B:$AA,21,FALSE) ->  | S28: 102 | T28: 102 | U28: 674.69 | V28: 2655.084948 | W28: 3329.774948
B29: 2 | D29: Refinaria Potiguar Clara Camarão | E29: Rodovia RN 221, KM 25 - Guamaré - RN CEP:59598-000 | F29: UBERLANDIA - MG | G29: Palmas - TO | H29: 2.261894948 | I29: 2.353413905 | J29: 2261.894948 | K29: 393.19 | L29: 2655.084948 | M29: 1182 | N29: 1182 | O29: =VLOOKUP($W29,'Transporte Cap 50-70'!$B:$AA,18,FALSE) ->  | P29: 44.45 | Q29: 202.71 | R29: =VLOOKUP($W29,'Transporte Cap 50-70'!$B:$AA,21,FALSE) ->  | S29: 102 | T29: 102 | U29: 675.14 | V29: 2655.084948 | W29: 3330.224948
B30: 3 | D30: Complexo Petroquímico do Rio de Janeiro (Comperj) | E30: Rodovia Estadual RJ-116 - Km 5,2 - Acesso A-1, s/n, Complemento Sambaetiba - Zona Urbana do 4º Distrito de Itaboraí - RJ CEP:24841-203 | F30: GOIANIRA - GO | G30: Palmas - TO | I30: 2.555206955 | J30: 2555.206955 | K30: 444.18 | L30: 2999.386955 | M30: 814 | N30: 814 | O30: =VLOOKUP($W30,'Transporte Cap 50-70'!$B:$AA,18,FALSE) ->  | P30: 31.75 | Q30: 144.81 | R30: =VLOOKUP($W30,'Transporte Cap 50-70'!$B:$AA,21,FALSE) ->  | S30: 0 | T30: 0 | U30: 409.44 | V30: 2999.386955 | W30: 3408.826955
B31: 4 | F31: BRASÍLIA - DF | G31: Palmas - TO | I31: 2.555206955 | J31: 2555.206955 | K31: 444.18 | L31: 2999.386955 | M31: 822 | N31: 822 | O31: =VLOOKUP($W31,'Transporte Cap 50-70'!$B:$AA,18,FALSE) ->  | P31: 32.03 | Q31: 146.07 | R31: =VLOOKUP($W31,'Transporte Cap 50-70'!$B:$AA,21,FALSE) ->  | S31: 0 | T31: 0 | U31: 413 | V31: 2999.386955 | W31: 3412.386955
B32: 5 | F32: APARECIDA DE GOIANIA - GO | G32: Palmas - TO | I32: 2.555206955 | J32: 2555.206955 | K32: 444.18 | L32: 2999.386955 | M32: 842 | N32: 842 | O32: =VLOOKUP($W32,'Transporte Cap 50-70'!$B:$AA,18,FALSE) ->  | P32: 32.72 | Q32: 149.22 | R32: =VLOOKUP($W32,'Transporte Cap 50-70'!$B:$AA,21,FALSE) ->  | S32: 0 | T32: 0 | U32: 421.9 | V32: 2999.386955 | W32: 3421.286955
B33: 6 | F33: ANÁPOLIS - GO | G33: Palmas - TO | I33: 2.555206955 | J33: 2555.206955 | K33: 444.18 | L33: 2999.386955 | M33: 950 | N33: 950 | O33: =VLOOKUP($W33,'Transporte Cap 50-70'!$B:$AA,18,FALSE) ->  | P33: 36.44 | Q33: 166.21 | R33: =VLOOKUP($W33,'Transporte Cap 50-70'!$B:$AA,21,FALSE) ->  | S33: 0 | T33: 0 | U33: 469.93 | V33: 2999.386955 | W33: 3469.316955
B35: 1 | C35: EAI | D35: Refinaria Abreu e Lima | E35: Rodovia PE 60, Km 10 - Ipojuca - PE CEP:55590-000 | F35: =VLOOKUP($W35,'Transporte EAI'!$B$13:$AA$32,7,FALSE) -> SARZEDO - MG | G35: =VLOOKUP($W35,'Transporte EAI'!$B$13:$AA$32,8,FALSE) -> Natal - RN | H35: =VLOOKUP($W35,'Transporte EAI'!$B$13:$AA$32,9,FALSE) -> 2.235142226 | I35: =VLOOKUP($W35,'Transporte EAI'!$B$13:$AA$32,10,FALSE) -> 2.329044365 | J35: =VLOOKUP($W35,'Transporte EAI'!$B$13:$AA$32,11,FALSE) -> 2235.142226 | K35: =VLOOKUP($W35,'Transporte EAI'!$B$13:$AA$32,12,FALSE) -> 617.62 | L35: =VLOOKUP($W35,'Transporte EAI'!$B$13:$AA$32,13,FALSE) -> 2852.762226 | M35: =VLOOKUP($W35,'Transporte EAI'!$B$13:$AA$32,14,FALSE) -> 2379 | N35: =VLOOKUP($W35,'Transporte EAI'!$B$13:$AA$32,15,FALSE) -> 0 | O35: =VLOOKUP($W35,'Transporte EAI'!$B$13:$AA$32,18,FALSE) -> 628.83 | P35: =VLOOKUP($W35,'Transporte EAI'!$B$13:$AA$32,19,FALSE) -> 138.03 | Q35: =VLOOKUP($W35,'Transporte EAI'!$B$13:$AA$32,20,FALSE) -> 858.72 | R35: =VLOOKUP($W35,'Transporte EAI'!$B$13:$AA$32,21,FALSE) -> 1625.58 | S35: =VLOOKUP($W35,'Transporte EAI'!$B$13:$AA$32,22,FALSE) -> 508 | T35: =VLOOKUP($W35,'Transporte EAI'!$B$13:$AA$32,23,FALSE) -> 53.75661376 | U35: =VLOOKUP($W35,'Transporte EAI'!$B$13:$AA$32,24,FALSE) -> 1679.336614 | V35: =VLOOKUP($W35,'Transporte EAI'!$B$13:$AA$32,25,FALSE) -> 2852.762226 | W35: =SMALL('Transporte EAI'!$AA$13:$AA$32,1) -> 4532.098839
B36: 2 | D36: Refinaria Potiguar Clara Camarão | E36: Rodovia RN 221, KM 25 - Guamaré - RN CEP:59598-000 | F36: =VLOOKUP($W36,'Transporte EAI'!$B$13:$AA$32,7,FALSE) -> UBERLANDIA - MG | G36: =VLOOKUP($W36,'Transporte EAI'!$B$13:$AA$32,8,FALSE) -> Natal - RN | H36: =VLOOKUP($W36,'Transporte EAI'!$B$13:$AA$32,9,FALSE) -> 2.235142226 | I36: =VLOOKUP($W36,'Transporte EAI'!$B$13:$AA$32,10,FALSE) -> 2.329044365 | J36: =VLOOKUP($W36,'Transporte EAI'!$B$13:$AA$32,11,FALSE) -> 2235.142226 | K36: =VLOOKUP($W36,'Transporte EAI'!$B$13:$AA$32,12,FALSE) -> 617.62 | L36: =VLOOKUP($W36,'Transporte EAI'!$B$13:$AA$32,13,FALSE) -> 2852.762226 | M36: =VLOOKUP($W36,'Transporte EAI'!$B$13:$AA$32,14,FALSE) -> 2572 | N36: =VLOOKUP($W36,'Transporte EAI'!$B$13:$AA$32,15,FALSE) -> 0 | O36: =VLOOKUP($W36,'Transporte EAI'!$B$13:$AA$32,18,FALSE) -> 677.66 | P36: =VLOOKUP($W36,'Transporte EAI'!$B$13:$AA$32,19,FALSE) -> 148.75 | Q36: =VLOOKUP($W36,'Transporte EAI'!$B$13:$AA$32,20,FALSE) -> 925.4 | R36: =VLOOKUP($W36,'Transporte EAI'!$B$13:$AA$32,21,FALSE) -> 1751.81 | S36: =VLOOKUP($W36,'Transporte EAI'!$B$13:$AA$32,22,FALSE) -> 335.4 | T36: =VLOOKUP($W36,'Transporte EAI'!$B$13:$AA$32,23,FALSE) -> 35.49206349 | U36: =VLOOKUP($W36,'Transporte EAI'!$B$13:$AA$32,24,FALSE) -> 1787.302063 | V36: =VLOOKUP($W36,'Transporte EAI'!$B:$AA,25,FALSE) -> 2852.762226 | W36: =SMALL('Transporte EAI'!$AA$13:$AA$32,2) -> 4640.064289
B37: 3 | D37: Complexo Petroquímico do Rio de Janeiro (Comperj) | E37: Rodovia Estadual RJ-116 - Km 5,2 - Acesso A-1, s/n, Complemento Sambaetiba - Zona Urbana do 4º Distrito de Itaboraí - RJ CEP:24841-203 | F37: =VLOOKUP($W37,'Transporte EAI'!$B$13:$AA$32,7,FALSE) -> UBERLANDIA - MG | G37: =VLOOKUP($W37,'Transporte EAI'!$B$13:$AA$32,8,FALSE) -> Natal - RN | H37: =VLOOKUP($W37,'Transporte EAI'!$B$13:$AA$32,9,FALSE) -> 2.235142226 | I37: =VLOOKUP($W37,'Transporte EAI'!$B$13:$AA$32,10,FALSE) -> 2.329044365 | J37: =VLOOKUP($W37,'Transporte EAI'!$B$13:$AA$32,11,FALSE) -> 2235.142226 | K37: =VLOOKUP($W37,'Transporte EAI'!$B$13:$AA$32,12,FALSE) -> 617.62 | L37: =VLOOKUP($W37,'Transporte EAI'!$B$13:$AA$32,13,FALSE) -> 2852.762226 | M37: =VLOOKUP($W37,'Transporte EAI'!$B$13:$AA$32,14,FALSE) -> 2575 | N37: =VLOOKUP($W37,'Transporte EAI'!$B$13:$AA$32,15,FALSE) -> 0 | O37: =VLOOKUP($W37,'Transporte EAI'!$B$13:$AA$32,18,FALSE) -> 678.41 | P37: =VLOOKUP($W37,'Transporte EAI'!$B$13:$AA$32,19,FALSE) -> 148.91 | Q37: =VLOOKUP($W37,'Transporte EAI'!$B$13:$AA$32,20,FALSE) -> 926.42 | R37: =VLOOKUP($W37,'Transporte EAI'!$B$13:$AA$32,21,FALSE) -> 1753.74 | S37: =VLOOKUP($W37,'Transporte EAI'!$B$13:$AA$32,22,FALSE) -> 335.4 | T37: =VLOOKUP($W37,'Transporte EAI'!$B$13:$AA$32,23,FALSE) -> 35.49206349 | U37: =VLOOKUP($W37,'Transporte EAI'!$B$13:$AA$32,24,FALSE) -> 1789.232063 | V37: =VLOOKUP($W37,'Transporte EAI'!$B:$AA,25,FALSE) -> 2852.762226 | W37: =SMALL('Transporte EAI'!$AA$13:$AA$32,3) -> 4641.994289
B38: 4 | F38: =VLOOKUP($W38,'Transporte EAI'!$B$13:$AA$32,7,FALSE) -> ANÁPOLIS - GO | G38: =VLOOKUP($W38,'Transporte EAI'!$B$13:$AA$32,8,FALSE) -> Natal - RN | H38: =VLOOKUP($W38,'Transporte EAI'!$B$13:$AA$32,9,FALSE) -> 2.342870072 | I38: =VLOOKUP($W38,'Transporte EAI'!$B$13:$AA$32,10,FALSE) -> 2.680425729 | J38: =VLOOKUP($W38,'Transporte EAI'!$B$13:$AA$32,11,FALSE) -> 2342.870072 | K38: =VLOOKUP($W38,'Transporte EAI'!$B$13:$AA$32,12,FALSE) -> 647.39 | L38: =VLOOKUP($W38,'Transporte EAI'!$B$13:$AA$32,13,FALSE) -> 2990.260072 | M38: =VLOOKUP($W38,'Transporte EAI'!$B$13:$AA$32,14,FALSE) -> 2554 | N38: =VLOOKUP($W38,'Transporte EAI'!$B$13:$AA$32,15,FALSE) -> 0 | O38: =VLOOKUP($W38,'Transporte EAI'!$B$13:$AA$32,18,FALSE) -> 673.1 | P38: =VLOOKUP($W38,'Transporte EAI'!$B$13:$AA$32,19,FALSE) -> 147.75 | Q38: =VLOOKUP($W38,'Transporte EAI'!$B$13:$AA$32,20,FALSE) -> 919.18 | R38: =VLOOKUP($W38,'Transporte EAI'!$B$13:$AA$32,21,FALSE) -> 1740.03 | S38: =VLOOKUP($W38,'Transporte EAI'!$B$13:$AA$32,22,FALSE) -> 114.6 | T38: =VLOOKUP($W38,'Transporte EAI'!$B$13:$AA$32,23,FALSE) -> 12.12698413 | U38: =VLOOKUP($W38,'Transporte EAI'!$B$13:$AA$32,24,FALSE) -> 1752.156984 | V38: =VLOOKUP($W38,'Transporte EAI'!$B:$AA,25,FALSE) -> 2990.260072 | W38: =SMALL('Transporte EAI'!$AA$13:$AA$32,4) -> 4742.417056
B39: 5 | F39: =VLOOKUP($W39,'Transporte EAI'!$B$13:$AA$32,7,FALSE) -> DUQUE DE CAXIAS - RJ | G39: =VLOOKUP($W39,'Transporte EAI'!$B$13:$AA$32,8,FALSE) -> Natal - RN | H39: =VLOOKUP($W39,'Transporte EAI'!$B$13:$AA$32,9,FALSE) -> - | I39: =VLOOKUP($W39,'Transporte EAI'!$B$13:$AA$32,10,FALSE) -> 2.329044365 | J39: =VLOOKUP($W39,'Transporte EAI'!$B$13:$AA$32,11,FALSE) -> 2329.044365 | K39: =VLOOKUP($W39,'Transporte EAI'!$B$13:$AA$32,12,FALSE) -> 643.57 | L39: =VLOOKUP($W39,'Transporte EAI'!$B$13:$AA$32,13,FALSE) -> 2972.614365 | M39: =VLOOKUP($W39,'Transporte EAI'!$B$13:$AA$32,14,FALSE) -> 2578 | N39: =VLOOKUP($W39,'Transporte EAI'!$B$13:$AA$32,15,FALSE) -> 0 | O39: =VLOOKUP($W39,'Transporte EAI'!$B$13:$AA$32,18,FALSE) -> 679.17 | P39: =VLOOKUP($W39,'Transporte EAI'!$B$13:$AA$32,19,FALSE) -> 149.08 | Q39: =VLOOKUP($W39,'Transporte EAI'!$B$13:$AA$32,20,FALSE) -> 927.47 | R39: =VLOOKUP($W39,'Transporte EAI'!$B$13:$AA$32,21,FALSE) -> 1755.72 | S39: =VLOOKUP($W39,'Transporte EAI'!$B$13:$AA$32,22,FALSE) -> 564 | T39: =VLOOKUP($W39,'Transporte EAI'!$B$13:$AA$32,23,FALSE) -> 59.68253968 | U39: =VLOOKUP($W39,'Transporte EAI'!$B$13:$AA$32,24,FALSE) -> 1815.40254 | V39: =VLOOKUP($W39,'Transporte EAI'!$B:$AA,25,FALSE) -> 2972.614365 | W39: =SMALL('Transporte EAI'!$AA$13:$AA$32,5) -> 4788.016905
B40: 6 | F40: =VLOOKUP($W40,'Transporte EAI'!$B$13:$AA$32,7,FALSE) -> APARECIDA DE GOIANIA - GO | G40: =VLOOKUP($W40,'Transporte EAI'!$B$13:$AA$32,8,FALSE) -> Natal - RN | H40: =VLOOKUP($W40,'Transporte EAI'!$B$13:$AA$32,9,FALSE) -> 2.342870072 | I40: =VLOOKUP($W40,'Transporte EAI'!$B$13:$AA$32,10,FALSE) -> 2.680425729 | J40: =VLOOKUP($W40,'Transporte EAI'!$B$13:$AA$32,11,FALSE) -> 2342.870072 | K40: =VLOOKUP($W40,'Transporte EAI'!$B$13:$AA$32,12,FALSE) -> 647.39 | L40: =VLOOKUP($W40,'Transporte EAI'!$B$13:$AA$32,13,FALSE) -> 2990.260072 | M40: =VLOOKUP($W40,'Transporte EAI'!$B$13:$AA$32,14,FALSE) -> 2622 | N40: =VLOOKUP($W40,'Transporte EAI'!$B$13:$AA$32,15,FALSE) -> 0 | O40: =VLOOKUP($W40,'Transporte EAI'!$B$13:$AA$32,18,FALSE) -> 690.31 | P40: =VLOOKUP($W40,'Transporte EAI'!$B$13:$AA$32,19,FALSE) -> 151.53 | Q40: =VLOOKUP($W40,'Transporte EAI'!$B$13:$AA$32,20,FALSE) -> 942.68 | R40: =VLOOKUP($W40,'Transporte EAI'!$B$13:$AA$32,21,FALSE) -> 1784.52 | S40: =VLOOKUP($W40,'Transporte EAI'!$B$13:$AA$32,22,FALSE) -> 145.2 | T40: =VLOOKUP($W40,'Transporte EAI'!$B$13:$AA$32,23,FALSE) -> 15.36507937 | U40: =VLOOKUP($W40,'Transporte EAI'!$B$13:$AA$32,24,FALSE) -> 1799.885079 | V40: =VLOOKUP($W40,'Transporte EAI'!$B:$AA,25,FALSE) -> 2990.260072 | W40: =SMALL('Transporte EAI'!$AA$13:$AA$32,6) -> 4790.145152
B42: 1 | C42: RR1-C | D42: Refinaria Abreu e Lima | E42: Rodovia PE 60, Km 10 - Ipojuca - PE CEP:55590-000 | F42: =VLOOKUP($W42,'Transporte RR-1C'!$B:$AA,7,FALSE) -> SARZEDO - MG | G42: =VLOOKUP($W42,'Transporte RR-1C'!$B:$AA,8,FALSE) -> Natal - RN | H42: =VLOOKUP($W42,'Transporte RR-1C'!$B:$AA,9,FALSE) -> 2.312616649 | I42: =VLOOKUP($W42,'Transporte RR-1C'!$B:$AA,10,FALSE) -> 2.508906135 | J42: =VLOOKUP($W42,'Transporte RR-1C'!$B:$AA,11,FALSE) -> 2312.616649 | K42: =VLOOKUP($W42,'Transporte RR-1C'!$B:$AA,12,FALSE) -> 639.03 | L42: =VLOOKUP($W42,'Transporte RR-1C'!$B:$AA,13,FALSE) -> 2951.646649 | M42: =VLOOKUP($W42,'Transporte RR-1C'!$B:$AA,14,FALSE) -> 2379 | N42: =VLOOKUP($W42,'Transporte RR-1C'!$B:$AA,15,FALSE) -> 0 | O42: =VLOOKUP($W42,'Transporte RR-1C'!$B:$AA,18,FALSE) -> 628.83 | P42: =VLOOKUP($W42,'Transporte RR-1C'!$B:$AA,19,FALSE) -> 138.03 | Q42: =VLOOKUP($W42,'Transporte RR-1C'!$B:$AA,20,FALSE) -> 858.72 | R42: =VLOOKUP($W42,'Transporte RR-1C'!$B:$AA,21,FALSE) -> 1625.58 | S42: =VLOOKUP($W42,'Transporte RR-1C'!$B:$AA,22,FALSE) -> 508 | T42: =VLOOKUP($W42,'Transporte RR-1C'!$B:$AA,23,FALSE) -> 53.75661376 | U42: =VLOOKUP($W42,'Transporte RR-1C'!$B:$AA,24,FALSE) -> 1679.336614 | V42: =VLOOKUP($W42,'Transporte RR-1C'!$B:$AA,25,FALSE) -> 2951.646649 | W42: =SMALL('Transporte RR-1C'!$AA$13:$AA$32,1) -> 4630.983263
B43: 2 | D43: Refinaria Potiguar Clara Camarão | E43: Rodovia RN 221, KM 25 - Guamaré - RN CEP:59598-000 | F43: =VLOOKUP($W43,'Transporte RR-1C'!$B:$AA,7,FALSE) -> UBERLANDIA - MG | G43: =VLOOKUP($W43,'Transporte RR-1C'!$B:$AA,8,FALSE) -> Natal - RN | H43: =VLOOKUP($W43,'Transporte RR-1C'!$B:$AA,9,FALSE) -> 2.312616649 | I43: =VLOOKUP($W43,'Transporte RR-1C'!$B:$AA,10,FALSE) -> 2.508906135 | J43: =VLOOKUP($W43,'Transporte RR-1C'!$B:$AA,11,FALSE) -> 2312.616649 | K43: =VLOOKUP($W43,'Transporte RR-1C'!$B:$AA,12,FALSE) -> 639.03 | L43: =VLOOKUP($W43,'Transporte RR-1C'!$B:$AA,13,FALSE) -> 2951.646649 | M43: =VLOOKUP($W43,'Transporte RR-1C'!$B:$AA,14,FALSE) -> 2572 | N43: =VLOOKUP($W43,'Transporte RR-1C'!$B:$AA,15,FALSE) -> 0 | O43: =VLOOKUP($W43,'Transporte RR-1C'!$B:$AA,18,FALSE) -> 677.66 | P43: =VLOOKUP($W43,'Transporte RR-1C'!$B:$AA,19,FALSE) -> 148.75 | Q43: =VLOOKUP($W43,'Transporte RR-1C'!$B:$AA,20,FALSE) -> 925.4 | R43: =VLOOKUP($W43,'Transporte RR-1C'!$B:$AA,21,FALSE) -> 1751.81 | S43: =VLOOKUP($W43,'Transporte RR-1C'!$B:$AA,22,FALSE) -> 335.4 | T43: =VLOOKUP($W43,'Transporte RR-1C'!$B:$AA,23,FALSE) -> 35.49206349 | U43: =VLOOKUP($W43,'Transporte RR-1C'!$B:$AA,24,FALSE) -> 1787.302063 | V43: =VLOOKUP($W43,'Transporte RR-1C'!$B:$AA,25,FALSE) -> 2951.646649 | W43: =SMALL('Transporte RR-1C'!$AA$13:$AA$32,2) -> 4738.948713
B44: 3 | D44: Complexo Petroquímico do Rio de Janeiro (Comperj) | E44: Rodovia Estadual RJ-116 - Km 5,2 - Acesso A-1, s/n, Complemento Sambaetiba - Zona Urbana do 4º Distrito de Itaboraí - RJ CEP:24841-203 | F44: =VLOOKUP($W44,'Transporte RR-1C'!$B:$AA,7,FALSE) -> UBERLANDIA - MG | G44: =VLOOKUP($W44,'Transporte RR-1C'!$B:$AA,8,FALSE) -> Natal - RN | H44: =VLOOKUP($W44,'Transporte RR-1C'!$B:$AA,9,FALSE) -> 2.312616649 | I44: =VLOOKUP($W44,'Transporte RR-1C'!$B:$AA,10,FALSE) -> 2.508906135 | J44: =VLOOKUP($W44,'Transporte RR-1C'!$B:$AA,11,FALSE) -> 2312.616649 | K44: =VLOOKUP($W44,'Transporte RR-1C'!$B:$AA,12,FALSE) -> 639.03 | L44: =VLOOKUP($W44,'Transporte RR-1C'!$B:$AA,13,FALSE) -> 2951.646649 | M44: =VLOOKUP($W44,'Transporte RR-1C'!$B:$AA,14,FALSE) -> 2575 | N44: =VLOOKUP($W44,'Transporte RR-1C'!$B:$AA,15,FALSE) -> 0 | O44: =VLOOKUP($W44,'Transporte RR-1C'!$B:$AA,18,FALSE) -> 678.41 | P44: =VLOOKUP($W44,'Transporte RR-1C'!$B:$AA,19,FALSE) -> 148.91 | Q44: =VLOOKUP($W44,'Transporte RR-1C'!$B:$AA,20,FALSE) -> 926.42 | R44: =VLOOKUP($W44,'Transporte RR-1C'!$B:$AA,21,FALSE) -> 1753.74 | S44: =VLOOKUP($W44,'Transporte RR-1C'!$B:$AA,22,FALSE) -> 335.4 | T44: =VLOOKUP($W44,'Transporte RR-1C'!$B:$AA,23,FALSE) -> 35.49206349 | U44: =VLOOKUP($W44,'Transporte RR-1C'!$B:$AA,24,FALSE) -> 1789.232063 | V44: =VLOOKUP($W44,'Transporte RR-1C'!$B:$AA,25,FALSE) -> 2951.646649 | W44: =SMALL('Transporte RR-1C'!$AA$13:$AA$32,3) -> 4740.878713
B45: 4 | D45: Refinaria Abreu e Lima | E45: Rodovia PE 60, Km 10 - Ipojuca - PE CEP:55590-000 | F45: =VLOOKUP($W45,'Transporte RR-1C'!$B:$AA,7,FALSE) -> DUQUE DE CAXIAS - RJ | G45: =VLOOKUP($W45,'Transporte RR-1C'!$B:$AA,8,FALSE) -> Natal - RN | H45: =VLOOKUP($W45,'Transporte RR-1C'!$B:$AA,9,FALSE) -> 2.435215778 | I45: =VLOOKUP($W45,'Transporte RR-1C'!$B:$AA,10,FALSE) -> 2.508906135 | J45: =VLOOKUP($W45,'Transporte RR-1C'!$B:$AA,11,FALSE) -> 2435.215778 | K45: =VLOOKUP($W45,'Transporte RR-1C'!$B:$AA,12,FALSE) -> 672.91 | L45: =VLOOKUP($W45,'Transporte RR-1C'!$B:$AA,13,FALSE) -> 3108.125778 | M45: =VLOOKUP($W45,'Transporte RR-1C'!$B:$AA,14,FALSE) -> 2578 | N45: =VLOOKUP($W45,'Transporte RR-1C'!$B:$AA,15,FALSE) -> 0 | O45: =VLOOKUP($W45,'Transporte RR-1C'!$B:$AA,18,FALSE) -> 679.17 | P45: =VLOOKUP($W45,'Transporte RR-1C'!$B:$AA,19,FALSE) -> 149.08 | Q45: =VLOOKUP($W45,'Transporte RR-1C'!$B:$AA,20,FALSE) -> 927.47 | R45: =VLOOKUP($W45,'Transporte RR-1C'!$B:$AA,21,FALSE) -> 1755.72 | S45: =VLOOKUP($W45,'Transporte RR-1C'!$B:$AA,22,FALSE) -> 564 | T45: =VLOOKUP($W45,'Transporte RR-1C'!$B:$AA,23,FALSE) -> 59.68253968 | U45: =VLOOKUP($W45,'Transporte RR-1C'!$B:$AA,24,FALSE) -> 1815.40254 | V45: =VLOOKUP($W45,'Transporte RR-1C'!$B:$AA,25,FALSE) -> 3108.125778 | W45: =SMALL('Transporte RR-1C'!$AA$13:$AA$32,4) -> 4923.528318
B46: 5 | D46: Refinaria Potiguar Clara Camarão | E46: Rodovia RN 221, KM 25 - Guamaré - RN CEP:59598-000 | F46: =VLOOKUP($W46,'Transporte RR-1C'!$B:$AA,7,FALSE) -> RIO DE JANEIRO - RJ | G46: =VLOOKUP($W46,'Transporte RR-1C'!$B:$AA,8,FALSE) -> Natal - RN | H46: =VLOOKUP($W46,'Transporte RR-1C'!$B:$AA,9,FALSE) -> 2.435215778 | I46: =VLOOKUP($W46,'Transporte RR-1C'!$B:$AA,10,FALSE) -> 2.508906135 | J46: =VLOOKUP($W46,'Transporte RR-1C'!$B:$AA,11,FALSE) -> 2435.215778 | K46: =VLOOKUP($W46,'Transporte RR-1C'!$B:$AA,12,FALSE) -> 672.91 | L46: =VLOOKUP($W46,'Transporte RR-1C'!$B:$AA,13,FALSE) -> 3108.125778 | M46: =VLOOKUP($W46,'Transporte RR-1C'!$B:$AA,14,FALSE) -> 2593 | N46: =VLOOKUP($W46,'Transporte RR-1C'!$B:$AA,15,FALSE) -> 0 | O46: =VLOOKUP($W46,'Transporte RR-1C'!$B:$AA,18,FALSE) -> 682.97 | P46: =VLOOKUP($W46,'Transporte RR-1C'!$B:$AA,19,FALSE) -> 149.92 | Q46: =VLOOKUP($W46,'Transporte RR-1C'!$B:$AA,20,FALSE) -> 932.66 | R46: =VLOOKUP($W46,'Transporte RR-1C'!$B:$AA,21,FALSE) -> 1765.55 | S46: =VLOOKUP($W46,'Transporte RR-1C'!$B:$AA,22,FALSE) -> 564 | T46: =VLOOKUP($W46,'Transporte RR-1C'!$B:$AA,23,FALSE) -> 59.68253968 | U46: =VLOOKUP($W46,'Transporte RR-1C'!$B:$AA,24,FALSE) -> 1825.23254 | V46: =VLOOKUP($W46,'Transporte RR-1C'!$B:$AA,25,FALSE) -> 3108.125778 | W46: =SMALL('Transporte RR-1C'!$AA$13:$AA$32,5) -> 4933.358318
B47: 6 | D47: Complexo Petroquímico do Rio de Janeiro (Comperj) | E47: Rodovia Estadual RJ-116 - Km 5,2 - Acesso A-1, s/n, Complemento Sambaetiba - Zona Urbana do 4º Distrito de Itaboraí - RJ CEP:24841-203 | F47: =VLOOKUP($W47,'Transporte RR-1C'!$B:$AA,7,FALSE) -> ANÁPOLIS - GO | G47: =VLOOKUP($W47,'Transporte RR-1C'!$B:$AA,8,FALSE) -> Natal - RN | H47: =VLOOKUP($W47,'Transporte RR-1C'!$B:$AA,9,FALSE) -> 2.521107936 | I47: =VLOOKUP($W47,'Transporte RR-1C'!$B:$AA,10,FALSE) -> 2.650630599 | J47: =VLOOKUP($W47,'Transporte RR-1C'!$B:$AA,11,FALSE) -> 2521.107936 | K47: =VLOOKUP($W47,'Transporte RR-1C'!$B:$AA,12,FALSE) -> 696.64 | L47: =VLOOKUP($W47,'Transporte RR-1C'!$B:$AA,13,FALSE) -> 3217.747936 | M47: =VLOOKUP($W47,'Transporte RR-1C'!$B:$AA,14,FALSE) -> 2554 | N47: =VLOOKUP($W47,'Transporte RR-1C'!$B:$AA,15,FALSE) -> 0 | O47: =VLOOKUP($W47,'Transporte RR-1C'!$B:$AA,18,FALSE) -> 673.1 | P47: =VLOOKUP($W47,'Transporte RR-1C'!$B:$AA,19,FALSE) -> 147.75 | Q47: =VLOOKUP($W47,'Transporte RR-1C'!$B:$AA,20,FALSE) -> 919.18 | R47: =VLOOKUP($W47,'Transporte RR-1C'!$B:$AA,21,FALSE) -> 1740.03 | S47: =VLOOKUP($W47,'Transporte RR-1C'!$B:$AA,22,FALSE) -> 114.6 | T47: =VLOOKUP($W47,'Transporte RR-1C'!$B:$AA,23,FALSE) -> 12.12698413 | U47: =VLOOKUP($W47,'Transporte RR-1C'!$B:$AA,24,FALSE) -> 1752.156984 | V47: =VLOOKUP($W47,'Transporte RR-1C'!$B:$AA,25,FALSE) -> 3217.747936 | W47: =SMALL('Transporte RR-1C'!$AA$13:$AA$32,6) -> 4969.90492

Sheet MOMENTO DE TRANSPORTE - PRINC
B5: ='RESUMO MODULO TOTAL'!B1 -> CONTRATAÇÃO DE SERVIÇOS DE PAVIMENTAÇÃO ASFÁLTICA COM CONCRETO BETUMINOSO USINADO A QUENTE (CBUQ) EM VIAS URBANAS E RURAIS INSERIDAS NA ÁREA DE ATUAÇÃO DA CODEVASF, NO ESTADO DO RIO GRANDE DO NORTE (REGIÃO 1)
B6: DATA BASE: | C6: ='RESUMO MODULO TOTAL'!N2 -> Rio Grande do Norte - Abril/2024
C8: RESUMO DO TRANSPORTE PRINCIPAL
B9: CODIGO | C9: DESCRIÇÃO | D9: TKM
B10: 5914359 | C10: =VLOOKUP(B10,'SINTÉTICO SICRO'!$A:$D,2,0) -> Transporte com caminhão basculante de 10 m³ - rodovia em leito natural | D10: =ROUND(SUMIF('MOMENTO DE TRANSPORTE - PRINC'!A:A,B10,'MOMENTO DE TRANSPORTE - PRINC'!K:K),2) -> 0
B11: 5914374 | C11: =VLOOKUP(B11,'SINTÉTICO SICRO'!$A:$D,2,0) -> Transporte com caminhão basculante de 10 m³ - rodovia em revestimento primário | D11: =ROUND(SUMIF('MOMENTO DE TRANSPORTE - PRINC'!A:A,B11,'MOMENTO DE TRANSPORTE - PRINC'!K:K),2) -> 560422.8
B12: 5914389 | C12: =VLOOKUP(B12,'SINTÉTICO SICRO'!$A:$D,2,0) -> Transporte com caminhão basculante de 10 m³ - rodovia pavimentada | D12: =ROUND(SUMIF('MOMENTO DE TRANSPORTE - PRINC'!A:A,B12,'MOMENTO DE TRANSPORTE - PRINC'!K:K),2) -> 5043805.2
B13: 5914449 | C13: =VLOOKUP(B13,'SINTÉTICO SICRO'!$A:$D,2,0) -> Transporte com caminhão carroceria de 15 t - rodovia em leito natural | D13: =ROUND(SUMIF('MOMENTO DE TRANSPORTE - PRINC'!A:A,B13,'MOMENTO DE TRANSPORTE - PRINC'!K:K),2) -> 0
B14: 5914464 | C14: =VLOOKUP(B14,'SINTÉTICO SICRO'!$A:$D,2,0) -> Transporte com caminhão carroceria de 15 t - rodovia em revestimento primário | D14: =ROUND(SUMIF('MOMENTO DE TRANSPORTE - PRINC'!A:A,B14,'MOMENTO DE TRANSPORTE - PRINC'!K:K),2) -> 0
B15: 5914479 | C15: =VLOOKUP(B15,'SINTÉTICO SICRO'!$A:$D,2,0) -> Transporte com caminhão carroceria de 15 t - rodovia pavimentada | D15: =ROUND(SUMIF('MOMENTO DE TRANSPORTE - PRINC'!A:A,B15,'MOMENTO DE TRANSPORTE - PRINC'!K:K),2) -> 0
B16: 5914364 | C16: =VLOOKUP(B16,'SINTÉTICO SICRO'!$A:$D,2,0) -> Transporte de cimento ou cal hidratada a granel com caminhão silo de 30 m³ - rodovia em leito natural | D16: =ROUND(SUMIF('MOMENTO DE TRANSPORTE - PRINC'!A:A,B16,'MOMENTO DE TRANSPORTE - PRINC'!K:K),2) -> 0
B17: 5914365 | C17: =VLOOKUP(B17,'SINTÉTICO SICRO'!$A:$D,2,0) -> Transporte de cimento ou cal hidratada a granel com caminhão silo de 30 m³ - rodovia em revestimento primário | D17: =ROUND(SUMIF('MOMENTO DE TRANSPORTE - PRINC'!A:A,B17,'MOMENTO DE TRANSPORTE - PRINC'!K:K),2) -> 0
B18: 5914366 | C18: =VLOOKUP(B18,'SINTÉTICO SICRO'!$A:$D,2,0) -> Transporte de cimento ou cal hidratada a granel com caminhão silo de 30 m³ - rodovia pavimentada | D18: =ROUND(SUMIF('MOMENTO DE TRANSPORTE - PRINC'!A:A,B18,'MOMENTO DE TRANSPORTE - PRINC'!K:K),2) -> 0
B19: 5914539 | C19: =VLOOKUP(B19,'SINTÉTICO SICRO'!$A:$D,2,0) -> Transporte com caminhão betoneira - rodovia em leito natural | D19: =ROUND(SUMIF('MOMENTO DE TRANSPORTE - PRINC'!A:A,B19,'MOMENTO DE TRANSPORTE - PRINC'!K:K),2) -> 0
B20: 5914554 | C20: =VLOOKUP(B20,'SINTÉTICO SICRO'!$A:$D,2,0) -> Transporte com caminhão betoneira - rodovia em revestimento primário | D20: =ROUND(SUMIF('MOMENTO DE TRANSPORTE - PRINC'!A:A,B20,'MOMENTO DE TRANSPORTE - PRINC'!K:K),2) -> 21772.8
B21: 5914569 | C21: =VLOOKUP(B21,'SINTÉTICO SICRO'!$A:$D,2,0) -> Transporte com caminhão betoneira - rodovia pavimentada | D21: =ROUND(SUMIF('MOMENTO DE TRANSPORTE - PRINC'!A:A,B21,'MOMENTO DE TRANSPORTE - PRINC'!K:K),2) -> 195955.2
B23: TIPO (P, RP ou LN) | C23: DMT ESTIMADA (DISTRIBUIÇÃO DO ITEM NA PISTA
B24: P | C24: =90*0.9 -> 81 | D24: Fica a cargo de cada SR colocar a distancia de distribuição
B26: SISTEMA DE CUSTOS REFERENCIAIS DE OBRAS - SICRO
B27: Custo Unitário de Referência | I27: Quantitativo | K27: t
B28: 4011463 | C28: Concreto asfáltico - faixa C - areia e brita comerciais | I28: =SUMIF('RESUMO MODULO TOTAL'!D:D,B28,'RESUMO MODULO TOTAL'!J:J) -> 10080
B29: D - ATIVIDADES AUXILIARES | D29: Quantidade | E29: Unidade
B30: 6416078 | C30: Usinagem de concreto asfáltico - faixa C - areia e brita comerciais | D30: 1.02 | E30: t
B32: F - MOMENTO DE TRANSPORTE | D32: Quantidade | E32: Unidade | F32: CÓDIGO TRANSPORTE
F33: LN | G33: RP | H33: P | I33: TIPO (P, RP ou LN) | J33: DMT ESTIMADA (km) | K33: QUANTITATIVO TOTAL DE TRANSPORTE (tkm)
A34: =IF(I34="P",H34,IF(I34="RP",G34,IF(I34="LN",F34,""))) -> 5914389 | B34: 6416078 | C34: Usinagem de concreto asfáltico - faixa C - areia e brita comerciais - Caminhão basculante 10 m³ | D34: 1.02 | E34: tkm | F34: 5914359 | G34: 5914374 | H34: 5914389 | I34: =$B$24 -> P | J34: =$C$24 -> 81 | K34: =IF(ISBLANK(J34),"",J34*D34)*I28 -> 832809.6
B36: Obs.
B39: SISTEMA DE CUSTOS REFERENCIAIS DE OBRAS - SICRO
B40: Custo Unitário de Referência | I40: Quantitativo | K40: m³
B41: 4011268 | C41: Base estabilizada granulometricamente com mistura solo brita (70% - 30%) em usina com material de jazida e brita comercial | I41: =SUMIF('RESUMO MODULO TOTAL'!D:D,B41,'RESUMO MODULO TOTAL'!J:J) -> 12600
B42: D - ATIVIDADES AUXILIARES | D42: Quantidade | E42: Unidade
B43: 6416030 | C43: Usinagem de solo brita (70% - 30%) com material de jazida e brita comercial em usina de 300 t/h | D43: 1 | E43: m³
B45: F - MOMENTO DE TRANSPORTE | D45: Quantidade | E45: Unidade | F45: CÓDIGO TRANSPORTE
F46: LN | G46: RP | H46: P | I46: TIPO (P, RP ou LN) | J46: DMT ESTIMADA (km) | K46: QUANTITATIVO TOTAL DE TRANSPORTE (tkm)
A47: =IF(I47="P",H47,IF(I47="RP",G47,IF(I47="LN",F47,""))) -> 5914389 | B47: 6416030 | C47: Usinagem de solo brita (70% - 30%) com material de jazida e brita comercial em usina de 300 t/h - Caminhão basculante 10 m³ | D47: 2.063 | E47: tkm | F47: 5914359 | G47: 5914374 | H47: 5914389 | I47: =$B$24 -> P | J47: =$C$24 -> 81 | K47: =IF(ISBLANK(J47),"",J47*D47)*I41 -> 2105497.8
B49: Obs.
B51: SISTEMA DE CUSTOS REFERENCIAIS DE OBRAS - SICRO
B52: Custo Unitário de Referência | I52: Quantitativo | K52: m³
B53: 4011235 | C53: =VLOOKUP(B53,'SINTÉTICO SICRO'!A:D,2,0) -> Sub-base estabilizada granulometricamente com mistura solo brita (70% - 30%) em usina com material de jazida e brita comercial | I53: =SUMIF('RESUMO MODULO TOTAL'!D:D,B53,'RESUMO MODULO TOTAL'!J:J) -> 12600
B54: D - ATIVIDADES AUXILIARES | D54: Quantidade | E54: Unidade
B55: 6416030 | C55: =VLOOKUP(B55,'SINTÉTICO SICRO'!A:D,2,0) -> Usinagem de solo brita (70% - 30%) com material de jazida e brita comercial em usina de 300 t/h | D55: 1 | E55: m³
B57: F - MOMENTO DE TRANSPORTE | D57: Quantidade | E57: Unidade | F57: CÓDIGO TRANSPORTE
F58: LN | G58: RP | H58: P | I58: TIPO (P, RP ou LN) | J58: DMT ESTIMADA (km) | K58: QUANTITATIVO TOTAL DE TRANSPORTE (tkm)
A59: =IF(I59="P",H59,IF(I59="RP",G59,IF(I59="LN",F59,""))) -> 5914389 | B59: 6416030 | C59: =VLOOKUP(B59,'SINTÉTICO SICRO'!A:D,2,0) -> Usinagem de solo brita (70% - 30%) com material de jazida e brita comercial em usina de 300 t/h | D59: 2.063 | E59: tkm | F59: 5914359 | G59: 5914374 | H59: 5914389 | I59: =$B$24 -> P | J59: =$C$24 -> 81 | K59: =IF(ISBLANK(J59),"",J59*D59)*I53 -> 2105497.8
B61: Obs.
B63: SISTEMA DE CUSTOS REFERENCIAIS DE OBRAS - SICRO
B64: Custo Unitário de Referência | I64: Quantitativo | K64: m
B65: 2003943 | C65: =VLOOKUP(B65,'SINTÉTICO SICRO'!A:D,2,0) -> Meio-fio de concreto - MFC 03 moldado no local com extrusora e concreto usinado - areia e brita comerciais | I65: =SUMIF('RESUMO MODULO TOTAL'!D:D,B65,'RESUMO MODULO TOTAL'!J:J) -> 24000
B66: D - ATIVIDADES AUXILIARES | D66: Quantidade | E66: Unidade
B67: 1107928 | C67: =VLOOKUP(B67,'SINTÉTICO SICRO'!A:D,2,0) -> Concreto fck = 20 MPa - confecção em central dosadora de 30 m³/h - areia e brita comerciais | D67: 0.042 | E67: m³
B68: 2003842 | C68: =VLOOKUP(B68,'SINTÉTICO SICRO'!A:D,2,0) -> Enchimento de junta de concreto com argamassa asfáltica de densidade 1.700 kg/m³ - espessura de 1 cm | D68: 0.0595 | E68: kg
B69: 4805750 | C69: =VLOOKUP(B69,'SINTÉTICO SICRO'!A:D,2,0) -> Escavação manual em material de 1ª categoria na profundidade de até 1 m | D69: 0.03 | E69: m³
B71: F - MOMENTO DE TRANSPORTE | D71: Quantidade | E71: Unidade | F71: CÓDIGO TRANSPORTE
F72: LN | G72: RP | H72: P | I72: TIPO (P, RP ou LN) | J72: DMT ESTIMADA (km) | K72: QUANTITATIVO TOTAL DE TRANSPORTE (tkm)
A73: =IF(I73="P",H73,IF(I73="RP",G73,IF(I73="LN",F73,""))) -> 5914569 | B73: 1107928 | C73: =VLOOKUP(B73,'SINTÉTICO SICRO'!A:D,2,0) -> Concreto fck = 20 MPa - confecção em central dosadora de 30 m³/h - areia e brita comerciais | D73: 0.1008 | E73: tkm | F73: 5914539 | G73: 5914554 | H73: 5914569 | I73: =$B$24 -> P | J73: =C24 -> 81 | K73: =IF(ISBLANK(J73),"",J73*D73)*I65 -> 195955.2
B74: Obs.
B75: TIPO (P, RP ou LN) | C75: DMT ESTIMADA (DISTRIBUIÇÃO DO ITEM NA PISTA
B76: LN | C76: 0 | D76: Fica a cargo de cada SR colocar a distancia de distribuição
B78: SISTEMA DE CUSTOS REFERENCIAIS DE OBRAS - SICRO
B79: Custo Unitário de Referência | I79: Quantitativo | K79: t
B80: 4011463 | C80: Concreto asfáltico - faixa C - areia e brita comerciais | I80: =SUMIF('RESUMO MODULO TOTAL'!D:D,B80,'RESUMO MODULO TOTAL'!J:J)*0 -> 0
B81: D - ATIVIDADES AUXILIARES | D81: Quantidade | E81: Unidade
B82: 6416078 | C82: Usinagem de concreto asfáltico - faixa C - areia e brita comerciais | D82: 1.02 | E82: t
B84: F - MOMENTO DE TRANSPORTE | D84: Quantidade | E84: Unidade | F84: CÓDIGO TRANSPORTE
F85: LN | G85: RP | H85: P | I85: TIPO (P, RP ou LN) | J85: DMT ESTIMADA (km) | K85: QUANTITATIVO TOTAL DE TRANSPORTE (tkm)
A86: =IF(I86="P",H86,IF(I86="RP",G86,IF(I86="LN",F86,""))) -> 5914359 | B86: 6416078 | C86: Usinagem de concreto asfáltico - faixa C - areia e brita comerciais - Caminhão basculante 10 m³ | D86: 1.02 | E86: tkm | F86: 5914359 | G86: 5914374 | H86: 5914389 | I86: =$B$76 -> LN | J86: =$C$76 -> 0 | K86: =IF(ISBLANK(J86),"",J86*D86)*I80 -> 0
B88: Obs.
B91: SISTEMA DE CUSTOS REFERENCIAIS DE OBRAS - SICRO
B92: Custo Unitário de Referência | I92: Quantitativo | K92: m³
B93: 4011268 | C93: Base estabilizada granulometricamente com mistura solo brita (70% - 30%) em usina com material de jazida e brita comercial | I93: =SUMIF('RESUMO MODULO TOTAL'!D:D,B93,'RESUMO MODULO TOTAL'!J:J)*0 -> 0
B94: D - ATIVIDADES AUXILIARES | D94: Quantidade | E94: Unidade
B95: 6416030 | C95: Usinagem de solo brita (70% - 30%) com material de jazida e brita comercial em usina de 300 t/h | D95: 1 | E95: m³
B97: F - MOMENTO DE TRANSPORTE | D97: Quantidade | E97: Unidade | F97: CÓDIGO TRANSPORTE
F98: LN | G98: RP | H98: P | I98: TIPO (P, RP ou LN) | J98: DMT ESTIMADA (km) | K98: QUANTITATIVO TOTAL DE TRANSPORTE (tkm)
A99: =IF(I99="P",H99,IF(I99="RP",G99,IF(I99="LN",F99,""))) -> 5914359 | B99: 6416030 | C99: Usinagem de solo brita (70% - 30%) com material de jazida e brita comercial em usina de 300 t/h - Caminhão basculante 10 m³ | D99: 2.063 | E99: tkm | F99: 5914359 | G99: 5914374 | H99: 5914389 | I99: =$B$76 -> LN | J99: =$C$76 -> 0 | K99: =IF(ISBLANK(J99),"",J99*D99)*I93 -> 0
B101: Obs.
B103: SISTEMA DE CUSTOS REFERENCIAIS DE OBRAS - SICRO
B104: Custo Unitário de Referência | I104: Quantitativo | K104: m³
B105: 4011235 | C105: =VLOOKUP(B105,'SINTÉTICO SICRO'!A:D,2,0) -> Sub-base estabilizada granulometricamente com mistura solo brita (70% - 30%) em usina com material de jazida e brita comercial | I105: =SUMIF('RESUMO MODULO TOTAL'!D:D,B105,'RESUMO MODULO TOTAL'!J:J)*0 -> 0
B106: D - ATIVIDADES AUXILIARES | D106: Quantidade | E106: Unidade
B107: 6416030 | C107: =VLOOKUP(B107,'SINTÉTICO SICRO'!A:D,2,0) -> Usinagem de solo brita (70% - 30%) com material de jazida e brita comercial em usina de 300 t/h | D107: 1 | E107: m³
B109: F - MOMENTO DE TRANSPORTE | D109: Quantidade | E109: Unidade | F109: CÓDIGO TRANSPORTE
F110: LN | G110: RP | H110: P | I110: TIPO (P, RP ou LN) | J110: DMT ESTIMADA (km) | K110: QUANTITATIVO TOTAL DE TRANSPORTE (tkm)
A111: =IF(I111="P",H111,IF(I111="RP",G111,IF(I111="LN",F111,""))) -> 5914359 | B111: 6416030 | C111: =VLOOKUP(B111,'SINTÉTICO SICRO'!A:D,2,0) -> Usinagem de solo brita (70% - 30%) com material de jazida e brita comercial em usina de 300 t/h | D111: 2.063 | E111: tkm | F111: 5914359 | G111: 5914374 | H111: 5914389 | I111: =$B$76 -> LN | J111: =$C$76 -> 0 | K111: =IF(ISBLANK(J111),"",J111*D111)*I105 -> 0
B113: Obs.
B115: SISTEMA DE CUSTOS REFERENCIAIS DE OBRAS - SICRO
B116: Custo Unitário de Referência | I116: Quantitativo | K116: m
B117: 2003943 | C117: =VLOOKUP(B117,'SINTÉTICO SICRO'!A:D,2,0) -> Meio-fio de concreto - MFC 03 moldado no local com extrusora e concreto usinado - areia e brita comerciais | I117: =SUMIF('RESUMO MODULO TOTAL'!D:D,B117,'RESUMO MODULO TOTAL'!J:J)*0 -> 0
B118: D - ATIVIDADES AUXILIARES | D118: Quantidade | E118: Unidade
B119: 1107928 | C119: =VLOOKUP(B119,'SINTÉTICO SICRO'!A:D,2,0) -> Concreto fck = 20 MPa - confecção em central dosadora de 30 m³/h - areia e brita comerciais | D119: 0.042 | E119: m³
B120: 2003842 | C120: =VLOOKUP(B120,'SINTÉTICO SICRO'!A:D,2,0) -> Enchimento de junta de concreto com argamassa asfáltica de densidade 1.700 kg/m³ - espessura de 1 cm | D120: 0.0595 | E120: kg
B121: 4805750 | C121: =VLOOKUP(B121,'SINTÉTICO SICRO'!A:D,2,0) -> Escavação manual em material de 1ª categoria na profundidade de até 1 m | D121: 0.03 | E121: m³
B123: F - MOMENTO DE TRANSPORTE | D123: Quantidade | E123: Unidade | F123: CÓDIGO TRANSPORTE
F124: LN | G124: RP | H124: P | I124: TIPO (P, RP ou LN) | J124: DMT ESTIMADA (km) | K124: QUANTITATIVO TOTAL DE TRANSPORTE (tkm)
A125: =IF(I125="P",H125,IF(I125="RP",G125,IF(I125="LN",F125,""))) -> 5914539 | B125: 1107928 | C125: =VLOOKUP(B125,'SINTÉTICO SICRO'!A:D,2,0) -> Concreto fck = 20 MPa - confecção em central dosadora de 30 m³/h - areia e brita comerciais | D125: 0.1008 | E125: tkm | F125: 5914539 | G125: 5914554 | H125: 5914569 | I125: =$B$76 -> LN | J125: =$C$76 -> 0 | K125: =IF(ISBLANK(J125),"",J125*D125)*I117 -> 0
B126: Obs.
B127: TIPO (P, RP ou LN) | C127: DMT ESTIMADA (DISTRIBUIÇÃO DO ITEM NA PISTA
B128: RP | C128: =90*0.1 -> 9 | D128: Fica a cargo de cada SR colocar a distancia de distribuição
B130: SISTEMA DE CUSTOS REFERENCIAIS DE OBRAS - SICRO
B131: Custo Unitário de Referência | I131: Quantitativo | K131: t
B132: 4011463 | C132: Concreto asfáltico - faixa C - areia e brita comerciais | I132: =SUMIF('RESUMO MODULO TOTAL'!D:D,B132,'RESUMO MODULO TOTAL'!J:J) -> 10080
B133: D - ATIVIDADES AUXILIARES | D133: Quantidade | E133: Unidade
B134: 6416078 | C134: Usinagem de concreto asfáltico - faixa C - areia e brita comerciais | D134: 1.02 | E134: t
B136: F - MOMENTO DE TRANSPORTE | D136: Quantidade | E136: Unidade | F136: CÓDIGO TRANSPORTE
F137: LN | G137: RP | H137: P | I137: TIPO (P, RP ou LN) | J137: DMT ESTIMADA (km) | K137: QUANTITATIVO TOTAL DE TRANSPORTE (tkm)
A138: =IF(I138="P",H138,IF(I138="RP",G138,IF(I138="LN",F138,""))) -> 5914374 | B138: 6416078 | C138: Usinagem de concreto asfáltico - faixa C - areia e brita comerciais - Caminhão basculante 10 m³ | D138: 1.02 | E138: tkm | F138: 5914359 | G138: 5914374 | H138: 5914389 | I138: =$B$128 -> RP | J138: =$C$128 -> 9 | K138: =IF(ISBLANK(J138),"",J138*D138)*I132 -> 92534.4
B140: Obs.
B142: SISTEMA DE CUSTOS REFERENCIAIS DE OBRAS - SICRO
B143: Custo Unitário de Referência | I143: Quantitativo | K143: m³
B144: 4011268 | C144: Base estabilizada granulometricamente com mistura solo brita (70% - 30%) em usina com material de jazida e brita comercial | I144: =SUMIF('RESUMO MODULO TOTAL'!D:D,B144,'RESUMO MODULO TOTAL'!J:J) -> 12600
B145: D - ATIVIDADES AUXILIARES | D145: Quantidade | E145: Unidade
B146: 6416030 | C146: Usinagem de solo brita (70% - 30%) com material de jazida e brita comercial em usina de 300 t/h | D146: 1 | E146: m³
B148: F - MOMENTO DE TRANSPORTE | D148: Quantidade | E148: Unidade | F148: CÓDIGO TRANSPORTE
F149: LN | G149: RP | H149: P | I149: TIPO (P, RP ou LN) | J149: DMT ESTIMADA (km) | K149: QUANTITATIVO TOTAL DE TRANSPORTE (tkm)
A150: =IF(I150="P",H150,IF(I150="RP",G150,IF(I150="LN",F150,""))) -> 5914374 | B150: 6416030 | C150: Usinagem de solo brita (70% - 30%) com material de jazida e brita comercial em usina de 300 t/h - Caminhão basculante 10 m³ | D150: 2.063 | E150: tkm | F150: 5914359 | G150: 5914374 | H150: 5914389 | I150: =$B$128 -> RP | J150: =$C$128 -> 9 | K150: =IF(ISBLANK(J150),"",J150*D150)*I144 -> 233944.2
B152: Obs.
B153: SISTEMA DE CUSTOS REFERENCIAIS DE OBRAS - SICRO
B154: Custo Unitário de Referência | I154: Quantitativo | K154: m³
B155: 4011235 | C155: =VLOOKUP(B155,'SINTÉTICO SICRO'!A:D,2,0) -> Sub-base estabilizada granulometricamente com mistura solo brita (70% - 30%) em usina com material de jazida e brita comercial | I155: =SUMIF('RESUMO MODULO TOTAL'!D:D,B155,'RESUMO MODULO TOTAL'!J:J) -> 12600
B156: D - ATIVIDADES AUXILIARES | D156: Quantidade | E156: Unidade
B157: 6416030 | C157: =VLOOKUP(B157,'SINTÉTICO SICRO'!A:D,2,0) -> Usinagem de solo brita (70% - 30%) com material de jazida e brita comercial em usina de 300 t/h | D157: 1 | E157: m³
B159: F - MOMENTO DE TRANSPORTE | D159: Quantidade | E159: Unidade | F159: CÓDIGO TRANSPORTE
F160: LN | G160: RP | H160: P | I160: TIPO (P, RP ou LN) | J160: DMT ESTIMADA (km) | K160: QUANTITATIVO TOTAL DE TRANSPORTE (tkm)
A161: =IF(I161="P",H161,IF(I161="RP",G161,IF(I161="LN",F161,""))) -> 5914374 | B161: 6416030 | C161: =VLOOKUP(B161,'SINTÉTICO SICRO'!A:D,2,0) -> Usinagem de solo brita (70% - 30%) com material de jazida e brita comercial em usina de 300 t/h | D161: 2.063 | E161: tkm | F161: 5914359 | G161: 5914374 | H161: 5914389 | I161: =$B$128 -> RP | J161: =$C$128 -> 9 | K161: =IF(ISBLANK(J161),"",J161*D161)*I155 -> 233944.2
B163: Obs.
B164: SISTEMA DE CUSTOS REFERENCIAIS DE OBRAS - SICRO
B165: Custo Unitário de Referência | I165: Quantitativo | K165: m
B166: 2003943 | C166: =VLOOKUP(B166,'SINTÉTICO SICRO'!A:D,2,0) -> Meio-fio de concreto - MFC 03 moldado no local com extrusora e concreto usinado - areia e brita comerciais | I166: =SUMIF('RESUMO MODULO TOTAL'!D:D,B166,'RESUMO MODULO TOTAL'!J:J) -> 24000
B167: D - ATIVIDADES AUXILIARES | D167: Quantidade | E167: Unidade
B168: 1107928 | C168: =VLOOKUP(B168,'SINTÉTICO SICRO'!A:D,2,0) -> Concreto fck = 20 MPa - confecção em central dosadora de 30 m³/h - areia e brita comerciais | D168: 0.042 | E168: m³
B169: 2003842 | C169: =VLOOKUP(B169,'SINTÉTICO SICRO'!A:D,2,0) -> Enchimento de junta de concreto com argamassa asfáltica de densidade 1.700 kg/m³ - espessura de 1 cm | D169: 0.0595 | E169: kg
B170: 4805750 | C170: =VLOOKUP(B170,'SINTÉTICO SICRO'!A:D,2,0) -> Escavação manual em material de 1ª categoria na profundidade de até 1 m | D170: 0.03 | E170: m³
B172: F - MOMENTO DE TRANSPORTE | D172: Quantidade | E172: Unidade | F172: CÓDIGO TRANSPORTE
F173: LN | G173: RP | H173: P | I173: TIPO (P, RP ou LN) | J173: DMT ESTIMADA (km) | K173: QUANTITATIVO TOTAL DE TRANSPORTE (tkm)
A174: =IF(I174="P",H174,IF(I174="RP",G174,IF(I174="LN",F174,""))) -> 5914554 | B174: 1107928 | C174: =VLOOKUP(B174,'SINTÉTICO SICRO'!A:D,2,0) -> Concreto fck = 20 MPa - confecção em central dosadora de 30 m³/h - areia e brita comerciais | D174: 0.1008 | E174: tkm | F174: 5914539 | G174: 5914554 | H174: 5914569 | I174: =$B$128 -> RP | J174: =C128 -> 9 | K174: =IF(ISBLANK(J174),"",J174*D174)*I166 -> 21772.8
B175: Obs.

Sheet MOMENTO DE TRANSPORTE - AUX
B5: ='RESUMO MODULO TOTAL'!B1 -> CONTRATAÇÃO DE SERVIÇOS DE PAVIMENTAÇÃO ASFÁLTICA COM CONCRETO BETUMINOSO USINADO A QUENTE (CBUQ) EM VIAS URBANAS E RURAIS INSERIDAS NA ÁREA DE ATUAÇÃO DA CODEVASF, NO ESTADO DO RIO GRANDE DO NORTE (REGIÃO 1)
B6: DATA BASE: | C6: ='RESUMO MODULO TOTAL'!N2 -> Rio Grande do Norte - Abril/2024
C8: RESUMO DO TRANSPORTE AUXILIAR
B9: CODIGO | C9: DESCRIÇÃO | D9: TKM
B10: 5914359 | C10: =VLOOKUP(B10,'SINTÉTICO SICRO'!$A:$D,2,0) -> Transporte com caminhão basculante de 10 m³ - rodovia em leito natural | D10: =ROUND(SUMIF($A:$A,B10,$K:$K),2) -> 0
B11: 5914374 | C11: =VLOOKUP(B11,'SINTÉTICO SICRO'!$A:$D,2,0) -> Transporte com caminhão basculante de 10 m³ - rodovia em revestimento primário | D11: 218349.43
B12: 5914389 | C12: =VLOOKUP(B12,'SINTÉTICO SICRO'!$A:$D,2,0) -> Transporte com caminhão basculante de 10 m³ - rodovia pavimentada | D12: 1965144.89
B13: 5914449 | C13: =VLOOKUP(B13,'SINTÉTICO SICRO'!$A:$D,2,0) -> Transporte com caminhão carroceria de 15 t - rodovia em leito natural | D13: 0
B14: 5914464 | C14: =VLOOKUP(B14,'SINTÉTICO SICRO'!$A:$D,2,0) -> Transporte com caminhão carroceria de 15 t - rodovia em revestimento primário | D14: 0
B15: 5914479 | C15: =VLOOKUP(B15,'SINTÉTICO SICRO'!$A:$D,2,0) -> Transporte com caminhão carroceria de 15 t - rodovia pavimentada | D15: 0
B16: 5914364 | C16: =VLOOKUP(B16,'SINTÉTICO SICRO'!$A:$D,2,0) -> Transporte de cimento ou cal hidratada a granel com caminhão silo de 30 m³ - rodovia em leito natural | D16: 0
B17: 5914365 | C17: =VLOOKUP(B17,'SINTÉTICO SICRO'!$A:$D,2,0) -> Transporte de cimento ou cal hidratada a granel com caminhão silo de 30 m³ - rodovia em revestimento primário | D17: 0
B18: 5914366 | C18: =VLOOKUP(B18,'SINTÉTICO SICRO'!$A:$D,2,0) -> Transporte de cimento ou cal hidratada a granel com caminhão silo de 30 m³ - rodovia pavimentada | D18: 0
B20: TIPO (P, RP ou LN) | C20: DMT ATÉ 50 KM NÃO DEVE SER PAGA | D20: SOMENTE DEVE SER ADICIONADO A DISTÂNCIA EXCEDENTE A 50 KM
B21: P | D21: 0
B23: SISTEMA DE CUSTOS REFERENCIAIS DE OBRAS - SICRO | I23: Quantitivo
B24: Custo Unitário de Referência | E24: =$C$6 -> Rio Grande do Norte - Abril/2024 | I24: (Coeficiente na composição principal) x (quantidade da principal no orçamento) | K24: t
B25: 6416078 | C25: Usinagem de concreto asfáltico - faixa C - areia e brita comerciais | I25: ='MOMENTO DE TRANSPORTE - PRINC'!D30*(VLOOKUP(C34,'RESUMO MODULO TOTAL'!D:O,7,FALSE)) -> 10281.6
B26: F - MOMENTO DE TRANSPORTE | D26: Quantidade | E26: Unidade | F26: DMT
F27: LN | G27: RP | H27: P | I27: TIPO (P, RP ou LN) | J27: DMT ESTIMADA (km) | K27: QUANTITATIVO TOTAL DE TRANSPORTE DE MATERIAL (tkm)
A28: =IF(I28="P",H28,IF(I28="RP",G28,IF(I28="LN",F28,""))) -> 5914389 | B28: M0028 | C28: Areia média - Caminhão basculante 10 m³ | D28: 0.48713 | E28: tkm | F28: 5914359 | G28: 5914374 | H28: 5914389 | I28: =$B$21 -> P | J28: =$D$21 -> 0 | K28: =IF(ISBLANK(J28),"",J28*(D28*$I$25)) -> 0
A29: =IF(I29="P",H29,IF(I29="RP",G29,IF(I29="LN",F29,""))) -> 5914389 | B29: M0005 | C29: Brita 0 - Caminhão basculante 10 m³ | D29: 0.09368 | E29: tkm | F29: 5914359 | G29: 5914374 | H29: 5914389 | I29: =$B$21 -> P | J29: =$D$21 -> 0 | K29: =IF(ISBLANK(J29),"",J29*(D29*$I$25)) -> 0
A30: 5914389 | B30: M0191 | C30: Brita 1 - Caminhão basculante 10 m³ | D30: 0.09368 | E30: tkm | F30: 5914359 | G30: 5914374 | H30: 5914389 | I30: P | J30: 0 | K30: =IF(ISBLANK(J30),"",J30*(D30*$I$25)) -> 0
A31: 5914366 | B31: M0344 | C31: Cal hidratada - a granel - Caminhão silo 30 m³ | D31: 0.0562 | E31: tkm | F31: 5914364 | G31: 5914365 | H31: 5914366 | I31: P | J31: 0 | K31: =IF(ISBLANK(J31),"",J31*(D31*$I$25)) -> 0
A32: 5914389 | B32: M1103 | C32: Pedrisco - Caminhão basculante 10 m³ | D32: 0.20609 | E32: tkm | F32: 5914359 | G32: 5914374 | H32: 5914389 | I32: P | J32: 0 | K32: =IF(ISBLANK(J32),"",J32*(D32*$I$25)) -> 0
B34: PRINCIPAL: | C34: 4011463
B35: SISTEMA DE CUSTOS REFERENCIAIS DE OBRAS - SICRO | I35: Quantitivo
B36: Custo Unitário de Referência | E36: =$C$6 -> Rio Grande do Norte - Abril/2024 | I36: (Coeficiente na composição principal) x (quantidade da principal no orçamento) | K36: m³
B37: 6416030 | C37: Usinagem de solo brita (70% - 30%) com material de jazida e brita comercial em usina de 300 t/h | I37: ='MOMENTO DE TRANSPORTE - PRINC'!D43*(VLOOKUP(C43,'RESUMO MODULO TOTAL'!D:O,7,FALSE)) -> 12600
B38: F - MOMENTO DE TRANSPORTE | D38: Quantidade | E38: Unidade | F38: DMT
F39: LN | G39: RP | H39: P | I39: TIPO (P, RP ou LN) | J39: DMT ESTIMADA (km) | K39: QUANTITATIVO TOTAL DE TRANSPORTE DE MATERIAL (tkm)
A40: =IF(I40="P",H40,IF(I40="RP",G40,IF(I40="LN",F40,""))) -> 5914389 | B40: 4016096 | C40: Escavação e carga de material de jazida com escavadeira hidráulica de 1,56 m³ - Caminhão basculante 10 m³ | D40: 1.44411 | E40: tkm | F40: 5914359 | G40: 5914374 | H40: 5914389 | I40: =$B$21 -> P | J40: =(110-50)*0.9 -> 54 | K40: =IF(ISBLANK(J40),"",J40*(D40*$I$37)) -> 982572.444
A41: =IF(I41="P",H41,IF(I41="RP",G41,IF(I41="LN",F41,""))) -> 5914389 | B41: M0191 | C41: Brita 1 - Caminhão basculante 10 m³ | D41: 0.6189 | E41: tkm | F41: 5914359 | G41: 5914374 | H41: 5914389 | I41: P | J41: =D21 -> 0 | K41: =IF(ISBLANK(J41),"",J41*(D41*$I$37)) -> 0
A42: =IF(I42="P",H42,IF(I42="RP",G42,IF(I42="LN",F42,""))) -> 
B43: PRINCIPAL: | C43: 4011268
B44: SISTEMA DE CUSTOS REFERENCIAIS DE OBRAS - SICRO | I44: Quantitivo
B45: Custo Unitário de Referência | E45: =$C$6 -> Rio Grande do Norte - Abril/2024 | I45: (Coeficiente na composição principal) x (quantidade da principal no orçamento) | K45: m³
B46: 6416030 | C46: Usinagem de solo brita (70% - 30%) com material de jazida e brita comercial em usina de 300 t/h | I46: ='MOMENTO DE TRANSPORTE - PRINC'!D55*(VLOOKUP(C52,'RESUMO MODULO TOTAL'!D:O,7,FALSE)) -> 12600
B47: F - MOMENTO DE TRANSPORTE | D47: Quantidade | E47: Unidade | F47: DMT
F48: LN | G48: RP | H48: P | I48: TIPO (P, RP ou LN) | J48: DMT ESTIMADA (km) | K48: QUANTITATIVO TOTAL DE TRANSPORTE DE MATERIAL (tkm)
A49: =IF(I49="P",H49,IF(I49="RP",G49,IF(I49="LN",F49,""))) -> 5914389 | B49: 4016096 | C49: Escavação e carga de material de jazida com escavadeira hidráulica de 1,56 m³ - Caminhão basculante 10 m³ | D49: 1.44411 | E49: tkm | F49: 5914359 | G49: 5914374 | H49: 5914389 | I49: =$B$21 -> P | J49: =J40 -> 54 | K49: =IF(ISBLANK(J49),"",J49*(D49*$I$46)) -> 982572.444
A50: =IF(I50="P",H50,IF(I50="RP",G50,IF(I50="LN",F50,""))) -> 5914389 | B50: M0191 | C50: Brita 1 - Caminhão basculante 10 m³ | D50: 0.6189 | E50: tkm | F50: 5914359 | G50: 5914374 | H50: 5914389 | I50: P | J50: =D21 -> 0 | K50: =IF(ISBLANK(J50),"",J50*(D50*$I$46)) -> 0
A51: =IF(I51="P",H51,IF(I51="RP",G51,IF(I51="LN",F51,""))) -> 
B52: PRINCIPAL: | C52: 4011235
B53: SISTEMA DE CUSTOS REFERENCIAIS DE OBRAS - SICRO | I53: Quantitivo
B54: Custo Unitário de Referência | E54: =$C$6 -> Rio Grande do Norte - Abril/2024 | I54: (Coeficiente na composição principal) x (quantidade da principal no orçamento) | K54: m³
B55: 1107892 | C55: Concreto fck = 20 MPa - confecção em betoneira e lançamento manual - areia e brita comerciais | I55: ='MOMENTO DE TRANSPORTE - PRINC'!D67*(VLOOKUP(C64,'RESUMO MODULO TOTAL'!D:O,7,FALSE)) -> 1008
B56: F - MOMENTO DE TRANSPORTE | D56: Quantidade | E56: Unidade | F56: DMT
F57: LN | G57: RP | H57: P | I57: TIPO (P, RP ou LN) | J57: DMT ESTIMADA (km) | K57: QUANTITATIVO TOTAL DE TRANSPORTE DE MATERIAL (tkm)
A58: =IF(I58="P",H58,IF(I58="RP",G58,IF(I58="LN",F58,""))) -> 5914479 | B58: M0030 | C58: Aditivo plastificante e retardador de pega para concreto e argamassa - Caminhão carroceria 15 t | D58: 0.00082 | E58: tkm | F58: 5914449 | G58: 5914464 | H58: 5914479 | I58: =$B$21 -> P | J58: =$D$21 -> 0 | K58: =IF(ISBLANK(J58),"",J58*(D58*$I$55)) -> 0
A59: =IF(I59="P",H59,IF(I59="RP",G59,IF(I59="LN",F59,""))) -> 5914389 | B59: M0082 | C59: Areia média lavada - Caminhão basculante 10 m³ | D59: 0.95639 | E59: tkm | F59: 5914359 | G59: 5914374 | H59: 5914389 | I59: =$B$21 -> P | J59: =$D$21 -> 0 | K59: =IF(ISBLANK(J59),"",J59*(D59*$I$55)) -> 0
A60: 5914389 | B60: M0191 | C60: Brita 1 - Caminhão basculante 10 m³ | D60: 0.55131 | E60: tkm | F60: 5914359 | G60: 5914374 | H60: 5914389 | I60: P | J60: 0 | K60: =IF(ISBLANK(J60),"",J60*(D60*$I$55)) -> 0
A61: 5914389 | B61: M0192 | C61: Brita 2 - Caminhão basculante 10 m³ | D61: 0.55131 | E61: tkm | F61: 5914359 | G61: 5914374 | H61: 5914389 | I61: P | J61: 0 | K61: =IF(ISBLANK(J61),"",J61*(D61*$I$55)) -> 0
A62: 5914479 | B62: M0424 | C62: Cimento Portland CP II - 32 - saco - Caminhão carroceria 15 t | D62: 0.27464 | E62: tkm | F62: 5914449 | G62: 5914464 | H62: 5914479 | I62: P | J62: 0 | K62: =IF(ISBLANK(J62),"",J62*(D62*$I$55)) -> 0
B64: PRINCIPAL: | C64: 2003943
B65: SISTEMA DE CUSTOS REFERENCIAIS DE OBRAS - SICRO | I65: Quantitivo
B66: Custo Unitário de Referência | E66: =$C$6 -> Rio Grande do Norte - Abril/2024 | I66: (Coeficiente na composição principal) x (quantidade da principal no orçamento) | K66: kg
B67: 2003842 | C67: Enchimento de junta de concreto com argamassa asfáltica de densidade 1.700 kg/m³ - espessura de 1 cm | I67: ='MOMENTO DE TRANSPORTE - PRINC'!D68*(VLOOKUP(C72,'RESUMO MODULO TOTAL'!D:O,7,FALSE)) -> 1428
B68: F - MOMENTO DE TRANSPORTE | D68: Quantidade | E68: Unidade | F68: DMT
F69: LN | G69: RP | H69: P | I69: TIPO (P, RP ou LN) | J69: DMT ESTIMADA (km) | K69: QUANTITATIVO TOTAL DE TRANSPORTE DE MATERIAL (tkm)
A70: =IF(I70="P",H70,IF(I70="RP",G70,IF(I70="LN",F70,""))) -> 5914479 | B70: M2158 | C70: Argamassa asfáltica - Caminhão carroceria com capacidade de 15 t - 188 Kw | D70: 0.001 | E70: tkm | F70: 5914449 | G70: 5914464 | H70: 5914479 | I70: =$B$21 -> P | J70: =$D$21 -> 0 | K70: =IF(ISBLANK(J70),"",J70*(D70*$I$67)) -> 0
B72: PRINCIPAL: | C72: 2003943
B73: TIPO (P, RP ou LN) | C73: DMT ATÉ 50 KM NÃO DEVE SER PAGA | D73: SOMENTE DEVE SER ADICIONADO A DISTÂNCIA EXCEDENTE A 50 KM
B74: LN | D74: =D21 -> 0
B76: SISTEMA DE CUSTOS REFERENCIAIS DE OBRAS - SICRO | I76: Quantitivo
B77: Custo Unitário de Referência | E77: =$C$6 -> Rio Grande do Norte - Abril/2024 | I77: (Coeficiente na composição principal) x (quantidade da principal no orçamento) | K77: t
B78: 6416078 | C78: Usinagem de concreto asfáltico - faixa C - areia e brita comerciais | I78: 0
B79: F - MOMENTO DE TRANSPORTE | D79: Quantidade | E79: Unidade | F79: DMT
F80: LN | G80: RP | H80: P | I80: TIPO (P, RP ou LN) | J80: DMT ESTIMADA (km) | K80: QUANTITATIVO TOTAL DE TRANSPORTE DE MATERIAL (tkm)
A81: =IF(I81="P",H81,IF(I81="RP",G81,IF(I81="LN",F81,""))) -> 5914359 | B81: M0028 | C81: Areia média - Caminhão basculante 10 m³ | D81: 0.48713 | E81: tkm | F81: 5914359 | G81: 5914374 | H81: 5914389 | I81: =$B$74 -> LN | J81: =$D$74 -> 0 | K81: =IF(ISBLANK(J81),"",J81*(D81*I$78)) -> 0
A82: =IF(I82="P",H82,IF(I82="RP",G82,IF(I82="LN",F82,""))) -> 5914359 | B82: M0005 | C82: Brita 0 - Caminhão basculante 10 m³ | D82: 0.09368 | E82: tkm | F82: 5914359 | G82: 5914374 | H82: 5914389 | I82: =$B$74 -> LN | J82: =$D$74 -> 0 | K82: =IF(ISBLANK(J82),"",J82*(D82*I$78)) -> 0
A83: 5914359 | B83: M0191 | C83: Brita 1 - Caminhão basculante 10 m³ | D83: 0.09368 | E83: tkm | F83: 5914359 | G83: 5914374 | H83: 5914389 | I83: LN | J83: 0 | K83: 0
A84: 5914364 | B84: M0344 | C84: Cal hidratada - a granel - Caminhão silo 30 m³ | D84: 0.0562 | E84: tkm | F84: 5914364 | G84: 5914365 | H84: 5914366 | I84: LN | J84: 0 | K84: 0
A85: 5914359 | B85: M1103 | C85: Pedrisco - Caminhão basculante 10 m³ | D85: 0.20609 | E85: tkm | F85: 5914359 | G85: 5914374 | H85: 5914389 | I85: LN | J85: 0 | K85: 0
B87: PRINCIPAL: | C87: 4011463
B88: SISTEMA DE CUSTOS REFERENCIAIS DE OBRAS - SICRO | I88: Quantitivo
B89: Custo Unitário de Referência | E89: =$C$6 -> Rio Grande do Norte - Abril/2024 | I89: (Coeficiente na composição principal) x (quantidade da principal no orçamento) | K89: m³
B90: 6416030 | C90: Usinagem de solo brita (70% - 30%) com material de jazida e brita comercial em usina de 300 t/h | I90: 0
B91: F - MOMENTO DE TRANSPORTE | D91: Quantidade | E91: Unidade | F91: DMT
F92: LN | G92: RP | H92: P | I92: TIPO (P, RP ou LN) | J92: DMT ESTIMADA (km) | K92: QUANTITATIVO TOTAL DE TRANSPORTE DE MATERIAL (tkm)
A93: =IF(I93="P",H93,IF(I93="RP",G93,IF(I93="LN",F93,""))) -> 5914359 | B93: 4016096 | C93: Escavação e carga de material de jazida com escavadeira hidráulica de 1,56 m³ - Caminhão basculante 10 m³ | D93: 1.44411 | E93: tkm | F93: 5914359 | G93: 5914374 | H93: 5914389 | I93: =$B$74 -> LN | J93: =$D$74 -> 0 | K93: =IF(ISBLANK(J93),"",J93*(D93*I$90)) -> 0
A94: =IF(I94="P",H94,IF(I94="RP",G94,IF(I94="LN",F94,""))) -> 5914359 | B94: M0191 | C94: Brita 1 - Caminhão basculante 10 m³ | D94: 0.6189 | E94: tkm | F94: 5914359 | G94: 5914374 | H94: 5914389 | I94: LN | J94: =D74 -> 0 | K94: =IF(ISBLANK(J94),"",J94*(D94*I$90)) -> 0
A95: =IF(I95="P",H95,IF(I95="RP",G95,IF(I95="LN",F95,""))) -> 
B96: PRINCIPAL: | C96: 4011268
B97: SISTEMA DE CUSTOS REFERENCIAIS DE OBRAS - SICRO | I97: Quantitivo
B98: Custo Unitário de Referência | E98: =$C$6 -> Rio Grande do Norte - Abril/2024 | I98: (Coeficiente na composição principal) x (quantidade da principal no orçamento) | K98: m³
B99: 6416030 | C99: Usinagem de solo brita (70% - 30%) com material de jazida e brita comercial em usina de 300 t/h | I99: 0
B100: F - MOMENTO DE TRANSPORTE | D100: Quantidade | E100: Unidade | F100: DMT
F101: LN | G101: RP | H101: P | I101: TIPO (P, RP ou LN) | J101: DMT ESTIMADA (km) | K101: QUANTITATIVO TOTAL DE TRANSPORTE DE MATERIAL (tkm)
A102: =IF(I102="P",H102,IF(I102="RP",G102,IF(I102="LN",F102,""))) -> 5914359 | B102: 4016096 | C102: Escavação e carga de material de jazida com escavadeira hidráulica de 1,56 m³ - Caminhão basculante 10 m³ | D102: 1.44411 | E102: tkm | F102: 5914359 | G102: 5914374 | H102: 5914389 | I102: =$B$74 -> LN | J102: =$D$74 -> 0 | K102: =IF(ISBLANK(J102),"",J102*(D102*I$99)) -> 0
A103: =IF(I103="P",H103,IF(I103="RP",G103,IF(I103="LN",F103,""))) -> 5914359 | B103: M0191 | C103: Brita 1 - Caminhão basculante 10 m³ | D103: 0.6189 | E103: tkm | F103: 5914359 | G103: 5914374 | H103: 5914389 | I103: LN | J103: =D74 -> 0 | K103: =IF(ISBLANK(J103),"",J103*(D103*I$99)) -> 0
A104: =IF(I104="P",H104,IF(I104="RP",G104,IF(I104="LN",F104,""))) -> 
B105: PRINCIPAL: | C105: 4011235
B106: SISTEMA DE CUSTOS REFERENCIAIS DE OBRAS - SICRO | I106: Quantitivo
B107: Custo Unitário de Referência | E107: =$C$6 -> Rio Grande do Norte - Abril/2024 | I107: (Coeficiente na composição principal) x (quantidade da principal no orçamento) | K107: m³
B108: 1107892 | C108: Concreto fck = 20 MPa - confecção em betoneira e lançamento manual - areia e brita comerciais | I108: 0
B109: F - MOMENTO DE TRANSPORTE | D109: Quantidade | E109: Unidade | F109: DMT
F110: LN | G110: RP | H110: P | I110: TIPO (P, RP ou LN) | J110: DMT ESTIMADA (km) | K110: QUANTITATIVO TOTAL DE TRANSPORTE DE MATERIAL (tkm)
A111: =IF(I111="P",H111,IF(I111="RP",G111,IF(I111="LN",F111,""))) -> 5914449 | B111: M0030 | C111: Aditivo plastificante e retardador de pega para concreto e argamassa - Caminhão carroceria 15 t | D111: 0.00082 | E111: tkm | F111: 5914449 | G111: 5914464 | H111: 5914479 | I111: =$B$74 -> LN | J111: =$D$74 -> 0 | K111: =IF(ISBLANK(J111),"",J111*(D111*I$108)) -> 0
A112: =IF(I112="P",H112,IF(I112="RP",G112,IF(I112="LN",F112,""))) -> 5914359 | B112: M0082 | C112: Areia média lavada - Caminhão basculante 10 m³ | D112: 0.95639 | E112: tkm | F112: 5914359 | G112: 5914374 | H112: 5914389 | I112: LN | J112: =$D$74 -> 0 | K112: =IF(ISBLANK(J112),"",J112*(D112*I$108)) -> 0
A113: 5914359 | B113: M0191 | C113: Brita 1 - Caminhão basculante 10 m³ | D113: 0.55131 | E113: tkm | F113: 5914359 | G113: 5914374 | H113: 5914389 | I113: LN | J113: 0 | K113: 0
A114: 5914359 | B114: M0192 | C114: Brita 2 - Caminhão basculante 10 m³ | D114: 0.55131 | E114: tkm | F114: 5914359 | G114: 5914374 | H114: 5914389 | I114: LN | J114: 0 | K114: 0
A115: 5914449 | B115: M0424 | C115: Cimento Portland CP II - 32 - saco - Caminhão carroceria 15 t | D115: 0.27464 | E115: tkm | F115: 5914449 | G115: 5914464 | H115: 5914479 | I115: LN | J115: 0 | K115: 0
B117: PRINCIPAL: | C117: 2003943
B118: SISTEMA DE CUSTOS REFERENCIAIS DE OBRAS - SICRO | I118: Quantitivo
B119: Custo Unitário de Referência | E119: =$C$6 -> Rio Grande do Norte - Abril/2024 | I119: (Coeficiente na composição principal) x (quantidade da principal no orçamento) | K119: kg
B120: 2003842 | C120: Enchimento de junta de concreto com argamassa asfáltica de densidade 1.700 kg/m³ - espessura de 1 cm | I120: 0
B121: F - MOMENTO DE TRANSPORTE | D121: Quantidade | E121: Unidade | F121: DMT
F122: LN | G122: RP | H122: P | I122: TIPO (P, RP ou LN) | J122: DMT ESTIMADA (km) | K122: QUANTITATIVO TOTAL DE TRANSPORTE DE MATERIAL (tkm)
A123: =IF(I123="P",H123,IF(I123="RP",G123,IF(I123="LN",F123,""))) -> 5914449 | B123: M2158 | C123: Argamassa asfáltica - Caminhão carroceria com capacidade de 15 t - 188 Kw | D123: 0.001 | E123: tkm | F123: 5914449 | G123: 5914464 | H123: 5914479 | I123: =$B$74 -> LN | J123: =$D$74 -> 0 | K123: =IF(ISBLANK(J123),"",J123*(D123*I$120)) -> 0
B125: PRINCIPAL: | C125: 2003943
B126: TIPO (P, RP ou LN) | C126: DMT ATÉ 50 KM NÃO DEVE SER PAGA | D126: SOMENTE DEVE SER ADICIONADO A DISTÂNCIA EXCEDENTE A 50 KM
B127: RP | D127: =D21 -> 0
B129: SISTEMA DE CUSTOS REFERENCIAIS DE OBRAS - SICRO | I129: Quantitivo
B130: Custo Unitário de Referência | E130: =$C$6 -> Rio Grande do Norte - Abril/2024 | I130: (Coeficiente na composição principal) x (quantidade da principal no orçamento) | K130: t
B131: 6416078 | C131: Usinagem de concreto asfáltico - faixa C - areia e brita comerciais | I131: ='MOMENTO DE TRANSPORTE - PRINC'!D134*(VLOOKUP(C140,'RESUMO MODULO TOTAL'!D:O,7,FALSE)) -> 10281.6
B132: F - MOMENTO DE TRANSPORTE | D132: Quantidade | E132: Unidade | F132: DMT
F133: LN | G133: RP | H133: P | I133: TIPO (P, RP ou LN) | J133: DMT ESTIMADA (km) | K133: QUANTITATIVO TOTAL DE TRANSPORTE DE MATERIAL (tkm)
A134: =IF(I134="P",H134,IF(I134="RP",G134,IF(I134="LN",F134,""))) -> 5914374 | B134: M0028 | C134: Areia média - Caminhão basculante 10 m³ | D134: 0.48713 | E134: tkm | F134: 5914359 | G134: 5914374 | H134: 5914389 | I134: =$B$127 -> RP | J134: =$D$127 -> 0 | K134: =IF(ISBLANK(J134),"",J134*(D134*I$131)) -> 0
A135: =IF(I135="P",H135,IF(I135="RP",G135,IF(I135="LN",F135,""))) -> 5914374 | B135: M0005 | C135: Brita 0 - Caminhão basculante 10 m³ | D135: 0.09368 | E135: tkm | F135: 5914359 | G135: 5914374 | H135: 5914389 | I135: =$B$127 -> RP | J135: =$D$127 -> 0 | K135: =IF(ISBLANK(J135),"",J135*(D135*I$131)) -> 0
A136: 5914374 | B136: M0191 | C136: Brita 1 - Caminhão basculante 10 m³ | D136: 0.09368 | E136: tkm | F136: 5914359 | G136: 5914374 | H136: 5914389 | I136: RP | J136: 0 | K136: 0
A137: 5914365 | B137: M0344 | C137: Cal hidratada - a granel - Caminhão silo 30 m³ | D137: 0.0562 | E137: tkm | F137: 5914364 | G137: 5914365 | H137: 5914366 | I137: RP | J137: 0 | K137: 0
A138: 5914374 | B138: M1103 | C138: Pedrisco - Caminhão basculante 10 m³ | D138: 0.20609 | E138: tkm | F138: 5914359 | G138: 5914374 | H138: 5914389 | I138: RP | J138: 0 | K138: 0
B140: PRINCIPAL: | C140: 4011463
B141: SISTEMA DE CUSTOS REFERENCIAIS DE OBRAS - SICRO | I141: Quantitivo
B142: Custo Unitário de Referência | E142: =$C$6 -> Rio Grande do Norte - Abril/2024 | I142: (Coeficiente na composição principal) x (quantidade da principal no orçamento) | K142: m³
B143: 6416030 | C143: Usinagem de solo brita (70% - 30%) com material de jazida e brita comercial em usina de 300 t/h | I143: ='MOMENTO DE TRANSPORTE - PRINC'!D146*(VLOOKUP(C149,'RESUMO MODULO TOTAL'!D:O,7,FALSE)) -> 12600
B144: F - MOMENTO DE TRANSPORTE | D144: Quantidade | E144: Unidade | F144: DMT
F145: LN | G145: RP | H145: P | I145: TIPO (P, RP ou LN) | J145: DMT ESTIMADA (km) | K145: QUANTITATIVO TOTAL DE TRANSPORTE DE MATERIAL (tkm)
A146: =IF(I146="P",H146,IF(I146="RP",G146,IF(I146="LN",F146,""))) -> 5914374 | B146: 4016096 | C146: Escavação e carga de material de jazida com escavadeira hidráulica de 1,56 m³ - Caminhão basculante 10 m³ | D146: 1.44411 | E146: tkm | F146: 5914359 | G146: 5914374 | H146: 5914389 | I146: =$B$127 -> RP | J146: =(110-50)*0.1 -> 6 | K146: =IF(ISBLANK(J146),"",J146*(D146*I$143)) -> 109174.716
A147: =IF(I147="P",H147,IF(I147="RP",G147,IF(I147="LN",F147,""))) -> 5914374 | B147: M0191 | C147: Brita 1 - Caminhão basculante 10 m³ | D147: 0.6189 | E147: tkm | F147: 5914359 | G147: 5914374 | H147: 5914389 | I147: RP | J147: =$D$74 -> 0 | K147: =IF(ISBLANK(J147),"",J147*(D147*I$143)) -> 0
A148: =IF(I148="P",H148,IF(I148="RP",G148,IF(I148="LN",F148,""))) -> 
B149: PRINCIPAL: | C149: 4011268
B150: SISTEMA DE CUSTOS REFERENCIAIS DE OBRAS - SICRO | I150: Quantitivo
B151: Custo Unitário de Referência | E151: =$C$6 -> Rio Grande do Norte - Abril/2024 | I151: (Coeficiente na composição principal) x (quantidade da principal no orçamento) | K151: m³
B152: 6416030 | C152: Usinagem de solo brita (70% - 30%) com material de jazida e brita comercial em usina de 300 t/h | I152: ='MOMENTO DE TRANSPORTE - PRINC'!D157*(VLOOKUP(C158,'RESUMO MODULO TOTAL'!D:O,7,FALSE)) -> 12600
B153: F - MOMENTO DE TRANSPORTE | D153: Quantidade | E153: Unidade | F153: DMT
F154: LN | G154: RP | H154: P | I154: TIPO (P, RP ou LN) | J154: DMT ESTIMADA (km) | K154: QUANTITATIVO TOTAL DE TRANSPORTE DE MATERIAL (tkm)
A155: =IF(I155="P",H155,IF(I155="RP",G155,IF(I155="LN",F155,""))) -> 5914374 | B155: 4016096 | C155: Escavação e carga de material de jazida com escavadeira hidráulica de 1,56 m³ - Caminhão basculante 10 m³ | D155: 1.44411 | E155: tkm | F155: 5914359 | G155: 5914374 | H155: 5914389 | I155: =$B$127 -> RP | J155: =J146 -> 6 | K155: =IF(ISBLANK(J155),"",J155*(D155*I$152)) -> 109174.716
A156: =IF(I156="P",H156,IF(I156="RP",G156,IF(I156="LN",F156,""))) -> 5914374 | B156: M0191 | C156: Brita 1 - Caminhão basculante 10 m³ | D156: 0.6189 | E156: tkm | F156: 5914359 | G156: 5914374 | H156: 5914389 | I156: RP | J156: =$D$74 -> 0 | K156: =IF(ISBLANK(J156),"",J156*(D156*I$152)) -> 0
A157: =IF(I157="P",H157,IF(I157="RP",G157,IF(I157="LN",F157,""))) -> 
B158: PRINCIPAL: | C158: 4011235
B159: SISTEMA DE CUSTOS REFERENCIAIS DE OBRAS - SICRO | I159: Quantitivo
B160: Custo Unitário de Referência | E160: =$C$6 -> Rio Grande do Norte - Abril/2024 | I160: (Coeficiente na composição principal) x (quantidade da principal no orçamento) | K160: m³
B161: 1107892 | C161: Concreto fck = 20 MPa - confecção em betoneira e lançamento manual - areia e brita comerciais | I161: ='MOMENTO DE TRANSPORTE - PRINC'!D168*(VLOOKUP(C170,'RESUMO MODULO TOTAL'!D:O,7,FALSE)) -> 1008
B162: F - MOMENTO DE TRANSPORTE | D162: Quantidade | E162: Unidade | F162: DMT
F163: LN | G163: RP | H163: P | I163: TIPO (P, RP ou LN) | J163: DMT ESTIMADA (km) | K163: QUANTITATIVO TOTAL DE TRANSPORTE DE MATERIAL (tkm)
A164: =IF(I164="P",H164,IF(I164="RP",G164,IF(I164="LN",F164,""))) -> 5914464 | B164: M0030 | C164: Aditivo plastificante e retardador de pega para concreto e argamassa - Caminhão carroceria 15 t | D164: 0.00082 | E164: tkm | F164: 5914449 | G164: 5914464 | H164: 5914479 | I164: =$B$127 -> RP | J164: =$D$74 -> 0 | K164: =IF(ISBLANK(J164),"",J164*(D164*$I$161)) -> 0
A165: =IF(I165="P",H165,IF(I165="RP",G165,IF(I165="LN",F165,""))) -> 5914374 | B165: M0082 | C165: Areia média lavada - Caminhão basculante 10 m³ | D165: 0.95639 | E165: tkm | F165: 5914359 | G165: 5914374 | H165: 5914389 | I165: RP | J165: 0 | K165: =IF(ISBLANK(J165),"",J165*(D165*$I$161)) -> 0
A166: 5914374 | B166: M0191 | C166: Brita 1 - Caminhão basculante 10 m³ | D166: 0.55131 | E166: tkm | F166: 5914359 | G166: 5914374 | H166: 5914389 | I166: RP | J166: 0 | K166: 0
A167: 5914374 | B167: M0192 | C167: Brita 2 - Caminhão basculante 10 m³ | D167: 0.55131 | E167: tkm | F167: 5914359 | G167: 5914374 | H167: 5914389 | I167: RP | J167: 0 | K167: 0
A168: 5914464 | B168: M0424 | C168: Cimento Portland CP II - 32 - saco - Caminhão carroceria 15 t | D168: 0.27464 | E168: tkm | F168: 5914449 | G168: 5914464 | H168: 5914479 | I168: RP | J168: 0 | K168: 0
B170: PRINCIPAL: | C170: 2003943
B171: SISTEMA DE CUSTOS REFERENCIAIS DE OBRAS - SICRO | I171: Quantitivo
B172: Custo Unitário de Referência | E172: =$C$6 -> Rio Grande do Norte - Abril/2024 | I172: (Coeficiente na composição principal) x (quantidade da principal no orçamento) | K172: kg
B173: 2003842 | C173: Enchimento de junta de concreto com argamassa asfáltica de densidade 1.700 kg/m³ - espessura de 1 cm | I173: ='MOMENTO DE TRANSPORTE - PRINC'!D169*(VLOOKUP(C178,'RESUMO MODULO TOTAL'!D:O,7,FALSE)) -> 1428
B174: F - MOMENTO DE TRANSPORTE | D174: Quantidade | E174: Unidade | F174: DMT
F175: LN | G175: RP | H175: P | I175: TIPO (P, RP ou LN) | J175: DMT ESTIMADA (km) | K175: QUANTITATIVO TOTAL DE TRANSPORTE DE MATERIAL (tkm)
A176: =IF(I176="P",H176,IF(I176="RP",G176,IF(I176="LN",F176,""))) -> 5914464 | B176: M2158 | C176: Argamassa asfáltica - Caminhão carroceria com capacidade de 15 t - 188 Kw | D176: 0.001 | E176: tkm | F176: 5914449 | G176: 5914464 | H176: 5914479 | I176: =$B$127 -> RP | J176: =$D$74 -> 0 | K176: =IF(ISBLANK(J176),"",J176*(D176*$I$173)) -> 0
B178: PRINCIPAL: | C178: 2003943
A181: =IF(I181="P",H181,IF(I181="RP",G181,IF(I181="LN",F181,""))) -> 

Sheet MC MODULO
A1: Extensão | B1: = | C1: 2000 | D1: m | F1: QUANTIDADE DE MODULOS | G1: 6
A2: Largura | B2: = | C2: 7 | D2: m
A4: Extensão | B4: = | C4: 2 | D4: km
B6: MOBUILIZAÇÃO
A7: 1 | B7: Implantação da obra
B9: Módulos(un) | D9: Módulos(un)
B10: =G1 -> 6 | C10: = | D10: =B10 -> 6
A12: 2 | B12: Administração da obra
B14: Módulos(un) | D14: Módulos(un)
B15: =G1 -> 6 | C15: = | D15: =B15 -> 6
A17: 3 | B17: Canteiro de Obras e Almoxarifado
B19: Módulos(un) | D19: Módulos(un)
B20: =G1 -> 6 | C20: = | D20: =B20 -> 6
A22: 4 | B22: Placa de Obra em Chapa de Aço Galvanizado
B24: Módulos(un) | C24: Comprimento(m) | D24: Largura (m) | H24: Total de Area de placa (m²)
B25: =G1 -> 6 | C25: 2 | D25: 4 | H25: =C25*D25*B25*2 -> 96
B27: TERRAPLENAGEM
A29: 5 | B29: serviços topográficos para pavimentação, inclusive notas de serviços, acompanhamento e greide
B31: Extensão (m) | D31: Largura (m) | H31: area (m2)
B32: =C1*$G$1 -> 12000 | C32: x | D32: =$C$2 -> 7 | G32: = | H32: =B32*D32 -> 84000
A34: 6 | B34: Escavação, carga e transporte de material de 1ª categoria - DMT de 1.000 a 1.200 m - caminho de serviço em leito natural - com escavadeira e caminhão basculante de 14 m³
B36: Extensão (m) | D36: Largura (m) | F36: Espessura (m) | H36: Volume (m3)
B37: =C1*$G$1 -> 12000 | C37: x | D37: =$C$2 -> 7 | E37: x | F37: 0.35 | G37: = | H37: =B37*D37*F37 -> 29400
A41: 7 | B41: Espalhamento de material em bota-fora
B43: Extensão (m) | D43: Largura (m) | F43: Espessura (m) | H43: Volume (m3)
B44: =C1*$G$1 -> 12000 | C44: x | D44: =$C$2 -> 7 | E44: x | F44: 0.35 | G44: = | H44: =B44*D44*F44 -> 29400
B46: PAVIMENTAÇÃO
A48: 8 | B48: Concreto asfáltico - faixa C - areia e brita comerciais
B50: Extensão (m) | C50: Largura (m) | D50: Espessura (m) | E50: Densidade (t/m³) | H50: Volume (t)
B51: =$C$1*G1 -> 12000 | C51: =$C$2 -> 7 | D51: 0.05 | E51: 2.4 | G51: = | H51: =B51*C51*D51*E51 -> 10080
A54: 9 | B54: Imprimação com emulsão asfáltica
B56: Extensão (m) | D56: Largura (m) | H56: area (m2)
B57: =$C$1*G1 -> 12000 | C57: x | D57: =$C$2 -> 7 | G57: = | H57: =B57*D57 -> 84000
A60: 10 | B60: Pintura de ligação
B62: Extensão (m) | D62: Largura (m) | H62: area (m2)
B63: =$C$1*G1 -> 12000 | C63: x | D63: =$C$2 -> 7 | G63: = | H63: =B63*D63 -> 84000
A65: 11 | B65: Base ou sub-base de brita graduada com brita comercial
B67: Extensão (m) | D67: Largura (m) | F67: Espessura (m) | H67: Volume (m3)
B68: =C1*$G$1 -> 12000 | C68: x | D68: =$C$2 -> 7 | E68: x | F68: 0.15 | G68: = | H68: =B68*D68*F68 -> 12600
A71: 12 | B71: Sub-base estabilizada granulometricamente com mistura de solos na pista com material de jazida
B73: Extensão (m) | D73: Largura (m) | F73: Espessura (m) | H73: Volume (m3)
B74: =C1*$G$1 -> 12000 | C74: x | D74: =$C$2 -> 7 | E74: x | F74: 0.15 | G74: = | H74: =B74*D74*F74 -> 12600
A77: 13 | B77: Regularização do subleito
B79: Extensão (m) | D79: Largura (m) | H79: area (m2)
B80: =C1*$G$1 -> 12000 | C80: x | D80: =$C$2 -> 7 | G80: = | H80: =B80*D80 -> 84000
B82: SINALIZAÇÃO
A84: 20 | B84: Fornecimento e implantação de placa de regulamentação em aço D = 0,60 m - película retrorrefletiva tipo I + SI
B86: Extensão (km) | D86: Quant. (un) | H86: Quant. (un)
B87: =$C$4*$G$1 -> 12 | C87: x | D87: 3 | G87: = | H87: =B87*D87 -> 36
A89: 20 | B89: Placa de advertência em aço, lado de 0,60 m - película retrorrefletiva tipo I + SI - fornecimento e implantação
B91: Extensão (km) | D91: Quant. (un) | H91: Quant. (un)
B92: =$C$4*$G$1 -> 12 | C92: x | D92: 3 | G92: = | H92: =B92*D92 -> 36
A95: 21 | B95: Fornecimento e implantação de suporte metálico galvanizado para placa de regulamentação - D = 0,60 m
B97: Extensão (km) | D97: Quant. (un) | H97: Quant. (un)
B98: =$C$4*$G$1 -> 12 | C98: x | D98: =D87 -> 3 | G98: = | H98: =H87+H92 -> 72
A100: 22 | B100: Pintura de faixa com tinta acrílica - espessura de 0,4 mm (bordos)
B102: Extensão (m) | D102: Espessura (m) | H102: Quant. (m²)
B103: =C1*G1 -> 12000 | C103: x | D103: 0.1 | G103: = | H103: =B103*D103*2 -> 2400
B105: Pintura de faixa com tinta acrílica - espessura de 0,4 mm (faixa central)
H107: Quant. (m²)
H108: =H103*0.4 -> 960
B111: DRENAGEM
A112: 23 | B112: Meio-fio de concreto - MFC 03 - areia e brita comerciais - fôrma de madeira
B114: Extensão (m) | D114: Quant. (un) | H114: Extensão(m)
B115: =$C$1*$G$1 -> 12000 | C115: x | D115: 2 | G115: = | H115: =B115*D115 -> 24000
A117: 19 | B117: Caiação mecanizada com fixador de cal
B119: Extensão (m) | D119: Perimetro (m) | H119: Area (m²)
B120: =$C$1*$G$1 -> 12000 | C120: x | D120: =0.24 -> 0.24 | G120: = | H120: =B120*D120 -> 2880
B123: SERVIÇOS COMPLEMENTARES
A124: 24
B126: Extensão (m) | D126: Largura (m) | G126: 0.1 | H126: extensão (m)
B127: =$C$1*G1 -> 12000 | C127: x | D127: 1 | E127: x | G127: = | H127: =G126*B127 -> 1200
B130: PROJETO EXECUTIVO
A131: 25 | B131: Projeto Executivo
B133: Extensão (m) | D133: Largura (m) | F133: Quant. (un) | H133: Área (m²)
B134: =$C$1*G1 -> 12000 | C134: x | D134: =C2 -> 7 | E134: x | F134: 1 | G134: = | H134: =B134*D134 -> 84000
B136: CONTROLE TECNOLOGICO - OBRA
A137: 26 | B137: Projeto Executivo
B139: Extensão (m) | D139: Largura (m) | F139: Quant. (un) | H139: meses
G140: = | H140: =0.5*G1 -> 3
F145: Perímetro caiação = 0,09 + 0,15

Sheet ANP ESTADO
A1: Agência Nacional do Petróleo, Gás Natural e Biocombustíveis
A2: Superintendência de Defesa da Concorrência
A5: PREÇO MÉDIO MENSAL PONDERADO PRATICADO PELOS DISTRIBUIDORES DE PRODUTOS ASFÁLTICOS (R$/KG)
A7: Importante: | B7: Quando não houver declaração de venda do produto selecionado, ou quando a declaração de venda do produto ocorrer por menos de 03 (três) distribuidoras, a tabela indicará campo vazio.
A8: Mês | B8: Produto | C8: Estado | D8: Preço
A9: 2013-01-01 | B9: ASFALTOS DILUÍDOS CM-30 | C9: Acre | D9: -
A10: 2013-01-01 | B10: ASFALTOS DILUÍDOS CM-30 | C10: Alagoas | D10: -
A11: 2013-01-01 | B11: ASFALTOS DILUÍDOS CM-30 | C11: Amapá | D11: -
A12: 2013-01-01 | B12: ASFALTOS DILUÍDOS CM-30 | C12: Amazonas | D12: 1.453527021
A13: 2013-01-01 | B13: ASFALTOS DILUÍDOS CM-30 | C13: Bahia | D13: 1.464044142
A14: 2013-01-01 | B14: ASFALTOS DILUÍDOS CM-30 | C14: Ceará | D14: 1.447997934
A15: 2013-01-01 | B15: ASFALTOS DILUÍDOS CM-30 | C15: Distrito Federal | D15: -
A16: 2013-01-01 | B16: ASFALTOS DILUÍDOS CM-30 | C16: Espírito Santo | D16: -
A17: 2013-01-01 | B17: ASFALTOS DILUÍDOS CM-30 | C17: Goiás | D17: 1.686383065
A18: 2013-01-01 | B18: ASFALTOS DILUÍDOS CM-30 | C18: Maranhão | D18: -
A19: 2013-01-01 | B19: ASFALTOS DILUÍDOS CM-30 | C19: Mato Grosso | D19: -
A20: 2013-01-01 | B20: ASFALTOS DILUÍDOS CM-30 | C20: Mato Grosso do Sul | D20: -
A21: 2013-01-01 | B21: ASFALTOS DILUÍDOS CM-30 | C21: Minas Gerais | D21: 1.451106114
A22: 2013-01-01 | B22: ASFALTOS DILUÍDOS CM-30 | C22: Pará | D22: -
A23: 2013-01-01 | B23: ASFALTOS DILUÍDOS CM-30 | C23: Paraíba | D23: -
A24: 2013-01-01 | B24: ASFALTOS DILUÍDOS CM-30 | C24: Paraná | D24: 1.520125031
A25: 2013-01-01 | B25: ASFALTOS DILUÍDOS CM-30 | C25: Pernambuco | D25: -
A26: 2013-01-01 | B26: ASFALTOS DILUÍDOS CM-30 | C26: Piauí | D26: -
A27: 2013-01-01 | B27: ASFALTOS DILUÍDOS CM-30 | C27: Rio de Janeiro | D27: 1.330475106
A28: 2013-01-01 | B28: ASFALTOS DILUÍDOS CM-30 | C28: Rio Grande do Norte | D28: -
A29: 2013-01-01 | B29: ASFALTOS DILUÍDOS CM-30 | C29: Rio Grande do Sul | D29: 1.598611074
A30: 2013-01-01 | B30: ASFALTOS DILUÍDOS CM-30 | C30: Rondônia | D30: -
A31: 2013-01-01 | B31: ASFALTOS DILUÍDOS CM-30 | C31: Roraima | D31: -
A32: 2013-01-01 | B32: ASFALTOS DILUÍDOS CM-30 | C32: Santa Catarina | D32: -
A33: 2013-01-01 | B33: ASFALTOS DILUÍDOS CM-30 | C33: São Paulo | D33: 1.471008423
A34: 2013-01-01 | B34: ASFALTOS DILUÍDOS CM-30 | C34: Sergipe | D34: -
A35: 2013-01-01 | B35: ASFALTOS DILUÍDOS CM-30 | C35: Tocantins | D35: -
A36: 2013-02-01 | B36: ASFALTOS DILUÍDOS CM-30 | C36: Acre | D36: -
A37: 2013-02-01 | B37: ASFALTOS DILUÍDOS CM-30 | C37: Alagoas | D37: -
A38: 2013-02-01 | B38: ASFALTOS DILUÍDOS CM-30 | C38: Amapá | D38: -
A39: 2013-02-01 | B39: ASFALTOS DILUÍDOS CM-30 | C39: Amazonas | D39: 1.485578179
A40: 2013-02-01 | B40: ASFALTOS DILUÍDOS CM-30 | C40: Bahia | D40: 1.457014101
A41: 2013-02-01 | B41: ASFALTOS DILUÍDOS CM-30 | C41: Ceará | D41: 1.413192336
A42: 2013-02-01 | B42: ASFALTOS DILUÍDOS CM-30 | C42: Distrito Federal | D42: -
A43: 2013-02-01 | B43: ASFALTOS DILUÍDOS CM-30 | C43: Espírito Santo | D43: -
A44: 2013-02-01 | B44: ASFALTOS DILUÍDOS CM-30 | C44: Goiás | D44: 1.667459711
A45: 2013-02-01 | B45: ASFALTOS DILUÍDOS CM-30 | C45: Maranhão | D45: -
A46: 2013-02-01 | B46: ASFALTOS DILUÍDOS CM-30 | C46: Mato Grosso | D46: -
A47: 2013-02-01 | B47: ASFALTOS DILUÍDOS CM-30 | C47: Mato Grosso do Sul | D47: -
A48: 2013-02-01 | B48: ASFALTOS DILUÍDOS CM-30 | C48: Minas Gerais | D48: 1.452121117
A49: 2013-02-01 | B49: ASFALTOS DILUÍDOS CM-30 | C49: Pará | D49: -
A50: 2013-02-01 | B50: ASFALTOS DILUÍDOS CM-30 | C50: Paraíba | D50: -
A51: 2013-02-01 | B51: ASFALTOS DILUÍDOS CM-30 | C51: Paraná | D51: 1.493783173
A52: 2013-02-01 | B52: ASFALTOS DILUÍDOS CM-30 | C52: Pernambuco | D52: -
A53: 2013-02-01 | B53: ASFALTOS DILUÍDOS CM-30 | C53: Piauí | D53: -
A54: 2013-02-01 | B54: ASFALTOS DILUÍDOS CM-30 | C54: Rio de Janeiro | D54: 1.418234901
A55: 2013-02-01 | B55: ASFALTOS DILUÍDOS CM-30 | C55: Rio Grande do Norte | D55: -
A56: 2013-02-01 | B56: ASFALTOS DILUÍDOS CM-30 | C56: Rio Grande do Sul | D56: 1.435861782
A57: 2013-02-01 | B57: ASFALTOS DILUÍDOS CM-30 | C57: Rondônia | D57: -
A58: 2013-02-01 | B58: ASFALTOS DILUÍDOS CM-30 | C58: Roraima | D58: -
A59: 2013-02-01 | B59: ASFALTOS DILUÍDOS CM-30 | C59: Santa Catarina | D59: -
A60: 2013-02-01 | B60: ASFALTOS DILUÍDOS CM-30 | C60: São Paulo | D60: 1.434190204
A61: 2013-02-01 | B61: ASFALTOS DILUÍDOS CM-30 | C61: Sergipe | D61: -
A62: 2013-02-01 | B62: ASFALTOS DILUÍDOS CM-30 | C62: Tocantins | D62: -
A63: 2013-03-01 | B63: ASFALTOS DILUÍDOS CM-30 | C63: Acre | D63: -
A64: 2013-03-01 | B64: ASFALTOS DILUÍDOS CM-30 | C64: Alagoas | D64: -
A65: 2013-03-01 | B65: ASFALTOS DILUÍDOS CM-30 | C65: Amapá | D65: -
A66: 2013-03-01 | B66: ASFALTOS DILUÍDOS CM-30 | C66: Amazonas | D66: 1.507923921
A67: 2013-03-01 | B67: ASFALTOS DILUÍDOS CM-30 | C67: Bahia | D67: 1.449440325
A68: 2013-03-01 | B68: ASFALTOS DILUÍDOS CM-30 | C68: Ceará | D68: 1.401607485
A69: 2013-03-01 | B69: ASFALTOS DILUÍDOS CM-30 | C69: Distrito Federal | D69: -
A70: 2013-03-01 | B70: ASFALTOS DILUÍDOS CM-30 | C70: Espírito Santo | D70: -
A71: 2013-03-01 | B71: ASFALTOS DILUÍDOS CM-30 | C71: Goiás | D71: 1.661758701
A72: 2013-03-01 | B72: ASFALTOS DILUÍDOS CM-30 | C72: Maranhão | D72: -
A73: 2013-03-01 | B73: ASFALTOS DILUÍDOS CM-30 | C73: Mato Grosso | D73: -
A74: 2013-03-01 | B74: ASFALTOS DILUÍDOS CM-30 | C74: Mato Grosso do Sul | D74: -
A75: 2013-03-01 | B75: ASFALTOS DILUÍDOS CM-30 | C75: Minas Gerais | D75: 1.44324333
A76: 2013-03-01 | B76: ASFALTOS DILUÍDOS CM-30 | C76: Pará | D76: -
A77: 2013-03-01 | B77: ASFALTOS DILUÍDOS CM-30 | C77: Paraíba | D77: -
A78: 2013-03-01 | B78: ASFALTOS DILUÍDOS CM-30 | C78: Paraná | D78: 1.468995996
A79: 2013-03-01 | B79: ASFALTOS DILUÍDOS CM-30 | C79: Pernambuco | D79: -
A80: 2013-03-01 | B80: ASFALTOS DILUÍDOS CM-30 | C80: Piauí | D80: -
A81: 2013-03-01 | B81: ASFALTOS DILUÍDOS CM-30 | C81: Rio de Janeiro | D81: 1.438055574
A82: 2013-03-01 | B82: ASFALTOS DILUÍDOS CM-30 | C82: Rio Grande do Norte | D82: -
A83: 2013-03-01 | B83: ASFALTOS DILUÍDOS CM-30 | C83: Rio Grande do Sul | D83: 1.581425878
A84: 2013-03-01 | B84: ASFALTOS DILUÍDOS CM-30 | C84: Rondônia | D84: -
A85: 2013-03-01 | B85: ASFALTOS DILUÍDOS CM-30 | C85: Roraima | D85: -
A86: 2013-03-01 | B86: ASFALTOS DILUÍDOS CM-30 | C86: Santa Catarina | D86: -
A87: 2013-03-01 | B87: ASFALTOS DILUÍDOS CM-30 | C87: São Paulo | D87: 1.466061702
A88: 2013-03-01 | B88: ASFALTOS DILUÍDOS CM-30 | C88: Sergipe | D88: -
A89: 2013-03-01 | B89: ASFALTOS DILUÍDOS CM-30 | C89: Tocantins | D89: -
A90: 2013-04-01 | B90: ASFALTOS DILUÍDOS CM-30 | C90: Acre | D90: -
A91: 2013-04-01 | B91: ASFALTOS DILUÍDOS CM-30 | C91: Alagoas | D91: -
A92: 2013-04-01 | B92: ASFALTOS DILUÍDOS CM-30 | C92: Amapá | D92: -
A93: 2013-04-01 | B93: ASFALTOS DILUÍDOS CM-30 | C93: Amazonas | D93: 1.484796656
A94: 2013-04-01 | B94: ASFALTOS DILUÍDOS CM-30 | C94: Bahia | D94: 1.454836546
A95: 2013-04-01 | B95: ASFALTOS DILUÍDOS CM-30 | C95: Ceará | D95: 1.387073962
A96: 2013-04-01 | B96: ASFALTOS DILUÍDOS CM-30 | C96: Distrito Federal | D96: -
A97: 2013-04-01 | B97: ASFALTOS DILUÍDOS CM-30 | C97: Espírito Santo | D97: -
A98: 2013-04-01 | B98: ASFALTOS DILUÍDOS CM-30 | C98: Goiás | D98: 1.673481836
A99: 2013-04-01 | B99: ASFALTOS DILUÍDOS CM-30 | C99: Maranhão | D99: -
A100: 2013-04-01 | B100: ASFALTOS DILUÍDOS CM-30 | C100: Mato Grosso | D100: 1.921938422
A101: 2013-04-01 | B101: ASFALTOS DILUÍDOS CM-30 | C101: Mato Grosso do Sul | D101: -
A102: 2013-04-01 | B102: ASFALTOS DILUÍDOS CM-30 | C102: Minas Gerais | D102: 1.456556683
A103: 2013-04-01 | B103: ASFALTOS DILUÍDOS CM-30 | C103: Pará | D103: -
A104: 2013-04-01 | B104: ASFALTOS DILUÍDOS CM-30 | C104: Paraíba | D104: -
A105: 2013-04-01 | B105: ASFALTOS DILUÍDOS CM-30 | C105: Paraná | D105: 1.534419498
A106: 2013-04-01 | B106: ASFALTOS DILUÍDOS CM-30 | C106: Pernambuco | D106: -
A107: 2013-04-01 | B107: ASFALTOS DILUÍDOS CM-30 | C107: Piauí | D107: -
A108: 2013-04-01 | B108: ASFALTOS DILUÍDOS CM-30 | C108: Rio de Janeiro | D108: 1.418419516
A109: 2013-04-01 | B109: ASFALTOS DILUÍDOS CM-30 | C109: Rio Grande do Norte | D109: -
A110: 2013-04-01 | B110: ASFALTOS DILUÍDOS CM-30 | C110: Rio Grande do Sul | D110: 1.572582456
A111: 2013-04-01 | B111: ASFALTOS DILUÍDOS CM-30 | C111: Rondônia | D111: -
A112: 2013-04-01 | B112: ASFALTOS DILUÍDOS CM-30 | C112: Roraima | D112: -
A113: 2013-04-01 | B113: ASFALTOS DILUÍDOS CM-30 | C113: Santa Catarina | D113: -
A114: 2013-04-01 | B114: ASFALTOS DILUÍDOS CM-30 | C114: São Paulo | D114: 1.475764348
A115: 2013-04-01 | B115: ASFALTOS DILUÍDOS CM-30 | C115: Sergipe | D115: -
A116: 2013-04-01 | B116: ASFALTOS DILUÍDOS CM-30 | C116: Tocantins | D116: -
A117: 2013-05-01 | B117: ASFALTOS DILUÍDOS CM-30 | C117: Acre | D117: -
A118: 2013-05-01 | B118: ASFALTOS DILUÍDOS CM-30 | C118: Alagoas | D118: -
A119: 2013-05-01 | B119: ASFALTOS DILUÍDOS CM-30 | C119: Amapá | D119: -
A120: 2013-05-01 | B120: ASFALTOS DILUÍDOS CM-30 | C120: Amazonas | D120: -
A121: 2013-05-01 | B121: ASFALTOS DILUÍDOS CM-30 | C121: Bahia | D121: 1.492587424
A122: 2013-05-01 | B122: ASFALTOS DILUÍDOS CM-30 | C122: Ceará | D122: 1.376263021
A123: 2013-05-01 | B123: ASFALTOS DILUÍDOS CM-30 | C123: Distrito Federal | D123: -
A124: 2013-05-01 | B124: ASFALTOS DILUÍDOS CM-30 | C124: Espírito Santo | D124: -
A125: 2013-05-01 | B125: ASFALTOS DILUÍDOS CM-30 | C125: Goiás | D125: 1.668214819
A126: 2013-05-01 | B126: ASFALTOS DILUÍDOS CM-30 | C126: Maranhão | D126: -
A127: 2013-05-01 | B127: ASFALTOS DILUÍDOS CM-30 | C127: Mato Grosso | D127: 1.903098159
A128: 2013-05-01 | B128: ASFALTOS DILUÍDOS CM-30 | C128: Mato Grosso do Sul | D128: -
A129: 2013-05-01 | B129: ASFALTOS DILUÍDOS CM-30 | C129: Minas Gerais | D129: 1.464709716
A130: 2013-05-01 | B130: ASFALTOS DILUÍDOS CM-30 | C130: Pará | D130: -
A131: 2013-05-01 | B131: ASFALTOS DILUÍDOS CM-30 | C131: Paraíba | D131: -
A132: 2013-05-01 | B132: ASFALTOS DILUÍDOS CM-30 | C132: Paraná | D132: 1.489027849
A133: 2013-05-01 | B133: ASFALTOS DILUÍDOS CM-30 | C133: Pernambuco | D133: -
A134: 2013-05-01 | B134: ASFALTOS DILUÍDOS CM-30 | C134: Piauí | D134: -
A135: 2013-05-01 | B135: ASFALTOS DILUÍDOS CM-30 | C135: Rio de Janeiro | D135: 1.399256048
A136: 2013-05-01 | B136: ASFALTOS DILUÍDOS CM-30 | C136: Rio Grande do Norte | D136: -
A137: 2013-05-01 | B137: ASFALTOS DILUÍDOS CM-30 | C137: Rio Grande do Sul | D137: 1.539636961
A138: 2013-05-01 | B138: ASFALTOS DILUÍDOS CM-30 | C138: Rondônia | D138: -
A139: 2013-05-01 | B139: ASFALTOS DILUÍDOS CM-30 | C139: Roraima | D139: -
A140: 2013-05-01 | B140: ASFALTOS DILUÍDOS CM-30 | C140: Santa Catarina | D140: -
A141: 2013-05-01 | B141: ASFALTOS DILUÍDOS CM-30 | C141: São Paulo | D141: 1.451215936
A142: 2013-05-01 | B142: ASFALTOS DILUÍDOS CM-30 | C142: Sergipe | D142: -
A143: 2013-05-01 | B143: ASFALTOS DILUÍDOS CM-30 | C143: Tocantins | D143: -
A144: 2013-06-01 | B144: ASFALTOS DILUÍDOS CM-30 | C144: Acre | D144: -
A145: 2013-06-01 | B145: ASFALTOS DILUÍDOS CM-30 | C145: Alagoas | D145: -
A146: 2013-06-01 | B146: ASFALTOS DILUÍDOS CM-30 | C146: Amapá | D146: -
A147: 2013-06-01 | B147: ASFALTOS DILUÍDOS CM-30 | C147: Amazonas | D147: 1.586325818
A148: 2013-06-01 | B148: ASFALTOS DILUÍDOS CM-30 | C148: Bahia | D148: 1.44812907
A149: 2013-06-01 | B149: ASFALTOS DILUÍDOS CM-30 | C149: Ceará | D149: 1.382700989
A150: 2013-06-01 | B150: ASFALTOS DILUÍDOS CM-30 | C150: Distrito Federal | D150: -
A151: 2013-06-01 | B151: ASFALTOS DILUÍDOS CM-30 | C151: Espírito Santo | D151: -
A152: 2013-06-01 | B152: ASFALTOS DILUÍDOS CM-30 | C152: Goiás | D152: 1.699613867
A153: 2013-06-01 | B153: ASFALTOS DILUÍDOS CM-30 | C153: Maranhão | D153: -
A154: 2013-06-01 | B154: ASFALTOS DILUÍDOS CM-30 | C154: Mato Grosso | D154: 1.915975658
A155: 2013-06-01 | B155: ASFALTOS DILUÍDOS CM-30 | C155: Mato Grosso do Sul | D155: -
A156: 2013-06-01 | B156: ASFALTOS DILUÍDOS CM-30 | C156: Minas Gerais | D156: 1.475366896
A157: 2013-06-01 | B157: ASFALTOS DILUÍDOS CM-30 | C157: Pará | D157: -
A158: 2013-06-01 | B158: ASFALTOS DILUÍDOS CM-30 | C158: Paraíba | D158: -
A159: 2013-06-01 | B159: ASFALTOS DILUÍDOS CM-30 | C159: Paraná | D159: 1.432166974
A160: 2013-06-01 | B160: ASFALTOS DILUÍDOS CM-30 | C160: Pernambuco | D160: -
A161: 2013-06-01 | B161: ASFALTOS DILUÍDOS CM-30 | C161: Piauí | D161: -
A162: 2013-06-01 | B162: ASFALTOS DILUÍDOS CM-30 | C162: Rio de Janeiro | D162: 1.527420226
A163: 2013-06-01 | B163: ASFALTOS DILUÍDOS CM-30 | C163: Rio Grande do Norte | D163: -
A164: 2013-06-01 | B164: ASFALTOS DILUÍDOS CM-30 | C164: Rio Grande do Sul | D164: 1.59868349
A165: 2013-06-01 | B165: ASFALTOS DILUÍDOS CM-30 | C165: Rondônia | D165: -
A166: 2013-06-01 | B166: ASFALTOS DILUÍDOS CM-30 | C166: Roraima | D166: -
A167: 2013-06-01 | B167: ASFALTOS DILUÍDOS CM-30 | C167: Santa Catarina | D167: -
A168: 2013-06-01 | B168: ASFALTOS DILUÍDOS CM-30 | C168: São Paulo | D168: 1.432748187
A169: 2013-06-01 | B169: ASFALTOS DILUÍDOS CM-30 | C169: Sergipe | D169: -
A170: 2013-06-01 | B170: ASFALTOS DILUÍDOS CM-30 | C170: Tocantins | D170: -
A171: 2013-07-01 | B171: ASFALTOS DILUÍDOS CM-30 | C171: Acre | D171: -
A172: 2013-07-01 | B172: ASFALTOS DILUÍDOS CM-30 | C172: Alagoas | D172: -
A173: 2013-07-01 | B173: ASFALTOS DILUÍDOS CM-30 | C173: Amapá | D173: -
A174: 2013-07-01 | B174: ASFALTOS DILUÍDOS CM-30 | C174: Amazonas | D174: 1.509890931
A175: 2013-07-01 | B175: ASFALTOS DILUÍDOS CM-30 | C175: Bahia | D175: 1.436150016
A176: 2013-07-01 | B176: ASFALTOS DILUÍDOS CM-30 | C176: Ceará | D176: 1.424835845
A177: 2013-07-01 | B177: ASFALTOS DILUÍDOS CM-30 | C177: Distrito Federal | D177: -
A178: 2013-07-01 | B178: ASFALTOS DILUÍDOS CM-30 | C178: Espírito Santo | D178: -
A179: 2013-07-01 | B179: ASFALTOS DILUÍDOS CM-30 | C179: Goiás | D179: 1.663778454
A180: 2013-07-01 | B180: ASFALTOS DILUÍDOS CM-30 | C180: Maranhão | D180: -
A181: 2013-07-01 | B181: ASFALTOS DILUÍDOS CM-30 | C181: Mato Grosso | D181: 1.930589551
A182: 2013-07-01 | B182: ASFALTOS DILUÍDOS CM-30 | C182: Mato Grosso do Sul | D182: -
A183: 2013-07-01 | B183: ASFALTOS DILUÍDOS CM-30 | C183: Minas Gerais | D183: 1.476572352
A184: 2013-07-01 | B184: ASFALTOS DILUÍDOS CM-30 | C184: Pará | D184: -
A185: 2013-07-01 | B185: ASFALTOS DILUÍDOS CM-30 | C185: Paraíba | D185: -
A186: 2013-07-01 | B186: ASFALTOS DILUÍDOS CM-30 | C186: Paraná | D186: 1.477167274
A187: 2013-07-01 | B187: ASFALTOS DILUÍDOS CM-30 | C187: Pernambuco | D187: -
A188: 2013-07-01 | B188: ASFALTOS DILUÍDOS CM-30 | C188: Piauí | D188: -
A189: 2013-07-01 | B189: ASFALTOS DILUÍDOS CM-30 | C189: Rio de Janeiro | D189: 1.584464713
A190: 2013-07-01 | B190: ASFALTOS DILUÍDOS CM-30 | C190: Rio Grande do Norte | D190: -
A191: 2013-07-01 | B191: ASFALTOS DILUÍDOS CM-30 | C191: Rio Grande do Sul | D191: 1.612487925
A192: 2013-07-01 | B192: ASFALTOS DILUÍDOS CM-30 | C192: Rondônia | D192: -
A193: 2013-07-01 | B193: ASFALTOS DILUÍDOS CM-30 | C193: Roraima | D193: -
A194: 2013-07-01 | B194: ASFALTOS DILUÍDOS CM-30 | C194: Santa Catarina | D194: -
A195: 2013-07-01 | B195: ASFALTOS DILUÍDOS CM-30 | C195: São Paulo | D195: 1.507844909
A196: 2013-07-01 | B196: ASFALTOS DILUÍDOS CM-30 | C196: Sergipe | D196: -
A197: 2013-07-01 | B197: ASFALTOS DILUÍDOS CM-30 | C197: Tocantins | D197: -
A198: 2013-08-01 | B198: ASFALTOS DILUÍDOS CM-30 | C198: Acre | D198: -
A199: 2013-08-01 | B199: ASFALTOS DILUÍDOS CM-30 | C199: Alagoas | D199: -
A200: 2013-08-01 | B200: ASFALTOS DILUÍDOS CM-30 | C200: Amapá | D200: -
A201: 2013-08-01 | B201: ASFALTOS DILUÍDOS CM-30 | C201: Amazonas | D201: 1.509275641
A202: 2013-08-01 | B202: ASFALTOS DILUÍDOS CM-30 | C202: Bahia | D202: 1.416699323
A203: 2013-08-01 | B203: ASFALTOS DILUÍDOS CM-30 | C203: Ceará | D203: 1.447403364
... 4297 more rows

Sheet ANP REGIÃO
A1: Agência Nacional do Petróleo, Gás Natural e Biocombustíveis
A2: Superintendência de Defesa da Concorrência
A6: PREÇO MÉDIO MENSAL PONDERADO PRATICADO PELOS DISTRIBUIDORES DE PRODUTOS ASFÁLTICOS (R$/KG)
A8: Produto | B8: Mês | C8: Norte | D8: Nordeste | E8: Centro-Oeste | F8: Sudeste | G8: Sul | H8: Brasil
A9: ASFALTOS DILUÍDOS CM-30 | B9: 2008-11-01 | C9: 1.775468292 | D9: 1.55087853 | E9: 2.022143291 | F9: 1.55449367 | G9: 1.584532899 | H9: 1.64286837
A10: ASFALTOS DILUÍDOS CM-30 | B10: 2008-12-01 | C10: 1.806837667 | D10: 1.509118192 | E10: 2.013020124 | F10: 1.610902223 | G10: 1.607187591 | H10: 1.637581471
A11: ASFALTOS DILUÍDOS CM-30 | B11: 2009-01-01 | C11: 1.497052858 | D11: 1.504296346 | E11: 1.963097671 | F11: 1.524672247 | G11: 1.585137209 | H11: 1.564945876
A12: ASFALTOS DILUÍDOS CM-30 | B12: 2009-02-01 | C12: 1.42787112 | D12: 1.497693283 | E12: 1.981065098 | F12: 1.583490231 | G12: 1.595924062 | H12: 1.565451036
A13: ASFALTOS DILUÍDOS CM-30 | B13: 2009-03-01 | C13: 1.404941405 | D13: 1.497647987 | E13: 1.893430263 | F13: 1.52754782 | G13: 1.588720029 | H13: 1.532713147
A14: ASFALTOS DILUÍDOS CM-30 | B14: 2009-04-01 | C14: 1.410510748 | D14: 1.484826261 | E14: 1.909226429 | F14: 1.464149371 | G14: 1.553831928 | H14: 1.516717648
A15: ASFALTOS DILUÍDOS CM-30 | B15: 2009-05-01 | C15: 1.480355678 | D15: 1.466898928 | E15: 1.891590435 | F15: 1.435443718 | G15: 1.54161118 | H15: 1.537574371
A16: ASFALTOS DILUÍDOS CM-30 | B16: 2009-06-01 | C16: 1.580751039 | D16: 1.444888837 | E16: 1.842074119 | F16: 1.424264315 | G16: 1.501526696 | H16: 1.541315575
A17: ASFALTOS DILUÍDOS CM-30 | B17: 2009-07-01 | C17: 1.905432476 | D17: 1.482618211 | E17: 1.949046345 | F17: 1.584435299 | G17: 1.610310436 | H17: 1.651032523
A18: ASFALTOS DILUÍDOS CM-30 | B18: 2009-08-01 | C18: 1.716995184 | D18: 1.423854915 | E18: 1.712385478 | F18: 1.418000805 | G18: 1.520643497 | H18: 1.504911469
A19: ASFALTOS DILUÍDOS CM-30 | B19: 2009-09-01 | C19: 1.64329494 | D19: 1.445317761 | E19: 1.731518803 | F19: 1.419374251 | G19: 1.500735895 | H19: 1.50552312
A20: ASFALTOS DILUÍDOS CM-30 | B20: 2009-10-01 | C20: 1.588031924 | D20: 1.458932649 | E20: 1.762015056 | F20: 1.429024419 | G20: 1.513753831 | H20: 1.511681904
A21: ASFALTOS DILUÍDOS CM-30 | B21: 2009-11-01 | C21: 1.639348604 | D21: 1.449059777 | E21: 1.772650817 | F21: 1.434122677 | G21: 1.526043188 | H21: 1.499657392
A22: ASFALTOS DILUÍDOS CM-30 | B22: 2009-12-01 | C22: 1.664266853 | D22: 1.441966636 | E22: 1.890574802 | F22: 1.429077727 | G22: 1.520539334 | H22: 1.508864598
A23: ASFALTOS DILUÍDOS CM-30 | B23: 2010-01-01 | C23: 1.842506144 | D23: 1.454977129 | E23: 1.865022447 | F23: 1.414817608 | G23: 1.474450765 | H23: 1.497735227
A24: ASFALTOS DILUÍDOS CM-30 | B24: 2010-02-01 | C24: 1.709886915 | D24: 1.442956487 | E24: 1.919844741 | F24: 1.433146251 | G24: 1.500882448 | H24: 1.496542251
A25: ASFALTOS DILUÍDOS CM-30 | B25: 2010-03-01 | C25: 1.535743416 | D25: 1.448880499 | E25: 1.935062728 | F25: 1.435026116 | G25: 1.480618635 | H25: 1.486789802
A26: ASFALTOS DILUÍDOS CM-30 | B26: 2010-04-01 | C26: 1.710046479 | D26: 1.440300254 | E26: 1.911935961 | F26: 1.421102153 | G26: 1.481270937 | H26: 1.511086431
A27: ASFALTOS DILUÍDOS CM-30 | B27: 2010-05-01 | C27: 1.755610465 | D27: 1.435277221 | E27: 1.873293889 | F27: 1.406944432 | G27: 1.48177605 | H27: 1.537170565
A28: ASFALTOS DILUÍDOS CM-30 | B28: 2010-06-01 | C28: 1.602224314 | D28: 1.396004336 | E28: 1.731734721 | F28: 1.399996227 | G28: 1.49193962 | H28: 1.498073418
A29: ASFALTOS DILUÍDOS CM-30 | B29: 2010-07-01 | C29: 1.559901627 | D29: 1.381016708 | E29: 1.732688214 | F29: 1.402904856 | G29: 1.473854427 | H29: 1.490075269
A30: ASFALTOS DILUÍDOS CM-30 | B30: 2010-08-01 | C30: 1.526639389 | D30: 1.38817836 | E30: 1.738946087 | F30: 1.398751236 | G30: 1.455749849 | H30: 1.495828516
A31: ASFALTOS DILUÍDOS CM-30 | B31: 2010-09-01 | C31: 1.565378829 | D31: 1.408204664 | E31: 1.757027378 | F31: 1.411642875 | G31: 1.487257745 | H31: 1.512257128
A32: ASFALTOS DILUÍDOS CM-30 | B32: 2010-10-01 | C32: 1.481711294 | D32: 1.404357715 | E32: 1.751159947 | F32: 1.403489437 | G32: 1.469340847 | H32: 1.49988826
A33: ASFALTOS DILUÍDOS CM-30 | B33: 2010-11-01 | C33: 1.519267672 | D33: 1.410130904 | E33: 1.779405625 | F33: 1.421283822 | G33: 1.458559112 | H33: 1.481658635
A34: ASFALTOS DILUÍDOS CM-30 | B34: 2010-12-01 | C34: 1.559287556 | D34: 1.40982051 | E34: 1.825185618 | F34: 1.417673572 | G34: 1.473243884 | H34: 1.469113031
A35: ASFALTOS DILUÍDOS CM-30 | B35: 2011-01-01 | C35: 1.525923305 | D35: 1.445794092 | E35: 1.774600924 | F35: 1.403274235 | G35: 1.466002814 | H35: 1.457256066
A36: ASFALTOS DILUÍDOS CM-30 | B36: 2011-02-01 | C36: 1.552825112 | D36: 1.392094259 | E36: 1.763836123 | F36: 1.385194937 | G36: 1.44955884 | H36: 1.426250478
A37: ASFALTOS DILUÍDOS CM-30 | B37: 2011-03-01 | C37: 1.469219693 | D37: 1.369442916 | E37: 1.696017922 | F37: 1.353812804 | G37: 1.435170694 | H37: 1.400130249
A38: ASFALTOS DILUÍDOS CM-30 | B38: 2011-04-01 | C38: 1.470570262 | D38: 1.373220492 | E38: 1.650829394 | F38: 1.345928103 | G38: 1.42199894 | H38: 1.400493522
A39: ASFALTOS DILUÍDOS CM-30 | B39: 2011-05-01 | C39: 1.428528955 | D39: 1.322646267 | E39: 1.700380913 | F39: 1.345068163 | G39: 1.439361431 | H39: 1.428058019
A40: ASFALTOS DILUÍDOS CM-30 | B40: 2011-06-01 | C40: 1.407622163 | D40: 1.305708657 | E40: 1.741843669 | F40: 1.354620495 | G40: 1.399501693 | H40: 1.44029982
A41: ASFALTOS DILUÍDOS CM-30 | B41: 2011-07-01 | C41: 1.259234065 | D41: 1.312033305 | E41: 1.737489696 | F41: 1.33656388 | G41: 1.422474887 | H41: 1.420839252
A42: ASFALTOS DILUÍDOS CM-30 | B42: 2011-08-01 | C42: 1.470680061 | D42: 1.299778765 | E42: 1.727443485 | F42: 1.341477821 | G42: 1.353018352 | H42: 1.425675534
A43: ASFALTOS DILUÍDOS CM-30 | B43: 2011-09-01 | C43: 1.56132872 | D43: 1.321196084 | E43: 1.729821548 | F43: 1.357451483 | G43: 1.395684798 | H43: 1.455202413
A44: ASFALTOS DILUÍDOS CM-30 | B44: 2011-10-01 | C44: 1.520569722 | D44: 1.326218736 | E44: 1.71738046 | F44: 1.332691392 | G44: 1.3577774 | H44: 1.442295871
A45: ASFALTOS DILUÍDOS CM-30 | B45: 2011-11-01 | C45: 1.465886334 | D45: 1.337041154 | E45: 1.741004886 | F45: 1.345486103 | G45: 1.447580565 | H45: 1.445354137
A46: ASFALTOS DILUÍDOS CM-30 | B46: 2011-12-01 | C46: 1.470883899 | D46: 1.335587636 | E46: 1.778724141 | F46: 1.408293068 | G46: 1.428112306 | H46: 1.422418604
A47: ASFALTOS DILUÍDOS CM-30 | B47: 2012-01-01 | C47: 1.384955015 | D47: 1.350130156 | E47: 1.780783883 | F47: 1.421354107 | G47: 1.430352474 | H47: 1.394658167
A48: ASFALTOS DILUÍDOS CM-30 | B48: 2012-02-01 | C48: 1.332181678 | D48: 1.368143891 | E48: 1.741020394 | F48: 1.400200985 | G48: 1.425400986 | H48: 1.410605707
A49: ASFALTOS DILUÍDOS CM-30 | B49: 2012-03-01 | C49: 1.411621867 | D49: 1.349122214 | E49: 1.620096006 | F49: 1.393295764 | G49: 1.406130569 | H49: 1.409768786
A50: ASFALTOS DILUÍDOS CM-30 | B50: 2012-04-01 | C50: 1.549007912 | D50: 1.383976456 | E50: 1.640712752 | F50: 1.404716397 | G50: 1.440617793 | H50: 1.45608482
A51: ASFALTOS DILUÍDOS CM-30 | B51: 2012-05-01 | C51: 1.596178941 | D51: 1.386362272 | E51: 1.712061183 | F51: 1.39923955 | G51: 1.448350887 | H51: 1.498461969
A52: ASFALTOS DILUÍDOS CM-30 | B52: 2012-06-01 | C52: 1.701432576 | D52: 1.388053518 | E52: 1.740352007 | F52: 1.422118749 | G52: 1.449196072 | H52: 1.527722717
A53: ASFALTOS DILUÍDOS CM-30 | B53: 2012-07-01 | C53: 1.652026742 | D53: 1.39436857 | E53: 1.718644846 | F53: 1.439670261 | G53: 1.46187567 | H53: 1.523069159
A54: ASFALTOS DILUÍDOS CM-30 | B54: 2012-08-01 | C54: 1.689998835 | D54: 1.40333785 | E54: 1.741895041 | F54: 1.421723369 | G54: 1.445685799 | H54: 1.536533078
A55: ASFALTOS DILUÍDOS CM-30 | B55: 2012-09-01 | C55: 1.690177972 | D55: 1.421500003 | E55: 1.780920724 | F55: 1.445180432 | G55: 1.483645866 | H55: 1.549410653
A56: ASFALTOS DILUÍDOS CM-30 | B56: 2012-10-01 | C56: 1.574840342 | D56: 1.417066109 | E56: 1.794832036 | F56: 1.451304526 | G56: 1.482037109 | H56: 1.550631802
A57: ASFALTOS DILUÍDOS CM-30 | B57: 2012-11-01 | C57: 1.655163526 | D57: 1.455878748 | E57: 1.840129766 | F57: 1.461204615 | G57: 1.483499722 | H57: 1.552500776
A58: ASFALTOS DILUÍDOS CM-30 | B58: 2012-12-01 | C58: 1.714876125 | D58: 1.435854741 | E58: 1.804066573 | F58: 1.45222765 | G58: 1.509417648 | H58: 1.523411999
A59: ASFALTOS DILUÍDOS CM-30 | B59: 2013-01-01 | C59: 1.495776335 | D59: 1.449494588 | E59: 1.854050525 | F59: 1.44638752 | G59: 1.563753675 | H59: 1.502137259
A60: ASFALTOS DILUÍDOS CM-30 | B60: 2013-02-01 | C60: 1.635067666 | D60: 1.420609638 | E60: 1.731071498 | F60: 1.442746356 | G60: 1.461828405 | H60: 1.4739561
A61: ASFALTOS DILUÍDOS CM-30 | B61: 2013-03-01 | C61: 1.646229098 | D61: 1.413299983 | E61: 1.83828087 | F61: 1.450015152 | G61: 1.525760413 | H61: 1.506542904
A62: ASFALTOS DILUÍDOS CM-30 | B62: 2013-04-01 | C62: 1.581864474 | D62: 1.399189564 | E62: 1.793825113 | F62: 1.458704755 | G62: 1.551913702 | H62: 1.523623636
A63: ASFALTOS DILUÍDOS CM-30 | B63: 2013-05-01 | C63: 1.815646773 | D63: 1.390143517 | E63: 1.812783313 | F63: 1.44951052 | G63: 1.504233457 | H63: 1.549918592
A64: ASFALTOS DILUÍDOS CM-30 | B64: 2013-06-01 | C64: 1.631101583 | D64: 1.383186536 | E64: 1.816642105 | F64: 1.474232641 | G64: 1.503043689 | H64: 1.581049429
A65: ASFALTOS DILUÍDOS CM-30 | B65: 2013-07-01 | C65: 1.86596563 | D65: 1.422051117 | E65: 1.793072753 | F65: 1.498018808 | G65: 1.533391901 | H65: 1.59880513
A66: ASFALTOS DILUÍDOS CM-30 | B66: 2013-08-01 | C66: 1.700325546 | D66: 1.435094415 | E66: 1.821452614 | F66: 1.511722868 | G66: 1.530793596 | H66: 1.606176585
A67: ASFALTOS DILUÍDOS CM-30 | B67: 2013-09-01 | C67: 1.562873733 | D67: 1.472197748 | E67: 1.879842712 | F67: 1.542652867 | G67: 1.490667543 | H67: 1.627945893
A68: ASFALTOS DILUÍDOS CM-30 | B68: 2013-10-01 | C68: 1.648504013 | D68: 1.472152345 | E68: 1.825494997 | F68: 1.501177682 | G68: 1.48378912 | H68: 1.597538775
A69: ASFALTOS DILUÍDOS CM-30 | B69: 2013-11-01 | C69: 1.619179062 | D69: 1.486413317 | E69: 1.844012679 | F69: 1.496326809 | G69: 1.506096878 | H69: 1.581665844
A70: ASFALTOS DILUÍDOS CM-30 | B70: 2013-12-01 | C70: 1.633358293 | D70: 1.494818097 | E70: 1.897197176 | F70: 1.502864538 | G70: 1.517074296 | H70: 1.572475244
A71: ASFALTOS DILUÍDOS CM-30 | B71: 2014-01-01 | C71: 1.688311265 | D71: 1.494181305 | E71: 1.798355903 | F71: 1.484202293 | G71: 1.533353813 | H71: 1.542909737
A72: ASFALTOS DILUÍDOS CM-30 | B72: 2014-02-01 | C72: 1.598304434 | D72: 1.479706587 | E72: 1.814390215 | F72: 1.514829392 | G72: 1.522800588 | H72: 1.528970287
A73: ASFALTOS DILUÍDOS CM-30 | B73: 2014-03-01 | C73: 1.648287687 | D73: 1.472852501 | E73: 1.76657319 | F73: 1.513020673 | G73: 1.506185248 | H73: 1.530181178
A74: ASFALTOS DILUÍDOS CM-30 | B74: 2014-04-01 | C74: 1.534459987 | D74: 1.493898767 | E74: 1.757271278 | F74: 1.533021309 | G74: 1.524275274 | H74: 1.550566305
A75: ASFALTOS DILUÍDOS CM-30 | B75: 2014-05-01 | C75: 1.58658327 | D75: 1.490834685 | E75: 1.804339251 | F75: 1.501138131 | G75: 1.567043824 | H75: 1.586452272
A76: ASFALTOS DILUÍDOS CM-30 | B76: 2014-06-01 | C76: 1.658277164 | D76: 1.505801121 | E76: 1.839593445 | F76: 1.5068632 | G76: 1.523776953 | H76: 1.636070702
A77: ASFALTOS DILUÍDOS CM-30 | B77: 2014-07-01 | C77: 1.890299542 | D77: 1.500730514 | E77: 1.708277865 | F77: 1.487293964 | G77: 1.505956069 | H77: 1.587065158
A78: ASFALTOS DILUÍDOS CM-30 | B78: 2014-08-01 | C78: 1.632741832 | D78: 1.501945324 | E78: 1.671203189 | F78: 1.482359341 | G78: 1.506327366 | H78: 1.557910377
A79: ASFALTOS DILUÍDOS CM-30 | B79: 2014-09-01 | C79: 1.66956717 | D79: 1.546830427 | E79: 1.864797016 | F79: 1.496764585 | G79: 1.570533242 | H79: 1.639281057
A80: ASFALTOS DILUÍDOS CM-30 | B80: 2014-10-01 | C80: 1.742876916 | D80: 1.508978569 | E80: 1.746650466 | F80: 1.470773645 | G80: 1.454273462 | H80: 1.57912022
A81: ASFALTOS DILUÍDOS CM-30 | B81: 2014-11-01 | C81: 1.864723419 | D81: 1.57943059 | E81: 1.749156218 | F81: 1.465084479 | G81: 1.529147988 | H81: 1.601359821
A82: ASFALTOS DILUÍDOS CM-30 | B82: 2014-12-01 | C82: 1.812671914 | D82: 1.704844348 | E82: 1.963310066 | F82: 1.623676702 | G82: 1.649644659 | H82: 1.718826981
A83: ASFALTOS DILUÍDOS CM-30 | B83: 2015-01-01 | C83: 2.154807062 | D83: 2.023760447 | E83: 2.318863736 | F83: 1.866588967 | G83: 1.898380434 | H83: 2.007792032
A84: ASFALTOS DILUÍDOS CM-30 | B84: 2015-02-01 | C84: 2.260238625 | D84: 2.005673765 | E84: 2.393875762 | F84: 1.854519766 | G84: 1.927395107 | H84: 2.007653781
A85: ASFALTOS DILUÍDOS CM-30 | B85: 2015-03-01 | C85: 2.124176462 | D85: 1.968822849 | E85: 2.279643254 | F85: 1.887760911 | G85: 1.930217145 | H85: 1.984816916
A86: ASFALTOS DILUÍDOS CM-30 | B86: 2015-04-01 | C86: 2.030049505 | D86: 2.001506448 | E86: 2.379118903 | F86: 1.85245167 | G86: 1.949025254 | H86: 1.98064321
A87: ASFALTOS DILUÍDOS CM-30 | B87: 2015-05-01 | C87: 2.507271651 | D87: 1.946869908 | E87: 2.254758192 | F87: 1.807470001 | G87: 2.016929536 | H87: 2.005474234
A88: ASFALTOS DILUÍDOS CM-30 | B88: 2015-06-01 | C88: 2.248320042 | D88: 1.944259736 | E88: 2.314331796 | F88: 1.846998595 | G88: 1.968565125 | H88: 2.042581344
A89: ASFALTOS DILUÍDOS CM-30 | B89: 2015-07-01 | C89: 1.992222758 | D89: 1.992791635 | E89: 2.046769953 | F89: 1.782648603 | G89: 1.931671385 | H89: 1.942627362
A90: ASFALTOS DILUÍDOS CM-30 | B90: 2015-08-01 | C90: 2.307605931 | D90: 2.038089127 | E90: 2.252748105 | F90: 1.828097705 | G90: 1.939824481 | H90: 2.08193616
A91: ASFALTOS DILUÍDOS CM-30 | B91: 2015-09-01 | C91: 2.314289704 | D91: 2.095307531 | E91: 2.344561987 | F91: 1.942551091 | G91: 2.005352614 | H91: 2.168175541
A92: ASFALTOS DILUÍDOS CM-30 | B92: 2015-10-01 | C92: 2.329456663 | D92: 2.170570012 | E92: 2.43273012 | F92: 2.035624751 | G92: 2.110261148 | H92: 2.237533782
A93: ASFALTOS DILUÍDOS CM-30 | B93: 2015-11-01 | C93: 2.606056566 | D93: 2.437098304 | E93: 2.711612141 | F93: 2.280113896 | G93: 2.326446297 | H93: 2.474998781
A94: ASFALTOS DILUÍDOS CM-30 | B94: 2015-12-01 | C94: 2.635374006 | D94: 2.395920309 | E94: 2.693528386 | F94: 2.272528129 | G94: 2.330740659 | H94: 2.452848156
A95: ASFALTOS DILUÍDOS CM-30 | B95: 2016-01-01 | C95: 2.715863993 | D95: 2.373861647 | E95: 2.844670602 | F95: 2.263650658 | G95: 2.232631691 | H95: 2.400563394
A96: ASFALTOS DILUÍDOS CM-30 | B96: 2016-02-01 | C96: 2.80468316 | D96: 2.466846816 | E96: 2.791787007 | F96: 2.295637115 | G96: 2.346556173 | H96: 2.464348548
A97: ASFALTOS DILUÍDOS CM-30 | B97: 2016-03-01 | C97: 2.5805021 | D97: 2.470678753 | E97: 2.707688025 | F97: 2.235301999 | G97: 2.383115972 | H97: 2.423563924
A98: ASFALTOS DILUÍDOS CM-30 | B98: 2016-04-01 | C98: 2.942006312 | D98: 2.740742032 | E98: 2.759071855 | F98: 2.544439178 | G98: 2.710751632 | H98: 2.680274833
A99: ASFALTOS DILUÍDOS CM-30 | B99: 2016-05-01 | C99: 3.010579472 | D99: 2.650277047 | E99: 2.857121361 | F99: 2.575583152 | G99: 2.770413362 | H99: 2.70973327
A100: ASFALTOS DILUÍDOS CM-30 | B100: 2016-06-01 | C100: 2.909179844 | D100: 2.621385041 | E100: 2.943487281 | F100: 2.659109515 | G100: 2.684759555 | H100: 2.743619517
A101: ASFALTOS DILUÍDOS CM-30 | B101: 2016-07-01 | C101: 2.985740381 | D101: 2.591644045 | E101: 2.98927803 | F101: 2.604396599 | G101: 2.660884423 | H101: 2.745135539
A102: ASFALTOS DILUÍDOS CM-30 | B102: 2016-08-01 | C102: 2.935243919 | D102: 2.623917329 | E102: 2.970490854 | F102: 2.679486504 | G102: 2.727025649 | H102: 2.781385962
A103: ASFALTOS DILUÍDOS CM-30 | B103: 2016-09-01 | C103: 2.649136821 | D103: 2.521054851 | E103: 2.781583925 | F103: 2.51393313 | G103: 2.371271501 | H103: 2.595617128
A104: ASFALTOS DILUÍDOS CM-30 | B104: 2016-10-01 | C104: 2.626109257 | D104: 2.444469093 | E104: 2.781617873 | F104: 2.507383127 | G104: 2.38325399 | H104: 2.566999037
A105: ASFALTOS DILUÍDOS CM-30 | B105: 2016-11-01 | C105: 2.535087408 | D105: 2.374145527 | E105: 2.952768674 | F105: 2.481263765 | G105: 2.382206771 | H105: 2.542842366
A106: ASFALTOS DILUÍDOS CM-30 | B106: 2016-12-01 | C106: 2.50039107 | D106: 2.253413483 | E106: 3.038519458 | F106: 2.589438892 | G106: 2.395593424 | H106: 2.476439295
A107: ASFALTOS DILUÍDOS CM-30 | B107: 2017-01-01 | C107: 2.392875504 | D107: 2.232695674 | E107: 3.089080971 | F107: 2.535744039 | G107: 2.378694833 | H107: 2.374216192
A108: ASFALTOS DILUÍDOS CM-30 | B108: 2017-02-01 | C108: 2.68039414 | D108: 2.271897225 | E108: 2.764408032 | F108: 2.573933685 | G108: 2.384644398 | H108: 2.470721466
A109: ASFALTOS DILUÍDOS CM-30 | B109: 2017-03-01 | C109: 2.23884121 | D109: 2.386958079 | E109: 2.667220252 | F109: 2.372165947 | G109: 2.30121887 | H109: 2.378796986
A110: ASFALTOS DILUÍDOS CM-30 | B110: 2017-04-01 | C110: 2.420191398 | D110: 2.307969596 | E110: 2.794093014 | F110: 2.258409912 | G110: 2.256434297 | H110: 2.380268484
A111: ASFALTOS DILUÍDOS CM-30 | B111: 2017-05-01 | C111: 2.432106692 | D111: 2.167919128 | E111: 2.699836936 | F111: 2.255387192 | G111: 2.204026958 | H111: 2.361515909
A112: ASFALTOS DILUÍDOS CM-30 | B112: 2017-06-01 | C112: 2.428301776 | D112: 2.181938689 | E112: 2.756672055 | F112: 2.234549022 | G112: 2.305778546 | H112: 2.44553453
A113: ASFALTOS DILUÍDOS CM-30 | B113: 2017-07-01 | C113: 2.453752061 | D113: 2.218075334 | E113: 2.694625022 | F113: 2.414329247 | G113: 2.269601102 | H113: 2.473436106
A114: ASFALTOS DILUÍDOS CM-30 | B114: 2017-08-01 | C114: 2.447930976 | D114: 2.153112031 | E114: 2.595349952 | F114: 2.302919065 | G114: 2.170148667 | H114: 2.380876423
A115: ASFALTOS DILUÍDOS CM-30 | B115: 2017-09-01 | C115: 2.494551504 | D115: 2.14243989 | E115: 2.623166503 | F115: 2.371308095 | G115: 2.303698507 | H115: 2.393542204
A116: ASFALTOS DILUÍDOS CM-30 | B116: 2017-10-01 | C116: 2.349953944 | D116: 2.18056004 | E116: 2.614160957 | F116: 2.415254962 | G116: 2.20079573 | H116: 2.367947121
A117: ASFALTOS DILUÍDOS CM-30 | B117: 2017-11-01 | C117: 2.670126991 | D117: 2.433169195 | E117: 2.908627464 | F117: 2.58469482 | G117: 2.415192709 | H117: 2.602101348
A118: ASFALTOS DILUÍDOS CM-30 | B118: 2017-12-01 | C118: 2.587352645 | D118: 2.425358882 | E118: 2.906633765 | F118: 2.602890298 | G118: 2.42288976 | H118: 2.531764464
A119: ASFALTOS DILUÍDOS CM-30 | B119: 2018-01-01 | C119: 2.950360755 | D119: 2.662862923 | E119: 2.875953993 | F119: 2.620738484 | G119: 2.646955252 | H119: 2.735956369
A120: ASFALTOS DILUÍDOS CM-30 | B120: 2018-02-01 | C120: 2.677899567 | D120: 2.672498164 | E120: 2.942595474 | F120: 2.62043113 | G120: 2.567885662 | H120: 2.668369933
A121: ASFALTOS DILUÍDOS CM-30 | B121: 2018-03-01 | C121: 2.733363025 | D121: 2.589050022 | E121: 2.809172556 | F121: 2.561928393 | G121: 2.575946067 | H121: 2.634876584
A122: ASFALTOS DILUÍDOS CM-30 | B122: 2018-04-01 | C122: 2.75780112 | D122: 2.669553602 | E122: 2.773908242 | F122: 2.59547006 | G122: 2.556042394 | H122: 2.6643302
A123: ASFALTOS DILUÍDOS CM-30 | B123: 2018-05-01 | C123: 2.841213362 | D123: 2.672025877 | E123: 2.884501482 | F123: 2.686718021 | G123: 2.736485103 | H123: 2.77737896
A124: ASFALTOS DILUÍDOS CM-30 | B124: 2018-06-01 | C124: 3.008444789 | D124: 2.919605178 | E124: 3.158454886 | F124: 2.84673108 | G124: 2.953523993 | H124: 2.982291635
A125: ASFALTOS DILUÍDOS CM-30 | B125: 2018-07-01 | C125: 3.268237549 | D125: 3.036524094 | E125: 3.399360399 | F125: 3.026467598 | G125: 3.19779631 | H125: 3.164126546
A126: ASFALTOS DILUÍDOS CM-30 | B126: 2018-08-01 | C126: 3.56441315 | D126: 3.415193769 | E126: 3.707706206 | F126: 3.425079349 | G126: 3.356722461 | H126: 3.515558112
A127: ASFALTOS DILUÍDOS CM-30 | B127: 2018-09-01 | C127: 3.173913778 | D127: 3.445064118 | E127: 3.73526324 | F127: 3.385816186 | G127: 3.607309454 | H127: 3.483238429
A128: ASFALTOS DILUÍDOS CM-30 | B128: 2018-10-01 | C128: 3.487778119 | D128: 3.460508804 | E128: 3.721444057 | F128: 3.432525565 | G128: 3.60602088 | H128: 3.545390344
A129: ASFALTOS DILUÍDOS CM-30 | B129: 2018-11-01 | C129: 4.047272484 | D129: 3.814893312 | E129: 4.280131586 | F129: 4.178126777 | G129: 3.967681367 | H129: 3.990147183
A130: ASFALTOS DILUÍDOS CM-30 | B130: 2018-12-01 | C130: 3.951491146 | D130: 3.967113195 | E130: 4.341144202 | F130: 3.916766066 | G130: 3.911993357 | H130: 3.999742654
A131: ASFALTOS DILUÍDOS CM-30 | B131: 2019-01-01 | C131: 3.796855325 | D131: 3.870018889 | E131: 4.201901762 | F131: 3.954196997 | G131: 3.976786028 | H131: 3.933951911
A132: ASFALTOS DILUÍDOS CM-30 | B132: 2019-02-01 | C132: 3.516584073 | D132: 4.090361178 | E132: 4.498422953 | F132: 4.469942475 | G132: 4.254590254 | H132: 4.188544679
A133: ASFALTOS DILUÍDOS CM-30 | B133: 2019-03-01 | C133: 4.216758117 | D133: 4.361910728 | E133: 4.907194889 | F133: 4.398717729 | G133: 4.290823922 | H133: 4.360295279
A134: ASFALTOS DILUÍDOS CM-30 | B134: 2019-04-01 | C134: 4.281648205 | D134: 4.234661428 | E134: 4.531627215 | F134: 4.43722653 | G134: 4.466881471 | H134: 4.38082044
A135: ASFALTOS DILUÍDOS CM-30 | B135: 2019-05-01 | C135: 4.287644659 | D135: 4.190699738 | E135: 4.857910872 | F135: 4.267461963 | G135: 4.633806379 | H135: 4.366402151
A136: ASFALTOS DILUÍDOS CM-30 | B136: 2019-06-01 | C136: 4.475609892 | D136: 3.965052934 | E136: 4.66272934 | F136: 4.350600604 | G136: 4.211229921 | H136: 4.319323669
A137: ASFALTOS DILUÍDOS CM-30 | B137: 2019-07-01 | C137: 4.394498989 | D137: 4.058039305 | E137: 4.834221945 | F137: 4.094659414 | G137: 4.233003281 | H137: 4.346977757
A138: ASFALTOS DILUÍDOS CM-30 | B138: 2019-08-01 | C138: 4.48173504 | D138: 3.910662496 | E138: 4.576329081 | F138: 4.11161654 | G138: 4.255419985 | H138: 4.258345083
A139: ASFALTOS DILUÍDOS CM-30 | B139: 2019-09-01 | C139: 4.439578796 | D139: 3.859904896 | E139: 4.495256968 | F139: 4.111321475 | G139: 4.117359152 | H139: 4.251607085
A140: ASFALTOS DILUÍDOS CM-30 | B140: 2019-10-01 | C140: 4.335888631 | D140: 3.772324962 | E140: 4.459242357 | F140: 4.056084115 | G140: 3.942458011 | H140: 4.07740702
A141: ASFALTOS DILUÍDOS CM-30 | B141: 2019-11-01 | C141: 4.316238692 | D141: 3.910245509 | E141: 4.581841077 | F141: 4.07902404 | G141: 4.106621274 | H141: 4.094561212
A142: ASFALTOS DILUÍDOS CM-30 | B142: 2019-12-01 | C142: 4.199435972 | D142: 3.980119663 | E142: 4.673774805 | F142: 4.434268142 | G142: 3.986410312 | H142: 4.164691616
A143: ASFALTOS DILUÍDOS CM-30 | B143: 2020-01-01 | C143: 3.59298003 | D143: 3.895320617 | E143: 4.685420623 | F143: 4.387074674 | G143: 4.124467668 | H143: 4.053338937
A144: ASFALTOS DILUÍDOS CM-30 | B144: 2020-02-01 | C144: 3.642667016 | D144: 3.877395187 | E144: 4.438194543 | F144: 3.699944607 | G144: 3.778164011 | H144: 3.839010438
A145: ASFALTOS DILUÍDOS CM-30 | B145: 2020-03-01 | C145: 4.676668339 | D145: 3.791138977 | E145: 4.289222343 | F145: 3.718402734 | G145: 3.60908619 | H145: 3.93117068
A146: ASFALTOS DILUÍDOS CM-30 | B146: 2020-04-01 | C146: 4.313362837 | D146: 3.6957655 | E146: 4.255395321 | F146: 3.865895531 | G146: 3.732253382 | H146: 3.964125211
A147: ASFALTOS DILUÍDOS CM-30 | B147: 2020-05-01 | C147: 3.249134658 | D147: 3.637769912 | E147: 4.113544882 | F147: 3.760550026 | G147: 3.710618099 | H147: 3.65617504
A148: ASFALTOS DILUÍDOS CM-30 | B148: 2020-06-01 | C148: 4.017903076 | D148: 3.567031492 | E148: 4.277369171 | F148: 3.937886485 | G148: 3.625830069 | H148: 3.924524506
A149: ASFALTOS DILUÍDOS CM-30 | B149: 2020-07-01 | C149: 3.840497509 | D149: 3.51327048 | E149: 4.21549069 | F149: 3.954223886 | G149: 3.688841275 | H149: 3.843774448
A150: ASFALTOS DILUÍDOS CM-30 | B150: 2020-08-01 | C150: 4.174467203 | D150: 3.465394219 | E150: 4.277710211 | F150: 4.06746494 | G150: 3.62858863 | H150: 3.947166917
A151: ASFALTOS DILUÍDOS CM-30 | B151: 2020-09-01 | C151: 4.167371331 | D151: 3.746360816 | E151: 4.167424356 | F151: 3.795621791 | G151: 3.627729935 | H151: 3.973129945
A152: ASFALTOS DILUÍDOS CM-30 | B152: 2020-10-01 | C152: 4.408099527 | D152: 3.718989878 | E152: 4.278979192 | F152: 4.008746906 | G152: 3.591048183 | H152: 4.03964377
A153: ASFALTOS DILUÍDOS CM-30 | B153: 2020-11-01 | C153: 4.056306006 | D153: 3.969209281 | E153: 4.547900893 | F153: 4.27945542 | G153: 3.973347244 | H153: 4.175826149
A154: ASFALTOS DILUÍDOS CM-30 | B154: 2020-12-01 | C154: 4.132064138 | D154: 3.851632751 | E154: 4.426704386 | F154: 3.906236422 | G154: 3.8709398 | H154: 4.035347374
A155: ASFALTOS DILUÍDOS CM-30 | B155: 2021-01-01 | C155: 3.489836333 | D155: 3.951525937 | E155: 4.628269702 | F155: 4.011577011 | G155: 3.935136638 | H155: 3.917092391
A156: ASFALTOS DILUÍDOS CM-30 | B156: 2021-02-01 | C156: 4.099318116 | D156: 4.267109523 | E156: 4.832061615 | F156: 4.414202706 | G156: 4.149048932 | H156: 4.26819704
A157: ASFALTOS DILUÍDOS CM-30 | B157: 2021-03-01 | C157: 4.528355792 | D157: 4.239831731 | E157: 4.926314562 | F157: 4.269697839 | G157: 4.130655409 | H157: 4.377833785
A158: ASFALTOS DILUÍDOS CM-30 | B158: 2021-04-01 | C158: 4.349271867 | D158: 4.086995154 | E158: 4.477597522 | F158: 4.156113398 | G158: 4.044189822 | H158: 4.253361798
A159: ASFALTOS DILUÍDOS CM-30 | B159: 2021-05-01 | C159: 4.488889413 | D159: 4.707945815 | E159: 5.101489686 | F159: 4.784034896 | G159: 4.523986615 | H159: 4.790548085
A160: ASFALTOS DILUÍDOS CM-30 | B160: 2021-06-01 | C160: 4.010467711 | D160: 4.479592126 | E160: 5.113041212 | F160: 4.779739905 | G160: 4.721214307 | H160: 4.764890884
A161: ASFALTOS DILUÍDOS CM-30 | B161: 2021-07-01 | C161: 4.752234128 | D161: 4.559350506 | E161: 5.004758283 | F161: 4.80272972 | G161: 4.748550678 | H161: 4.817586047
A162: ASFALTOS DILUÍDOS CM-30 | B162: 2021-08-01 | C162: 5.085284532 | D162: 4.772501255 | E162: 5.198537142 | F162: 5.244735259 | G162: 4.76131175 | H162: 5.0981692
A163: ASFALTOS DILUÍDOS CM-30 | B163: 2021-09-01 | C163: 5.110300267 | D163: 4.538072365 | E163: 5.241721185 | F163: 5.017144197 | G163: 4.862861245 | H163: 5.016958886
A164: ASFALTOS DILUÍDOS CM-30 | B164: 2021-10-01 | C164: 5.080697261 | D164: 4.66826742 | E164: 5.119544199 | F164: 5.384779065 | G164: 4.658516432 | H164: 5.021294312
A165: ASFALTOS DILUÍDOS CM-30 | B165: 2021-11-01 | C165: 5.436518753 | D165: 5.08776781 | E165: 5.150063985 | F165: 5.634257884 | G165: 5.174530131 | H165: 5.228141289
A166: ASFALTOS DILUÍDOS CM-30 | B166: 2021-12-01 | C166: 5.184291386 | D166: 4.975486975 | E166: 5.572122251 | F166: 6.135655205 | G166: 5.01180992 | H166: 5.339565801
A167: ASFALTOS DILUÍDOS CM-30 | B167: 2022-01-01 | C167: 4.928191974 | D167: 5.023555623 | E167: 6.018407512 | F167: 5.214773026 | G167: 5.481979244 | H167: 5.250789679
A168: ASFALTOS DILUÍDOS CM-30 | B168: 2022-02-01 | C168: 5.545684189 | D168: 5.708628413 | E168: 6.011065894 | F168: 4.8651 | G168: 5.763367147 | H168: 5.736057428
A169: ASFALTOS DILUÍDOS CM-30 | B169: 2022-03-01 | C169: 6.326844735 | D169: 5.644687904 | E169: 5.930807225 | F169: 6.181141143 | G169: 5.498041682 | H169: 5.922781038
A170: ASFALTOS DILUÍDOS CM-30 | B170: 2022-04-01 | C170: 5.974220681 | D170: 5.832747324 | E170: 6.206692615 | F170: 5.720329997 | G170: 6.17800291 | H170: 6.012354229
A171: ASFALTOS DILUÍDOS CM-30 | B171: 2022-05-01 | C171: 5.354015586 | D171: 5.464335309 | E171: 6.007611639 | F171: 5.995095583 | G171: 5.49095009 | H171: 5.670722744
A172: ASFALTOS DILUÍDOS CM-30 | B172: 2022-06-01 | C172: 5.802443798 | D172: 5.316964203 | E172: 5.25267889 | F172: 5.813931518 | G172: 5.644996328 | H172: 5.469498687
A173: ASFALTOS DILUÍDOS CM-30 | B173: 2022-07-01 | C173: 5.965614765 | D173: 5.829314879 | E173: 5.919099711 | F173: 5.742484775 | G173: 5.674430543 | H173: 5.862020702
A174: ASFALTOS DILUÍDOS CM-30 | B174: 2022-08-01 | C174: 6.424230463 | D174: 5.758256878 | E174: 5.752352843 | F174: 5.791905352 | G174: 5.31271724 | H174: 5.823186051
A175: ASFALTOS DILUÍDOS CM-30 | B175: 2022-09-01 | C175: 5.540097074 | D175: 5.609921619 | E175: 5.963592489 | F175: 5.302181194 | G175: 4.977929161 | H175: 5.699429921
A176: ASFALTOS DILUÍDOS CM-30 | B176: 2022-10-01 | C176: 4.785670999 | D176: 4.727521094 | E176: 5.339105147 | F176: 4.851160007 | G176: 4.532580513 | H176: 5.041661715
A177: ASFALTOS DILUÍDOS CM-30 | B177: 2022-11-01 | C177: 7.765855923 | D177: 4.775654982 | E177: 5.237626127 | F177: 4.636383138 | G177: 4.460593179 | H177: 5.074993862
A178: ASFALTOS DILUÍDOS CM-30 | B178: 2022-12-01 | C178: 4.65725 | D178: 4.966905362 | E178: 5.655161554 | F178: 4.840935672 | G178: 4.661007861 | H178: 5.11324949
A179: ASFALTOS DILUÍDOS CM-30 | B179: 2023-01-01 | C179: 4.948950319 | D179: 5.056264922 | E179: 5.359597966 | F179: 4.426497959 | G179: 4.103267888 | H179: 4.715605129
A180: ASFALTOS DILUÍDOS CM-30 | B180: 2023-02-01 | C180: 5.407494667 | D180: 4.335771195 | E180: 4.746646601 | F180: 4.674884727 | G180: 4.014547173 | H180: 4.417800736
A181: ASFALTOS DILUÍDOS CM-30 | B181: 2023-03-01 | C181: 4.99131 | D181: 4.01354912 | E181: 4.74625028 | F181: 4.08071937 | G181: 4.082484954 | H181: 4.270345723
A182: ASFALTOS DILUÍDOS CM-30 | B182: 2023-04-01 | C182: 4.438479015 | D182: 4.094201354 | E182: 5.135816186 | F182: 4.368265095 | G182: 3.859308149 | H182: 4.153818797
A183: ASFALTOS DILUÍDOS CM-30 | B183: 2023-05-01 | C183: 5.018589297 | D183: 4.506282643 | E183: 5.616638293 | F183: 4.034756925 | G183: 4.063701717 | H183: 4.686492725
A184: ASFALTOS DILUÍDOS CM-30 | B184: 2023-06-01 | C184: 4.439644526 | D184: 4.495805354 | E184: 5.228174524 | F184: 3.772028745 | G184: 4.009042073 | H184: 4.588045148
A185: ASFALTOS DILUÍDOS CM-30 | B185: 2023-07-01 | C185: 4.360399352 | D185: 4.250187634 | E185: 6.188049155 | F185: 3.699216781 | G185: 4.315773768 | H185: 4.790717553
A186: ASFALTOS DILUÍDOS CM-30 | B186: 2023-08-01 | C186: 4.043215999 | D186: 4.100901709 | E186: 5.414198228 | F186: 3.964297949 | G186: 4.055989778 | H186: 4.607810697
A187: ASFALTOS DILUÍDOS CM-30 | B187: 2023-09-01 | C187: 5.69501625 | D187: 4.358586276 | E187: 5.187252517 | F187: 4.112508656 | G187: 4.211646236 | H187: 4.748640211
A188: ASFALTOS DILUÍDOS CM-30 | B188: 2023-10-01 | C188: 5.685185 | D188: 4.294075647 | E188: 4.912919476 | F188: 4.365095101 | G188: 4.257370162 | H188: 4.609445905
A189: ASFALTOS DILUÍDOS CM-30 | B189: 2023-11-01 | C189: 4.815085397 | D189: 4.345599447 | E189: 5.404502747 | F189: 4.045271104 | G189: 4.164697405 | H189: 4.781498943
A190: ASFALTOS DILUÍDOS CM-30 | B190: 2023-12-01 | C190: 5.411492308 | D190: 4.700043896 | E190: 5.306415734 | F190: 4.313216862 | G190: 4.188732062 | H190: 4.664845353
A191: ASFALTOS DILUÍDOS CM-30 | B191: 2024-01-01 | C191: 3.716178391 | D191: 4.395163811 | E191: 4.888126947 | F191: 3.977196797 | G191: 4.057095331 | H191: 4.290228903
A192: ASFALTOS DILUÍDOS CM-30 | B192: 2024-02-01 | C192: 5.349588571 | D192: 4.281881871 | E192: 5.36118056 | F192: 4.287786155 | G192: 4.151112946 | H192: 4.366194996
A193: ASFALTOS DILUÍDOS CM-30 | B193: 2024-03-01 | C193: 6.437624165 | D193: 4.512948358 | E193: 4.994035932 | F193: 4.680610304 | G193: 4.197388123 | H193: 4.725137967
A194: ASFALTOS DILUÍDOS CM-30 | B194: 2024-04-01 | C194: 6.524010018 | D194: 5.333668875 | E194: 5.011370357 | F194: 3.991999626 | G194: 4.15116124 | H194: 4.439406986
A195: ASFALTOS DILUÍDOS CM-30 | B195: 2024-05-01 | C195: 6.61993633 | D195: *** | E195: 5.21538288 | F195: 4.24855796 | G195: 4.478170767 | H195: 4.960078568
A196: ASFALTOS DILUÍDOS CM-30 | B196: 2024-06-01 | C196: 6.461820806 | D196: 4.288169263 | E196: 4.921606124 | F196: 4.517339741 | G196: 4.897585787 | H196: 4.922850803
A197: ASFALTOS DILUÍDOS CM-70 | B197: 2008-11-01 | C197: *** | D197: *** | E197: *** | F197: *** | G197: *** | H197: ***
A198: ASFALTOS DILUÍDOS CM-70 | B198: 2008-12-01 | C198: *** | D198: *** | E198: *** | F198: *** | G198: *** | H198: ***
A199: ASFALTOS DILUÍDOS CM-70 | B199: 2009-01-01 | C199: *** | D199: *** | E199: *** | F199: *** | G199: *** | H199: ***
A200: ASFALTOS DILUÍDOS CM-70 | B200: 2009-02-01 | C200: *** | D200: *** | E200: *** | F200: *** | G200: *** | H200: ***
A201: ASFALTOS DILUÍDOS CM-70 | B201: 2009-03-01 | C201: *** | D201: *** | E201: *** | F201: *** | G201: *** | H201: ***
A202: ASFALTOS DILUÍDOS CM-70 | B202: 2009-04-01 | C202: *** | D202: *** | E202: *** | F202: *** | G202: *** | H202: ***
A203: ASFALTOS DILUÍDOS CM-70 | B203: 2009-05-01 | C203: *** | D203: *** | E203: *** | F203: *** | G203: *** | H203: ***
A204: ASFALTOS DILUÍDOS CM-70 | B204: 2009-06-01 | C204: *** | D204: *** | E204: *** | F204: *** | G204: *** | H204: ***
... 4573 more rows

Sheet MATERIAL SICRO
A1: CGCIT | B1: SISTEMA DE CUSTOS REFERENCIAIS DE OBRAS - SICRO | D1: DNIT
B2: Rio Grande do Norte - Abril/2024
A3: Código | B3: Descrição | C3: Unidade | D3: Preço Unitário (R$)
A4: M0003 | B4: Aço CA 25 | C4: kg | D4: 6.818
A5: M0004 | B5: Aço CA 50 | C5: kg | D5: 6.5744
A6: M0005 | B6: Brita 0 | C6: m³ | D6: 147.2312
A7: M0006 | B7: Fibra de poliamida para concreto | C7: kg | D7: 27.882
A8: M0007 | B8: Fibra de aço para concreto | C8: kg | D8: 13.6193
A9: M0008 | B9: Detergente líquido neutro | C9: l | D9: 4.6122
A10: M0009 | B10: Aço CP 175 RB | C10: kg | D10: 9.0024
A11: M0010 | B11: Aditivo superplastificante para concreto e argamassa | C11: kg | D11: 16.2705
A12: M0011 | B12: Aditivo modificador de viscosidade para concreto e argamassa | C12: kg | D12: 11.1545
A13: M0012 | B13: Silicato de alumínio | C13: kg | D13: 2.1324
A14: M0013 | B14: Grampo de ancoragem em aço CA 50 - D = 12,5 mm | C14: kg | D14: 6.5744
A15: M0014 | B15: Aço CA 60 | C15: kg | D15: 8.2681
A16: M0015 | B16: Espoleta elétrica Nº 8 - D = 6,0 mm | C16: un | D16: 21.7439
A17: M0016 | B17: Grampo sargento em ferro fundido tipo C com abertura útil de 105 mm (4") | C17: un | D17: 52.5499
A18: M0017 | B18: Saco de aniagem ou de ráfia de 50 kg - C = 95 cm e L = 65 cm | C18: un | D18: 2.9309
A19: M0018 | B19: Grampo pesado em aço-carbono para cabo de aço - D = 13 mm (1/2") | C19: un | D19: 18.7552
A20: M0019 | B20: Esticador em aço tipo olhal x olhal para cabo de aço - D = 13 mm | C20: un | D20: 144.2421
A21: M0020 | B21: Grampo de ancoragem em aço CA 50 - D = 6,3 mm | C21: kg | D21: 8.5
A22: M0021 | B22: Herbicida glifosato para áreas contínuas | C22: l | D22: 26.779
A23: M0025 | B23: Adesivo plástico para tubos de PVC | C23: kg | D23: 53.0964
A24: M0026 | B24: Aditivo aglutinante para argamassa | C24: l | D24: 8.1595
A25: M0028 | B25: Areia média | C25: m³ | D25: 125.8443
A26: M0029 | B26: Sílica ativa para concreto e argamassa (microssílica) | C26: kg | D26: 1.9372
A27: M0030 | B27: Aditivo plastificante e retardador de pega para concreto e argamassa | C27: kg | D27: 7.3074
A28: M0032 | B28: Adesivo de contato para laminado elastoplástico | C28: kg | D28: 46.847
A29: M0035 | B29: Diluente tipo aguarrás para tintas e vernizes | C29: l | D29: 15.168
A30: M0039 | B30: Gasolina comum | C30: l | D30: 5.1261
A31: M0041 | B31: Contêiner com 2 banheiros - L = 2,44 m e C = 6,09 m (1 TEU) | C31: un | D31: 89481.2475
A32: M0042 | B32: Contêiner com janela - L = 2,44 m e C = 6,09 m (1 TEU) | C32: un | D32: 63133.1949
A33: M0043 | B33: Óleo diesel | C33: l | D33: 5.4189
A34: M0044 | B34: Abrasivo de vidro com granulometria de 210 a 420 micra | C34: kg | D34: 9.46
A35: M0045 | B35: Barreira plástica monobloco para canalização de trânsito - C = 100 cm, L = 50 cm e H = 55 cm | C35: un | D35: 505.0821
A36: M0046 | B36: Barreira plástica para canalização de trânsito - C = 60 cm, L = 45 cm e H = 60 cm | C36: un | D36: 319.5651
A37: M0047 | B37: Cone de sinalização em polietileno - H = 75 cm e base quadrada de 40 x 40 cm | C37: un | D37: 102.95
A38: M0048 | B38: Balizador cônico refletivo em polietileno semiflexível - H = 114 cm e base octogonal de D = 40 cm | C38: un | D38: 147.9354
A39: M0049 | B39: Delimitador de tráfego flexível com chumbador e duas faixas refletivas - H = 77 cm e D = 21 cm | C39: un | D39: 181.8899
A40: M0050 | B40: Aditivo natural tipo goma xantana para hidrossemeadura | C40: kg | D40: 103.4805
A41: M0051 | B41: Cilindro canalizador de tráfego em polietileno - H = 117 cm e base quadrada de 60 x 60 cm | C41: un | D41: 208.1951
A42: M0052 | B42: Fita adesiva de PVC - L = 50 mm e C = 50 m | C42: m | D42: 0.1043
A43: M0053 | B43: Tela plástica em polipropileno na cor laranja para tapume - L = 1,2 m | C43: m | D43: 1.9406
A44: M0054 | B44: Fita zebrada de cor laranja e branca - L = 7 a 8 cm | C44: m | D44: 0.0742
A45: M0055 | B45: Barreira plástica articulável modular - C = 240 cm e H = 100 cm | C45: un | D45: 1279.349
A46: M0056 | B46: Ferramenta de corte para removedora de faixa de sinalização (Smith Cutter) | C46: un | D46: 7244.8924
A47: M0057 | B47: Contêiner com janela - L = 4,88 m e C = 6,09 m (1 TEU duplo) | C47: un | D47: 120731.2084
A48: M0058 | B48: Contêiner com janela e 2 banheiros - L = 4,88 m e C = 6,09 m (1 TEU duplo) | C48: un | D48: 125120.8606
A49: M0059 | B49: Contêiner com revestimento térmico, janela e banheiro - L = 2,44 m e C = 6,09 m (1 TEU) | C49: un | D49: 86806.2606
A50: M0060 | B50: Contêiner com janela - L = 2,44 m e C = 4,58 m (3/4 TEU) | C50: un | D50: 59771.2986
A51: M0065 | B51: Contêiner com janela e banheiro - L = 2,44 m e 4,58 m (3/4 TEU) | C51: un | D51: 72598.1015
A52: M0066 | B52: Contêiner com revestimento térmico, janela e banheiro - L = 2,44 m e C = 12,90 m (2 TEU) | C52: un | D52: 119091.4351
A53: M0067 | B53: Tubo PEAD PE 100 PN 10 com flanges - D = 160 mm | C53: m | D53: 178.4556
A54: M0068 | B54: Caibro de pinho - L = 7,5 cm e E = 10,0 cm | C54: m | D54: 23.1042
A55: M0069 | B55: Arame farpado em aço galvanizado - D = 1,60 mm | C55: m | D55: 0.7666
A56: M0071 | B56: Contêiner com 3 janelas para guarita - L = 2,44 m e C = 3,05 m (1/2 TEU) | C56: un | D56: 42100.8858
A57: M0072 | B57: Arame liso em aço galvanizado - D = 2,10 mm (14 BWG) | C57: kg | D57: 18.5
A58: M0073 | B58: Muda de árvore com altura de 0,30 a 0,80 m | C58: un | D58: 14.6944
A59: M0074 | B59: Muda de arbusto com altura até 0,50 m | C59: un | D59: 21.567
A60: M0075 | B60: Arame liso recozido em aço-carbono - D = 1,24 mm (18 BWG) | C60: kg | D60: 11.4083
A61: M0076 | B61: Disco de corte abrasivo para policorte - D = 300 mm | C61: un | D61: 15.3805
A62: M0080 | B62: Areia fina | C62: m³ | D62: 131.5539
A63: M0081 | B63: Areia grossa | C63: m³ | D63: 122.0491
A64: M0082 | B64: Areia média lavada | C64: m³ | D64: 135.1479
A65: M0083 | B65: Argamassa pré-dosada para grauteamento | C65: kg | D65: 1.64
A66: M0084 | B66: Argamassa pré-dosada autoadensável para grauteamento | C66: kg | D66: 1.6396
A67: M0085 | B67: Ancoragem ativa para 4 cordoalhas - D = 12,7 mm | C67: un | D67: 382.2457
A68: M0086 | B68: Ancoragem ativa para 6 cordoalhas - D = 12,7 mm | C68: un | D68: 494.0471
A69: M0087 | B69: Ancoragem ativa para 7 cordoalhas - D = 12,7 mm | C69: un | D69: 570.7866
A70: M0088 | B70: Ancoragem ativa para 8 cordoalhas - D = 12,7 mm | C70: un | D70: 667.0345
A71: M0089 | B71: Ancoragem ativa para 9 cordoalhas - D = 12,7 mm | C71: un | D71: 753.4931
A72: M0091 | B72: Ancoragem ativa para 10 cordoalhas - D = 12,7 mm | C72: un | D72: 836.5955
A73: M0092 | B73: Ancoragem ativa para 12 cordoalhas - D = 12,7 mm | C73: un | D73: 1057.7169
A74: M0093 | B74: Ancoragem ativa para 15 cordoalhas - D = 12,7 mm | C74: un | D74: 1467.4408
A75: M0094 | B75: Ancoragem ativa para 19 cordoalhas - D = 12,7 mm | C75: un | D75: 1865.6634
A76: M0098 | B76: Bambu com diâmetro médio de 10 cm | C76: m | D76: 21.3573
A77: M0099 | B77: Equipamentos para a fábrica de dormentes de concreto protendido | C77: ISF | D77: 567.856
A78: M0100 | B78: Ancoragem ativa para 22 cordoalhas - D = 12,7 mm | C78: un | D78: 2415.5598
A79: M0101 | B79: Ancoragem ativa para 27 cordoalhas - D = 12,7 mm | C79: un | D79: 2951.4542
A80: M0102 | B80: Ancoragem ativa para 31 cordoalhas - D = 12,7 mm | C80: un | D80: 3184.1939
A81: M0103 | B81: Aditivo acelerador de pega para concreto e argamassa projetados | C81: kg | D81: 7.4826
A82: M0104 | B82: Asfalto diluído de petróleo - CM-30 | C82: t | D82: -
A83: M0105 | B83: Ancoragem ativa para 4 cordoalhas - D = 15,2 mm | C83: un | D83: 473.8117
A84: M0106 | B84: Ancoragem ativa para 6 cordoalhas - D = 15,2 mm | C84: un | D84: 630.1384
A85: M0107 | B85: Geocomposto para drenagem | C85: m² | D85: 40.891
A86: M0108 | B86: Ancoragem ativa para 7 cordoalhas - D = 15,2 mm | C86: un | D86: 741.672
A87: M0109 | B87: Geodreno vertical - L = 10 cm e E = 5 mm | C87: m | D87: 5.18
A88: M0110 | B88: Ancoragem ativa para 10 cordoalhas - D = 15,2 mm | C88: un | D88: 1145.0766
A89: M0111 | B89: Ancoragem ativa para 9 cordoalhas - D = 15,2 mm | C89: un | D89: 1020.5241
A90: M0112 | B90: Disco diamantado segmentado para corte de pavimento - D = 1.000 mm | C90: un | D90: 5880.9681
A91: M0113 | B91: Ancoragem ativa para 12 cordoalhas - D = 15,2 mm | C91: un | D91: 1399.3471
A92: M0114 | B92: Disco diamantado segmentado para corte de pavimento - D = 1.500 mm | C92: un | D92: 26165.3954
A93: M0115 | B93: Biomanta vegetal de fibras de coco entrelaçadas com fios de polipropileno biodegradáveis - densidade 0,4 kg/m² | C93: m² | D93: 6.51
A94: M0116 | B94: Mangote flangeado de borracha reforçada com lonas sintéticas - C = 1,80 m e D = 0,30 m | C94: un | D94: 16656.7554
A95: M0117 | B95: Mangote flangeado de borracha reforçada com lonas sintéticas - C = 1,80 m e D = 0,40 m | C95: un | D95: 22803.3773
A96: M0118 | B96: Mangote flangeado de borracha reforçada com lonas sintéticas - C = 1,80 m e D = 0,45 m | C96: un | D96: 25487.481
A97: M0119 | B97: Mangote flangeado de borracha reforçada com lonas sintéticas - C = 1,80 m e D = 0,50 m | C97: un | D97: 28690.7609
A98: M0120 | B98: Tubo PEAD PE 100 PN 8 com flanges - D = 250 mm | C98: m | D98: 316.1183
A99: M0121 | B99: Tubo PEAD PE 100 PN 8 com flanges - D = 400 mm | C99: m | D99: 2027.7699
A100: M0122 | B100: Tubo PEAD PE 100 PN 8 com flanges - D = 450 mm | C100: m | D100: 2547.1535
A101: M0123 | B101: Tubo PEAD PE 100 PN 8 com flanges - D = 500 mm | C101: m | D101: 2852.3427
A102: M0124 | B102: Flutuador bipartido em polietileno com núcleo de espuma em poliuretano para tubos - D = 0,30 m | C102: un | D102: 4350.7076
A103: M0125 | B103: Flutuador bipartido em polietileno com núcleo de espuma em poliuretano para tubos - D = 0,40 m | C103: un | D103: 5988.5953
A104: M0126 | B104: Flutuador bipartido em polietileno com núcleo de espuma em poliuretano para tubos - D = 0,45 m | C104: un | D104: 6866.0452
A105: M0127 | B105: Flutuador bipartido em polietileno com núcleo de espuma em poliuretano para tubos - D = 0,50 m | C105: un | D105: 7420.8238
A106: M0128 | B106: Biomanta vegetal de fibras de palha entrelaçadas com fios de polipropileno biodegradáveis - densidade 0,6 kg/m² | C106: m² | D106: 5.71
A107: M0129 | B107: Retentor de sedimento em fibras vegetais - D = 20 cm | C107: m | D107: 59.7201
A108: M0130 | B108: Ancoragem ativa para 15 cordoalhas - D = 15,2 mm | C108: un | D108: 1842.1347
A109: M0131 | B109: Tubo PEAD corrugado com paredes estruturadas para drenagem - D = 400 mm | C109: m | D109: 236.2745
A110: M0132 | B110: Tubo PEAD corrugado com paredes estruturadas para drenagem - D = 450 mm | C110: m | D110: 288.7629
A111: M0133 | B111: Tubo PEAD corrugado com paredes estruturadas para drenagem - D = 500 mm | C111: m | D111: 389.1202
A112: M0134 | B112: Tubo PEAD corrugado com paredes estruturadas para drenagem - D = 600 mm | C112: m | D112: 567.099
A113: M0135 | B113: Tubo PEAD corrugado com paredes estruturadas para drenagem - D = 750 mm | C113: m | D113: 768.523
A114: M0136 | B114: Tubo PEAD corrugado com paredes estruturadas para drenagem - D = 800 mm | C114: m | D114: 846.5476
A115: M0137 | B115: Tubo PEAD corrugado com paredes estruturadas para drenagem - D = 900 mm | C115: m | D115: 1125.1892
A116: M0138 | B116: Ancoragem ativa para 19 cordoalhas - D = 15,2 mm | C116: un | D116: 2396.6883
A117: M0139 | B117: Tubo PEAD corrugado com paredes estruturadas para drenagem - D = 1.000 mm | C117: m | D117: 1485.5589
A118: M0140 | B118: Bentonita | C118: kg | D118: 2.7496
A119: M0141 | B119: Tubo PEAD corrugado com paredes estruturadas para drenagem - D = 1.050 mm | C119: m | D119: 1471.2403
A120: M0142 | B120: Tubo PEAD corrugado com paredes estruturadas para drenagem - D = 1.200 mm | C120: m | D120: 2088.7243
A121: M0143 | B121: Tubo PEAD corrugado com paredes estruturadas para drenagem - D = 1.500 mm | C121: m | D121: 2411.0231
A122: M0145 | B122: Ancoragem ativa para 22 cordoalhas - D = 15,2 mm | C122: un | D122: 3106.4278
A123: M0146 | B123: Ancoragem ativa para 27 cordoalhas - D = 15,2 mm | C123: un | D123: 4067.7708
A124: M0148 | B124: Ancoragem ativa para lajes para 1 cordoalha - D = 12,7 mm | C124: un | D124: 89.908
A125: M0151 | B125: Ancoragem ativa para lajes para 2 cordoalhas - D = 12,7 mm | C125: un | D125: 167.1687
A126: M0152 | B126: Ancoragem ativa para lajes para 3 cordoalhas - D = 12,7 mm | C126: un | D126: 232.7745
A127: M0153 | B127: Ancoragem ativa para lajes para 4 cordoalhas - D = 12,7 mm | C127: un | D127: 310.9876
A128: M0156 | B128: Bloco de concreto - L = 19 cm, A = 19 cm e C = 39 cm | C128: un | D128: 4.437
A129: M0158 | B129: Tela metálica galvanizada dobrada em L - C = 2,0 m, L = 0,4 m e H = 0,4 m | C129: un | D129: 432.6216
A130: M0160 | B130: Extintor de incêndio tipo espuma mecânica - V = 10 l | C130: un | D130: 614.1207
A131: M0161 | B131: Barra de fibra de vidro (vergalhão) - D = 25,0 mm | C131: m | D131: 61.2754
A132: M0162 | B132: Corrente de elo soldado em aço galvanizado com acabamento polido - D = 3,18 mm (1/8") | C132: m | D132: 7.1839
A133: M0163 | B133: Gonzo com aba em aço galvanizado - D = 12,7 mm (1/2") | C133: un | D133: 2.8833
A134: M0164 | B134: Tubo em aço galvanizado - E = 1,50 mm e seção de 20 x 20 mm | C134: m | D134: 12.7369
A135: M0166 | B135: Tubo em aço galvanizado - E = 2,25 mm e D = 20 mm (3/4") | C135: m | D135: 31.4562
A136: M0167 | B136: Tela de poliamida industrial - E = 0,40 mm e malha de 1,6 mm | C136: m² | D136: 15.7567
A137: M0168 | B137: Abraçadeira de poliamida - E = 3,6 mm e C = 200 mm | C137: un | D137: 0.2221
A138: M0169 | B138: Roda em aço e pneu com câmara de ar 83/203 mm (3,25"/8") para carrinho de mão | C138: un | D138: 64.39
A139: M0173 | B139: Ancoragem ativa para lajes para 1 cordoalha - D = 15,2 mm | C139: un | D139: 101.0715
A140: M0178 | B140: Ancoragem ativa para lajes para 2 cordoalhas - D = 15,2 mm | C140: un | D140: 218.5355
A141: M0181 | B141: Ancoragem ativa para lajes para 3 cordoalhas - D = 15,2 mm | C141: un | D141: 284.8194
A142: M0184 | B142: Ancoragem ativa para lajes para 4 cordoalhas - D = 15,2 mm | C142: un | D142: 376.0814
A143: M0191 | B143: Brita 1 | C143: m³ | D143: 135.5546
A144: M0192 | B144: Brita 2 | C144: m³ | D144: 134.0237
A145: M0193 | B145: Brita 3 | C145: m³ | D145: 132.9061
